{"text_format":"1","workbook":"xlsx","n_sheets":122,"sheets":["TitlePage","Disclaimer","General Notes","Chemical Notes","Revisions","Contents","A01","A02a","A02b","A02c","A02d","A03","B01","B02","B03a","B03b","B04Rt","B04a","B04b","B04c","B04d","B05a","B05b","B05c","B05d","C01a","C01b","C01c","C02a","C02b","C03a","C03b","D01a","D01b","D02","D03a","D03b","D04a","D04b","D05","D06","D07","D08a","D08b","D09a","D09b","D09c","D09d","D11","E01","E02","E03","E04","F01a","F01b","F02a","F02b","F02c","F02d","F02e","F02f","F03a","F03b","F03c","F04a","F04b","F04c","F04d","F04e","F05a","F05b","F05c","F05d","F05e","F06a","F06b","F06c","F06d","F06e","F06f","F07a","F07b","F07c","F08a","F08b","F09a","F09b","F09c","F10a","F10b","F10c","F10d","F10e","F11a","F11b","F11c","F11d","F11e","F12a","F12b","F12c","F12d","F12e","F12f","F13a","F13b","F13c","G01","G02","G03","G04","G05","G06a","G06b","G07a","G07b","G07c","G07d","G08a","G08b","G09","References"],"not_rendered":{"charts":15,"images":20,"macros":1,"external_links":0,"defined_names":1148,"comments":0,"pivot_tables":0},"unopened":[],"bounds":{"document_bytes":16777216,"sheet_cells":100000,"rows_first":2000,"rows_last":500,"rows_between":2000,"halvings":0,"cell_chars":16384,"cell_head_chars":4096},"cells_cut":0,"cells_raw":0,"read":"whole","date_system":"1900"}

{"sheet":"TitlePage","index":0,"n_rows":51,"n_cols":6,"rows_kept":51,"cut":false,"hidden":false,"merged":[[0,1,4,7],[5,2,7,6],[50,0,50,8]]}
["Title page"]
[]
[]
[]
[]
[null,null,"Picloram (Potassium Salt): Foliar Applications"]
[]
[]
[]
[]
[]
[]
[]
[]
[]
[]
[null,null,null,null,"WorksheetMaker Version ","6.00.07"]
[]
[]
[]
[]
[]
[]
[]
[]
[]
[]
[]
[]
[]
[]
[]
[]
[]
[]
[]
[]
[]
[]
[]
[]
[]
[]
[]
[]
[]
[]
[]
[]
[]
["2011-07-30"]

{"sheet":"Disclaimer","index":1,"n_rows":1,"n_cols":1,"rows_kept":1,"cut":false,"hidden":false,"merged":[]}
["DISCLAIMER"]

{"sheet":"General Notes","index":2,"n_rows":59,"n_cols":3,"rows_kept":59,"cut":false,"hidden":false,"merged":[[0,0,0,2]]}
["General Notes"]
[null,"Prepared by:","Patrick R Durkin"]
[null,"Program Version:","6.00.07"]
[null,"Database Used:","FS WsMkr V06-00-01.mdb"]
[null,"Template Workbook:","FS WsMkr V06-00-01.mdb"]
[null,"Base Workbook:","FS WSMkr Blank V06-00-01.xlsm"]
[]
["Color Codes in WorksheetMaker"]
[]
[]
[]
[]
["Color Codes used in Workbook for Front Matter, Data and Calculation Worksheets"]
[null,"Green shading ","This is a default value or a user specified a value.  You can change these values as you see fit but you should have a reason for doing so."]
[null,"Yellow shading ","This is a source for a link in other parts of the workbook.  If you have good reason to change the value, you should note the change (with your reason) in the “Revisions” page."]
[null,"Blue shading ","This cell is linked to another cell in the workbook.  Do not change this value.  If you change any of these values, the workbook may not update correctly."]
[null,"Blue shading blue border ","This cell is linked to a Program parameter in Worksheet A01.  Do not change this value.  If you want the value to change, go to Worksheet A01 and change the value in that worksheet."]
[null,"Purple Shading","Indicates (for information only) that the typical of order of Lower and Upper values is intentionally reversed.  This is only used in the second (label) column."]
[null,"Italics, no shading","The value in this cell is generated by a formula (the number that you see is the result of an equation).  This cell is linked only to other cells in the worksheet.  Do not change this value."]
[]
[]
[]
[]
[]
["Color Codes used in Workbook for Risk Characterization Worksheets"]
[null,"HQ ≥ 2","For hazard quotient greater than 2, the number is in bold font with a red background and rounded to the nearest integer."]
[null,"HQ > 1 but < 2","For hazard quotient greater than 1 but less than two, the number is in bold font with a white background and rounded to one significant place after the decimal."]
[null,"HQ ≥ 0.1 but <1","For hazard quotient greater than 0.1 but less than one, the number is in regular font with a white background and rounded to one significant place after the decimal."]
[null,"HQ < 0.1","For hazard quotient less than 0.1, the number is in regular font with a white background.   The number is expressed in scientific notation and rounded to one significant place -- e.g., 2E-02 rather than 0.02."]
[]
[]
[]
[]
[]
[]
[]
[]
[]
[]
[]
[]
[]
[]
[]
[]
[]
[]
[]
[]
[]
[]
[]
[]
[]
[null,"Prepared by:","Patrick R Durkin"]
[null,"Program Version:","6.00.07"]
[null,"Database Used:","FS WsMkr V06-00-01.mdb"]
[null,"Template Workbook:","FS WsMkr V06-00-01.mdb"]
[null,"Base Workbook:","FS WSMkr Blank V06-00-01.xlsm"]

{"sheet":"Chemical Notes","index":3,"n_rows":6,"n_cols":4,"rows_kept":6,"cut":false,"hidden":false,"merged":[[0,0,0,2],[1,0,1,2],[1,3,1,5],[2,0,2,2],[2,3,2,4]]}
["Chemical specific notes"]
["Risk Assessment:",null,null,"SERA TR-052-27-03a"]
["Report Date:",null,null,"2011-09-29"]
[]
[]
["The area below is an embedded MS Word Document.  Add chemical-specific notes as appropriate."]

{"sheet":"Revisions","index":4,"n_rows":8,"n_cols":1,"rows_kept":8,"cut":false,"hidden":false,"merged":[]}
["Revision Histroy"]
[]
[]
[]
[]
[]
[]
["The area below is an embedded MS Word Document.  Add revision notes as appropriate."]

{"sheet":"Contents","index":5,"n_rows":124,"n_cols":3,"rows_kept":124,"cut":false,"hidden":false,"merged":[]}
[null,"Table of Contents","Toc"]
["Work-sheet No.","Worksheet Title"]
["TitlePage","Title page"]
["Disclaimer","DISCLAIMER"]
["General Notes","General Notes"]
["Chemical Notes","Chemical specific notes"]
["Revisions","Revision Histroy"]
["Contents"]
["A01","Program Data: Application rates, application volumns, and concentrations in field solutions"]
["A02a","General reference values and exposure factors used in worksheets."]
["A02b","General reference values and exposure factors used in worksheets."]
["A02c","General reference values and exposure factors used in worksheets."]
["A02d","General reference values and exposure factors used in worksheets."]
["A03","Consumption values used in worksheets"]
["B01","Chemical and Physical Properties for  Picloram"]
["B02","Toxicity values for  Picloram"]
["B03a","Calculation of Zero-Order Dermal Permeability Rate (Kp) in cm/hour"]
["B03b","Calculation of First-Order Dermal Absorption Rate"]
["B04Rt","Estimates of Water Contamination Rates -- i.e., the concentration in ambient water per pound applied per acre"]
["B04a","Expected Concentrations in Surface Water"]
["B04b","Pond: Concentration of pesticide (liquid formulation) in pond water after an accidental spill"]
["B04c","Concentration in pond water after direct spray or after drift at distances downwind in feet from the application site"]
["B04d","Concentration in stream water after direct spray or after drift at distances downwind in feet from the application site"]
["B05a","Concentration of Pesticide in Contaminated Fruit "]
["B05b","Concentration of Pesticide in Contaminated Broadleaf Vegetation "]
["B05c","Concentration of Pesticide in Contaminated Short Grass "]
["B05d","Concentration of Pesticide in Contaminated Tall Grass "]
["C01a","Exposure estimates for Backpack Worker based on the amount of material handled per day"]
["C01b","Exposure estimates for Ground Boom Worker based on the amount of material handled per day"]
["C01c","Exposure estimates for Aerial Spray Worker based on the amount of material handled per day"]
["C02a","Accidental Dermal Exposure Assessment Using Zero-Order Absorption, Worker, Surface Area, Hands, for 1 minute(s)"]
["C02b","Accidental Dermal Exposure Assessment Using Zero-Order Absorption, Worker, Surface Area, Hands, for 60 minute(s)"]
["C03a","Accidental Dermal Exposure Assessment Using First-Order Absorption, Worker, Surface Area, Hands, for 60 minute(s)"]
["C03b","Accidental Dermal Exposure Assessment Using First-Order Absorption, Worker, Surface Area, Lower legs, for 60 minute(s)"]
["D01a","Accidental Dermal Exposure Assessment Using First-Order Absorption, Child, Surface Area, Whole body, for 60 minute(s)"]
["D01b","Accidental Dermal Exposure Assessment Using First-Order Absorption, Adult Female, Surface Area, Feet and lower Legs, for 60 minute(s)"]
["D02","Dermal Contact with Contaminated Vegetation, Adult Female, Surface Area, Wearing shorts and T-shirt, for 1 hour(s)"]
["D03a","Consumption of Fruit by a Adult Female, Acute exposure."]
["D03b","Consumption of Vegetation by a Adult Female, Acute exposure."]
["D04a","Consumption of Fruit by a Adult Female, Chronic exposure."]
["D04b","Consumption of Vegetation by a Adult Female, Chronic exposure."]
["D05","Consumption of contaminated water by Child, Accidental Spill "]
["D06","Consumption of contaminated water by Child, Peak Conentrations "]
["D07","Consumption of contaminated water by Adult Male, Longer-term Conentrations "]
["D08a","Consumption of Contaminated Fish (Accidental Spill), Adult Male, acute exposure"]
["D08b","Consumption of Contaminated Fish (Accidental Spill), Subsistence Populations, acute exposure"]
["D09a","Consumption of Contaminated Fish (Longer-term), Adult Male, chronic exposure"]
["D09b","Consumption of Contaminated Fish (Longer-term), Subsistence Populations, chronic exposure"]
["D09c","Consumption of Contaminated Fish (Peak Exposure), Adult Male, acute exposure"]
["D09d","Consumption of Contaminated Fish (Peak Exposure), Subsistence Populations, acute exposure"]
["D11","Swimming Exposure Assessment Using Zero-Order Absorption, Adult Female, Surface Area, Whole body, for 60 minute(s)"]
["E01","Worksheet E01: Summary of Worker Exposure Assessments"]
["E02","Worksheet E01: Summary of Worker Hazard Quotients (Toxicity)"]
["E03","Worksheet E03: Summary of Exposure Assessments for the General Public"]
["E04","Worksheet E03: Summary of Hazard Quotients (Toxicity) for the General Public"]
["F01a","Direct spray of Mammal, small assuming first-order absorption kinetics with spray of 0.5 of the body surface"]
["F01b","Direct spray of Mammal, small assuming 100% absorption with spray of 0.5 of the body surface"]
["F02a","Consumption of contaminated water by Mammal, small, Accidental Spill "]
["F02b","Consumption of contaminated water by Mammal, 400 g, Accidental Spill "]
["F02c","Consumption of contaminated water by Mammal, carnivorous, Accidental Spill "]
["F02d","Consumption of contaminated water by Mammal, large, Accidental Spill "]
["F02e","Consumption of contaminated water by Bird, small, Accidental Spill "]
["F02f","Consumption of contaminated water by Bird, large, Accidental Spill "]
["F03a","Acute scenario for the consumption of Contaminated Fish ( Accidental Spill) by Mammal, large carnivorous "]
["F03b","Acute scenario for the consumption of Contaminated Fish ( Accidental Spill) by Mammal, carnivorous "]
["F03c","Acute scenario for the consumption of Contaminated Fish ( Accidental Spill) by Bird, piscivorous "]
["F04a","Consumption of Fruit by a Mammal, small after Acute exposure."]
["F04b","Consumption of Fruit by a Mammal, 400 g after Acute exposure."]
["F04c","Consumption of Fruit by a Mammal, large after Acute exposure."]
["F04d","Consumption of Fruit by a Bird, small after Acute exposure."]
["F04e","Consumption of Fruit by a Bird, large after Acute exposure."]
["F05a","Consumption of Short grass by a Mammal, small after Acute exposure."]
["F05b","Consumption of Short grass by a Mammal, 400 g after Acute exposure."]
["F05c","Consumption of Short grass by a Mammal, large after Acute exposure."]
["F05d","Consumption of Short grass by a Bird, small after Acute exposure."]
["F05e","Consumption of Short grass by a Bird, large after Acute exposure."]
["F06a","Consumption of contaminated water by Mammal, small, Peak Concentrations "]
["F06b","Consumption of contaminated water by Mammal, 400 g, Peak Concentrations "]
["F06c","Consumption of contaminated water by Mammal, carnivorous, Peak Concentrations "]
["F06d","Consumption of contaminated water by Mammal, large, Peak Concentrations "]
["F06e","Consumption of contaminated water by Bird, small, Peak Concentrations "]
["F06f","Consumption of contaminated water by Bird, large, Peak Concentrations "]
["F07a","Consumption of Small Insects by a Mammal, small after Acute exposure."]
["F07b","Consumption of Small Insects by a Mammal, 400 g after Acute exposure."]
["F07c","Consumption of Small Insects by a Bird, small after Acute exposure."]
["F08a","Consumption of Small Mammal by Mammal, carnivorous, acute exposure scenario"]
["F08b","Consumption of Small Mammal by Bird, carnivorous, acute exposure scenario"]
["F09a","Acute scenario for the consumption of Contaminated Fish (Peak) by Mammal, large carnivorous "]
["F09b","Acute scenario for the consumption of Contaminated Fish (Peak) by Mammal, carnivorous "]
["F09c","Acute scenario for the consumption of Contaminated Fish (Peak) by Bird, piscivorous "]
["F10a","Consumption of Fruit by a Mammal, small after Chronic exposure."]
["F10b","Consumption of Fruit by a Mammal, 400 g after Chronic exposure."]
["F10c","Consumption of Fruit by a Mammal, large after Chronic exposure."]
["F10d","Consumption of Fruit by a Bird, small after Chronic exposure."]
["F10e","Consumption of Fruit by a Bird, large after Chronic exposure."]
["F11a","Consumption of Short grass by a Mammal, small after Chronic exposure."]
["F11b","Consumption of Short grass by a Mammal, 400 g after Chronic exposure."]
["F11c","Consumption of Short grass by a Mammal, large after Chronic exposure."]
["F11d","Consumption of Short grass by a Bird, small after Chronic exposure."]
["F11e","Consumption of Short grass by a Bird, large after Chronic exposure."]
["F12a","Consumption of contaminated water by Mammal, small, Longer-term Concentrations "]
["F12b","Consumption of contaminated water by Mammal, 400 g, Longer-term Concentrations "]
["F12c","Consumption of contaminated water by Mammal, carnivorous, Longer-term Concentrations "]
["F12d","Consumption of contaminated water by Mammal, large, Longer-term Concentrations "]
["F12e","Consumption of contaminated water by Bird, small, Longer-term Concentrations "]
["F12f","Consumption of contaminated water by Bird, large, Longer-term Concentrations "]
["F13a","Chronic scenario for the consumption of Contaminated Fish (Longer-term) by Mammal, large carnivorous "]
["F13b","Chronic scenario for the consumption of Contaminated Fish (Longer-term) by Mammal, carnivorous "]
["F13c","Chronic scenario for the consumption of Contaminated Fish (Longer-term) by Bird, piscivorous "]
["G01","Summary of Exposure Assessments for the Terrestrial Animals"]
["G02","Summary of Hazard Quotients (Toxicity) for the Terrestrial Animals"]
["G03","Worksheet G03: Summary of Hazard Quotients for Aquatic Species"]
["G04","Summary of Exposure Assessment and Risk Characterization for Terrestrial Plants from Runoff"]
["G05","Summary of Exposure Assessment and Risk Characterization for Sensitive and Tolerant Terrestrial Plants from Drift After Aerial Broadcast Foliar Application."]
["G06a","Potential exposure of non-target plants through the use of contaminated irrigation water based on estimates concentrations in ambient water."]
["G06b","Summary of Exposure Assessment and Risk Characterization for Sensitive and Tolerant Terrestrial Plants from Wind Erosion at the Specified Application Rate."]
["G07a","Consumption of Fruit by a Herbivorous Insect, Acute exposure."]
["G07b","Consumption of Broadleaf/Small Insects by a Herbivorous Insect, Acute exposure."]
["G07c","Consumption of Short grass by a Herbivorous Insect, Acute exposure."]
["G07d","Consumption of Tall Grass by a Herbivorous Insect, Acute exposure."]
["G08a","Summary of Exposure Assessments for the Herbivorous or Predatory Insects"]
["G08b","Summary of Hazard Quotients (Toxicity) for the Herbivorous or Predatory Insects"]
["G09","Exposures and HQs for a Terrestrial Insect (Honeybee) Associated with Direct Spray or Drift Following Terrestrial Applications"]
["References","References cited in workbook"]

{"sheet":"A01","index":6,"n_rows":77,"n_cols":5,"rows_kept":77,"cut":false,"hidden":false,"merged":[[53,0,56,0],[0,0,0,4],[3,0,6,0],[7,0,10,0],[12,0,15,0],[16,0,18,0],[29,0,32,0],[33,0,36,0],[37,0,40,0],[41,0,44,0],[45,0,48,0],[49,0,52,0],[57,0,60,0],[61,0,64,0],[65,0,68,0],[69,0,72,0],[73,0,76,0]]}
["Program Data: Application rates, application volumns, and concentrations in field solutions"]
["Parameter/Assumption","Code / Range","Equation/ Value","Units","Reference/ Equation"]
["Application Rate","ApRt",1,"lb/acre","Program Input"]
["Application Volume","ApVol"]
[null,"Central ",30,"gal/acre","Program Input"]
[null,"Upper ",100,null,"Program Input"]
[null,"Lower ",5,null,"Program Input"]
["Concentration in field solution (lb/gal)","Concppg","ApRt (lb/acre) / ApVol (gal/acre)",null,"Note 1"]
[null,"Central ",{"$f":"IF(C5>0, C$3/C5, \"N/A\")","v":3.3333333333333333E-2},"lb/gal","Eq"]
[null,"Lower ",{"$f":"IF(C6>0, C$3/C6, \"N/A\")","v":0.01},null,"Eq"]
[null,"Upper ",{"$f":"IF(C7>0, C$3/C7, \"N/A\")","v":0.2},null,"Eq"]
["Conversion Factor for lbs/gal to mg/mL","CnvF",119.8,"mg/mL per lb/gal"]
["Concentration in field solution (mg/mL)","FldConc","Concppg * CnvF",null,"Note 2"]
[null,"Central ",{"$f":"IF(C5>0, DigitRound( C9*C$12, C$17), \"NA\")","v":4},"mg/mL","Eq"]
[null,"Lower ",{"$f":"IF(C6>0, DigitRound( C10*C$12, C$17), \"NA\")","v":1.2},null,"Eq"]
[null,"Upper ",{"$f":"IF(C7>0, DigitRound( C11*C$12, C$17), \"NA\")","v":24},null,"Eq"]
["Number of significant figures  used for FldConc.","NSig",2]
[]
[]
["Number of Applications","nApps",1,"Unitless","Program Input"]
["Application Interval","ApIntv",1,"Days","Program Input"]
["Standard Values/Options for Scenarios"]
["Surface area of pond for spill","PondSA_M",1000,"Sq. Meters","Risk assessment."]
["Pond depth","PondDepthM",1,"Meters","Risk assessment."]
["Stream flow rate for drift scenario","StreamFlowLD",710000,"Liters/day","Risk assessment."]
["Stream length for drift scenario","StreamLengthFt",1038,"Feet","Risk assessment."]
["Stream width for drift scenario","StreamWidthFt",6,"Feet","Risk assessment."]
["Duration for longer-term exposures","SubChDays",90,"Days","Risk assessment."]
["Duration for swimming scenarios","SwimMin",60,"Minutes","Risk assessment."]
["Protection factor for workers based on PPE.","WrkProtectFact"]
[null,"Central",0,null,"Risk assessment."]
[null,"Lower",0]
[null,"Upper",0]
["Toxic Equivalency Factor for formulation","TEF"]
[null,"Central",1,null,"Risk assessment."]
[null,"Lower",1]
[null,"Upper",1]
["Used in food commody worksheets","DriftToFood"]
[null,"Central",1,null,"Risk assessment."]
[null,"Lower",1]
[null,"Upper",1]
["Amount spilled into ponds","PondSpillVolGal"]
[null,"Central",100,"Gal","Risk assessment."]
[null,"Lower",20]
[null,"Upper",200]
["Dislodgeable residue, as a proportion of the application rate.","DislogRes"]
[null,"Central",0.1,null,"Risk assessment."]
[null,"Lower",0.1]
[null,"Upper",0.1]
["Residue rates for short grass","VegRRSGT"]
[null,"Central",85,"ppm per lb/ac","Risk assessment."]
[null,"Lower",30]
[null,"Upper",240]
["Residue rates for long grass","VegRRTGT"]
[null,"Central",36,"ppm per lb/ac","Risk assessment."]
[null,"Lower",12]
[null,"Upper",110]
["Residue rates for broadleaf/forage plants and small insects","VegRRBLT"]
[null,"Central",45,"ppm per lb/ac","Risk assessment."]
[null,"Lower",15]
[null,"Upper",135]
["Residue rates for fruit","VegRRFRT"]
[null,"Central",7,"ppm per lb/ac","Risk assessment."]
[null,"Lower",3.2]
[null,"Upper",15]
["Worker Exposure Rate","WrkExpRate"]
[null,"Central",3.0000000000000001E-3,"Mg/kg bw per lb","Risk assessment."]
[null,"Lower",2.9999999999999997E-4]
[null,"Upper",0.01]
["Number of acres that the worker will treat per hour.","WrkAcPerHr"]
[null,"Central",0.625,"Acres/hr","Risk assessment."]
[null,"Lower",0.25]
[null,"Upper",1]
["Number of hours of worker exposure per day.","WrkHsPerDy"]
[null,"Central",7,"Hrs/day","Risk assessment."]
[null,"Lower",6]
[null,"Upper",8]

{"sheet":"A02a","index":7,"n_rows":41,"n_cols":6,"rows_kept":41,"cut":false,"hidden":false,"merged":[[0,0,0,4]]}
["General reference values and exposure factors used in worksheets."]
[]
["Receptor","Factor","Value","Units"," Reference","Reference Note"]
["Adult Female","Body weight",64,"kg","U.S. EPA/ORD 1985","page 5, Table 2-2"]
["Adult Female","Surface Area, Feet and lower Legs",2915,"cm2","U.S. EPA/ORD 1992","p. 8-11, Table 8-3, total for feet and lower legs"]
["Adult Female","Surface Area, Wearing shorts and T-shirt",5300,"cm2","U.S. EPA/ORD 1992","p. 8-11, Table 8-3, total for arms, hands, lower legs, and feet."]
["Adult Female","Surface Area, Whole body",16900,"cm2","U.S. EPA/ORD 1997","p. 6-13, Table 6-3, whole body, 50th percentile"]
["Adult Male","Body weight",70,"kg","ICRP 1975","p. 13."]
["Subsistence Populations","Body weight",70,"kg","ICRP 1975","p. 13"]
["Worker, Aerial Spray","Absorbed dose rate, central estimate",3.0000000000000001E-5,"(mg/kg bw)/(lbs handled per day)","SERA 2007","Acres treated per hour"]
["Worker, Aerial Spray","Absorbed dose rate, lower range",9.9999999999999995E-7,"(mg/kg bw)/(lbs handled per day)","SERA 2007","Acres treated per hour"]
["Worker, Aerial Spray","Absorbed dose rate, upper range",1E-4,"(mg/kg bw)/(lbs handled per day)","SERA 2007","Acres treated per hour"]
["Worker, Aerial Spray","Hours of application per day, central estimate",7,"Hours per day","USDA 1989a","N/A"]
["Worker, Aerial Spray","Hours of application per day, lower range",6,"Hours per day","USDA 1989a","N/A"]
["Worker, Aerial Spray","Hours of application per day, upper range",8,"Hours per day","USDA 1989a","N/A"]
["Worker, Aerial Spray","Acres treated per hour, central estimate",70,"acres/hour","USDA 1989a","Acres treated per hour"]
["Worker, Aerial Spray","Acres treated per hour, lower range",40,"acres/hour","USDA 1989a","Acres treated per hour"]
["Worker, Aerial Spray","Acres treated per hour, upper range",100,"acres/hour","USDA 1989a","Acres treated per hour"]
["Worker, Backpack","Absorbed dose rate, central estimate",3.0000000000000001E-3,"(mg/kg bw)/(lbs handled per day)","SERA 2007","Acres treated per hour"]
["Worker, Backpack","Absorbed dose rate, lower range",2.9999999999999997E-4,"(mg/kg bw)/(lbs handled per day)","SERA 2007","Acres treated per hour"]
["Worker, Backpack","Absorbed dose rate, upper range",0.01,"(mg/kg bw)/(lbs handled per day)","SERA 2007","Acres treated per hour"]
["Worker, Backpack","Hours of application per day, central estimate",7,"Hours per day","USDA 1989a","N/A"]
["Worker, Backpack","Hours of application per day, lower range",6,"Hours per day","USDA 1989a","N/A"]
["Worker, Backpack","Hours of application per day, upper range",8,"Hours per day","USDA 1989a","N/A"]
["Worker, Backpack","Acres treated per hour, central estimate",0.625,"acres/hour","USDA 1989a","Acres treated per hour"]
["Worker, Backpack","Acres treated per hour, lower range",0.25,"acres/hour","USDA 1989a","Acres treated per hour"]
["Worker, Backpack","Acres treated per hour, upper range",1,"acres/hour","USDA 1989a","Acres treated per hour"]
["Child","Body weight",13.3,"kg","U.S. EPA/ORD 1996","p. 7-1, Table 7-2"]
["Child","Surface Area, Whole body",6030,"cm2","U.S. EPA/ORD 1996","p. 6-15, Table 6-6, 50th percentile."]
["Worker, Ground Spray","Absorbed dose rate, central estimate",2.0000000000000001E-4,"(mg/kg bw)/(lbs handled per day)","SERA 2007","Acres treated per hour"]
["Worker, Ground Spray","Absorbed dose rate, lower range",1.0000000000000001E-5,"(mg/kg bw)/(lbs handled per day)","SERA 2007","Acres treated per hour"]
["Worker, Ground Spray","Absorbed dose rate, upper range",8.9999999999999998E-4,"(mg/kg bw)/(lbs handled per day)","SERA 2007","Acres treated per hour"]
["Worker, Ground Spray","Hours of application per day, central estimate",7,"Hours per day","USDA 1989a","N/A"]
["Worker, Ground Spray","Hours of application per day, lower range",6,"Hours per day","USDA 1989a","N/A"]
["Worker, Ground Spray","Hours of application per day, upper range",8,"Hours per day","USDA 1989a","N/A"]
["Worker, Ground Spray","Acres treated per hour, central estimate",16,"acres/hour","USDA 1989a","Acres treated per hour"]
["Worker, Ground Spray","Acres treated per hour, lower range",11,"acres/hour","USDA 1989a","Acres treated per hour"]
["Worker, Ground Spray","Acres treated per hour, upper range",21,"acres/hour","USDA 1989a","Acres treated per hour"]
["Worker","Body weight",70,"kg","ICRP 1975","p. 13"]
["Worker","Surface Area, Hands",840,"cm2","U.S. EPA/ORD 1992"," p. 8-11"]
["Worker","Surface Area, Lower legs",2070,"cm2","U.S. EPA/ORD 1992","p. 8-11"]

{"sheet":"A02b","index":8,"n_rows":80,"n_cols":6,"rows_kept":80,"cut":false,"hidden":false,"merged":[[0,0,0,4]]}
["General reference values and exposure factors used in worksheets."]
[]
["Receptor","Factor","Value","Units"," Reference","Reference Note"]
["Amphibian","Kilocalories, alpha parameter for allometric equation",5.3999999999999999E-2,"BW(g),Kcal (kcal/day)","U.S. EPA/ORD 1993","p. 3-7, equation 3-14"]
["Amphibian","Kilocalories, beta parameter for allometric equation",0.79900000000000004,"BW(g),Kcal (kcal/day)","U.S. EPA/ORD 1993","p. 3-7, equation 3-14"]
["Amphibian, bull frog","Food consumption, alpha parameter for allometric equation",1.0900000000000001,"BW(g),FC(g)","SERA 2010","Figure 15"]
["Amphibian, bull frog","Food consumption, beta parameter for allometric equation",0.17230000000000001,"BW(g),FC(g)","SERA 2010","Figure 15"]
["Bird, NOS","Food consumption, alpha parameter for allometric equation",0.64800000000000002,"BW(g),FC(g)","U.S. EPA/ORD 1993","Eq. 3-3, p. 3-4, all birds"]
["Bird, NOS","Food consumption, beta parameter for allometric equation",0.65100000000000002,"BW(g),FC(g)","U.S. EPA/ORD 1993","Eq. 3-3, p. 3-4, all birds"]
["Bird, carnivorous","Body weight",0.64,"kg","Dunning 1993","p. 97. Female Spotted Owl (Strix occidentalis).  Range of 548 to 760 g."]
["Bird, carnivorous","Kilocalories, alpha parameter for allometric equation",1.1459999999999999,"BW(g),KCal(kcal/day)","U.S. EPA/ORD 1993","Eq. 3-37, nonpasserines"]
["Bird, carnivorous","Kilocalories, beta parameter for allometric equation",0.749,"BW(g),KCal(kcal/day)","U.S. EPA/ORD 1993","Eq. 3-37, nonpasserines"]
["Bird, carnivorous","Water consumption, alpha parameter for allometric equation",5.8999999999999997E-2,"BW(kg), WC(L)","U.S. EPA/ORD 1993","Eq. 3-15, p. 3-8"]
["Bird, carnivorous","Water consumption, beta parameter for allometric equation",0.67,"BW(kg), WC(L)","U.S. EPA/ORD 1993","Eq. 3-15, p. 3-8"]
["Bird, large","Body weight",4,"kg","Default","Canada goose"]
["Bird, large","Kilocalories, alpha parameter for allometric equation",1.1459999999999999,"BW(g),KCal(kcal/day)","U.S. EPA/ORD 1993","Eq. 3-37, non-passerines"]
["Bird, large","Kilocalories, beta parameter for allometric equation",0.749,"BW(g),KCal(kcal/day)","U.S. EPA/ORD 1993","Eq. 3-37, non-passerines"]
["Bird, large","Water consumption, alpha parameter for allometric equation",5.8999999999999997E-2,"BW(kg), WC(L)","U.S. EPA/ORD 1993","Eq. 3-15, p. 3-8"]
["Bird, large","Water consumption, beta parameter for allometric equation",0.67,"BW(kg), WC(L)","U.S. EPA/ORD 1993","Eq. 3-15, p. 3-8"]
["Bird, non-Passerine","Food consumption, alpha parameter for allometric equation",0.30099999999999999,"BW(g),FC(g)","U.S. EPA/ORD 1993","Eq. 3-5, p. 3-5, non-passerines"]
["Bird, non-Passerine","Food consumption, beta parameter for allometric equation",0.751,"BW(g),FC(g)","U.S. EPA/ORD 1993","Eq. 3-5, p. 3-5, non-passerines"]
["Bird, Passerine","Food consumption, alpha parameter for allometric equation",0.39800000000000002,"BW(g),FC(g)","U.S. EPA/ORD 1993","Eq. 3-4, p. 3-4, passerines"]
["Bird, Passerine","Food consumption, beta parameter for allometric equation",0.85,"BW(g),FC(g)","U.S. EPA/ORD 1993","Eq. 3-4, p. 3-4, passerines"]
["Bird, piscivorous","Body weight",2.4,"kg","Sibley 2000","p. 60. Great Blue Heron"]
["Bird, piscivorous","Food consumption, alpha parameter for allometric equation",0.495,"BW(g), FC(g)","U.S. EPA/ORD 1993","Eq. 3-6, p. 3-5, seabird"]
["Bird, piscivorous","Food consumption, beta parameter for allometric equation",0.70399999999999996,"BW(g), FC(g)","U.S. EPA/ORD 1993","Eq. 3-6, p. 3-5, seabird"]
["Bird, piscivorous","Kilocalories, alpha parameter for allometric equation",1.9159999999999999,"BW(g),KCal(kcal/day)","U.S. EPA/ORD 1993","Eq. 3-38, p. 3-23, seabird"]
["Bird, piscivorous","Kilocalories, beta parameter for allometric equation",0.70399999999999996,"BW(g),KCal(kcal/day)","U.S. EPA/ORD 1993","Eq. 3-38, p. 3-23, seabird"]
["Bird, piscivorous","Water consumption, alpha parameter for allometric equation",5.8999999999999997E-2,"BW(kg), WC(L)","U.S. EPA/ORD 1993","Eq. 3-15, p. 3-8"]
["Bird, piscivorous","Water consumption, beta parameter for allometric equation",0.67,"BW(kg), WC(L)","U.S. EPA/ORD 1993","Eq. 3-15, p. 3-8"]
["Bird, small","Body weight",0.01,"kg","Default","N/A"]
["Bird, small","Kilocalories, alpha parameter for allometric equation",3.12,"BW(g),KCal(kcal/day)","U.S. EPA/ORD 1993","Equation 3-36, passerines"]
["Bird, small","Kilocalories, beta parameter for allometric equation",0.60499999999999998,"BW(g),KCal(kcal/day)","U.S. EPA/ORD 1993","Equation 3-36, passerines"]
["Bird, small","Water consumption, alpha parameter for allometric equation",5.8999999999999997E-2,"BW(kg), WC(L)","U.S. EPA/ORD 1993","Eq. 3-15, p. 3-8"]
["Bird, small","Water consumption, beta parameter for allometric equation",0.67,"BW(kg), WC(L)","U.S. EPA/ORD 1993","Eq. 3-15, p. 3-8"]
["Honeybee","Body weight",1.16E-4,"kg","Winston 1987","p. 54. Arithmetic average of range: 81 to 151 mg/bee."]
["Honeybee","Surface Area, Whole body",1.42,"cm2","Humphery and Dykes 2008","Based on a bee with a body length of 1.44 cm."]
["Mammal, Nos","Food consumption, alpha parameter for allometric equation",0.23499999999999999,"BW(g),FC(g)","U.S. EPA/ORD 1993","Eq. 3-7 ,p. 3-6, all mammals"]
["Mammal, Nos","Food consumption, beta parameter for allometric equation",0.82199999999999995,"BW(g),FC(g)","U.S. EPA/ORD 1993","Eq. 3-7 ,p. 3-6, all mammals"]
["Mammal, 400 g","Body weight",0.4,"kg","Default","N/A"]
["Mammal, 400 g","Food consumption, alpha parameter for allometric equation",0.621,"BW(g),FC(g)","U.S. EPA/ORD 1993","Eq. 3-8, p. 3-6, equation for rodents"]
["Mammal, 400 g","Food consumption, beta parameter for allometric equation",0.56399999999999995,"BW(g),FC(g)","U.S. EPA/ORD 1993","Eq. 3-8, p. 3-6, equation for rodents"]
["Mammal, 400 g","Kilocalories, alpha parameter for allometric equation",2.5139999999999998,"BW(g),KCal(kcal/day)","U.S. EPA/ORD 1993","Equation 3-48, rodent"]
["Mammal, 400 g","Kilocalories, beta parameter for allometric equation",0.50700000000000001,"BW(g),KCal(kcal/day)","U.S. EPA/ORD 1993","Equation 3-48, rodent"]
["Mammal, 400 g","Water consumption, alpha parameter for allometric equation",9.9000000000000005E-2,"BW(kg),WC(L)","U.S. EPA/ORD 1993","Eq. 3-17, p. 3-10, all mammals"]
["Mammal, 400 g","Water consumption, beta parameter for allometric equation",0.9,"BW(kg),WC(L)","U.S. EPA/ORD 1993","Eq. 3-17, p. 3-10, all mammals"]
["Mammal, carnivorous","Body weight",5,"kg","U.S. EPA/ORD 1993","p. 2-221.  Central value for red fox with a range of 3 to 7 kg."]
["Mammal, carnivorous","Kilocalories, alpha parameter for allometric equation",0.61670000000000003,"BW(g),KCal(kcal/day)","U.S. EPA/ORD 1993","Equation 3-47, non-herbivore"]
["Mammal, carnivorous","Kilocalories, beta parameter for allometric equation",0.86199999999999999,"BW(g),KCal(kcal/day)","U.S. EPA/ORD 1993","Equation 3-47, non-herbivore"]
["Mammal, carnivorous","Water consumption, alpha parameter for allometric equation",9.9000000000000005E-2,"BW(kg),WC(L)","U.S. EPA/ORD 1993","Eq. 3-17, p. 3-10, all mammals"]
["Mammal, carnivorous","Water consumption, beta parameter for allometric equation",0.9,"BW(kg), WC(L)","U.S. EPA/ORD 1993","Eq. 3-17, p. 3-10, all mammals"]
["Mammal, large carnivorous","Body weight",70,"kg","Reid 2006"," pp. 451-453.  Black bear or small grizzly."]
["Mammal, large carnivorous","Kilocalories, alpha parameter for allometric equation",0.61670000000000003,"BW(g),KCal(kcal/day)","U.S. EPA/ORD 1993","Equation 3-47, non-herbivore"]
["Mammal, large carnivorous","Kilocalories, beta parameter for allometric equation",0.86199999999999999,"BW(g),KCal(kcal/day)","U.S. EPA/ORD 1993","Equation 3-47, non-herbivore"]
["Mammal, large carnivorous","Water consumption, alpha parameter for allometric equation",9.9000000000000005E-2,"BW(kg),WC(L)","U.S. EPA/ORD 1993","Eq. 3-17, p. 3-10, all mammals"]
["Mammal, large carnivorous","Water consumption, beta parameter for allometric equation",0.9,"BW(kg), WC(L)","U.S. EPA/ORD 1993","Eq. 3-17, p. 3-10, all mammals"]
["Mammal, herbivorous","Food consumption, alpha parameter for allometric equation",0.57699999999999996,"BW(g),FC(g)","U.S. EPA/ORD 1993","Eq. 3-9, p. 3-6, equation for herbivores"]
["Mammal, herbivorous","Food consumption, beta parameter for allometric equation",0.72699999999999998,"BW(g),FC(g)","U.S. EPA/ORD 1993","Eq. 3-9, p. 3-6, equation for herbivores"]
["Mammal, herbivorous","Kilocalories, alpha parameter for allometric equation",1.518,"BW(g),KCal(kcal/day)","U.S. EPA/ORD 1993","Equation 3-46, herbivores"]
["Mammal, herbivorous","Kilocalories, beta parameter for allometric equation",0.73,"BW(g),KCal(kcal/day)","U.S. EPA/ORD 1993","Equation 3-46, herbivores"]
["Mammal, large","Body weight",70,"kg","Default","N/A"]
["Mammal, large","Kilocalories, alpha parameter for allometric equation",1.518,"BW(g),KCal(kcal/day)","U.S. EPA/ORD 1993","p. 3-6, Eq. 3-10, herbivores"]
["Mammal, large","Kilocalories, beta parameter for allometric equation",0.73,"BW(g),KCal(kcal/day)","U.S. EPA/ORD 1993","p. 3-6, Eq. 3-10, herbivores"]
["Mammal, large","Water consumption, alpha parameter for allometric equation",9.9000000000000005E-2,"BW(kg),WC(L)","U.S. EPA/ORD 1993","Eq. 3-17, p. 3-10, all mammals"]
["Mammal, large","Water consumption, beta parameter for allometric equation",0.9,"BW(kg), WC(L)","U.S. EPA/ORD 1993","Eq. 3-17, p. 3-10, all mammals"]
["Mammal, rabbit","Body weight",1.3,"kg","Default","N/A"]
["Mammal, rabbit","Surface Area, alpha parameter for allometric equation",0.11,"BW(kg),SA(m2)","U.S. EPA/ORD 1993","p. 3-14, Eq. 3-22, for all mammals"]
["Mammal, rabbit","Surface Area, beta parameter for allometric equation",0.65,"BW(kg),SA(m2)","U.S. EPA/ORD 1993","p. 3-14, Eq. 3-22, for all mammals"]
["Mammal, rodent","Food consumption, alpha parameter for allometric equation",0.621,"BW(g),FC(g)","U.S. EPA/ORD 1993","Eq. 3-8, p. 3-6, equation for rodents"]
["Mammal, rodent","Food consumption, beta parameter for allometric equation",0.58399999999999996,"BW(g),FC(g)","U.S. EPA/ORD 1993","Eq. 3-8,p. 3-6, equation for rodents"]
["Mammal, small","Body weight",0.02,"kg","Default","N/A"]
["Mammal, small","Caloric content (wet weight)",1.7,"kcal/g  (wet weight)","U.S. EPA/ORD 1993","Table 4-1, p. 4-13. Value for small mammals. Wet weight."]
["Mammal, small","Food consumption, alpha parameter for allometric equation",0.621,"BW(g),FC(g)","U.S. EPA/ORD 1993","Eq. 3-8, p. 3-6, equation for rodents"]
["Mammal, small","Food consumption, beta parameter for allometric equation",0.56399999999999995,"BW(g),FC(g)","U.S. EPA/ORD 1993","Eq. 3-8, p. 3-6, equation for rodents"]
["Mammal, small","Kilocalories, alpha parameter for allometric equation",2.5139999999999998,"BW(g),KCal(kcal/day)","U.S. EPA/ORD 1993","Equation 3-48, rodent"]
["Mammal, small","Kilocalories, beta parameter for allometric equation",0.50700000000000001,"BW(g),KCal(kcal/day)","U.S. EPA/ORD 1993","Equation 3-48, rodent"]
["Mammal, small","Surface Area, alpha parameter for allometric equation",0.11,"BW(kg),SA(m2)","U.S. EPA/ORD 1993","p. 3-14, Eq. 3-22, for all mammals"]
["Mammal, small","Surface Area, beta parameter for allometric equation",0.65,"BW(kg),SA(m2)","U.S. EPA/ORD 1993","p. 3-14, Eq. 3-22, for all mammals"]
["Mammal, small","Water consumption, alpha parameter for allometric equation",9.9000000000000005E-2,"BW(kg),WC(L)","U.S. EPA/ORD 1993","Eq. 3-17, p. 3-10, all mammals"]
["Mammal, small","Water consumption, beta parameter for allometric equation",0.9,"BW(kg),WC(L)","U.S. EPA/ORD 1993","Eq. 3-17, p. 3-10, all mammals"]

{"sheet":"A02c","index":9,"n_rows":24,"n_cols":6,"rows_kept":24,"cut":false,"hidden":false,"merged":[[0,0,0,4]]}
["General reference values and exposure factors used in worksheets."]
[]
["Receptor","Factor","Value","Units"," Reference","Reference Note"]
["Small Insects","Caloric content (wet weight)",1.5,"kcal/g (wet weight)","U.S. EPA/ORD 1993","Table 4-1, p. 4-13.  Value for beetles. Wet weight"]
["Fish","Caloric content (wet weight)",1.2,"kcal/g (wet weight)","U.S. EPA/ORD 1993","Table 4-1, p. 4-13.  Value for bony fish. Wet weight"]
["Vegetation","Caloric content (dry weight)",2.2599999999999998,"kcal/g","U.S. EPA/ORD 1993","p. 3-5, Table 3-1"]
["Vegetation","Water content (proportion)",0.85,"unitless","U.S. EPA/ORD 1993","p. 4-14"]
["VegRR","Broadleaf/forage plants and small insects, central estimate",45,"mg chem/kg veg","Fletcher et al. 1994","Broadleaf/forage plants and small insects"]
["VegRR","Broadleaf/forage plants and small insects, upper range",135,"mg chem/kg veg","Fletcher et al. 1994","Broadleaf/forage plants and small insects"]
["VegRR","Fruits, pods, seeds, and large insects, central estimate",7,"mg chem/kg veg","Fletcher et al. 1994","Fruits, pods, seeds, and large insects"]
["VegRR","Fruits, pods, seeds, and large insects, upper range",15,"mg chem/kg veg","Fletcher et al. 1994","Fruits, pods, seeds, and large insects"]
["VegRR","Broadleaf plants and small insects, granular applications, central estimate",1.8,"mg chem/kg veg","SERA 2005","Broadleaf forage plants and contaminated insects after granular application"]
["VegRR","Broadleaf plants and small insects, granular applications, upper range",5.4,"mg chem/kg veg","SERA 2005","Broadleaf forage plants and contaminated insects after granular application"]
["VegRR","Fruits, granular applications, central estimate",0.28000000000000003,"mg chem/kg veg","SERA 2005","Fruit after granular application"]
["VegRR","Fruits, granular applications, upper range",0.6,"mg chem/kg veg","SERA 2005","Fruit after granular application"]
["VegRR","Short grass, granular applications, lower range",1.2,"mg chem/kg veg","SERA 2005","Short grass after granular application"]
["VegRR","Short grass, granular applications, upper range",9.6,"mg chem/kg veg","SERA 2005","Short grass after granular application"]
["VegRR","Tall grass, granular applications, central estimate",1.44,"mg chem/kg veg","SERA 2005","Tall grass after granular application"]
["VegRR","Tall grass, granular applications, upper range",4.4000000000000004,"mg chem/kg veg","SERA 2005","Tall grass after granular application"]
["VegRR","Short grass, central estimate",85,"mg chem/kg veg","Fletcher et al. 1994","Short grass"]
["VegRR","Short grass, lower range",30,"mg chem/kg veg","SERA 2007","Short grass"]
["VegRR","Short grass, upper range",240,"mg chem/kg veg","Fletcher et al. 1994","Short grass"]
["VegRR","Tall grass, central estimate",36,"mg chem/kg veg","Fletcher et al. 1994","Tall grass"]
["VegRR","Tall grass, upper range",110,"mg chem/kg veg","Fletcher et al. 1994","Tall grass"]

{"sheet":"A02d","index":10,"n_rows":24,"n_cols":6,"rows_kept":24,"cut":false,"hidden":false,"merged":[[0,0,0,4]]}
["General reference values and exposure factors used in worksheets."]
[]
["Receptor","Factor","Value","Units"," Reference","Reference Note"]
["Conversion Factors","acrefoot2gal",325900,"gal/acre-foot","Budavari  1989","N/A"]
["Conversion Factors","liters per gal",3.7850000000000001,"L/gal","Budavari  1989","N/A"]
["Conversion Factors","pound per milligram",453600,"mg/lb","Budavari  1989","N/A"]
["Conversion Factors","lbac2mgcm2",1.1209999999999999E-2,"mg/cm2 per lb/acre","Budavari  1989","N/A"]
["Conversion Factors","lbac2ugcm2",11.21,"ug/cm2 per lb/acre","Budavari  1989","N/A"]
["Conversion Factors","conversion for milligrams to pounds",2.204E-6,"lb/mg","Budavari  1989","N/A"]
["Conversion Factors","conversion for milliliters to gallons",3785,"ml/gal","Budavari  1989","N/A"]
["Misc","Liquid adhering to skin",8.0000000000000002E-3,"mL/cm2","Mason and Johnson 1987","Weight of liquid adhering to surface of skin after a spill"]
["Misc","Dislodgeable residue as proportion",0.1,"none","Harris and Solomon 1992","Estimate of dislodgeable residue as a proportion of application rate shortly after application based on 2,4-D."]
["Standard Pond","Depth",1,"m","Default","Depth of pond"]
["Standard Pond","Surface Area",1000,"m^2","Default","Surface Area"]
["Standard Pond","Volume of Spill ",200,"gallons","Default","Volume of spill"]
["VegRR","Broadleaf/forage plants and small insects, lower range",15,"mg chem/kg veg","SERA 2007","Broadleaf/forage plants and small insects"]
["VegRR","Fruits, pods, seeds, and large insects, lower range",3.2,"mg chem/kg veg","SERA 2007","Fruits, pods, seeds, and large insects"]
["VegRR","Broadleaf plants and small insects, granular applications, lower range",0.6,"mg chem/kg veg","SERA 2007","Broadleaf/forage plants after granular application"]
["VegRR","Fruits, granular applications, lower range",0.13,"mg chem/kg veg","SERA 2007","Fruit after granular application"]
["VegRR","Short grass, granular applications, central estimate",3.4,"mg chem/kg veg","SERA 2005","Short grass after granular application"]
["VegRR","Short grass, granular applications, lower range",1.2,"mg chem/kg veg","SERA 2007","Short grass after granular application"]
["VegRR","Tall grass, granular applications, lower range",0.48,"mg chem/kg veg","SERA 2007","Tall grass after granular application"]
["VegRR","Short grass, lower range",30,"mg chem/kg veg","Fletcher et al. 1994","Short grass"]
["VegRR","Tall grass, lower range",12,"mg chem/kg veg","SERA 2007","Tall grass"]

{"sheet":"A03","index":11,"n_rows":50,"n_cols":8,"rows_kept":50,"cut":false,"hidden":false,"merged":[[0,0,0,6]]}
["Consumption values used in worksheets"]
[]
["Receptor","Item","Qualifier","Modifier","Value","Units"," Reference","Reference Note"]
["Adult Female","Fish","Amount","central estimate",0.01,"kg/day","U.S. EPA/ORD 1996","p. 10-51, average of means from four studies rounded to one significant place."]
["Adult Female","Fish","Amount","upper range",0.158,"kg/day","Ruffle et al. 1994","N/A"]
["Adult Female","Fruit","Proportion of body weight","central estimate",1.6800000000000001E-3,"kg fruit/kg bw/day","U.S. EPA/ORD 1996","Table 9-3, p. 9-11, mean value."]
["Adult Female","Fruit","Proportion of body weight","lower range",1.6800000000000001E-3,"kg fruit/kg bw/day","U.S. EPA/ORD 1996","Table 9-3, p. 9-11. The 5th percentile is given as zero.  For these worksheets, the central estimate is used for the lower bound."]
["Adult Female","Fruit","Proportion of body weight","upper range",1.244E-2,"kg fruit/kg bw/day","U.S. EPA/ORD 1996","Table 9-3, p. 9-11, 95th percentile value."]
["Adult Female","Vegetation, home grown","Proportion of body weight","central estimate",7.6000000000000004E-4,"kg veg/kg bw/day","U.S. EPA/ORD 1996","Table 12-15, p. 9-14, mean for individuals between 20 and 39 years old."]
["Adult Female","Vegetation, home grown","Proportion of body weight","lower range",8.0000000000000007E-5,"kg veg/kg bw/day","U.S. EPA/ORD 1996","Table 12-15, p. 9-14, 5th percentile for individuals between 20 and 39 years old."]
["Adult Female","Vegetation, home grown","Proportion of body weight","upper range",4.9199999999999999E-3,"kg veg/kg bw/day","U.S. EPA/ORD 1996","Table 12-15, p. 9-14, 95th percentile for individuals between 20 and 39 years old."]
["Adult Female","Vegetation","Amount","Extreme",0.45400000000000001,"kg food","U.S. EPA/ORD 1996","1 lb.  The approximate mid range of the above typical and upper limits based on the 64 kg body weight."]
["Adult Female","Vegetation","Proportion of body weight","central estimate",3.5999999999999999E-3,"kg veg/kg bw/day","U.S. EPA/ORD 1996","Table 9-12, p. 9-12, mean."]
["Adult Female","Vegetation","Proportion of body weight","lower range",7.5000000000000002E-4,"kg veg/kg bw/day","U.S. EPA/ORD 1996","Table 9-12, p. 9-12, 5th percentile."]
["Adult Female","Vegetation","Proportion of body weight","upper range",0.01,"kg veg/kg bw/day","U.S. EPA/ORD 1996","Table 9-12, p. 9-12, 95th percentile."]
["Adult Female","Water","Amount","central estimate",2,"L/day","U.S. EPA/ORD 1996","p. 3-28, Table 3-30, midpoint of mean (1.4 L/day) and 90th percentile (2.4 L/day) rounded to one significant place."]
["Adult Female","Water","Amount","lower range",1.4,"L/day","U.S. EPA/ORD 1996","p. 3-28, Table 3-30, mean"]
["Adult Female","Water","Amount","upper range",2.4,"L/day","U.S. EPA/ORD 1996","p. 3-28, Table 3-30, 90th percentile"]
["Adult Male","Fish","Amount","central estimate",0.01,"kg/day","U.S. EPA/ORD 1996","p. 10-51, average of means from four studies rounded to one significant place."]
["Adult Male","Fish","Amount","upper range",0.158,"kg/day","Ruffle et al. 1994","N/A"]
["Adult Male","Fruit","Proportion of body weight","central estimate",1.6800000000000001E-3,"unitless","U.S. EPA/ORD 1996","Table 9-3, p. 9-11, mean value."]
["Adult Male","Fruit","Proportion of body weight","lower range",1.6800000000000001E-3,"unitless","U.S. EPA/ORD 1996","Table 9-3, p. 9-11. The 5th percentile is given as zero.  For these worksheets, the central estimate is used for the lower bound."]
["Adult Male","Fruit","Proportion of body weight","upper range",1.244E-2,"unitless","U.S. EPA/ORD 1996","Table 9-3, p. 9-11, 95th percentile value."]
["Adult Male","Vegetation, home grown","Proportion of body weight","central estimate",7.6000000000000004E-4,"unitless","U.S. EPA/ORD 1996","Table 12-15, p. 9-14, mean for individuals between 20 and 39 years old."]
["Adult Male","Vegetation, home grown","Proportion of body weight","lower range",8.0000000000000007E-5,"unitless","U.S. EPA/ORD 1996","Table 12-15, p. 9-14, 5th percentile for individuals between 20 and 39 years old."]
["Adult Male","Vegetation, home grown","Proportion of body weight","upper range",4.9199999999999999E-3,"unitless","U.S. EPA/ORD 1996","Table 12-15, p. 9-14, 95th percentile for individuals between 20 and 39 years old."]
["Adult Male","Vegetation","Amount","Extreme",0.45400000000000001,"kg/day","U.S. EPA/ORD 1996","1 lb.  The approximate mid range of the above typical and upper limits based on the 64 kg body weight."]
["Adult Male","Vegetation","Proportion of body weight","central estimate",3.5999999999999999E-3,"unitless","U.S. EPA/ORD 1996","Table 9-12, p. 9-12, mean."]
["Adult Male","Vegetation","Proportion of body weight","lower range",7.5000000000000002E-4,"unitless","U.S. EPA/ORD 1996","Table 9-12, p. 9-12, 5th percentile."]
["Adult Male","Vegetation","Proportion of body weight","upper range",0.01,"unitless","U.S. EPA/ORD 1996","Table 9-12, p. 9-12, 95th percentile."]
["Adult Male","Water","Amount","central estimate",2,"L/day","U.S. EPA/ORD 1996","p. 3-28, Table 3-30, midpoint of mean (1.4 L/day) and 90th percentile (2.4 L/day) rounded to one significant place."]
["Adult Male","Water","Amount","lower range",1.4,"L/day","U.S. EPA/ORD 1996","p. 3-28, Table 3-30, mean"]
["Adult Male","Water","Amount","upper range",2.4,"L/day","U.S. EPA/ORD 1996","p. 3-28, Table 3-30, 90th percentile"]
["Subsistence Populations","Fish","Amount","central estimate",8.1000000000000003E-2,"kg/day","U.S. EPA/ORD 1996","p. 10-51, median value of 94 individuals"]
["Subsistence Populations","Fish","Amount","upper range",0.77,"kg/day","U.S. EPA/ORD 1996","p. 10-51, highest value of 94 individuals"]
["Child","Water","Amount","central estimate",1,"L/day","U.S. EPA/ORD 1996","p. 3-28, Table 3-30, midpoint of mean (0.61L/day) and 90th percentile (1.5 L/day) rounded to one significant place."]
["Child","Water","Amount","lower range",0.61,"L/day","U.S. EPA/ORD 1996","p. 3-28, Table 3-30, mean"]
["Child","Water","Amount","upper range",1.5,"L/day","U.S. EPA/ORD 1996","p. 3-28, Table 3-30, 90th percentile"]
["Herbivorous Insect","Broadleaf/Small Insects","Proportion of body weight","central estimate",1.3,"kg food/kg bw/day","Waldbauer 1968","N/A"]
["Herbivorous Insect","Broadleaf/Small Insects","Proportion of body weight","lower range",0.6,"kg food/kg bw/day","Reichle et al. 1973","N/A"]
["Herbivorous Insect","Broadleaf/Small Insects","Proportion of body weight","upper range",2.2000000000000002,"kg food/kg bw/day","Waldbauer 1968","N/A"]
["Herbivorous Insect","Fruit","Proportion of body weight","central estimate",1.3,"kg food/kg bw/day","Waldbauer 1968","N/A"]
["Herbivorous Insect","Fruit","Proportion of body weight","lower range",0.6,"kg food/kg bw/day","Reichle et al. 1973","N/A"]
["Herbivorous Insect","Fruit","Proportion of body weight","upper range",2.2000000000000002,"kg food/kg bw/day","Waldbauer 1968","N/A"]
["Herbivorous Insect","Short grass","Proportion of body weight","central estimate",1.3,"kg food/kg bw/day","Waldbauer 1968","N/A"]
["Herbivorous Insect","Short grass","Proportion of body weight","lower range",0.6,"kg food/kg bw/day","Reichle et al. 1973","N/A"]
["Herbivorous Insect","Short grass","Proportion of body weight","upper range",2.2000000000000002,"kg food/kg bw/day","Waldbauer 1968","N/A"]
["Herbivorous Insect","Tall Grass","Proportion of body weight","central estimate",1.3,"kg food/kg bw/day","Waldbauer 1968","N/A"]
["Herbivorous Insect","Tall Grass","Proportion of body weight","lower range",0.6,"kg food/kg bw/day","Reichle et al. 1973","N/A"]
["Herbivorous Insect","Tall Grass","Proportion of body weight","upper range",2.2000000000000002,"kg food/kg bw/day","Waldbauer 1968","N/A"]

{"sheet":"B01","index":12,"n_rows":22,"n_cols":5,"rows_kept":22,"cut":false,"hidden":false,"merged":[[0,0,0,4]]}
["Chemical and Physical Properties for  Picloram"]
[]
["Property","Receptor","Value","Units","Document Reference"]
["Bioconcentration Factor (BCF), edible, acute","N/A",1,"L/kg fish","Section 3.2.3.5."]
["Bioconcentration Factor (BCF), edible, chronic","N/A",1,"L/kg fish","Section 3.2.3.5."]
["Bioconcentration Factor (BCF), whole fish, acute","N/A",1,"L/kg fish","Section 3.2.3.5."]
["Bioconcentration Factor (BCF), whole fish, chronic","N/A",1,"L/kg fish","Section 3.2.3.5."]
["Kow (Octanol-water partition coefficient)","N/A",0.89,"unitless","Table 2-1"]
["Molecular weight","N/A",241.48,"grams/mole","Table 2-1"]
["Water Solubility","N/A",200000,"mg/L","Table 2-1"]
["First order dermal absorption rate (ka), central estimate","N/A",5.0000000000000002E-5,"per hour","Section 3.2.2.2"]
["First order dermal absorption rate (ka), lower range","N/A",3.0000000000000001E-5,"per hour","Section 3.2.2.2"]
["First order dermal absorption rate (ka), upper range","N/A",7.1000000000000005E-5,"per hour","Section 3.2.2.2"]
["Dermal permeability (Kp), central estimate","N/A",5.7000000000000003E-5,"cm/hour","Section 3.2.2.2"]
["Dermal permeability (Kp), lower range","N/A",2.8E-5,"cm/hour","Section 3.2.2.2"]
["Dermal permeability (Kp), upper range","N/A",1.1E-4,"cm/hour","Section 3.2.2.2"]
["Halftime, central estimate","Fruit",8,"days","Section 3.2.3.6 "]
["Halftime, lower range","Fruit",6,"days","Section 3.2.3.6 "]
["Halftime, upper range","Fruit",23,"days","Section 3.2.3.6 "]
["Halftime, central estimate","Vegetation",8,"days","Section 3.2.3.6 "]
["Halftime, lower range","Vegetation",6,"days","Section 3.2.3.6 "]
["Halftime, upper range","Vegetation",23,"days","Section 3.2.3.6 "]

{"sheet":"B02","index":13,"n_rows":25,"n_cols":7,"rows_kept":25,"cut":false,"hidden":false,"merged":[[0,0,0,6]]}
["Toxicity values for  Picloram"]
[]
["Receptor","Receptor","Qualifier","Endpoint","Value","Units","Document Reference"]
["Human","acute","N/A","Reference Dose (RfD)",2,"mg/kg bw","Table 16"]
["Human","chronic","N/A","Reference Dose (RfD)",0.2,"mg/kg bw/day","Table 16"]
["Fish","acute","sensitive species","NOEAC*",0.19,"mg/L","Table 28"]
["Fish","acute","tolerant species","NOAEC",7.2,"mg/L","Table 28"]
["Fish","chronic","sensitive species","NOAEC*",3.5000000000000001E-3,"mg/L","Table 28"]
["Fish","chronic","tolerant species","NOAEC",7.2,"mg/L","Table 28"]
["Aquatic invertebrate","acute","sensitive species","NOAEC",2.15,"mg/L","Table 28"]
["Aquatic invertebrate","acute","tolerant species","NOAEC",214,"mg/L","Table 28"]
["Aquatic invertebrate","chronic","tolerant species","NOAEC",6.8,"mg/L","Table 28"]
["Algae","N/A","sensitive species","NOAEC*",2.3E-2,"mg/L","Table 28"]
["Algae","N/A","tolerant species","NOAEC",94,"mg/L","Table 28"]
["Macrophyte, aquatic","N/A","tolerant species","NOAEC",12.2,"mg/L","Table 28"]
["Terrestrial plant","Seedling Emergence","sensitive species","NOAEL",2.1000000000000001E-4,"lb/acre","Table 28"]
["Terrestrial plant","Seedling Emergence","tolerant species","NOAEL",0.43,"lb/acre","Table 28"]
["Terrestrial plant","Vegetative vigor","sensitive species","NOAEL",2.5999999999999998E-5,"lb/acre","Table 28"]
["Terrestrial plant","Vegetative vigor","tolerant species","NOAEL",0.05,"lb/acre","Table 28"]
["Mammal, Nos","acute","N/A","NOAEL",200,"mg/kg bw","Table 28"]
["Mammal, Nos","chronic","N/A","NOAEL",20,"mg/kg bw/day","Table 28"]
["Bird, NOS","acute","N/A","NOAEL",1600,"mg/kg bw","Table 28"]
["Bird, NOS","chronic","N/A","NOAEL",65,"mg/kg bw/day","Table 28"]
["Honeybee","acute","N/A","NOAEL",270,"mg/kg bw","Table 28"]
["Herbivorous Insect","acute","N/A","NOAEL",860,"mg/kg bw","Table 28"]

{"sheet":"B03a","index":14,"n_rows":28,"n_cols":5,"rows_kept":28,"cut":false,"hidden":false,"merged":[[24,0,27,0],[0,0,0,4],[1,1,1,3],[5,0,7,0],[9,0,12,0],[20,0,23,0]]}
["Calculation of Zero-Order Dermal Permeability Rate (Kp) in cm/hour"]
["Short Title","Calculation of Kp",null,null,"ChemDrmKp"]
["Parameter/Assumption","Code / Range","Equation/   Value","Units","Reference/Designation"]
["Molecular weight","MW",{"$f":"'B01'!$C$9","v":241.48},"g/mole","Table 2-1"]
["Ko/w","Kow",{"$f":"'B01'!$C$8","v":0.89},"unitless","Table 2-1"]
["Vector a[]","a[1]",1]
[null,"a[2]",{"$f":"C4","v":241.48}]
[null,"a[3]",{"$f":"LOG10(C5)","v":-5.0609993355087209E-2}]
["Transpose of a[] (a')",{"$f":"$C$6","v":1},{"$f":"$C$7","v":241.48},{"$f":"$C$8","v":-5.0609993355087209E-2}]
["X'X Cross Product Matrix","X'X"]
[null,5.5931000000000002E-2,-9.4154599999999995E-5,-1.0344300000000001E-2]
[null,-9.4154599999999995E-5,5.9780000000000002E-7,-2.22508E-5]
[null,-1.0344300000000001E-2,-2.22508E-5,7.40677E-3]
["a'X'X a","a'X'X a",{"$f":"MMULT(B9:D9,MMULT(B11:D13, C6:C8))","v":4.6927249779970009E-2}]
["Coefficients for model"]
["Intercept","K0",-2.7257600000000002]
["Coeff for MW","K1",-6.1510000000000002E-3]
["Coeff for Log10(Kow)","K2",0.70664800000000005]
["Standard deviation of model","s",0.72712900000000003]
["Critical value at 0.025 with 87 d.f.","t0.025",1.96]
["Log10 of Estimated dermal permeability rate (Kp)","Log(Kp) = ","K0 + K1  MW + K2 Log10(Kow) "]
[null,"Central",{"$f":" $C$16 + ($C$17*$C$4) + ($C$18*LOG10($C$5))","v":-4.2468669305843862},null,"Eq"]
[null,"Lower 95% CI",{"$f":"$C$22 - ($C$20 * $C$19 * ($C$14^0.5))","v":-4.5555978232207055},null,"Eq"]
[null,"Upper 95% CI",{"$f":"$C$22 + ($C$20 * $C$19 * ($C$14^0.5))","v":-3.9381360379480665},null,"Eq"]
["Estimated dermal permeability rate (Kp)","Kp = ","10Log(Kp)"]
[null,"Central",{"$f":"10^C22","v":5.6641281340762314E-5},"cm/hour","Eq"]
[null,"Lower 95% CI",{"$f":"10^C23","v":2.7822886030815139E-5},null,"Eq"]
[null,"Upper 95% CI",{"$f":"10^C24","v":1.1530920079139636E-4},null,"Eq"]

{"sheet":"B03b","index":15,"n_rows":28,"n_cols":5,"rows_kept":28,"cut":false,"hidden":false,"merged":[[24,0,27,0],[0,0,0,4],[1,1,1,3],[5,0,7,0],[9,0,12,0],[20,0,23,0]]}
["Calculation of First-Order Dermal Absorption Rate"]
["Short Title","Calculation of ka",null,null,"ChemDrmKa"]
["Parameter/Assumption","Code / Range","Equation/   Value","Units","Reference/Designation"]
["Molecular weight","MW",{"$f":"'B01'!$C$9","v":241.48},"g/mole","Table 2-1"]
["Ko/w","Kow",{"$f":"'B01'!$C$8","v":0.89},"unitless","Table 2-1"]
["Vector a[]","a[1]",1]
[null,"a[2]",{"$f":"C4","v":241.48}]
[null,"a[3]",{"$f":"LOG10(C5)","v":-5.0609993355087209E-2}]
["Transpose of a[] (a')",{"$f":"$C$6","v":1},{"$f":"$C$7","v":241.48},{"$f":"$C$8","v":-5.0609993355087209E-2}]
["X'X Cross Product Matrix","X'X"]
[null,0.307537,-1.03089E-3,8.2276899999999993E-3]
[null,-1.03089E-3,4.3769999999999998E-6,-9.4435899999999995E-5]
[null,8.2276899999999993E-3,-9.4435899999999995E-5,8.5286000000000008E-3]
["a'X'X a","a'X'X a",{"$f":"MMULT(B9:D9,MMULT(B11:D13, C6:C8))","v":6.6389871175815088E-2}]
["Coefficients for model"]
["Intercept","K0",-1.4961500000000001]
["Coeff for MW","K1",-5.6569999999999997E-3]
["Coeff for Log10(Kow)","K2",0.23325499999999999]
["Standard deviation of model","s",0.78721799999999997]
["Critical value at 0.025 with 26 d.f.","t0.025",2.056]
["Log10 of Estimated first-order absorption rate","Log(ka) = ","K0 + K1  MW + K2 Log10(Kow) "]
[null,"Central",{"$f":"  $C$16 + ($C$17*$C$4) + ($C$18*LOG10($C$5))","v":-2.8740073940000408},null,"Eq"]
[null,"Lower 95% CI",{"$f":"$C$22 - ($C$20 * $C$19 * ($C$14^0.5))","v":-3.2910390658482478},null,"Eq"]
[null,"Upper 95% CI",{"$f":"$C$22 + ($C$20 * $C$19 * ($C$14^0.5))","v":-2.4569757221518338},null,"Eq"]
["Estimated first-order absorption rate","ka = ","10Log(ka)"]
[null,"Central",{"$f":"10^C22","v":1.3365727607814305E-3},"hour-1","Eq"]
[null,"Lower 95% CI",{"$f":"10^C23","v":5.1163581058084819E-4},null,"Eq"]
[null,"Upper 95% CI",{"$f":"10^C24","v":3.4915983360015519E-3},null,"Eq"]

{"sheet":"B04Rt","index":16,"n_rows":11,"n_cols":5,"rows_kept":11,"cut":false,"hidden":false,"merged":[[0,0,0,4],[2,0,5,0],[6,0,9,0],[10,1,10,4]]}
["Estimates of Water Contamination Rates -- i.e., the concentration in ambient water per pound applied per acre"]
["Parameter/Assumption","Code / Range","Equation/ Value","Units","WCRV6"]
["Short-term peak concentrations","Peak",null,null,"WCRV6"]
[null,"Central ",1.0999999999999999E-2,"mg/L","Table 14"]
[null,"Lower ",1E-3,null,"Table 14"]
[null,"Upper ",0.18,null,"Table 14"]
["Longer-term average concentrations","Average"]
[null,"Central ",8.4999999999999995E-4,"mg/L","Table 14"]
[null,"Lower ",9.0000000000000006E-5,null,"Table 14"]
[null,"Upper ",0.01,null,"Table 14"]
["User Specified Gleams-Driver File:","None"]

{"sheet":"B04a","index":17,"n_rows":21,"n_cols":5,"rows_kept":21,"cut":false,"hidden":false,"merged":[[21,1,21,4],[0,0,0,3],[4,0,7,0],[8,0,11,0],[13,0,16,0],[17,0,20,0]]}
["Expected Concentrations in Surface Water",null,null,null,"EECRtV6"]
["Parameter/Assumption","Code / Range","Equation/ Value","Units","EECRtV6"]
["Application Rate","ApRt",{"$f":"'A01'!ApRt_C","v":1},"lb/acre","Worksheet A01"]
["Water Contamination Rates"]
["Short-term peak water contamination rates (WCR)","Peak"]
[null,"Central ",{"$f":"B04Rt!$C$4","v":1.0999999999999999E-2},"mg/L","Table 14"]
[null,"Lower ",{"$f":"B04Rt!$C$5","v":1E-3},null,"Table 14"]
[null,"Upper ",{"$f":"B04Rt!$C$6","v":0.18},null,"Table 14"]
["Longer-term average water contamination rates (WCR)","Average"]
[null,"Central ",{"$f":"B04Rt!$C$8","v":8.4999999999999995E-4},"mg/L","Table 14"]
[null,"Lower ",{"$f":"B04Rt!$C$9","v":9.0000000000000006E-5},null,"Table 14"]
[null,"Upper ",{"$f":"B04Rt!$C$10","v":0.01},null,"Table 14"]
["EECs in Surface Water"]
["Short-term peak concentrations","Peak"]
[null,"Central ",{"$f":"$C$3*C6","v":1.0999999999999999E-2},"mg/L","Eq"]
[null,"Lower ",{"$f":"$C$3*C7","v":1E-3},null,"Eq"]
[null,"Upper ",0.18,null,"Eq"]
["Longer-term average concentrations","Average"]
[null,"Central ",{"$f":"$C$3*C10","v":8.4999999999999995E-4},"mg/L","Eq"]
[null,"Lower ",{"$f":"$C$3*C11","v":9.0000000000000006E-5},null,"Eq"]
[null,"Upper ",0.01,null,"Eq"]

{"sheet":"B04b","index":18,"n_rows":25,"n_cols":5,"rows_kept":25,"cut":false,"hidden":false,"merged":[[18,0,21,0],[0,0,0,4],[1,1,1,3],[2,1,2,3],[3,1,3,3],[13,0,16,0]]}
["Pond: Concentration of pesticide (liquid formulation) in pond water after an accidental spill"]
["Short Title","Pond Spill",null,null,"PondSpillLiqV6"]
["Receptor","Pond"]
["Duration","Acute"]
["Parameter/Assumption","Code / Range","Equation/   Value","Units","Reference/Designation"]
["Surface Area of Pond","SA",{"$f":"'A01'!C$23","v":1000},"m2","Worksheet A01"]
["Depth of Pond","Depth",{"$f":"'A01'!C$24","v":1},"meter","Worksheet A01"]
["Volume of Pond","VPM",{"$f":"C6*C7","v":1000},"m3","Eq"]
[null,"VPL",{"$f":"1000*C8","v":1000000},"liters","Eq"]
["Concentration in solution","Conc"]
[null,"Central ",{"$f":"'A01'!FldConc_C","v":4},"mg/mL","Worksheet A01"]
[null,"Lower ",{"$f":"'A01'!FldConc_L","v":1.2},null,"Worksheet A01"]
[null,"Upper ",{"$f":"'A01'!FldConc_U","v":24},null,"Worksheet A01"]
["Volume of Spill (gallons)","VSGal"]
[null,"Central ",{"$f":"'A01'!C$43","v":100},"gallons","Worksheet A01"]
[null,"Lower ",{"$f":"'A01'!C$44","v":20},null,"Worksheet A01"]
[null,"Upper ",{"$f":"'A01'!C$45","v":200},null,"Worksheet A01"]
["Conversion factor for gallons to liters","Conv",3.7850000000000001,"liters/gal"]
["Volume of Spill (liters)","VSLit","VSGal x Conv"]
[null,"Central ",{"$f":"C15*C$18","v":378.5},"liters","Eq"]
[null,"Lower ",{"$f":"C16*C$18","v":75.7},"liters","Eq"]
[null,"Upper ",{"$f":"C17*C$18","v":757},"liters","Eq"]
["Concentration in pond water at various times after as spill","ConcWat","Conc × 1000 mL/L × VSL ÷ VPL"]
["Time","Central ","Lower ","Upper "]
[0,{"$f":"C11*1000*C20/C$9","v":1.514},{"$f":"C12*1000*C21/C$9","v":9.0840000000000004E-2},{"$f":"C13*1000*C22/C$9","v":18.167999999999999},"mg/L"]

{"sheet":"B04c","index":19,"n_rows":29,"n_cols":7,"rows_kept":29,"cut":false,"hidden":false,"merged":[[0,0,0,4],[1,1,1,3],[2,1,2,3],[3,1,3,3]]}
["Concentration in pond water after direct spray or after drift at distances downwind in feet from the application site"]
["Short Title","Pond, Drift",null,null,"PondDrift3Apps"]
["Receptor","Pond"]
["Duration","Acute"]
["Parameter/Assumption","Code / Range","Equation/   Value","Units","Reference/Designation"]
["Application rate","ApRt",{"$f":"'A01'!ApRt_C","v":1},"lb/acre","Worksheet A01"]
["Surface Area of Water Column","SA",1,"m2"]
["Depth of Pond","Depth",{"$f":"'A01'!C$24","v":1},"meter","Worksheet A01"]
["Volume of Water Column","V","= SA × Depth"]
[null,"VPM",{"$f":"C7*C8","v":1},"m3","Eq"]
[null,"VPL",{"$f":"1000*C10","v":1000},"liters","Eq"]
["Proportion of Drift at distances downwind in feet [0 feet = direct spray]","Prop","Aerial","High Boom Ground Broadcast","Low Boom Ground Broadcast","Backpack"]
[0,null,1,1,1,1]
[25,null,0.223,0.104,3.5000000000000003E-2,8.3199999999999993E-3]
[50,null,0.17100000000000001,0.05,1.77E-2,4.3299999999999996E-3]
[100,null,9.7900000000000001E-2,2.4799999999999999E-2,9.4800000000000006E-3,2.4099999999999998E-3]
[300,null,3.1199999999999999E-2,7.5300000000000002E-3,3.5000000000000001E-3,9.41E-4]
[500,null,1.9199999999999998E-2,3.9100000000000003E-3,2.0899999999999998E-3,5.7899999999999998E-4]
[900,null,1.24E-2,1.66E-3,1.09E-3,3.1199999999999999E-4]
["Converstion Factor","Conv",112.1,"mg/m2 per lb/acre"]
["Concentration in water at distances downwind in feet","Conc =","SA × Prop × ApR × Conv / VPL"]
["Concentration in water at distances downwind in feet",null,"Aerial","High Boom Ground Broadcast","Low Boom Ground Broadcast","Backpack"]
[{"$f":"A13","v":0},null,{"$f":"$C$7*C13*$C$6*$C$20/$C$11","v":0.11209999999999999},{"$f":"$C$7*D13*$C$6*$C$20/$C$11","v":0.11209999999999999},{"$f":"$C$7*E13*$C$6*$C$20/$C$11","v":0.11209999999999999},{"$f":"$C$7*F13*$C$6*$C$20/$C$11","v":0.11209999999999999},"mg/L"]
[25,null,{"$f":"$C$7*C14*$C$6*$C$20/$C$11","v":2.4998300000000001E-2},1.1658399999999999E-2,3.9234999999999999E-3,9.3267199999999984E-4,"mg/L"]
[50,null,1.9169100000000001E-2,5.6050000000000006E-3,1.9841699999999999E-3,4.8539299999999998E-4,"mg/L"]
[100,null,1.0974589999999999E-2,2.7800799999999999E-3,1.0627079999999999E-3,2.7016099999999999E-4,"mg/L"]
[300,null,3.4975199999999996E-3,8.4411299999999996E-4,3.9234999999999997E-4,1.0548609999999999E-4,"mg/L"]
[500,null,2.1523199999999997E-3,4.3831099999999998E-4,2.3428899999999997E-4,6.4905899999999984E-5,"mg/L"]
[900,null,1.3900399999999999E-3,1.8608599999999999E-4,1.2218900000000001E-4,3.4975199999999997E-5,"mg/L"]

{"sheet":"B04d","index":20,"n_rows":33,"n_cols":7,"rows_kept":33,"cut":false,"hidden":false,"merged":[[0,0,0,4],[1,1,1,3],[2,1,2,3],[3,1,3,3]]}
["Concentration in stream water after direct spray or after drift at distances downwind in feet from the application site"]
["Short Title","Stream, Drift",null,null,"StreamDrift3Apps"]
["Receptor","Stream"]
["Duration","Acute"]
["Parameter/Assumption","Code / Range","Equation/   Value","Units","Reference/Designation"]
["Application rate, lbs/acre","ApRt",{"$f":"'A01'!ApRt_C","v":1},"lb/acre","Worksheet A01"]
["Flow rate of stream","Flow",{"$f":"'A01'!C$25","v":710000},"L/day","Worksheet A01"]
["Converstion Factor, lb/acre to mg/m2","Conv1",112.1,"mg/m2 per lb/acre"]
["Deposition rate, nominal",null,"Dep = ApR × Conv1"]
[null,"Dep",{"$f":"C6*C8","v":112.1},"mg/m2","Eq"]
["Length of steam segment","L",{"$f":"'A01'!C$26","v":1038},"feet","Worksheet A01"]
["Width of steam segment","W",{"$f":"'A01'!C$27","v":6},"feet","Worksheet A01"]
["Surface Area of Stream Sprayed, square feet","SA_ft",{"$f":"C11*C12","v":6228},"ft2","Eq"]
["Converstion Factor, square feet to square meters","Conv2",9.2899999999999996E-2,"m2/ft2"]
["Surface Area of Stream Sprayed, square meters","SA_msq",{"$f":"C13*C14","v":578.58119999999997},null,"Eq"]
["Amount deposited on stream surface on spray day","Amnt",{"$f":"C10*C15","v":64858.952519999992},"mg/day","Eq"]
["Proportion of Drift at distances downwind in feet [0 feet = direct spray]","Prop","Aerial","High Boom Ground Broadcast","Low Boom Ground Broadcast","Backpack"]
[0,null,1,1,1,1]
[25,null,0.223,0.104,3.5000000000000003E-2,8.3199999999999993E-3]
[50,null,0.17100000000000001,0.05,1.77E-2,4.3299999999999996E-3]
[100,null,9.7900000000000001E-2,2.4799999999999999E-2,9.4800000000000006E-3,2.4099999999999998E-3]
[300,null,3.1199999999999999E-2,7.5300000000000002E-3,3.5000000000000001E-3,9.41E-4]
[500,null,1.9199999999999998E-2,3.9100000000000003E-3,2.0899999999999998E-3,5.7899999999999998E-4]
[900,null,1.24E-2,1.66E-3,1.09E-3,3.1199999999999999E-4]
[null,"Conc =","Amnt × Prop / Flow"]
["Concentration in water at distances downwind in feet",null,"Aerial","High Boom Ground Broadcast","Low Boom Ground Broadcast","Backpack"]
[{"$f":"A18","v":0},null,{"$f":"$C$16 * C18 /$C$7","v":9.1350637352112671E-2},{"$f":"$C$16 * D18 /$C$7","v":9.1350637352112671E-2},{"$f":"$C$16 * E18 /$C$7","v":9.1350637352112671E-2},{"$f":"$C$16 * F18 /$C$7","v":9.1350637352112671E-2},"mg/L"]
[25,null,{"$f":"$C$16 * C19 /$C$7","v":2.0371192129521123E-2},9.5004662846197158E-3,3.1972723073239438E-3,7.6003730276957729E-4,"mg/L"]
[50,null,1.5620958987211268E-2,4.5675318676056337E-3,1.616906281132394E-3,3.9554825973464776E-4,"mg/L"]
[100,null,8.9432273967718304E-3,2.2654958063323938E-3,8.6600404209802816E-4,2.2015503601859152E-4,"mg/L"]
[300,null,2.850139885385915E-3,6.8787029926140834E-4,3.1972723073239436E-4,8.596094974833801E-5,"mg/L"]
[500,null,1.753932237160563E-3,3.5718099204676057E-4,1.9092283206591546E-4,5.2892019026873225E-5,"mg/L"]
[900,null,1.1327479031661969E-3,1.5164205800450702E-4,9.9572194713802822E-5,2.8501398853859151E-5,"mg/L"]

{"sheet":"B05a","index":21,"n_rows":56,"n_cols":5,"rows_kept":56,"cut":false,"hidden":false,"merged":[[0,0,0,4],[9,0,12,0],[10,3,12,3],[13,0,16,0],[18,0,21,0],[19,3,21,3],[48,0,51,0],[49,3,51,3],[52,0,55,0],[53,3,55,3],[26,0,29,0],[30,0,33,0],[34,0,37,0],[38,0,41,0],[42,0,45,0],[43,3,45,3]]}
["Concentration of Pesticide in Contaminated Fruit "]
["Short Title","Concentration in food item",null,null,"FoodConcV6"]
["Material consumed",null,"Fruit",null,"Scenario parameter"]
["Parameter/Assumption","Code / Range","Equation/   Value","Units","Reference/Designation"]
["Application Information"]
["Application Rate (lbs/acre)","ApRt",{"$f":"'A01'!ApRt_C","v":1},"lb/acre","Worksheet A01"]
["Number of applications","n",{"$f":"'A01'!C$20","v":1},"unitless","Worksheet A01"]
["Interval between applications","intv",{"$f":"'A01'!C$21","v":1},"days","Worksheet A01"]
["Special Adjustments (See Note 1)"]
["Metabolite Adjustment Factor :  (See risk assessment if this has a value other than 1.)","MetFact"]
[null,"Central ",1,"unitless","Default"]
[null,"Lower ",1,null,"Default"]
[null,"Upper ",1,null,"Default"]
["Toxic Equivalency Factor for formulation:  (See risk assessment if this has a value other than 1.)","TEF"]
[null,"Central ",{"$f":"'A01'!C$35","v":1},"Unitless","Worksheet A01"]
[null,"Lower ",{"$f":"'A01'!C$36","v":1},null,"Worksheet A01"]
[null,"Upper ",{"$f":"'A01'!C$37","v":1},null,"Worksheet A01"]
["Acute Concentrations"]
["Residue Rates","rr"]
[null,"Central ",{"$f":"'A01'!C$63","v":7},"mg/kg food per lb/acre","Worksheet A01"]
[null,"Lower ",{"$f":"'A01'!C$64","v":3.2},null,"Worksheet A01"]
[null,"Upper ",{"$f":"'A01'!C$65","v":15},null,"Worksheet A01"]
["Drift","Drift"]
[null,"Central ",{"$f":"'A01'!C$39","v":1},"proportion","Worksheet A01"]
[null,"Lower ",{"$f":"'A01'!C$40","v":1},null,"Worksheet A01"]
[null,"Upper ",{"$f":"'A01'!C$41","v":1},null,"Worksheet A01"]
["Concentration on commodity immediately after first application.","C0","ApR × rr × Drift × MetFact × TEF"]
[null,"Central ",{"$f":"C$6*C20*$C$24*C11*C15","v":7},null,"Eq"]
[null,"Lower ",{"$f":"C$6*C21*$C$24*C12*C16","v":3.2},null,"Eq"]
[null,"Upper ",{"$f":"C$6*C22*$C$24*C13*C17","v":15},null,"Eq"]
["Half-life on commodity","Halflife"]
[null,"Central ",{"$f":"'B01'!$C$17","v":8},"Days","Section 3.2.3.6 "]
[null,"Lower ",{"$f":"'B01'!$C$18","v":6},null,"Section 3.2.3.6 "]
[null,"Upper ",{"$f":"'B01'!$C$19","v":23},null,"Section 3.2.3.6 "]
["Decay Coefficient","k","Ln(2)/Halflife"]
[null,"Central ",{"$f":"LN(2)/C32","v":8.6643397569993161E-2},"Days-1","Eq"]
[null,"Upper ",{"$f":"LN(2)/C33","v":0.11552453009332421},"Note 2","Eq"]
[null,"Lower ",{"$f":"LN(2)/C34","v":3.0136833937388925E-2},"Note 2","Eq"]
["Proportion remaining at end of each application interval","p","exp( -k ×  intv)"]
[null,"Central ",{"$f":"EXP(-C36*C$8)","v":0.91700404320467122},"proportion","Eq"]
[null,"Lower ",{"$f":"EXP(-C37*C$8)","v":0.89089871814033927},null,"Eq"]
[null,"Upper ",{"$f":"EXP(-C38*C$8)","v":0.97031275274979811},null,"Eq"]
["Concentration on commodity immediately after last application.","Cn","Cn = C0 × (1- pn) ÷ (1- p)"]
[null,"Central ",{"$f":"C28 * (1-C40^C$7)/(1-C40)","v":7},"mg/kg food item","Eq"]
[null,"Lower ",{"$f":"C29 * (1-C41^C$7)/(1-C41)","v":3.2000000000000006},null,"Eq"]
[null,"Upper ",{"$f":"C30 * (1-C42^C$7)/(1-C42)","v":15},null,"Eq"]
["Longer-term Concentrations"]
["Duration for time-weighted average exposure","T",{"$f":"'A01'!C$28","v":90},"Days","Worksheet A01"]
["Time-weighted average concentration on commodity over time, T, after the last application.","ConcTWA","Cn × (1-e-kT) ÷ (k T)"]
[null,"Central ",{"$f":"C44*(1-EXP(-C36*$C$48))/(C36*$C$48)","v":0.8973083336183536},"mg/kg food item","Eq"]
[null,"Lower ",{"$f":"C45*(1-EXP(-C37*$C$48))/(C37*$C$48)","v":0.30776554951047314},null,"Eq"]
[null,"Upper ",5.1632113124741137,null,"Eq"]
["Maximum Time-weighted average concentration on commodity over time, T.","ConcTWA","See Documentation"]
[null,"Central ",{"$f":"IF($C$7=1, C50, MaxTWAWsFn(C28, $C$7, $C$8, $C$48, C36))","v":0.8973083336183536},"mg/kg food item","Eq"]
[null,"Lower ",{"$f":"IF($C$7=1, C51, MaxTWAWsFn(C29, $C$7, $C$8, $C$48, C37))","v":0.30776554951047314},null,"Eq"]
[null,"Upper ",{"$f":"IF($C$7=1, C52, MaxTWAWsFn(C30, $C$7, $C$8, $C$48, C38))","v":5.1632113124741137},null,"Eq"]

{"sheet":"B05b","index":22,"n_rows":56,"n_cols":5,"rows_kept":56,"cut":false,"hidden":false,"merged":[[0,0,0,4],[9,0,12,0],[10,3,12,3],[13,0,16,0],[18,0,21,0],[19,3,21,3],[48,0,51,0],[49,3,51,3],[52,0,55,0],[53,3,55,3],[26,0,29,0],[30,0,33,0],[34,0,37,0],[38,0,41,0],[42,0,45,0],[43,3,45,3]]}
["Concentration of Pesticide in Contaminated Broadleaf Vegetation "]
["Short Title","Concentration in food item",null,null,"FoodConcV6"]
["Material consumed",null,"Broadleaf Vegetation",null,"Scenario parameter"]
["Parameter/Assumption","Code / Range","Equation/   Value","Units","Reference/Designation"]
["Application Information"]
["Application Rate (lbs/acre)","ApRt",{"$f":"'A01'!ApRt_C","v":1},"lb/acre","Worksheet A01"]
["Number of applications","n",{"$f":"'A01'!C$20","v":1},"unitless","Worksheet A01"]
["Interval between applications","intv",{"$f":"'A01'!C$21","v":1},"days","Worksheet A01"]
["Special Adjustments (See Note 1)"]
["Metabolite Adjustment Factor :  (See risk assessment if this has a value other than 1.)","MetFact"]
[null,"Central ",1,"unitless","Default"]
[null,"Lower ",1,null,"Default"]
[null,"Upper ",1,null,"Default"]
["Toxic Equivalency Factor for formulation:  (See risk assessment if this has a value other than 1.)","TEF"]
[null,"Central ",{"$f":"'A01'!C$35","v":1},"Unitless","Worksheet A01"]
[null,"Lower ",{"$f":"'A01'!C$36","v":1},null,"Worksheet A01"]
[null,"Upper ",{"$f":"'A01'!C$37","v":1},null,"Worksheet A01"]
["Acute Concentrations"]
["Residue Rates","rr"]
[null,"Central ",{"$f":"'A01'!C$59","v":45},"mg/kg food per lb/acre","Worksheet A01"]
[null,"Lower ",{"$f":"'A01'!C$60","v":15},null,"Worksheet A01"]
[null,"Upper ",{"$f":"'A01'!C$61","v":135},null,"Worksheet A01"]
["Drift","Drift"]
[null,"Central ",{"$f":"'A01'!C$39","v":1},"proportion","Worksheet A01"]
[null,"Lower ",{"$f":"'A01'!C$40","v":1},null,"Worksheet A01"]
[null,"Upper ",{"$f":"'A01'!C$41","v":1},null,"Worksheet A01"]
["Concentration on commodity immediately after first application.","C0","ApR × rr × Drift × MetFact × TEF"]
[null,"Central ",{"$f":"C$6*C20*$C$24*C11*C15","v":45},null,"Eq"]
[null,"Lower ",{"$f":"C$6*C21*$C$24*C12*C16","v":15},null,"Eq"]
[null,"Upper ",{"$f":"C$6*C22*$C$24*C13*C17","v":135},null,"Eq"]
["Half-life on commodity","Halflife"]
[null,"Central ",{"$f":"'B01'!$C$20","v":8},"Days","Section 3.2.3.6 "]
[null,"Lower ",{"$f":"'B01'!$C$21","v":6},null,"Section 3.2.3.6 "]
[null,"Upper ",{"$f":"'B01'!$C$22","v":23},null,"Section 3.2.3.6 "]
["Decay Coefficient","k","Ln(2)/Halflife"]
[null,"Central ",{"$f":"LN(2)/C32","v":8.6643397569993161E-2},"Days-1","Eq"]
[null,"Upper ",{"$f":"LN(2)/C33","v":0.11552453009332421},"Note 2","Eq"]
[null,"Lower ",{"$f":"LN(2)/C34","v":3.0136833937388925E-2},"Note 2","Eq"]
["Proportion remaining at end of each application interval","p","exp( -k ×  intv)"]
[null,"Central ",{"$f":"EXP(-C36*C$8)","v":0.91700404320467122},"proportion","Eq"]
[null,"Lower ",{"$f":"EXP(-C37*C$8)","v":0.89089871814033927},null,"Eq"]
[null,"Upper ",{"$f":"EXP(-C38*C$8)","v":0.97031275274979811},null,"Eq"]
["Concentration on commodity immediately after last application.","Cn","Cn = C0 × (1- pn) ÷ (1- p)"]
[null,"Central ",{"$f":"C28 * (1-C40^C$7)/(1-C40)","v":45},"mg/kg food item","Eq"]
[null,"Lower ",{"$f":"C29 * (1-C41^C$7)/(1-C41)","v":14.999999999999998},null,"Eq"]
[null,"Upper ",{"$f":"C30 * (1-C42^C$7)/(1-C42)","v":135},null,"Eq"]
["Longer-term Concentrations"]
["Duration for time-weighted average exposure","T",{"$f":"'A01'!C$28","v":90},"Days","Worksheet A01"]
["Time-weighted average concentration on commodity over time, T, after the last application.","ConcTWA","Cn × (1-e-kT) ÷ (k T)"]
[null,"Central ",{"$f":"C44*(1-EXP(-C36*$C$48))/(C36*$C$48)","v":5.7684107161179874},"mg/kg food item","Eq"]
[null,"Lower ",{"$f":"C45*(1-EXP(-C37*$C$48))/(C37*$C$48)","v":1.4426510133303425},null,"Eq"]
[null,"Upper ",46.468901812267021,null,"Eq"]
["Maximum Time-weighted average concentration on commodity over time, T.","ConcTWA","See Documentation"]
[null,"Central ",{"$f":"IF($C$7=1, C50, MaxTWAWsFn(C28, $C$7, $C$8, $C$48, C36))","v":5.7684107161179874},"mg/kg food item","Eq"]
[null,"Lower ",{"$f":"IF($C$7=1, C51, MaxTWAWsFn(C29, $C$7, $C$8, $C$48, C37))","v":1.4426510133303425},null,"Eq"]
[null,"Upper ",{"$f":"IF($C$7=1, C52, MaxTWAWsFn(C30, $C$7, $C$8, $C$48, C38))","v":46.468901812267021},null,"Eq"]

{"sheet":"B05c","index":23,"n_rows":56,"n_cols":5,"rows_kept":56,"cut":false,"hidden":false,"merged":[[0,0,0,4],[9,0,12,0],[10,3,12,3],[13,0,16,0],[18,0,21,0],[19,3,21,3],[48,0,51,0],[49,3,51,3],[52,0,55,0],[53,3,55,3],[26,0,29,0],[30,0,33,0],[34,0,37,0],[38,0,41,0],[42,0,45,0],[43,3,45,3]]}
["Concentration of Pesticide in Contaminated Short Grass "]
["Short Title","Concentration in food item",null,null,"FoodConcV6"]
["Material consumed",null,"Short Grass",null,"Scenario parameter"]
["Parameter/Assumption","Code / Range","Equation/   Value","Units","Reference/Designation"]
["Application Information"]
["Application Rate (lbs/acre)","ApRt",{"$f":"'A01'!ApRt_C","v":1},"lb/acre","Worksheet A01"]
["Number of applications","n",{"$f":"'A01'!C$20","v":1},"unitless","Worksheet A01"]
["Interval between applications","intv",{"$f":"'A01'!C$21","v":1},"days","Worksheet A01"]
["Special Adjustments (See Note 1)"]
["Metabolite Adjustment Factor :  (See risk assessment if this has a value other than 1.)","MetFact"]
[null,"Central ",1,"unitless","Default"]
[null,"Lower ",1,null,"Default"]
[null,"Upper ",1,null,"Default"]
["Toxic Equivalency Factor for formulation:  (See risk assessment if this has a value other than 1.)","TEF"]
[null,"Central ",{"$f":"'A01'!C$35","v":1},"Unitless","Worksheet A01"]
[null,"Lower ",{"$f":"'A01'!C$36","v":1},null,"Worksheet A01"]
[null,"Upper ",{"$f":"'A01'!C$37","v":1},null,"Worksheet A01"]
["Acute Concentrations"]
["Residue Rates","rr"]
[null,"Central ",{"$f":"'A01'!C$51","v":85},"mg/kg food per lb/acre","Worksheet A01"]
[null,"Lower ",{"$f":"'A01'!C$52","v":30},null,"Worksheet A01"]
[null,"Upper ",{"$f":"'A01'!C$53","v":240},null,"Worksheet A01"]
["Drift","Drift"]
[null,"Central ",{"$f":"'A01'!C$39","v":1},"proportion","Worksheet A01"]
[null,"Lower ",{"$f":"'A01'!C$40","v":1},null,"Worksheet A01"]
[null,"Upper ",{"$f":"'A01'!C$41","v":1},null,"Worksheet A01"]
["Concentration on commodity immediately after first application.","C0","ApR × rr × Drift × MetFact × TEF"]
[null,"Central ",{"$f":"C$6*C20*$C$24*C11*C15","v":85},null,"Eq"]
[null,"Lower ",{"$f":"C$6*C21*$C$24*C12*C16","v":30},null,"Eq"]
[null,"Upper ",{"$f":"C$6*C22*$C$24*C13*C17","v":240},null,"Eq"]
["Half-life on commodity","Halflife"]
[null,"Central ",{"$f":"'B01'!$C$20","v":8},"Days","Section 3.2.3.6 "]
[null,"Lower ",{"$f":"'B01'!$C$21","v":6},null,"Section 3.2.3.6 "]
[null,"Upper ",{"$f":"'B01'!$C$22","v":23},null,"Section 3.2.3.6 "]
["Decay Coefficient","k","Ln(2)/Halflife"]
[null,"Central ",{"$f":"LN(2)/C32","v":8.6643397569993161E-2},"Days-1","Eq"]
[null,"Upper ",{"$f":"LN(2)/C33","v":0.11552453009332421},"Note 2","Eq"]
[null,"Lower ",{"$f":"LN(2)/C34","v":3.0136833937388925E-2},"Note 2","Eq"]
["Proportion remaining at end of each application interval","p","exp( -k ×  intv)"]
[null,"Central ",{"$f":"EXP(-C36*C$8)","v":0.91700404320467122},"proportion","Eq"]
[null,"Lower ",{"$f":"EXP(-C37*C$8)","v":0.89089871814033927},null,"Eq"]
[null,"Upper ",{"$f":"EXP(-C38*C$8)","v":0.97031275274979811},null,"Eq"]
["Concentration on commodity immediately after last application.","Cn","Cn = C0 × (1- pn) ÷ (1- p)"]
[null,"Central ",{"$f":"C28 * (1-C40^C$7)/(1-C40)","v":85},"mg/kg food item","Eq"]
[null,"Lower ",{"$f":"C29 * (1-C41^C$7)/(1-C41)","v":29.999999999999996},null,"Eq"]
[null,"Upper ",{"$f":"C30 * (1-C42^C$7)/(1-C42)","v":240},null,"Eq"]
["Longer-term Concentrations"]
["Duration for time-weighted average exposure","T",{"$f":"'A01'!C$28","v":90},"Days","Worksheet A01"]
["Time-weighted average concentration on commodity over time, T, after the last application.","ConcTWA","Cn × (1-e-kT) ÷ (k T)"]
[null,"Central ",{"$f":"C44*(1-EXP(-C36*$C$48))/(C36*$C$48)","v":10.895886908222865},"mg/kg food item","Eq"]
[null,"Lower ",{"$f":"C45*(1-EXP(-C37*$C$48))/(C37*$C$48)","v":2.885302026660685},null,"Eq"]
[null,"Upper ",82.611380999585819,null,"Eq"]
["Maximum Time-weighted average concentration on commodity over time, T.","ConcTWA","See Documentation"]
[null,"Central ",{"$f":"IF($C$7=1, C50, MaxTWAWsFn(C28, $C$7, $C$8, $C$48, C36))","v":10.895886908222865},"mg/kg food item","Eq"]
[null,"Lower ",{"$f":"IF($C$7=1, C51, MaxTWAWsFn(C29, $C$7, $C$8, $C$48, C37))","v":2.885302026660685},null,"Eq"]
[null,"Upper ",{"$f":"IF($C$7=1, C52, MaxTWAWsFn(C30, $C$7, $C$8, $C$48, C38))","v":82.611380999585819},null,"Eq"]

{"sheet":"B05d","index":24,"n_rows":56,"n_cols":5,"rows_kept":56,"cut":false,"hidden":false,"merged":[[0,0,0,4],[9,0,12,0],[10,3,12,3],[13,0,16,0],[18,0,21,0],[19,3,21,3],[48,0,51,0],[49,3,51,3],[52,0,55,0],[53,3,55,3],[26,0,29,0],[30,0,33,0],[34,0,37,0],[38,0,41,0],[42,0,45,0],[43,3,45,3]]}
["Concentration of Pesticide in Contaminated Tall Grass "]
["Short Title","Concentration in food item",null,null,"FoodConcV6"]
["Material consumed",null,"Tall Grass",null,"Scenario parameter"]
["Parameter/Assumption","Code / Range","Equation/   Value","Units","Reference/Designation"]
["Application Information"]
["Application Rate (lbs/acre)","ApRt",{"$f":"'A01'!ApRt_C","v":1},"lb/acre","Worksheet A01"]
["Number of applications","n",{"$f":"'A01'!C$20","v":1},"unitless","Worksheet A01"]
["Interval between applications","intv",{"$f":"'A01'!C$21","v":1},"days","Worksheet A01"]
["Special Adjustments (See Note 1)"]
["Metabolite Adjustment Factor :  (See risk assessment if this has a value other than 1.)","MetFact"]
[null,"Central ",1,"unitless","Default"]
[null,"Lower ",1,null,"Default"]
[null,"Upper ",1,null,"Default"]
["Toxic Equivalency Factor for formulation:  (See risk assessment if this has a value other than 1.)","TEF"]
[null,"Central ",{"$f":"'A01'!C$35","v":1},"Unitless","Worksheet A01"]
[null,"Lower ",{"$f":"'A01'!C$36","v":1},null,"Worksheet A01"]
[null,"Upper ",{"$f":"'A01'!C$37","v":1},null,"Worksheet A01"]
["Acute Concentrations"]
["Residue Rates","rr"]
[null,"Central ",{"$f":"'A01'!C$55","v":36},"mg/kg food per lb/acre","Worksheet A01"]
[null,"Lower ",{"$f":"'A01'!C$56","v":12},null,"Worksheet A01"]
[null,"Upper ",{"$f":"'A01'!C$57","v":110},null,"Worksheet A01"]
["Drift","Drift"]
[null,"Central ",{"$f":"'A01'!C$39","v":1},"proportion","Worksheet A01"]
[null,"Lower ",{"$f":"'A01'!C$40","v":1},null,"Worksheet A01"]
[null,"Upper ",{"$f":"'A01'!C$41","v":1},null,"Worksheet A01"]
["Concentration on commodity immediately after first application.","C0","ApR × rr × Drift × MetFact × TEF"]
[null,"Central ",{"$f":"C$6*C20*$C$24*C11*C15","v":36},null,"Eq"]
[null,"Lower ",{"$f":"C$6*C21*$C$24*C12*C16","v":12},null,"Eq"]
[null,"Upper ",{"$f":"C$6*C22*$C$24*C13*C17","v":110},null,"Eq"]
["Half-life on commodity","Halflife"]
[null,"Central ",{"$f":"'B01'!$C$20","v":8},"Days","Section 3.2.3.6 "]
[null,"Lower ",{"$f":"'B01'!$C$21","v":6},null,"Section 3.2.3.6 "]
[null,"Upper ",{"$f":"'B01'!$C$22","v":23},null,"Section 3.2.3.6 "]
["Decay Coefficient","k","Ln(2)/Halflife"]
[null,"Central ",{"$f":"LN(2)/C32","v":8.6643397569993161E-2},"Days-1","Eq"]
[null,"Upper ",{"$f":"LN(2)/C33","v":0.11552453009332421},"Note 2","Eq"]
[null,"Lower ",{"$f":"LN(2)/C34","v":3.0136833937388925E-2},"Note 2","Eq"]
["Proportion remaining at end of each application interval","p","exp( -k ×  intv)"]
[null,"Central ",{"$f":"EXP(-C36*C$8)","v":0.91700404320467122},"proportion","Eq"]
[null,"Lower ",{"$f":"EXP(-C37*C$8)","v":0.89089871814033927},null,"Eq"]
[null,"Upper ",{"$f":"EXP(-C38*C$8)","v":0.97031275274979811},null,"Eq"]
["Concentration on commodity immediately after last application.","Cn","Cn = C0 × (1- pn) ÷ (1- p)"]
[null,"Central ",{"$f":"C28 * (1-C40^C$7)/(1-C40)","v":36},"mg/kg food item","Eq"]
[null,"Lower ",{"$f":"C29 * (1-C41^C$7)/(1-C41)","v":12},null,"Eq"]
[null,"Upper ",{"$f":"C30 * (1-C42^C$7)/(1-C42)","v":110},null,"Eq"]
["Longer-term Concentrations"]
["Duration for time-weighted average exposure","T",{"$f":"'A01'!C$28","v":90},"Days","Worksheet A01"]
["Time-weighted average concentration on commodity over time, T, after the last application.","ConcTWA","Cn × (1-e-kT) ÷ (k T)"]
[null,"Central ",{"$f":"C44*(1-EXP(-C36*$C$48))/(C36*$C$48)","v":4.6147285728943892},"mg/kg food item","Eq"]
[null,"Lower ",{"$f":"C45*(1-EXP(-C37*$C$48))/(C37*$C$48)","v":1.154120810664274},null,"Eq"]
[null,"Upper ",37.863549624810169,null,"Eq"]
["Maximum Time-weighted average concentration on commodity over time, T.","ConcTWA","See Documentation"]
[null,"Central ",{"$f":"IF($C$7=1, C50, MaxTWAWsFn(C28, $C$7, $C$8, $C$48, C36))","v":4.6147285728943892},"mg/kg food item","Eq"]
[null,"Lower ",{"$f":"IF($C$7=1, C51, MaxTWAWsFn(C29, $C$7, $C$8, $C$48, C37))","v":1.154120810664274},null,"Eq"]
[null,"Upper ",{"$f":"IF($C$7=1, C52, MaxTWAWsFn(C30, $C$7, $C$8, $C$48, C38))","v":37.863549624810169},null,"Eq"]

{"sheet":"C01a","index":25,"n_rows":38,"n_cols":5,"rows_kept":38,"cut":false,"hidden":false,"merged":[[27,3,29,3],[30,0,33,0],[31,3,33,3],[0,0,0,4],[1,1,1,3],[2,1,2,3],[3,1,3,3],[6,0,9,0],[10,0,13,0],[34,0,37,0],[14,0,17,0],[18,0,21,0],[22,0,25,0],[26,0,29,0]]}
["Exposure estimates for Backpack Worker based on the amount of material handled per day"]
["Short Title","General exposure",null,null,"WkGenExp"]
["Receptor","Backpack Worker",null,null,"Worksheet A01"]
["Duration","Chronic"]
["Parameter/Assumption","Code / Range","Equation/ Value","Units","Reference/Equation"]
["Application rates","ApRt",{"$f":"'A01'!ApRt_C","v":1},"lb/acre","Worksheet A01"]
["Hours of application per day ","Hrs"]
[null,"Central ",{"$f":"'A01'!C$75","v":7},"hours","Worksheet A01"]
[null,"Lower ",{"$f":"'A01'!C$76","v":6},null,"Worksheet A01"]
[null,"Upper ",{"$f":"'A01'!C$77","v":8},null,"Worksheet A01"]
["Acres treated per hour","APH"]
[null,"Central ",{"$f":"'A01'!C$71","v":0.625},"acres/hour","Worksheet A01"]
[null,"Lower ",{"$f":"'A01'!C$72","v":0.25},null,"Worksheet A01"]
[null,"Upper ",{"$f":"'A01'!C$73","v":1},null,"Worksheet A01"]
["Acres treated per day: ","ATD","Hrs × APH"]
[null,"Central ",{"$f":"C8*C12","v":4.375},"acres/day","Eq"]
[null,"Lower ",{"$f":"C9*C13","v":1.5},null,"Eq"]
[null,"Upper ",{"$f":"C10*C14","v":8},null,"Eq"]
["Toxic Equivalency Factor for formulation:  (See risk assessment if this has a value other than 1.)","TEF"]
[null,"Central ",{"$f":"'A01'!C$35","v":1},"unitless","Worksheet A01"]
[null,"Lower ",{"$f":"'A01'!C$36","v":1},null,"Worksheet A01"]
[null,"Upper ",{"$f":"'A01'!C$37","v":1},null,"Worksheet A01"]
["Amount handled per day: ","Amnt","ApRt × ATD  × TEF"]
[null,"Central ",{"$f":"C$6*C16 *C20","v":4.375},"lb/day","Eq"]
[null,"Lower ",{"$f":"C$6*C17 *C21","v":1.5},null,"Eq"]
[null,"Upper ",{"$f":"C$6*C18 *C22","v":8},null,"Eq"]
["Absorbed dose rate:","ADR"]
[null,"Central ",{"$f":"'A01'!C$67","v":3.0000000000000001E-3},"(mg agent/kg bw) ÷ (lbs agent handled per day)","Worksheet A01"]
[null,"Lower ",{"$f":"'A01'!C$68","v":2.9999999999999997E-4},null,"Worksheet A01"]
[null,"Upper ",{"$f":"'A01'!C$69","v":0.01},null,"Worksheet A01"]
["Clothing Protection Factor","Prot"]
[null,"Central ",{"$f":"'A01'!C$31","v":0},"Unitless (value between 0 [no protection] and 1 [complete protection])","Worksheet A01"]
[null,"Upper ",{"$f":"'A01'!C$33","v":0},null,"Worksheet A01"]
[null,"Lower ",{"$f":"'A01'!C$32","v":0},null,"Worksheet A01"]
["Absorbed dose","Dose","Amnt × ADR  × (1-Prot)"]
[null,"Central ",{"$f":"C24*C28*(1-C32)","v":1.3125E-2},"mg/kg bw/day","Eq"]
[null,"Lower ",{"$f":"C25*C29*(1-C33)","v":4.4999999999999999E-4},null,"Eq"]
[null,"Upper ",{"$f":"C26*C30*(1-C34)","v":0.08},null,"Eq"]

{"sheet":"C01b","index":26,"n_rows":38,"n_cols":5,"rows_kept":38,"cut":false,"hidden":false,"merged":[[27,3,29,3],[30,0,33,0],[31,3,33,3],[0,0,0,4],[1,1,1,3],[2,1,2,3],[3,1,3,3],[6,0,9,0],[10,0,13,0],[34,0,37,0],[14,0,17,0],[18,0,21,0],[22,0,25,0],[26,0,29,0]]}
["Exposure estimates for Ground Boom Worker based on the amount of material handled per day"]
["Short Title","General exposure",null,null,"WkGenExp"]
["Receptor","Ground Boom Worker",null,null,"Worksheet A01"]
["Duration","Chronic"]
["Parameter/Assumption","Code / Range","Equation/ Value","Units","Reference/Equation"]
["Application rates","ApRt",{"$f":"'A01'!ApRt_C","v":1},"lb/acre","Worksheet A01"]
["Hours of application per day ","Hrs"]
[null,"Central ",7,"hours","Worksheet A01"]
[null,"Lower ",6,null,"Worksheet A01"]
[null,"Upper ",8,null,"Worksheet A01"]
["Acres treated per hour","APH"]
[null,"Central ",16,"acres/hour","Worksheet A01"]
[null,"Lower ",11,null,"Worksheet A01"]
[null,"Upper ",21,null,"Worksheet A01"]
["Acres treated per day: ","ATD","Hrs × APH"]
[null,"Central ",{"$f":"C8*C12","v":112},"acres/day","Eq"]
[null,"Lower ",{"$f":"C9*C13","v":66},null,"Eq"]
[null,"Upper ",{"$f":"C10*C14","v":168},null,"Eq"]
["Toxic Equivalency Factor for formulation:  (See risk assessment if this has a value other than 1.)","TEF"]
[null,"Central ",{"$f":"'A01'!C$35","v":1},"unitless","Worksheet A01"]
[null,"Lower ",{"$f":"'A01'!C$36","v":1},null,"Worksheet A01"]
[null,"Upper ",{"$f":"'A01'!C$37","v":1},null,"Worksheet A01"]
["Amount handled per day: ","Amnt","ApRt × ATD  × TEF"]
[null,"Central ",{"$f":"C$6*C16 *C20","v":112},"lb/day","Eq"]
[null,"Lower ",{"$f":"C$6*C17 *C21","v":66},null,"Eq"]
[null,"Upper ",{"$f":"C$6*C18 *C22","v":168},null,"Eq"]
["Absorbed dose rate:","ADR"]
[null,"Central ",2.0000000000000001E-4,"(mg agent/kg bw) ÷ (lbs agent handled per day)","Worksheet A01"]
[null,"Lower ",1.0000000000000001E-5,null,"Worksheet A01"]
[null,"Upper ",8.9999999999999998E-4,null,"Worksheet A01"]
["Clothing Protection Factor","Prot"]
[null,"Central ",{"$f":"'A01'!C$31","v":0},"Unitless (value between 0 [no protection] and 1 [complete protection])","Worksheet A01"]
[null,"Upper ",{"$f":"'A01'!C$33","v":0},null,"Worksheet A01"]
[null,"Lower ",{"$f":"'A01'!C$32","v":0},null,"Worksheet A01"]
["Absorbed dose","Dose","Amnt × ADR  × (1-Prot)"]
[null,"Central ",{"$f":"C24*C28*(1-C32)","v":2.24E-2},"mg/kg bw/day","Eq"]
[null,"Lower ",{"$f":"C25*C29*(1-C33)","v":6.600000000000001E-4},null,"Eq"]
[null,"Upper ",{"$f":"C26*C30*(1-C34)","v":0.1512},null,"Eq"]

{"sheet":"C01c","index":27,"n_rows":38,"n_cols":5,"rows_kept":38,"cut":false,"hidden":false,"merged":[[27,3,29,3],[30,0,33,0],[31,3,33,3],[0,0,0,4],[1,1,1,3],[2,1,2,3],[3,1,3,3],[6,0,9,0],[10,0,13,0],[34,0,37,0],[14,0,17,0],[18,0,21,0],[22,0,25,0],[26,0,29,0]]}
["Exposure estimates for Aerial Spray Worker based on the amount of material handled per day"]
["Short Title","General exposure",null,null,"WkGenExp"]
["Receptor","Aerial Spray Worker",null,null,"Worksheet A01"]
["Duration","Chronic"]
["Parameter/Assumption","Code / Range","Equation/ Value","Units","Reference/Equation"]
["Application rates","ApRt",{"$f":"'A01'!ApRt_C","v":1},"lb/acre","Worksheet A01"]
["Hours of application per day ","Hrs"]
[null,"Central ",7,"hours","Worksheet A01"]
[null,"Lower ",6,null,"Worksheet A01"]
[null,"Upper ",8,null,"Worksheet A01"]
["Acres treated per hour","APH"]
[null,"Central ",70,"acres/hour","Worksheet A01"]
[null,"Lower ",40,null,"Worksheet A01"]
[null,"Upper ",100,null,"Worksheet A01"]
["Acres treated per day: ","ATD","Hrs × APH"]
[null,"Central ",{"$f":"C8*C12","v":490},"acres/day","Eq"]
[null,"Lower ",{"$f":"C9*C13","v":240},null,"Eq"]
[null,"Upper ",{"$f":"C10*C14","v":800},null,"Eq"]
["Toxic Equivalency Factor for formulation:  (See risk assessment if this has a value other than 1.)","TEF"]
[null,"Central ",{"$f":"'A01'!C$35","v":1},"unitless","Worksheet A01"]
[null,"Lower ",{"$f":"'A01'!C$36","v":1},null,"Worksheet A01"]
[null,"Upper ",{"$f":"'A01'!C$37","v":1},null,"Worksheet A01"]
["Amount handled per day: ","Amnt","ApRt × ATD  × TEF"]
[null,"Central ",{"$f":"C$6*C16 *C20","v":490},"lb/day","Eq"]
[null,"Lower ",{"$f":"C$6*C17 *C21","v":240},null,"Eq"]
[null,"Upper ",{"$f":"C$6*C18 *C22","v":800},null,"Eq"]
["Absorbed dose rate:","ADR"]
[null,"Central ",3.0000000000000001E-5,"(mg agent/kg bw) ÷ (lbs agent handled per day)","Worksheet A01"]
[null,"Lower ",9.9999999999999995E-7,null,"Worksheet A01"]
[null,"Upper ",1E-4,null,"Worksheet A01"]
["Clothing Protection Factor","Prot"]
[null,"Central ",{"$f":"'A01'!C$31","v":0},"Unitless (value between 0 [no protection] and 1 [complete protection])","Worksheet A01"]
[null,"Upper ",{"$f":"'A01'!C$33","v":0},null,"Worksheet A01"]
[null,"Lower ",{"$f":"'A01'!C$32","v":0},null,"Worksheet A01"]
["Absorbed dose","Dose","Amnt × ADR  × (1-Prot)"]
[null,"Central ",{"$f":"C24*C28*(1-C32)","v":1.47E-2},"mg/kg bw/day","Eq"]
[null,"Lower ",{"$f":"C25*C29*(1-C33)","v":2.3999999999999998E-4},null,"Eq"]
[null,"Upper ",{"$f":"C26*C30*(1-C34)","v":0.08},null,"Eq"]

{"sheet":"C02a","index":28,"n_rows":26,"n_cols":5,"rows_kept":26,"cut":false,"hidden":false,"merged":[[10,0,13,0],[14,0,17,0],[18,0,21,0],[22,0,25,0],[0,0,0,4],[1,1,1,3],[2,1,2,3],[3,1,3,3],[4,1,4,3],[7,0,8,0]]}
["Accidental Dermal Exposure Assessment Using Zero-Order Absorption, Worker, Surface Area, Hands, for 1 minute(s)"]
["Short Title","Contaminated Gloves, 1 minute",null,null,"DrmZr"]
["Receptor","Worker"]
["Duration","Acute"]
["Surface Contaminated","Surface Area, Hands"]
["Parameter/Assumption","Code / Range","Equation/   Value","Units","Reference/Designation"]
["Surface Area","SA",{"$f":"A02a!$C$40","v":840},"cm2","U.S. EPA/ORD 1992"]
["Duration of Exposure","T_min",1,"minutes","Scenario parameter"]
[null,"T_hr",{"$f":"C8/60","v":1.6666666666666666E-2},"hours","Eq"]
["Body weight","BW",{"$f":"A02a!$C$39","v":70},"kg","ICRP 1975"]
["Concentration in solution (mg/mL)","Conc"]
[null,"Central ",{"$f":"'A01'!FldConc_C","v":4},"mg/mL","Worksheet A01"]
[null,"Lower ",{"$f":"'A01'!FldConc_L","v":1.2},null,"Worksheet A01"]
[null,"Upper ",{"$f":"'A01'!FldConc_U","v":24},null,"Worksheet A01"]
["Toxic Equivalency Factor for formulation:  (See risk assessment if this has a value other than 1.)","TEF"]
[null,"Central ",{"$f":"'A01'!C$35","v":1},"Unitless","Worksheet A01"]
[null,"Lower ",{"$f":"'A01'!C$36","v":1},null,"Worksheet A01"]
[null,"Upper ",{"$f":"'A01'!C$37","v":1},null,"Worksheet A01"]
["Dermal permeability","Kp"]
[null,"Central ",{"$f":"'B01'!$C$14","v":5.7000000000000003E-5},"cm/hour","Section 3.2.2.2"]
[null,"Lower ",{"$f":"'B01'!$C$15","v":2.8E-5},null,"Section 3.2.2.2"]
[null,"Upper ",{"$f":"'B01'!$C$16","v":1.1E-4},null,"Section 3.2.2.2"]
["Absorbed Dose","Dose","Kp × Conc × T_hr × SA x TEF ÷ BW"]
[null,"Central ",{"$f":"C20*C12*C$9*C$7*C16/C$10","v":4.5599999999999997E-5},"mg/kg","Eq"]
[null,"Lower ",{"$f":"C21*C13*C$9*C$7*C17/C$10","v":6.7199999999999992E-6},"mg/kg","Eq"]
[null,"Upper ",{"$f":"C22*C14*C$9*C$7*C18/C$10","v":5.2800000000000004E-4},"mg/kg","Eq"]

{"sheet":"C02b","index":29,"n_rows":26,"n_cols":5,"rows_kept":26,"cut":false,"hidden":false,"merged":[[10,0,13,0],[14,0,17,0],[18,0,21,0],[22,0,25,0],[0,0,0,4],[1,1,1,3],[2,1,2,3],[3,1,3,3],[4,1,4,3],[7,0,8,0]]}
["Accidental Dermal Exposure Assessment Using Zero-Order Absorption, Worker, Surface Area, Hands, for 60 minute(s)"]
["Short Title","Contaminated Gloves, 1 Hour",null,null,"DrmZr"]
["Receptor","Worker"]
["Duration","Acute"]
["Surface Contaminated","Surface Area, Hands"]
["Parameter/Assumption","Code / Range","Equation/   Value","Units","Reference/Designation"]
["Surface Area","SA",{"$f":"A02a!$C$40","v":840},"cm2","U.S. EPA/ORD 1992"]
["Duration of Exposure","T_min",60,"minutes","Scenario parameter"]
[null,"T_hr",{"$f":"C8/60","v":1},"hours","Eq"]
["Body weight","BW",{"$f":"A02a!$C$39","v":70},"kg","ICRP 1975"]
["Concentration in solution (mg/mL)","Conc"]
[null,"Central ",{"$f":"'A01'!FldConc_C","v":4},"mg/mL","Worksheet A01"]
[null,"Lower ",{"$f":"'A01'!FldConc_L","v":1.2},null,"Worksheet A01"]
[null,"Upper ",{"$f":"'A01'!FldConc_U","v":24},null,"Worksheet A01"]
["Toxic Equivalency Factor for formulation:  (See risk assessment if this has a value other than 1.)","TEF"]
[null,"Central ",{"$f":"'A01'!C$35","v":1},"Unitless","Worksheet A01"]
[null,"Lower ",{"$f":"'A01'!C$36","v":1},null,"Worksheet A01"]
[null,"Upper ",{"$f":"'A01'!C$37","v":1},null,"Worksheet A01"]
["Dermal permeability","Kp"]
[null,"Central ",{"$f":"'B01'!$C$14","v":5.7000000000000003E-5},"cm/hour","Section 3.2.2.2"]
[null,"Lower ",{"$f":"'B01'!$C$15","v":2.8E-5},null,"Section 3.2.2.2"]
[null,"Upper ",{"$f":"'B01'!$C$16","v":1.1E-4},null,"Section 3.2.2.2"]
["Absorbed Dose","Dose","Kp × Conc × T_hr × SA x TEF ÷ BW"]
[null,"Central ",{"$f":"C20*C12*C$9*C$7*C16/C$10","v":2.7360000000000002E-3},"mg/kg","Eq"]
[null,"Lower ",{"$f":"C21*C13*C$9*C$7*C17/C$10","v":4.0319999999999993E-4},"mg/kg","Eq"]
[null,"Upper ",{"$f":"C22*C14*C$9*C$7*C18/C$10","v":3.168E-2},"mg/kg","Eq"]

{"sheet":"C03a","index":30,"n_rows":39,"n_cols":5,"rows_kept":39,"cut":false,"hidden":false,"merged":[[28,3,30,3],[31,0,34,0],[0,0,0,4],[1,1,1,3],[2,1,2,3],[3,1,3,3],[4,1,4,3],[11,0,14,0],[35,0,38,0],[15,0,18,0],[19,0,22,0],[23,0,26,0],[27,0,30,0]]}
["Accidental Dermal Exposure Assessment Using First-Order Absorption, Worker, Surface Area, Hands, for 60 minute(s)"]
["Short Title","Spill on hands, 1 hour",null,null,"DrmFOA"]
["Receptor","Worker"]
["Duration","Acute"]
["Surface Contaminated","Surface Area, Hands"]
["Parameter/Assumption","Code / Range","Equation/   Value","Units","Reference/Designation"]
["Surface Area","SA",{"$f":"A02a!$C$40","v":840},"cm2","U.S. EPA/ORD 1992"]
["Duration of Exposure",null,60,"minutes","Scenario parameter"]
[null,"T",{"$f":"C8/60","v":1},"hours","Eq"]
["Body weight","BW",{"$f":"A02a!$C$39","v":70},"kg","ICRP 1975"]
["Liquid adhering to skin","L",{"$f":"A02d!$C$11","v":8.0000000000000002E-3},"mL/cm2","Mason and Johnson 1987"]
["Concentration in solution","Conc"]
[null,"Central ",{"$f":"'A01'!FldConc_C","v":4},"mg/mL","Worksheet A01"]
[null,"Lower ",{"$f":"'A01'!FldConc_L","v":1.2},null,"Worksheet A01"]
[null,"Upper ",{"$f":"'A01'!FldConc_U","v":24},null,"Worksheet A01"]
["First-order dermal absorption rates ","ka"]
[null,"Central",{"$f":"'B01'!$C$11","v":5.0000000000000002E-5},"hour-1","Section 3.2.2.2"]
[null,"Lower",{"$f":"'B01'!$C$12","v":3.0000000000000001E-5},null,"Section 3.2.2.2"]
[null,"Upper",{"$f":"'B01'!$C$13","v":7.1000000000000005E-5},null,"Section 3.2.2.2"]
["Toxic Equivalency Factor for formulation:  (See risk assessment if this has a value other than 1.)","TEF"]
[null,"Central ",{"$f":"'A01'!C$35","v":1},"Unitless","Worksheet A01"]
[null,"Lower ",{"$f":"'A01'!C$36","v":1},null,"Worksheet A01"]
[null,"Upper ",{"$f":"'A01'!C$37","v":1},null,"Worksheet A01"]
["Amount Deposited on Skin","Amnt","L × SA × Conc x TEF"]
[null,"Central",{"$f":"$C$11*$C$7*C13*C21","v":26.88},"mg","Eq"]
[null,"Lower",{"$f":"$C$11*$C$7*C14*C22","v":8.0640000000000001},null,"Eq"]
[null,"Upper",{"$f":"$C$11*$C$7*C15*C23","v":161.28},null,"Eq"]
["Skin Loading","Loading"]
[null,"Central",{"$f":"C25/C$7","v":3.2000000000000001E-2},"mg/cm2","Eq"]
[null,"Lower",{"$f":"C26/C$7","v":9.6000000000000009E-3},null,"Eq"]
[null,"Upper",{"$f":"C27/C$7","v":0.192},null,"Eq"]
["Proportion absorbed over period T","Prop","1-exp(-ka T)"]
[null,"Central",{"$f":"1-EXP(-C17 *$C$9)","v":4.9998750020874283E-5},"hour-1","Eq"]
[null,"Lower",{"$f":"1-EXP(-C18 *$C$9)","v":2.9999550004489173E-5},null,"Eq"]
[null,"Upper",{"$f":"1-EXP(-C19 *$C$9)","v":7.0997479559631316E-5},null,"Eq"]
["Absorbed Dose","Dose","Amnt × Prop ÷ BW"]
[null,"Central",{"$f":"C25*C33/$C$10","v":1.9199520008015723E-5},"mg/kg bw","Eq"]
[null,"Lower",{"$f":"C26*C34/$C$10","v":3.4559481605171526E-6},null,"Eq"]
[null,"Upper",{"$f":"C27*C35/$C$10","v":1.6357819290539055E-4},null,"Eq"]

{"sheet":"C03b","index":31,"n_rows":39,"n_cols":5,"rows_kept":39,"cut":false,"hidden":false,"merged":[[28,3,30,3],[31,0,34,0],[0,0,0,4],[1,1,1,3],[2,1,2,3],[3,1,3,3],[4,1,4,3],[11,0,14,0],[35,0,38,0],[15,0,18,0],[19,0,22,0],[23,0,26,0],[27,0,30,0]]}
["Accidental Dermal Exposure Assessment Using First-Order Absorption, Worker, Surface Area, Lower legs, for 60 minute(s)"]
["Short Title","Spill on lower legs, 1 hour",null,null,"DrmFOA"]
["Receptor","Worker"]
["Duration","Acute"]
["Surface Contaminated","Surface Area, Lower legs"]
["Parameter/Assumption","Code / Range","Equation/   Value","Units","Reference/Designation"]
["Surface Area","SA",{"$f":"A02a!$C$41","v":2070},"cm2","U.S. EPA/ORD 1992"]
["Duration of Exposure",null,60,"minutes","Scenario parameter"]
[null,"T",{"$f":"C8/60","v":1},"hours","Eq"]
["Body weight","BW",{"$f":"A02a!$C$39","v":70},"kg","ICRP 1975"]
["Liquid adhering to skin","L",{"$f":"A02d!$C$11","v":8.0000000000000002E-3},"mL/cm2","Mason and Johnson 1987"]
["Concentration in solution","Conc"]
[null,"Central ",{"$f":"'A01'!FldConc_C","v":4},"mg/mL","Worksheet A01"]
[null,"Lower ",{"$f":"'A01'!FldConc_L","v":1.2},null,"Worksheet A01"]
[null,"Upper ",{"$f":"'A01'!FldConc_U","v":24},null,"Worksheet A01"]
["First-order dermal absorption rates ","ka"]
[null,"Central",{"$f":"'B01'!$C$11","v":5.0000000000000002E-5},"hour-1","Section 3.2.2.2"]
[null,"Lower",{"$f":"'B01'!$C$12","v":3.0000000000000001E-5},null,"Section 3.2.2.2"]
[null,"Upper",{"$f":"'B01'!$C$13","v":7.1000000000000005E-5},null,"Section 3.2.2.2"]
["Toxic Equivalency Factor for formulation:  (See risk assessment if this has a value other than 1.)","TEF"]
[null,"Central ",{"$f":"'A01'!C$35","v":1},"Unitless","Worksheet A01"]
[null,"Lower ",{"$f":"'A01'!C$36","v":1},null,"Worksheet A01"]
[null,"Upper ",{"$f":"'A01'!C$37","v":1},null,"Worksheet A01"]
["Amount Deposited on Skin","Amnt","L × SA × Conc x TEF"]
[null,"Central",{"$f":"$C$11*$C$7*C13*C21","v":66.239999999999995},"mg","Eq"]
[null,"Lower",{"$f":"$C$11*$C$7*C14*C22","v":19.871999999999996},null,"Eq"]
[null,"Upper",{"$f":"$C$11*$C$7*C15*C23","v":397.43999999999994},null,"Eq"]
["Skin Loading","Loading"]
[null,"Central",{"$f":"C25/C$7","v":3.2000000000000001E-2},"mg/cm2","Eq"]
[null,"Lower",{"$f":"C26/C$7","v":9.5999999999999974E-3},null,"Eq"]
[null,"Upper",{"$f":"C27/C$7","v":0.19199999999999998},null,"Eq"]
["Proportion absorbed over period T","Prop","1-exp(-ka T)"]
[null,"Central",{"$f":"1-EXP(-C17 *$C$9)","v":4.9998750020874283E-5},"hour-1","Eq"]
[null,"Lower",{"$f":"1-EXP(-C18 *$C$9)","v":2.9999550004489173E-5},null,"Eq"]
[null,"Upper",{"$f":"1-EXP(-C19 *$C$9)","v":7.0997479559631316E-5},null,"Eq"]
["Absorbed Dose","Dose","Amnt × Prop ÷ BW"]
[null,"Central",{"$f":"C25*C33/$C$10","v":4.7313102876895892E-5},"mg/kg bw","Eq"]
[null,"Lower",{"$f":"C26*C34/$C$10","v":8.5164436812744097E-6},null,"Eq"]
[null,"Upper",{"$f":"C27*C35/$C$10","v":4.0310340394542667E-4},null,"Eq"]

{"sheet":"D01a","index":32,"n_rows":39,"n_cols":5,"rows_kept":39,"cut":false,"hidden":false,"merged":[[28,3,30,3],[31,0,34,0],[0,0,0,4],[1,1,1,3],[2,1,2,3],[3,1,3,3],[4,1,4,3],[11,0,14,0],[35,0,38,0],[15,0,18,0],[19,0,22,0],[23,0,26,0],[27,0,30,0]]}
["Accidental Dermal Exposure Assessment Using First-Order Absorption, Child, Surface Area, Whole body, for 60 minute(s)"]
["Short Title","Child direct spray, 1 hour",null,null,"DrmFOA"]
["Receptor","Child"]
["Duration","Acute"]
["Surface Contaminated","Surface Area, Whole body"]
["Parameter/Assumption","Code / Range","Equation/   Value","Units","Reference/Designation"]
["Surface Area","SA",{"$f":"A02a!$C$29","v":6030},"cm2","U.S. EPA/ORD 1996"]
["Duration of Exposure",null,60,"minutes","Scenario parameter"]
[null,"T",{"$f":"C8/60","v":1},"hours","Eq"]
["Body weight","BW",{"$f":"A02a!$C$28","v":13.3},"kg","U.S. EPA/ORD 1996"]
["Liquid adhering to skin","L",{"$f":"A02d!$C$11","v":8.0000000000000002E-3},"mL/cm2","Mason and Johnson 1987"]
["Concentration in solution","Conc"]
[null,"Central ",{"$f":"'A01'!FldConc_C","v":4},"mg/mL","Worksheet A01"]
[null,"Lower ",{"$f":"'A01'!FldConc_L","v":1.2},null,"Worksheet A01"]
[null,"Upper ",{"$f":"'A01'!FldConc_U","v":24},null,"Worksheet A01"]
["First-order dermal absorption rates ","ka"]
[null,"Central",{"$f":"'B01'!$C$11","v":5.0000000000000002E-5},"hour-1","Section 3.2.2.2"]
[null,"Lower",{"$f":"'B01'!$C$12","v":3.0000000000000001E-5},null,"Section 3.2.2.2"]
[null,"Upper",{"$f":"'B01'!$C$13","v":7.1000000000000005E-5},null,"Section 3.2.2.2"]
["Toxic Equivalency Factor for formulation:  (See risk assessment if this has a value other than 1.)","TEF"]
[null,"Central ",{"$f":"'A01'!C$35","v":1},"Unitless","Worksheet A01"]
[null,"Lower ",{"$f":"'A01'!C$36","v":1},null,"Worksheet A01"]
[null,"Upper ",{"$f":"'A01'!C$37","v":1},null,"Worksheet A01"]
["Amount Deposited on Skin","Amnt","L × SA × Conc x TEF"]
[null,"Central",{"$f":"$C$11*$C$7*C13*C21","v":192.96},"mg","Eq"]
[null,"Lower",{"$f":"$C$11*$C$7*C14*C22","v":57.887999999999998},null,"Eq"]
[null,"Upper",{"$f":"$C$11*$C$7*C15*C23","v":1157.76},null,"Eq"]
["Skin Loading","Loading"]
[null,"Central",{"$f":"C25/C$7","v":3.2000000000000001E-2},"mg/cm2","Eq"]
[null,"Lower",{"$f":"C26/C$7","v":9.5999999999999992E-3},null,"Eq"]
[null,"Upper",{"$f":"C27/C$7","v":0.192},null,"Eq"]
["Proportion absorbed over period T","Prop","1-exp(-ka T)"]
[null,"Central",{"$f":"1-EXP(-C17 *$C$9)","v":4.9998750020874283E-5},"hour-1","Eq"]
[null,"Lower",{"$f":"1-EXP(-C18 *$C$9)","v":2.9999550004489173E-5},null,"Eq"]
[null,"Upper",{"$f":"1-EXP(-C19 *$C$9)","v":7.0997479559631316E-5},null,"Eq"]
["Absorbed Dose","Dose","Amnt × Prop ÷ BW"]
[null,"Central",{"$f":"C25*C33/$C$10","v":7.2539539879909042E-4},"mg/kg bw","Eq"]
[null,"Lower",{"$f":"C26*C34/$C$10","v":1.3057247749322323E-4},null,"Eq"]
[null,"Upper",{"$f":"C27*C35/$C$10","v":6.1803039048841163E-3},null,"Eq"]

{"sheet":"D01b","index":33,"n_rows":39,"n_cols":5,"rows_kept":39,"cut":false,"hidden":false,"merged":[[28,3,30,3],[31,0,34,0],[0,0,0,4],[1,1,1,3],[2,1,2,3],[3,1,3,3],[4,1,4,3],[11,0,14,0],[35,0,38,0],[15,0,18,0],[19,0,22,0],[23,0,26,0],[27,0,30,0]]}
["Accidental Dermal Exposure Assessment Using First-Order Absorption, Adult Female, Surface Area, Feet and lower Legs, for 60 minute(s)"]
["Short Title","Adult female, lower legs, 1 hour",null,null,"DrmFOA"]
["Receptor","Adult Female"]
["Duration","Acute"]
["Surface Contaminated","Surface Area, Feet and lower Legs"]
["Parameter/Assumption","Code / Range","Equation/   Value","Units","Reference/Designation"]
["Surface Area","SA",{"$f":"A02a!$C$5","v":2915},"cm2","U.S. EPA/ORD 1992"]
["Duration of Exposure",null,60,"minutes","Scenario parameter"]
[null,"T",{"$f":"C8/60","v":1},"hours","Eq"]
["Body weight","BW",{"$f":"A02a!$C$4","v":64},"kg","U.S. EPA/ORD 1985"]
["Liquid adhering to skin","L",{"$f":"A02d!$C$11","v":8.0000000000000002E-3},"mL/cm2","Mason and Johnson 1987"]
["Concentration in solution","Conc"]
[null,"Central ",{"$f":"'A01'!FldConc_C","v":4},"mg/mL","Worksheet A01"]
[null,"Lower ",{"$f":"'A01'!FldConc_L","v":1.2},null,"Worksheet A01"]
[null,"Upper ",{"$f":"'A01'!FldConc_U","v":24},null,"Worksheet A01"]
["First-order dermal absorption rates ","ka"]
[null,"Central",{"$f":"'B01'!$C$11","v":5.0000000000000002E-5},"hour-1","Section 3.2.2.2"]
[null,"Lower",{"$f":"'B01'!$C$12","v":3.0000000000000001E-5},null,"Section 3.2.2.2"]
[null,"Upper",{"$f":"'B01'!$C$13","v":7.1000000000000005E-5},null,"Section 3.2.2.2"]
["Toxic Equivalency Factor for formulation:  (See risk assessment if this has a value other than 1.)","TEF"]
[null,"Central ",{"$f":"'A01'!C$35","v":1},"Unitless","Worksheet A01"]
[null,"Lower ",{"$f":"'A01'!C$36","v":1},null,"Worksheet A01"]
[null,"Upper ",{"$f":"'A01'!C$37","v":1},null,"Worksheet A01"]
["Amount Deposited on Skin","Amnt","L × SA × Conc x TEF"]
[null,"Central",{"$f":"$C$11*$C$7*C13*C21","v":93.28},"mg","Eq"]
[null,"Lower",{"$f":"$C$11*$C$7*C14*C22","v":27.983999999999998},null,"Eq"]
[null,"Upper",{"$f":"$C$11*$C$7*C15*C23","v":559.68000000000006},null,"Eq"]
["Skin Loading","Loading"]
[null,"Central",{"$f":"C25/C$7","v":3.2000000000000001E-2},"mg/cm2","Eq"]
[null,"Lower",{"$f":"C26/C$7","v":9.5999999999999992E-3},null,"Eq"]
[null,"Upper",{"$f":"C27/C$7","v":0.19200000000000003},null,"Eq"]
["Proportion absorbed over period T","Prop","1-exp(-ka T)"]
[null,"Central",{"$f":"1-EXP(-C17 *$C$9)","v":4.9998750020874283E-5},"hour-1","Eq"]
[null,"Lower",{"$f":"1-EXP(-C18 *$C$9)","v":2.9999550004489173E-5},null,"Eq"]
[null,"Upper",{"$f":"1-EXP(-C19 *$C$9)","v":7.0997479559631316E-5},null,"Eq"]
["Absorbed Dose","Dose","Amnt × Prop ÷ BW"]
[null,"Central",{"$f":"C25*C33/$C$10","v":7.287317815542427E-5},"mg/kg bw","Eq"]
[null,"Lower",{"$f":"C26*C34/$C$10","v":1.3117303239462889E-5},null,"Eq"]
[null,"Upper",{"$f":"C27*C35/$C$10","v":6.208729587489759E-4},null,"Eq"]

{"sheet":"D02","index":34,"n_rows":52,"n_cols":5,"rows_kept":52,"cut":false,"hidden":false,"merged":[[8,0,9,0],[0,0,0,4],[1,1,1,3],[2,1,2,3],[3,1,3,3],[4,1,4,3],[51,0,51,4],[14,0,17,0],[18,0,19,0],[18,2,18,4],[26,0,29,0],[30,0,33,0],[30,2,30,4],[34,0,37,0],[38,0,41,0],[39,3,41,3],[42,0,45,0],[46,0,49,0]]}
["Dermal Contact with Contaminated Vegetation, Adult Female, Surface Area, Wearing shorts and T-shirt, for 1 hour(s)"]
["Short Title","Vegetation Contact, shorts and T-shirt",null,null,"DrmVegC"]
["Receptor","Adult Female"]
["Surface Contaminated","Surface Area, Wearing shorts and T-shirt"]
["Duration","Acute"]
["Parameter/Assumption","Code / Range","Equation/   Value","Units","Reference/Designation"]
["Application Rate (lbs/acre)","ApRt",{"$f":"'A01'!ApRt_C","v":1},"lb/acre","Worksheet A01"]
["Conversion Factor","CnvF",11.21,"ug/cm2/lb/acre"]
["Metric Application Rate (ug/cm2)","ApR_m","ApR × CnvF"]
[null,null,{"$f":"C7*C$8","v":11.21},"ug/cm2","Eq"]
["Surface Area","SA",{"$f":"A02a!$C$6","v":5300},"cm2","U.S. EPA/ORD 1992"]
["Contact Time","Tc",1,"hours","Scenario parameter"]
["Exposure Time","Te",24,"hours","Scenario parameter"]
["Body weight (W)","BW",{"$f":"A02a!$C$4","v":64},"kg","U.S. EPA/ORD 1985"]
["Proportion Dislodgeable","PropDr"]
[null,"Central ",{"$f":"'A01'!C$47","v":0.1},"proportion","Worksheet A01"]
[null,"Lower ",{"$f":"'A01'!C$48","v":0.1},null,"Worksheet A01"]
[null,"Upper ",{"$f":"'A01'!C$49","v":0.1},null,"Worksheet A01"]
["Dislodgeable Residue","Dr","ApR_m × PropDr"]
[null,"Central ",{"$f":"C$10*C16","v":1.1210000000000002},"ug/cm2","Eq"]
[null,"Lower ",{"$f":"C$10*C17","v":1.1210000000000002},null,"Eq"]
[null,"Upper ",{"$f":"C$10*C18","v":1.1210000000000002},null,"Eq"]
["Transfer Rate","Tr","10 (1.09×Log10(Dr)+0.05) / 1000 µg/mg)  "]
[null,"Central ",{"$f":"(10^( (1.09 * LOG(C20)) + 0.05)) / 1000","v":1.2707792585460505E-3},"mg/(cm2 hr)","Eq"]
[null,"Lower ",{"$f":"(10^( (1.09 * LOG(C21)) + 0.05)) / 1000","v":1.2707792585460505E-3},null,"Eq"]
[null,"Upper ",{"$f":"(10^( (1.09 * LOG(C22)) + 0.05)) / 1000","v":1.2707792585460505E-3},null,"Eq"]
["Toxic Equivalency Factor for formulation:  (See risk assessment if this has a value other than 1.)","TEF"]
[null,"Central ",{"$f":"'A01'!C$35","v":1},"Unitless","Worksheet A01"]
[null,"Lower ",{"$f":"'A01'!C$36","v":1},null,"Worksheet A01"]
[null,"Upper ",{"$f":"'A01'!C$37","v":1},null,"Worksheet A01"]
["Amount Transferred to Skin Surface","Amnt","SA × Tr × Tc x TEF"]
[null,"Central ",{"$f":"C$11 * C$12 * C24 * C28","v":6.7351300702940682},"mg","Eq"]
[null,"Lower ",{"$f":"C$11 * C$12 * C25 * C29","v":6.7351300702940682},null,"Eq"]
[null,"Upper ",{"$f":"C$11 * C$12 * C26 * C30","v":6.7351300702940682},null,"Eq"]
["First-order dermal absorption rates ","ka"]
[null,"Central",{"$f":"'B01'!$C$11","v":5.0000000000000002E-5},"hour-1","Section 3.2.2.2"]
[null,"Lower",{"$f":"'B01'!$C$12","v":3.0000000000000001E-5},null,"Section 3.2.2.2"]
[null,"Upper",{"$f":"'B01'!$C$13","v":7.1000000000000005E-5},null,"Section 3.2.2.2"]
["Skin Loading","Loading"]
[null,"Central",{"$f":"C36/C$11","v":9.4339622641509434E-9},"mg/cm2","Eq"]
[null,"Lower",{"$f":"C37/C$11","v":5.6603773584905659E-9},null,"Eq"]
[null,"Upper",{"$f":"C38/C$11","v":1.3396226415094341E-8},null,"Eq"]
["Proportion absorbed over exposure period, Te","Prop","1-exp(-ka Te)"]
[null,"Central",{"$f":"1-EXP(-C36 *$C$13)","v":1.1992802879136066E-3},"hour-1","Eq"]
[null,"Lower",{"$f":"1-EXP(-C37 *$C$13)","v":7.1974086219683819E-4},null,"Eq"]
[null,"Upper",{"$f":"1-EXP(-C38 *$C$13)","v":1.7025490162757562E-3},null,"Eq"]
["Absorbed Dose","Dose","Amnt × Prop ÷ BW"]
[null,"Central",{"$f":"C32*C44/$C$14","v":1.2620794890371657E-4},"mg/kg bw","Eq"]
[null,"Lower",{"$f":"C33*C45/$C$14","v":7.5742942559395383E-5},null,"Eq"]
[null,"Upper",{"$f":"C34*C46/$C$14","v":1.7917014180731923E-4},null,"Eq"]
[]
["Note 1: The method of Durkin et al. (1995, p. 68, equation 4) is used to calculate the transfer rate (Tr) in units of  µg/(cm2 hr) based on the dislodgeable residue (Dr) in units of μg/cm2.  This is converted to units of mg/(cm2 hr)) by dividing by 1000 µg/mg."]

{"sheet":"D03a","index":35,"n_rows":21,"n_cols":5,"rows_kept":21,"cut":false,"hidden":false,"merged":[[17,0,20,0],[0,0,0,4],[2,1,2,3],[7,0,10,0],[8,3,10,3],[12,0,15,0],[13,3,15,3]]}
["Consumption of Fruit by a Adult Female, Acute exposure."]
["Short Title","Contaminated Fruit",null,null,"FdPropBwV6"]
["Receptor","Adult Female"]
["Duration","Acute",null,null,"Scenario parameter"]
["Material consumed","Fruit"]
["Parameter/Assumption","Code / Range","Equation/   Value","Units","Reference/Designation"]
["Commodity"]
["Concentration on vegetation","Conc"]
[null,"Central ",{"$f":"B05a!Acute_C","v":7},"mg/kg food","='B05a'!Acute_C"]
[null,"Lower ",{"$f":"B05a!Acute_L","v":3.2000000000000006},null,"='B05a'!Acute_L"]
[null,"Upper ",{"$f":"B05a!Acute_U","v":15},null,"='B05a'!Acute_U"]
["Receptor"]
["Amount consumed per day  per unit body weight","Amnt"]
[null,"Central ",{"$f":"'A03'!$E$6","v":1.6800000000000001E-3},"kg food/kg BW per day","U.S. EPA/ORD 1996"]
[null,"Lower ",{"$f":"'A03'!$E$7","v":1.6800000000000001E-3},null,"U.S. EPA/ORD 1996"]
[null,"Upper ",{"$f":"'A03'!$E$8","v":1.244E-2},null,"U.S. EPA/ORD 1996"]
["Estimate"]
["Dose","Dose","Conc × Amnt"]
[null,"Central",{"$f":"C14*C9","v":1.176E-2},"mg/kg bw","Eq"]
[null,"Lower",{"$f":"C15*C10","v":5.3760000000000014E-3},null,"Eq"]
[null,"Upper",{"$f":"C16*C11","v":0.18659999999999999},null,"Eq"]

{"sheet":"D03b","index":36,"n_rows":21,"n_cols":5,"rows_kept":21,"cut":false,"hidden":false,"merged":[[17,0,20,0],[0,0,0,4],[2,1,2,3],[7,0,10,0],[8,3,10,3],[12,0,15,0],[13,3,15,3]]}
["Consumption of Vegetation by a Adult Female, Acute exposure."]
["Short Title","Contaminated Vegetation",null,null,"FdPropBwV6"]
["Receptor","Adult Female"]
["Duration","Acute",null,null,"Scenario parameter"]
["Material consumed","Vegetation"]
["Parameter/Assumption","Code / Range","Equation/   Value","Units","Reference/Designation"]
["Commodity"]
["Concentration on vegetation","Conc"]
[null,"Central ",{"$f":"B05b!Acute_C","v":45},"mg/kg food","='B05b'!Acute_C"]
[null,"Lower ",{"$f":"B05b!Acute_L","v":14.999999999999998},null,"='B05b'!Acute_L"]
[null,"Upper ",{"$f":"B05b!Acute_U","v":135},null,"='B05b'!Acute_U"]
["Receptor"]
["Amount consumed per day  per unit body weight","Amnt"]
[null,"Central ",{"$f":"'A03'!$E$13","v":3.5999999999999999E-3},"kg food/kg BW per day","U.S. EPA/ORD 1996"]
[null,"Lower ",{"$f":"'A03'!$E$14","v":7.5000000000000002E-4},null,"U.S. EPA/ORD 1996"]
[null,"Upper ",{"$f":"'A03'!$E$15","v":0.01},null,"U.S. EPA/ORD 1996"]
["Estimate"]
["Dose","Dose","Conc × Amnt"]
[null,"Central",{"$f":"C14*C9","v":0.16200000000000001},"mg/kg bw","Eq"]
[null,"Lower",{"$f":"C15*C10","v":1.125E-2},null,"Eq"]
[null,"Upper",{"$f":"C16*C11","v":1.35},null,"Eq"]

{"sheet":"D04a","index":37,"n_rows":21,"n_cols":5,"rows_kept":21,"cut":false,"hidden":false,"merged":[[17,0,20,0],[0,0,0,4],[2,1,2,3],[7,0,10,0],[8,3,10,3],[12,0,15,0],[13,3,15,3]]}
["Consumption of Fruit by a Adult Female, Chronic exposure."]
["Short Title","Contaminated Fruit",null,null,"FdPropBwV6"]
["Receptor","Adult Female"]
["Duration","Chronic",null,null,"Scenario parameter"]
["Material consumed","Fruit"]
["Parameter/Assumption","Code / Range","Equation/   Value","Units","Reference/Designation"]
["Commodity"]
["Concentration on vegetation","Conc"]
[null,"Central ",{"$f":"B05a!Chronic_C","v":0.8973083336183536},"mg/kg food","='B05a'!Chronic_C"]
[null,"Lower ",{"$f":"B05a!Chronic_L","v":0.30776554951047314},null,"='B05a'!Chronic_L"]
[null,"Upper ",{"$f":"B05a!Chronic_U","v":5.1632113124741137},null,"='B05a'!Chronic_U"]
["Receptor"]
["Amount consumed per day  per unit body weight","Amnt"]
[null,"Central ",{"$f":"'A03'!$E$6","v":1.6800000000000001E-3},"kg food/kg BW per day","U.S. EPA/ORD 1996"]
[null,"Lower ",{"$f":"'A03'!$E$7","v":1.6800000000000001E-3},null,"U.S. EPA/ORD 1996"]
[null,"Upper ",{"$f":"'A03'!$E$8","v":1.244E-2},null,"U.S. EPA/ORD 1996"]
["Estimate"]
["Dose","Dose","Conc × Amnt"]
[null,"Central",{"$f":"C14*C9","v":1.507478000478834E-3},"mg/kg bw","Eq"]
[null,"Lower",{"$f":"C15*C10","v":5.1704612317759492E-4},null,"Eq"]
[null,"Upper",{"$f":"C16*C11","v":6.4230348727177977E-2},null,"Eq"]

{"sheet":"D04b","index":38,"n_rows":21,"n_cols":5,"rows_kept":21,"cut":false,"hidden":false,"merged":[[17,0,20,0],[0,0,0,4],[2,1,2,3],[7,0,10,0],[8,3,10,3],[12,0,15,0],[13,3,15,3]]}
["Consumption of Vegetation by a Adult Female, Chronic exposure."]
["Short Title","Contaminated Vegetation",null,null,"FdPropBwV6"]
["Receptor","Adult Female"]
["Duration","Chronic",null,null,"Scenario parameter"]
["Material consumed","Vegetation"]
["Parameter/Assumption","Code / Range","Equation/   Value","Units","Reference/Designation"]
["Commodity"]
["Concentration on vegetation","Conc"]
[null,"Central ",{"$f":"B05b!Chronic_C","v":5.7684107161179874},"mg/kg food","='B05b'!Chronic_C"]
[null,"Lower ",{"$f":"B05b!Chronic_L","v":1.4426510133303425},null,"='B05b'!Chronic_L"]
[null,"Upper ",{"$f":"B05b!Chronic_U","v":46.468901812267021},null,"='B05b'!Chronic_U"]
["Receptor"]
["Amount consumed per day  per unit body weight","Amnt"]
[null,"Central ",{"$f":"'A03'!$E$13","v":3.5999999999999999E-3},"kg food/kg BW per day","U.S. EPA/ORD 1996"]
[null,"Lower ",{"$f":"'A03'!$E$14","v":7.5000000000000002E-4},null,"U.S. EPA/ORD 1996"]
[null,"Upper ",{"$f":"'A03'!$E$15","v":0.01},null,"U.S. EPA/ORD 1996"]
["Estimate"]
["Dose","Dose","Conc × Amnt"]
[null,"Central",{"$f":"C14*C9","v":2.0766278578024756E-2},"mg/kg bw","Eq"]
[null,"Lower",{"$f":"C15*C10","v":1.0819882599977569E-3},null,"Eq"]
[null,"Upper",{"$f":"C16*C11","v":0.46468901812267022},null,"Eq"]

{"sheet":"D05","index":39,"n_rows":19,"n_cols":5,"rows_kept":19,"cut":false,"hidden":false,"merged":[[15,0,18,0],[0,0,0,4],[1,1,1,3],[2,1,2,3],[5,0,8,0],[10,0,13,0]]}
["Consumption of contaminated water by Child, Accidental Spill "]
["Short Title","Accidental Spill",null,null,"WatAmntV6"]
["Receptor","Child"]
["Duration","Acute",null,null,"Scenario parameter"]
["Parameter/Assumption","Code / Range","Equation/   Value","Units","Reference/Designation"]
["Concentration in water","ConcWat"]
[null,"Central ",{"$f":"B04b!Acute_C","v":1.514},"mg/L","='B04b'!Acute_C"]
[null,"Lower ",{"$f":"B04b!Acute_L","v":9.0840000000000004E-2},null,"='B04b'!Acute_L"]
[null,"Upper ",{"$f":"B04b!Acute_U","v":18.167999999999999},null,"='B04b'!Acute_U"]
["Receptor"]
["Amount of water consumed in one day","Amnt"]
[null,"Central ",{"$f":"'A03'!$E$36","v":1},"liters/day","U.S. EPA/ORD 1996"]
[null,"Lower ",{"$f":"'A03'!$E$37","v":0.61},null,"U.S. EPA/ORD 1996"]
[null,"Upper ",{"$f":"'A03'!$E$38","v":1.5},null,"U.S. EPA/ORD 1996"]
["Body weight","BW",{"$f":"A02a!$C$28","v":13.3},"kg","U.S. EPA/ORD 1996"]
["Dose","Dose","ConcWat  × Amnt ÷ BW"]
[null,"Central ",{"$f":"C7*C12/C$15","v":0.11383458646616541},"mg/kg","Eq"]
[null,"Lower ",{"$f":"C8*C13/C$15","v":4.166345864661654E-3},"mg/kg","Eq"]
[null,"Upper ",{"$f":"C9*C14/C$15","v":2.0490225563909772},"mg/kg","Eq"]

{"sheet":"D06","index":40,"n_rows":19,"n_cols":5,"rows_kept":19,"cut":false,"hidden":false,"merged":[[15,0,18,0],[0,0,0,4],[1,1,1,3],[2,1,2,3],[5,0,8,0],[10,0,13,0]]}
["Consumption of contaminated water by Child, Peak Conentrations "]
["Short Title","Peak Conentrations",null,null,"WatAmntV6"]
["Receptor","Child"]
["Duration","Acute",null,null,"Scenario parameter"]
["Parameter/Assumption","Code / Range","Equation/   Value","Units","Reference/Designation"]
["Concentration in water","ConcWat"]
[null,"Central ",{"$f":"B04a!Acute_C","v":1.0999999999999999E-2},"mg/L","='B04a'!Acute_C"]
[null,"Lower ",{"$f":"B04a!Acute_L","v":1E-3},null,"='B04a'!Acute_L"]
[null,"Upper ",{"$f":"B04a!Acute_U","v":0.18},null,"='B04a'!Acute_U"]
["Receptor"]
["Amount of water consumed in one day","Amnt"]
[null,"Central ",{"$f":"'A03'!$E$36","v":1},"liters/day","U.S. EPA/ORD 1996"]
[null,"Lower ",{"$f":"'A03'!$E$37","v":0.61},null,"U.S. EPA/ORD 1996"]
[null,"Upper ",{"$f":"'A03'!$E$38","v":1.5},null,"U.S. EPA/ORD 1996"]
["Body weight","BW",{"$f":"A02a!$C$28","v":13.3},"kg","U.S. EPA/ORD 1996"]
["Dose","Dose","ConcWat  × Amnt ÷ BW"]
[null,"Central ",{"$f":"C7*C12/C$15","v":8.2706766917293225E-4},"mg/kg","Eq"]
[null,"Lower ",{"$f":"C8*C13/C$15","v":4.5864661654135337E-5},"mg/kg","Eq"]
[null,"Upper ",{"$f":"C9*C14/C$15","v":2.030075187969925E-2},"mg/kg","Eq"]

{"sheet":"D07","index":41,"n_rows":19,"n_cols":5,"rows_kept":19,"cut":false,"hidden":false,"merged":[[15,0,18,0],[0,0,0,4],[1,1,1,3],[2,1,2,3],[5,0,8,0],[10,0,13,0]]}
["Consumption of contaminated water by Adult Male, Longer-term Conentrations "]
["Short Title","Longer-term Conentrations",null,null,"WatAmntV6"]
["Receptor","Adult Male"]
["Duration","Chronic",null,null,"Scenario parameter"]
["Parameter/Assumption","Code / Range","Equation/   Value","Units","Reference/Designation"]
["Concentration in water","ConcWat"]
[null,"Central ",{"$f":"B04a!Chronic_C","v":8.4999999999999995E-4},"mg/L","='B04a'!Chronic_C"]
[null,"Lower ",{"$f":"B04a!Chronic_L","v":9.0000000000000006E-5},null,"='B04a'!Chronic_L"]
[null,"Upper ",{"$f":"B04a!Chronic_U","v":0.01},null,"='B04a'!Chronic_U"]
["Receptor"]
["Amount of water consumed in one day","Amnt"]
[null,"Central ",{"$f":"'A03'!$E$31","v":2},"liters/day","U.S. EPA/ORD 1996"]
[null,"Lower ",{"$f":"'A03'!$E$32","v":1.4},null,"U.S. EPA/ORD 1996"]
[null,"Upper ",{"$f":"'A03'!$E$33","v":2.4},null,"U.S. EPA/ORD 1996"]
["Body weight","BW",{"$f":"A02a!$C$8","v":70},"kg","ICRP 1975"]
["Dose","Dose","ConcWat  × Amnt ÷ BW"]
[null,"Central ",{"$f":"C7*C12/C$15","v":2.4285714285714285E-5},"mg/kg","Eq"]
[null,"Lower ",{"$f":"C8*C13/C$15","v":1.7999999999999999E-6},"mg/kg","Eq"]
[null,"Upper ",{"$f":"C9*C14/C$15","v":3.4285714285714285E-4},"mg/kg","Eq"]

{"sheet":"D08a","index":42,"n_rows":34,"n_cols":5,"rows_kept":34,"cut":false,"hidden":false,"merged":[[15,0,18,0],[20,0,23,0],[24,0,27,0],[29,0,32,0],[0,0,0,4],[1,1,1,3],[2,1,2,3],[3,1,3,3],[6,0,9,0],[12,0,14,0]]}
["Consumption of Contaminated Fish (Accidental Spill), Adult Male, acute exposure"]
["Short Title","Fish consumption",null,null,"FishAmntV6"]
["Receptor","Adult Male"]
["Duration","acute"]
["Parameter/Assumption","Code / Range","Equation/   Value","Units","Reference/Designation"]
["Water"]
["Concentration in water","ConcWat","ApR × WCR"]
[null,"Central ",{"$f":"B04b!Acute_C","v":1.514},"mg/L","='B04b'!Acute_C"]
[null,"Lower ",{"$f":"B04b!Acute_L","v":9.0840000000000004E-2},null,"='B04b'!Acute_L"]
[null,"Upper ",{"$f":"B04b!Acute_U","v":18.167999999999999},null,"='B04b'!Acute_U"]
["Fish"]
["Bioconcentration factor","BCF"]
[null,"Central ",{"$f":"'B01'!$C$4","v":1},"L/kg","Section 3.2.3.5."]
[null,"Lower ",{"$f":"'B01'!$C$4","v":1},null,"Section 3.2.3.5."]
[null,"Upper ",{"$f":"'B01'!$C$4","v":1},null,"Section 3.2.3.5."]
["Concentration in fish","ConcFish","ConcWat × BCF"]
[null,"Central ",{"$f":"C8*C13","v":1.514},"mg/kg","Eq"]
[null,"Lower ",{"$f":"C9*C14","v":9.0840000000000004E-2},null,"Eq"]
[null,"Upper ",{"$f":"C10*C15","v":18.167999999999999},null,"Eq"]
["Receptor"]
["Amount of fish consumed","Amnt"]
[null,"Central ",{"$f":"'A03'!$E$20","v":0.158},"kg/day","Ruffle et al. 1994"]
[null,"Lower ",{"$f":"'A03'!$E$20","v":0.158},null,"Ruffle et al. 1994"]
[null,"Upper ",{"$f":"'A03'!$E$20","v":0.158},null,"Ruffle et al. 1994"]
["Toxic Equivalency Factor for formulation:  (See risk assessment if this has a value other than 1.)","TEF"]
[null,"Central ",{"$f":"'A01'!C$35","v":1},"Unitless","Worksheet A01"]
[null,"Lower ",{"$f":"'A01'!C$36","v":1},null,"Worksheet A01"]
[null,"Upper ",{"$f":"'A01'!C$37","v":1},null,"Worksheet A01"]
["Body weight","BW",{"$f":"A02a!$C$8","v":70},"kg","ICRP 1975"]
["Dose","Dose","ConcFish× Amnt x TEF ÷ BW"]
[null,"Central ",{"$f":"C17*C22*C26/C$29","v":3.4173142857142859E-3},"mg/kg","Eq"]
[null,"Lower ",{"$f":"C18*C23*C27/C$29","v":2.0503885714285715E-4},"mg/kg","Eq"]
[null,"Upper ",{"$f":"C19*C24*C28/C$29","v":4.1007771428571427E-2},"mg/kg","Eq"]
[null,null,null,null,"FishAmntV6"]

{"sheet":"D08b","index":43,"n_rows":34,"n_cols":5,"rows_kept":34,"cut":false,"hidden":false,"merged":[[15,0,18,0],[20,0,23,0],[24,0,27,0],[29,0,32,0],[0,0,0,4],[1,1,1,3],[2,1,2,3],[3,1,3,3],[6,0,9,0],[12,0,14,0]]}
["Consumption of Contaminated Fish (Accidental Spill), Subsistence Populations, acute exposure"]
["Short Title","Fish consumption",null,null,"FishAmntV6"]
["Receptor","Subsistence Populations"]
["Duration","acute"]
["Parameter/Assumption","Code / Range","Equation/   Value","Units","Reference/Designation"]
["Water"]
["Concentration in water","ConcWat","ApR × WCR"]
[null,"Central ",{"$f":"B04b!Acute_C","v":1.514},"mg/L","='B04b'!Acute_C"]
[null,"Lower ",{"$f":"B04b!Acute_L","v":9.0840000000000004E-2},null,"='B04b'!Acute_L"]
[null,"Upper ",{"$f":"B04b!Acute_U","v":18.167999999999999},null,"='B04b'!Acute_U"]
["Fish"]
["Bioconcentration factor","BCF"]
[null,"Central ",{"$f":"'B01'!$C$4","v":1},"L/kg","Section 3.2.3.5."]
[null,"Lower ",{"$f":"'B01'!$C$4","v":1},null,"Section 3.2.3.5."]
[null,"Upper ",{"$f":"'B01'!$C$4","v":1},null,"Section 3.2.3.5."]
["Concentration in fish","ConcFish","ConcWat × BCF"]
[null,"Central ",{"$f":"C8*C13","v":1.514},"mg/kg","Eq"]
[null,"Lower ",{"$f":"C9*C14","v":9.0840000000000004E-2},null,"Eq"]
[null,"Upper ",{"$f":"C10*C15","v":18.167999999999999},null,"Eq"]
["Receptor"]
["Amount of fish consumed","Amnt"]
[null,"Central ",{"$f":"'A03'!$E$35","v":0.77},"kg/day","U.S. EPA/ORD 1996"]
[null,"Lower ",{"$f":"'A03'!$E$35","v":0.77},null,"U.S. EPA/ORD 1996"]
[null,"Upper ",{"$f":"'A03'!$E$35","v":0.77},null,"U.S. EPA/ORD 1996"]
["Toxic Equivalency Factor for formulation:  (See risk assessment if this has a value other than 1.)","TEF"]
[null,"Central ",{"$f":"'A01'!C$35","v":1},"Unitless","Worksheet A01"]
[null,"Lower ",{"$f":"'A01'!C$36","v":1},null,"Worksheet A01"]
[null,"Upper ",{"$f":"'A01'!C$37","v":1},null,"Worksheet A01"]
["Body weight","BW",{"$f":"A02a!$C$9","v":70},"kg","ICRP 1975"]
["Dose","Dose","ConcFish× Amnt x TEF ÷ BW"]
[null,"Central ",{"$f":"C17*C22*C26/C$29","v":1.6654000000000002E-2},"mg/kg","Eq"]
[null,"Lower ",{"$f":"C18*C23*C27/C$29","v":9.9923999999999998E-4},"mg/kg","Eq"]
[null,"Upper ",{"$f":"C19*C24*C28/C$29","v":0.199848},"mg/kg","Eq"]
[null,null,null,null,"FishAmntV6"]

{"sheet":"D09a","index":44,"n_rows":34,"n_cols":5,"rows_kept":34,"cut":false,"hidden":false,"merged":[[15,0,18,0],[20,0,23,0],[24,0,27,0],[29,0,32,0],[0,0,0,4],[1,1,1,3],[2,1,2,3],[3,1,3,3],[6,0,9,0],[12,0,14,0]]}
["Consumption of Contaminated Fish (Longer-term), Adult Male, chronic exposure"]
["Short Title","Fish consumption",null,null,"FishAmntV6"]
["Receptor","Adult Male"]
["Duration","chronic"]
["Parameter/Assumption","Code / Range","Equation/   Value","Units","Reference/Designation"]
["Water"]
["Concentration in water","ConcWat","ApR × WCR"]
[null,"Central ",{"$f":"B04a!Chronic_C","v":8.4999999999999995E-4},"mg/L","='B04a'!Chronic_C"]
[null,"Lower ",{"$f":"B04a!Chronic_L","v":9.0000000000000006E-5},null,"='B04a'!Chronic_L"]
[null,"Upper ",{"$f":"B04a!Chronic_U","v":0.01},null,"='B04a'!Chronic_U"]
["Fish"]
["Bioconcentration factor","BCF"]
[null,"Central ",{"$f":"'B01'!$C$5","v":1},"L/kg","Section 3.2.3.5."]
[null,"Lower ",{"$f":"'B01'!$C$5","v":1},null,"Section 3.2.3.5."]
[null,"Upper ",{"$f":"'B01'!$C$5","v":1},null,"Section 3.2.3.5."]
["Concentration in fish","ConcFish","ConcWat × BCF"]
[null,"Central ",{"$f":"C8*C13","v":8.4999999999999995E-4},"mg/kg","Eq"]
[null,"Lower ",{"$f":"C9*C14","v":9.0000000000000006E-5},null,"Eq"]
[null,"Upper ",{"$f":"C10*C15","v":0.01},null,"Eq"]
["Receptor"]
["Amount of fish consumed","Amnt"]
[null,"Central ",{"$f":"'A03'!$E$19","v":0.01},"kg/day","U.S. EPA/ORD 1996"]
[null,"Lower ",{"$f":"'A03'!$E$19","v":0.01},null,"U.S. EPA/ORD 1996"]
[null,"Upper ",{"$f":"'A03'!$E$19","v":0.01},null,"U.S. EPA/ORD 1996"]
["Toxic Equivalency Factor for formulation:  (See risk assessment if this has a value other than 1.)","TEF"]
[null,"Central ",{"$f":"'A01'!C$35","v":1},"Unitless","Worksheet A01"]
[null,"Lower ",{"$f":"'A01'!C$36","v":1},null,"Worksheet A01"]
[null,"Upper ",{"$f":"'A01'!C$37","v":1},null,"Worksheet A01"]
["Body weight","BW",{"$f":"A02a!$C$8","v":70},"kg","ICRP 1975"]
["Dose","Dose","ConcFish× Amnt x TEF ÷ BW"]
[null,"Central ",{"$f":"C17*C22*C26/C$29","v":1.2142857142857143E-7},"mg/kg","Eq"]
[null,"Lower ",{"$f":"C18*C23*C27/C$29","v":1.2857142857142857E-8},"mg/kg","Eq"]
[null,"Upper ",{"$f":"C19*C24*C28/C$29","v":1.4285714285714286E-6},"mg/kg","Eq"]
[null,null,null,null,"FishAmntV6"]

{"sheet":"D09b","index":45,"n_rows":34,"n_cols":5,"rows_kept":34,"cut":false,"hidden":false,"merged":[[15,0,18,0],[20,0,23,0],[24,0,27,0],[29,0,32,0],[0,0,0,4],[1,1,1,3],[2,1,2,3],[3,1,3,3],[6,0,9,0],[12,0,14,0]]}
["Consumption of Contaminated Fish (Longer-term), Subsistence Populations, chronic exposure"]
["Short Title","Fish consumption",null,null,"FishAmntV6"]
["Receptor","Subsistence Populations"]
["Duration","chronic"]
["Parameter/Assumption","Code / Range","Equation/   Value","Units","Reference/Designation"]
["Water"]
["Concentration in water","ConcWat","ApR × WCR"]
[null,"Central ",{"$f":"B04a!Chronic_C","v":8.4999999999999995E-4},"mg/L","='B04a'!Chronic_C"]
[null,"Lower ",{"$f":"B04a!Chronic_L","v":9.0000000000000006E-5},null,"='B04a'!Chronic_L"]
[null,"Upper ",{"$f":"B04a!Chronic_U","v":0.01},null,"='B04a'!Chronic_U"]
["Fish"]
["Bioconcentration factor","BCF"]
[null,"Central ",{"$f":"'B01'!$C$5","v":1},"L/kg","Section 3.2.3.5."]
[null,"Lower ",{"$f":"'B01'!$C$5","v":1},null,"Section 3.2.3.5."]
[null,"Upper ",{"$f":"'B01'!$C$5","v":1},null,"Section 3.2.3.5."]
["Concentration in fish","ConcFish","ConcWat × BCF"]
[null,"Central ",{"$f":"C8*C13","v":8.4999999999999995E-4},"mg/kg","Eq"]
[null,"Lower ",{"$f":"C9*C14","v":9.0000000000000006E-5},null,"Eq"]
[null,"Upper ",{"$f":"C10*C15","v":0.01},null,"Eq"]
["Receptor"]
["Amount of fish consumed","Amnt"]
[null,"Central ",{"$f":"'A03'!$E$34","v":8.1000000000000003E-2},"kg/day","U.S. EPA/ORD 1996"]
[null,"Lower ",{"$f":"'A03'!$E$34","v":8.1000000000000003E-2},null,"U.S. EPA/ORD 1996"]
[null,"Upper ",{"$f":"'A03'!$E$34","v":8.1000000000000003E-2},null,"U.S. EPA/ORD 1996"]
["Toxic Equivalency Factor for formulation:  (See risk assessment if this has a value other than 1.)","TEF"]
[null,"Central ",{"$f":"'A01'!C$35","v":1},"Unitless","Worksheet A01"]
[null,"Lower ",{"$f":"'A01'!C$36","v":1},null,"Worksheet A01"]
[null,"Upper ",{"$f":"'A01'!C$37","v":1},null,"Worksheet A01"]
["Body weight","BW",{"$f":"A02a!$C$9","v":70},"kg","ICRP 1975"]
["Dose","Dose","ConcFish× Amnt x TEF ÷ BW"]
[null,"Central ",{"$f":"C17*C22*C26/C$29","v":9.8357142857142844E-7},"mg/kg","Eq"]
[null,"Lower ",{"$f":"C18*C23*C27/C$29","v":1.0414285714285715E-7},"mg/kg","Eq"]
[null,"Upper ",{"$f":"C19*C24*C28/C$29","v":1.1571428571428573E-5},"mg/kg","Eq"]
[null,null,null,null,"FishAmntV6"]

{"sheet":"D09c","index":46,"n_rows":34,"n_cols":5,"rows_kept":34,"cut":false,"hidden":false,"merged":[[15,0,18,0],[20,0,23,0],[24,0,27,0],[29,0,32,0],[0,0,0,4],[1,1,1,3],[2,1,2,3],[3,1,3,3],[6,0,9,0],[12,0,14,0]]}
["Consumption of Contaminated Fish (Peak Exposure), Adult Male, acute exposure"]
["Short Title","Fish consumption",null,null,"FishAmntV6"]
["Receptor","Adult Male"]
["Duration","acute"]
["Parameter/Assumption","Code / Range","Equation/   Value","Units","Reference/Designation"]
["Water"]
["Concentration in water","ConcWat","ApR × WCR"]
[null,"Central ",{"$f":"B04a!Acute_C","v":1.0999999999999999E-2},"mg/L","='B04a'!Acute_C"]
[null,"Lower ",{"$f":"B04a!Acute_L","v":1E-3},null,"='B04a'!Acute_L"]
[null,"Upper ",{"$f":"B04a!Acute_U","v":0.18},null,"='B04a'!Acute_U"]
["Fish"]
["Bioconcentration factor","BCF"]
[null,"Central ",{"$f":"'B01'!$C$4","v":1},"L/kg","Section 3.2.3.5."]
[null,"Lower ",{"$f":"'B01'!$C$4","v":1},null,"Section 3.2.3.5."]
[null,"Upper ",{"$f":"'B01'!$C$4","v":1},null,"Section 3.2.3.5."]
["Concentration in fish","ConcFish","ConcWat × BCF"]
[null,"Central ",{"$f":"C8*C13","v":1.0999999999999999E-2},"mg/kg","Eq"]
[null,"Lower ",{"$f":"C9*C14","v":1E-3},null,"Eq"]
[null,"Upper ",{"$f":"C10*C15","v":0.18},null,"Eq"]
["Receptor"]
["Amount of fish consumed","Amnt"]
[null,"Central ",{"$f":"'A03'!$E$20","v":0.158},"kg/day","Ruffle et al. 1994"]
[null,"Lower ",{"$f":"'A03'!$E$20","v":0.158},null,"Ruffle et al. 1994"]
[null,"Upper ",{"$f":"'A03'!$E$20","v":0.158},null,"Ruffle et al. 1994"]
["Toxic Equivalency Factor for formulation:  (See risk assessment if this has a value other than 1.)","TEF"]
[null,"Central ",{"$f":"'A01'!C$35","v":1},"Unitless","Worksheet A01"]
[null,"Lower ",{"$f":"'A01'!C$36","v":1},null,"Worksheet A01"]
[null,"Upper ",{"$f":"'A01'!C$37","v":1},null,"Worksheet A01"]
["Body weight","BW",{"$f":"A02a!$C$8","v":70},"kg","ICRP 1975"]
["Dose","Dose","ConcFish× Amnt x TEF ÷ BW"]
[null,"Central ",{"$f":"C17*C22*C26/C$29","v":2.4828571428571429E-5},"mg/kg","Eq"]
[null,"Lower ",{"$f":"C18*C23*C27/C$29","v":2.2571428571428571E-6},"mg/kg","Eq"]
[null,"Upper ",{"$f":"C19*C24*C28/C$29","v":4.0628571428571428E-4},"mg/kg","Eq"]
[null,null,null,null,"FishAmntV6"]

{"sheet":"D09d","index":47,"n_rows":34,"n_cols":5,"rows_kept":34,"cut":false,"hidden":false,"merged":[[15,0,18,0],[20,0,23,0],[24,0,27,0],[29,0,32,0],[0,0,0,4],[1,1,1,3],[2,1,2,3],[3,1,3,3],[6,0,9,0],[12,0,14,0]]}
["Consumption of Contaminated Fish (Peak Exposure), Subsistence Populations, acute exposure"]
["Short Title","Fish consumption",null,null,"FishAmntV6"]
["Receptor","Subsistence Populations"]
["Duration","acute"]
["Parameter/Assumption","Code / Range","Equation/   Value","Units","Reference/Designation"]
["Water"]
["Concentration in water","ConcWat","ApR × WCR"]
[null,"Central ",{"$f":"B04a!Acute_C","v":1.0999999999999999E-2},"mg/L","='B04a'!Acute_C"]
[null,"Lower ",{"$f":"B04a!Acute_L","v":1E-3},null,"='B04a'!Acute_L"]
[null,"Upper ",{"$f":"B04a!Acute_U","v":0.18},null,"='B04a'!Acute_U"]
["Fish"]
["Bioconcentration factor","BCF"]
[null,"Central ",{"$f":"'B01'!$C$4","v":1},"L/kg","Section 3.2.3.5."]
[null,"Lower ",{"$f":"'B01'!$C$4","v":1},null,"Section 3.2.3.5."]
[null,"Upper ",{"$f":"'B01'!$C$4","v":1},null,"Section 3.2.3.5."]
["Concentration in fish","ConcFish","ConcWat × BCF"]
[null,"Central ",{"$f":"C8*C13","v":1.0999999999999999E-2},"mg/kg","Eq"]
[null,"Lower ",{"$f":"C9*C14","v":1E-3},null,"Eq"]
[null,"Upper ",{"$f":"C10*C15","v":0.18},null,"Eq"]
["Receptor"]
["Amount of fish consumed","Amnt"]
[null,"Central ",{"$f":"'A03'!$E$35","v":0.77},"kg/day","U.S. EPA/ORD 1996"]
[null,"Lower ",{"$f":"'A03'!$E$35","v":0.77},null,"U.S. EPA/ORD 1996"]
[null,"Upper ",{"$f":"'A03'!$E$35","v":0.77},null,"U.S. EPA/ORD 1996"]
["Toxic Equivalency Factor for formulation:  (See risk assessment if this has a value other than 1.)","TEF"]
[null,"Central ",{"$f":"'A01'!C$35","v":1},"Unitless","Worksheet A01"]
[null,"Lower ",{"$f":"'A01'!C$36","v":1},null,"Worksheet A01"]
[null,"Upper ",{"$f":"'A01'!C$37","v":1},null,"Worksheet A01"]
["Body weight","BW",{"$f":"A02a!$C$9","v":70},"kg","ICRP 1975"]
["Dose","Dose","ConcFish× Amnt x TEF ÷ BW"]
[null,"Central ",{"$f":"C17*C22*C26/C$29","v":1.21E-4},"mg/kg","Eq"]
[null,"Lower ",{"$f":"C18*C23*C27/C$29","v":1.1000000000000001E-5},"mg/kg","Eq"]
[null,"Upper ",{"$f":"C19*C24*C28/C$29","v":1.98E-3},"mg/kg","Eq"]
[null,null,null,null,"FishAmntV6"]

{"sheet":"D11","index":48,"n_rows":31,"n_cols":5,"rows_kept":31,"cut":false,"hidden":false,"merged":[[27,0,30,0],[0,0,0,4],[1,1,1,3],[2,1,2,3],[3,1,3,3],[4,1,4,3],[8,0,9,0],[11,0,14,0],[12,3,14,3],[15,0,18,0],[19,0,22,0],[23,0,26,0]]}
["Swimming Exposure Assessment Using Zero-Order Absorption, Adult Female, Surface Area, Whole body, for 60 minute(s)"]
["Short Title","Swimming",null,null,"DrmZrSwm"]
["Receptor","Adult Female"]
["Duration","Acute"]
["Surface Contaminated","Surface Area, Whole body"]
["Parameter/Assumption","Code / Range","Equation/   Value","Units","Reference/Designation"]
["Application Rate","ApRt",{"$f":"'A01'!ApRt_C","v":1},"lb/acre","Worksheet A01"]
["Surface Area","SA",{"$f":"A02a!$C$7","v":16900},"cm2","U.S. EPA/ORD 1997"]
["Duration of Exposure","T_min",{"$f":"'A01'!C$29","v":60},"minutes","Worksheet A01"]
[null,"T_hr",{"$f":"C9/60","v":1},"hours","Eq"]
["Body weight","BW",{"$f":"A02a!$C$4","v":64},"kg","U.S. EPA/ORD 1985"]
["Water contamination rate","WCR"]
[null,"Central ",{"$f":"B04Rt!$C$4","v":1.0999999999999999E-2},"mg/L per lb/acre","Table 14"]
[null,"Lower ",{"$f":"B04Rt!$C$5","v":1E-3},null,"Table 14"]
[null,"Upper ",{"$f":"B04Rt!$C$6","v":0.18},null,"Table 14"]
["Concentration in water in mg/mL","ConcWat","ApR × WCR / 1000"]
[null,"Central ",{"$f":"C$7*C13/1000","v":1.1E-5},"mg/mL","Eq"]
[null,"Lower ",{"$f":"C$7*C14/1000","v":9.9999999999999995E-7},null,"Eq"]
[null,"Upper ",{"$f":"C$7*C15/1000","v":1.7999999999999998E-4},null,"Eq"]
["Toxic Equivalency Factor for formulation:  (See risk assessment if this has a value other than 1.)","TEF"]
[null,"Central ",{"$f":"'A01'!C$35","v":1},"Unitless","Worksheet A01"]
[null,"Lower ",{"$f":"'A01'!C$36","v":1},null,"Worksheet A01"]
[null,"Upper ",{"$f":"'A01'!C$37","v":1},null,"Worksheet A01"]
["Dermal permeability","Kp"]
[null,"Central ",{"$f":"'B01'!$C$14","v":5.7000000000000003E-5},"cm/hour","Section 3.2.2.2"]
[null,"Lower ",{"$f":"'B01'!$C$15","v":2.8E-5},null,"Section 3.2.2.2"]
[null,"Upper ",{"$f":"'B01'!$C$16","v":1.1E-4},null,"Section 3.2.2.2"]
["Absorbed Dose","Dose","Kp × Conc × T_hr × SA × TEF ÷ BW"]
[null,"Central ",{"$f":"C25*C17*C$10*C$8*C21/C$11","v":1.6556718750000001E-7},"mg/kg"]
[null,"Lower ",{"$f":"C26*C18*C$10*C$8*C22/C$11","v":7.3937499999999996E-9},"mg/kg"]
[null,"Upper ",{"$f":"C27*C19*C$10*C$8*C23/C$11","v":5.2284374999999999E-6},"mg/kg"]

{"sheet":"E01","index":49,"n_rows":13,"n_cols":6,"rows_kept":13,"cut":false,"hidden":false,"merged":[[0,0,0,5],[1,2,1,4],[2,0,3,0],[2,1,3,1],[2,2,2,4],[2,5,3,5]]}
["Worksheet E01: Summary of Worker Exposure Assessments"]
["Application Rate:",{"$f":"'A01'!ApRt_C","v":1}," lb a.e./acre",null,null,"E01aV5-3Wrkr"]
["Scenario","Receptor","mg/kg/day or mg/kg/event",null,null,"Detail Worksheet"]
[null,null,"Central","Lower","Upper"]
["Accidental/Incidental Exposures"]
["Contaminated Gloves, \n1 min.","Worker",{"$f":"'C02a'!Dose_C","v":4.5599999999999997E-5},{"$f":"'C02a'!Dose_L","v":6.7199999999999992E-6},{"$f":"'C02a'!Dose_U","v":5.2800000000000004E-4},"C02a"]
["Contaminated Gloves, \n1 hour","Worker",{"$f":"'C02b'!Dose_C","v":2.7360000000000002E-3},{"$f":"'C02b'!Dose_L","v":4.0319999999999993E-4},{"$f":"'C02b'!Dose_U","v":3.168E-2},"C02b"]
["Spill on Hands, 1 hour","Worker",{"$f":"'C03a'!Dose_C","v":1.9199520008015723E-5},{"$f":"'C03a'!Dose_L","v":3.4559481605171526E-6},{"$f":"'C03a'!Dose_U","v":1.6357819290539055E-4},"C03a"]
["Spill on lower legs, 1 hour","Worker",{"$f":"'C03b'!Dose_C","v":4.7313102876895892E-5},{"$f":"'C03b'!Dose_L","v":8.5164436812744097E-6},{"$f":"'C03b'!Dose_U","v":4.0310340394542667E-4},"C03b"]
["General Exposures"]
[null,"Backpack Applications:",{"$f":"'C01a'!Dose_C","v":1.3125E-2},{"$f":"'C01a'!Dose_L","v":4.4999999999999999E-4},{"$f":"'C01a'!Dose_U","v":0.08},"C01a"]
[null,"Ground Broadcast Applications:",{"$f":"'C01b'!Dose_C","v":2.24E-2},{"$f":"'C01b'!Dose_L","v":6.600000000000001E-4},{"$f":"'C01b'!Dose_U","v":0.1512},"C01b"]
[null,"Aerial Applications:",{"$f":"'C01c'!Dose_C","v":1.47E-2},{"$f":"'C01c'!Dose_L","v":2.3999999999999998E-4},{"$f":"'C01c'!Dose_U","v":0.08},"C01c"]

{"sheet":"E02","index":50,"n_rows":13,"n_cols":6,"rows_kept":13,"cut":false,"hidden":false,"merged":[[0,0,0,5],[1,2,1,4],[2,0,3,0],[2,1,3,1],[2,2,2,4],[2,5,3,5]]}
["Worksheet E01: Summary of Worker Hazard Quotients (Toxicity)"]
["Application Rate:",{"$f":"'A01'!ApRt_C","v":1}," lb a.e./acre",null,null,"E01aV5-3Wrkr"]
["Scenario","Receptor","Hazard Quotients",null,null,"Toxicity Value"]
[null,null,"Central","Lower","Upper"]
["Accidental/Incidental Exposures"]
["Contaminated Gloves, \n1 min.","Worker",{"$f":"'C02a'!$C$24/$F$6","v":2.2799999999999999E-5},{"$f":"'C02a'!$C$25/$F$6","v":3.3599999999999996E-6},{"$f":"'C02a'!$C$26/$F$6","v":2.6400000000000002E-4},{"$f":"'B02'!$E$4","v":2}]
["Contaminated Gloves, \n1 hour","Worker",{"$f":"'C02b'!$C$24/$F$7","v":1.3680000000000001E-3},{"$f":"'C02b'!$C$25/$F$7","v":2.0159999999999997E-4},{"$f":"'C02b'!$C$26/$F$7","v":1.584E-2},{"$f":"'B02'!$E$4","v":2}]
["Spill on Hands, 1 hour","Worker",{"$f":"'C03a'!$C$37/$F$8","v":9.5997600040078615E-6},{"$f":"'C03a'!$C$38/$F$8","v":1.7279740802585763E-6},{"$f":"'C03a'!$C$39/$F$8","v":8.1789096452695276E-5},{"$f":"'B02'!$E$4","v":2}]
["Spill on lower legs, 1 hour","Worker",{"$f":"'C03b'!$C$37/$F$9","v":2.3656551438447946E-5},{"$f":"'C03b'!$C$38/$F$9","v":4.2582218406372049E-6},{"$f":"'C03b'!$C$39/$F$9","v":2.0155170197271334E-4},{"$f":"'B02'!$E$4","v":2}]
["General Exposures"]
[null,"Backpack Applications:",{"$f":"'C01a'!$C$36/$F$11","v":6.5624999999999989E-2},{"$f":"'C01a'!$C$37/$F$11","v":2.2499999999999998E-3},{"$f":"'C01a'!$C$38/$F$11","v":0.39999999999999997},{"$f":"'B02'!$E$5","v":0.2}]
[null,"Ground Broadcast Applications:",{"$f":"'C01b'!$C$36/$F$12","v":0.11199999999999999},{"$f":"'C01b'!$C$37/$F$12","v":3.3000000000000004E-3},{"$f":"'C01b'!$C$38/$F$12","v":0.75600000000000001},{"$f":"'B02'!$E$5","v":0.2}]
[null,"Aerial Applications:",{"$f":"'C01c'!$C$36/$F$13","v":7.3499999999999996E-2},{"$f":"'C01c'!$C$37/$F$13","v":1.1999999999999999E-3},{"$f":"'C01c'!$C$38/$F$13","v":0.39999999999999997},{"$f":"'B02'!$E$5","v":0.2}]

{"sheet":"E03","index":51,"n_rows":24,"n_cols":9,"rows_kept":24,"cut":false,"hidden":false,"merged":[[0,0,0,5],[1,2,1,4],[2,0,3,0],[2,1,3,1],[2,2,2,4],[2,5,3,5]]}
["Worksheet E03: Summary of Exposure Assessments for the General Public"]
["Application Rate:",{"$f":"'A01'!ApRt_C","v":1}," lb a.e./acre",null,null,"E03aV6"]
["Scenario","Receptor","mg/kg/day or mg/kg/event",null,null,"Detail Worksheet"]
[null,null,"Central","Lower","Upper"]
["Accidental Acute Exposures (dose in mg/kg/event)"]
["Direct Spray of Child, whole body","Child",{"$f":"D01a!Dose_C","v":7.2539539879909042E-4},{"$f":"D01a!Dose_L","v":1.3057247749322323E-4},{"$f":"D01a!Dose_U","v":6.1803039048841163E-3},"D01a",null,null,"Spray: Child"]
["Direct Spray of Woman, feet and lower legs","Adult Female",{"$f":"D01b!Dose_C","v":7.287317815542427E-5},{"$f":"D01b!Dose_L","v":1.3117303239462889E-5},{"$f":"D01b!Dose_U","v":6.208729587489759E-4},"D01b",null,null,"Spray: Woman"]
["Water consumption (spill)","Child",{"$f":"'D05'!Dose_C","v":0.11383458646616541},{"$f":"'D05'!Dose_L","v":4.166345864661654E-3},{"$f":"'D05'!Dose_U","v":2.0490225563909772},"D05",null,null,"Water: Child"]
["Fish consumption (spill)","Adult Male",{"$f":"D08a!Dose_C","v":3.4173142857142859E-3},{"$f":"D08a!Dose_L","v":2.0503885714285715E-4},{"$f":"D08a!Dose_U","v":4.1007771428571427E-2},"D08a",null,null,"Fish: Man"]
["Fish consumption (spill)","Subsistence Populations",{"$f":"D08b!Dose_C","v":1.6654000000000002E-2},{"$f":"D08b!Dose_L","v":9.9923999999999998E-4},{"$f":"D08b!Dose_U","v":0.199848},"D08b",null,null,"Fish: Subsist"]
["Non-Accidental Acute Exposures (dose in mg/kg/event)"]
["Vegetation Contact, shorts and T-shirt","Adult Female",{"$f":"'D02'!Dose_C","v":1.2620794890371657E-4},{"$f":"'D02'!Dose_L","v":7.5742942559395383E-5},{"$f":"'D02'!Dose_U","v":1.7917014180731923E-4},"D02",null,null,"Contact: Female"]
["Contaminated Fruit","Adult Female",{"$f":"D03a!Dose_C","v":1.176E-2},{"$f":"D03a!Dose_L","v":5.3760000000000014E-3},{"$f":"D03a!Dose_U","v":0.18659999999999999},"D03a",null,null,"Fruit: Female"]
["Contaminated Vegetation","Adult Female",{"$f":"D03b!Dose_C","v":0.16200000000000001},{"$f":"D03b!Dose_L","v":1.125E-2},{"$f":"D03b!Dose_U","v":1.35},"D03b",null,null,"Veg: Female"]
["Swimming, one hour","Adult Female",{"$f":"'D11'!Dose_C","v":1.6556718750000001E-7},{"$f":"'D11'!Dose_L","v":7.3937499999999996E-9},{"$f":"'D11'!Dose_U","v":5.2284374999999999E-6},"D11",null,null,"Swim: Female"]
["Water consumption","Child",{"$f":"'D06'!Dose_C","v":8.2706766917293225E-4},{"$f":"'D06'!Dose_L","v":4.5864661654135337E-5},{"$f":"'D06'!Dose_U","v":2.030075187969925E-2},"D06",null,null,"Water: Child"]
["Fish consumption","Adult Male",{"$f":"D09c!Dose_C","v":2.4828571428571429E-5},{"$f":"D09c!Dose_L","v":2.2571428571428571E-6},{"$f":"D09c!Dose_U","v":4.0628571428571428E-4},"D09c",null,null,"Fish: Male"]
["Fish consumption","Subsistence Populations",{"$f":"D09d!Dose_C","v":1.21E-4},{"$f":"D09d!Dose_L","v":1.1000000000000001E-5},{"$f":"D09d!Dose_U","v":1.98E-3},"D09d",null,null,"Fish: Subsist"]
["Chronic/Longer Term Exposures (dose in mg/kg/day)"]
["Contaminated Fruit","Adult Female",{"$f":"D04a!Dose_C","v":1.507478000478834E-3},{"$f":"D04a!Dose_L","v":5.1704612317759492E-4},{"$f":"D04a!Dose_U","v":6.4230348727177977E-2},"D04a",null,null,"Fruit: Female"]
["Contaminated Vegetation","Adult Female",{"$f":"D04b!Dose_C","v":2.0766278578024756E-2},{"$f":"D04b!Dose_L","v":1.0819882599977569E-3},{"$f":"D04b!Dose_U","v":0.46468901812267022},"D04b",null,null,"Veg: Female"]
["Water consumption","Adult Male",{"$f":"'D07'!Dose_C","v":2.4285714285714285E-5},{"$f":"'D07'!Dose_L","v":1.7999999999999999E-6},{"$f":"'D07'!Dose_U","v":3.4285714285714285E-4},"D07",null,null,"Water: Male"]
["Fish consumption","Adult Male",{"$f":"D09a!Dose_C","v":1.2142857142857143E-7},{"$f":"D09a!Dose_L","v":1.2857142857142857E-8},{"$f":"D09a!Dose_U","v":1.4285714285714286E-6},"D09a",null,null,"Fish: Male"]
["Fish consumption","Subsistence Populations",{"$f":"D09b!Dose_C","v":9.8357142857142844E-7},{"$f":"D09b!Dose_L","v":1.0414285714285715E-7},{"$f":"D09b!Dose_U","v":1.1571428571428573E-5},"D09b",null,null,"Fish: Subsist"]

{"sheet":"E04","index":52,"n_rows":24,"n_cols":9,"rows_kept":24,"cut":false,"hidden":false,"merged":[[0,0,0,5],[1,2,1,4],[2,0,3,0],[2,1,3,1],[2,2,2,4],[2,5,3,5]]}
["Worksheet E03: Summary of Hazard Quotients (Toxicity) for the General Public"]
["Application Rate:",{"$f":"'A01'!ApRt_C","v":1}," lb a.e./acre",null,null,"E03aV6"]
["Scenario","Receptor","Hazard Quotients",null,null,"Toxicity Value"]
[null,null,"Central","Lower","Upper"]
["Accidental Acute Exposures (dose in mg/kg/event)"]
["Direct Spray of Child, whole body","Child",{"$f":"D01a!$C$37/$F$6","v":3.6269769939954521E-4},{"$f":"D01a!$C$38/$F$6","v":6.5286238746611617E-5},{"$f":"D01a!$C$39/$F$6","v":3.0901519524420581E-3},{"$f":"'B02'!$E$4","v":2},null,null,"Spray: Child"]
["Direct Spray of Woman, feet and lower legs","Adult Female",{"$f":"D01b!$C$37/$F$7","v":3.6436589077712135E-5},{"$f":"D01b!$C$38/$F$7","v":6.5586516197314446E-6},{"$f":"D01b!$C$39/$F$7","v":3.1043647937448795E-4},{"$f":"'B02'!$E$4","v":2},null,null,"Spray: Woman"]
["Water consumption (spill)","Child",{"$f":"'D05'!$C$17/$F$8","v":5.6917293233082707E-2},{"$f":"'D05'!$C$18/$F$8","v":2.083172932330827E-3},{"$f":"'D05'!$C$19/$F$8","v":1.0245112781954886},{"$f":"'B02'!$E$4","v":2},null,null,"Water: Child"]
["Fish consumption (spill)","Adult Male",{"$f":"D08a!$C$31/$F$9","v":1.7086571428571429E-3},{"$f":"D08a!$C$32/$F$9","v":1.0251942857142858E-4},{"$f":"D08a!$C$33/$F$9","v":2.0503885714285713E-2},{"$f":"'B02'!$E$4","v":2},null,null,"Fish: Man"]
["Fish consumption (spill)","Subsistence Populations",{"$f":"D08b!$C$31/$F$10","v":8.3270000000000011E-3},{"$f":"D08b!$C$32/$F$10","v":4.9961999999999999E-4},{"$f":"D08b!$C$33/$F$10","v":9.9923999999999999E-2},{"$f":"'B02'!$E$4","v":2},null,null,"Fish: Subsist"]
["Non-Accidental Acute Exposures (dose in mg/kg/event)"]
["Vegetation Contact, shorts and T-shirt","Adult Female",{"$f":"'D02'!$C$48/$F$12","v":6.3103974451858284E-5},{"$f":"'D02'!$C$49/$F$12","v":3.7871471279697691E-5},{"$f":"'D02'!$C$50/$F$12","v":8.9585070903659616E-5},{"$f":"'B02'!$E$4","v":2},null,null,"Contact: Female"]
["Contaminated Fruit","Adult Female",{"$f":"D03a!$C$19/$F$13","v":5.8799999999999998E-3},{"$f":"D03a!$C$20/$F$13","v":2.6880000000000007E-3},{"$f":"D03a!$C$21/$F$13","v":9.3299999999999994E-2},{"$f":"'B02'!$E$4","v":2},null,null,"Fruit: Female"]
["Contaminated Vegetation","Adult Female",{"$f":"D03b!$C$19/$F$14","v":8.1000000000000003E-2},{"$f":"D03b!$C$20/$F$14","v":5.6249999999999998E-3},{"$f":"D03b!$C$21/$F$14","v":0.67500000000000004},{"$f":"'B02'!$E$4","v":2},null,null,"Veg: Female"]
["Swimming, one hour","Adult Female",{"$f":"'D11'!$C$29/$F$15","v":8.2783593750000004E-8},{"$f":"'D11'!$C$30/$F$15","v":3.6968749999999998E-9},{"$f":"'D11'!$C$31/$F$15","v":2.6142187499999999E-6},{"$f":"'B02'!$E$4","v":2},null,null,"Swim: Female"]
["Water consumption","Child",{"$f":"'D06'!$C$17/$F$16","v":4.1353383458646613E-4},{"$f":"'D06'!$C$18/$F$16","v":2.2932330827067669E-5},{"$f":"'D06'!$C$19/$F$16","v":1.0150375939849625E-2},{"$f":"'B02'!$E$4","v":2},null,null,"Water: Child"]
["Fish consumption","Adult Male",{"$f":"D09c!$C$31/$F$17","v":1.2414285714285715E-5},{"$f":"D09c!$C$32/$F$17","v":1.1285714285714285E-6},{"$f":"D09c!$C$33/$F$17","v":2.0314285714285714E-4},{"$f":"'B02'!$E$4","v":2},null,null,"Fish: Male"]
["Fish consumption","Subsistence Populations",{"$f":"D09d!$C$31/$F$18","v":6.05E-5},{"$f":"D09d!$C$32/$F$18","v":5.5000000000000007E-6},{"$f":"D09d!$C$33/$F$18","v":9.8999999999999999E-4},{"$f":"'B02'!$E$4","v":2},null,null,"Fish: Subsist"]
["Chronic/Longer Term Exposures (dose in mg/kg/day)"]
["Contaminated Fruit","Adult Female",{"$f":"D04a!$C$19/$F$20","v":7.5373900023941696E-3},{"$f":"D04a!$C$20/$F$20","v":2.5852306158879743E-3},{"$f":"D04a!$C$21/$F$20","v":0.32115174363588989},{"$f":"'B02'!$E$5","v":0.2},null,null,"Fruit: Female"]
["Contaminated Vegetation","Adult Female",{"$f":"D04b!$C$19/$F$21","v":0.10383139289012377},{"$f":"D04b!$C$20/$F$21","v":5.4099412999887844E-3},{"$f":"D04b!$C$21/$F$21","v":2.323445090613351},{"$f":"'B02'!$E$5","v":0.2},null,null,"Veg: Female"]
["Water consumption","Adult Male",{"$f":"'D07'!$C$17/$F$22","v":1.2142857142857142E-4},{"$f":"'D07'!$C$18/$F$22","v":8.9999999999999985E-6},{"$f":"'D07'!$C$19/$F$22","v":1.7142857142857142E-3},{"$f":"'B02'!$E$5","v":0.2},null,null,"Water: Male"]
["Fish consumption","Adult Male",{"$f":"D09a!$C$31/$F$23","v":6.0714285714285709E-7},{"$f":"D09a!$C$32/$F$23","v":6.4285714285714277E-8},{"$f":"D09a!$C$33/$F$23","v":7.1428571428571427E-6},{"$f":"'B02'!$E$5","v":0.2},null,null,"Fish: Male"]
["Fish consumption","Subsistence Populations",{"$f":"D09b!$C$31/$F$24","v":4.917857142857142E-6},{"$f":"D09b!$C$32/$F$24","v":5.2071428571428572E-7},{"$f":"D09b!$C$33/$F$24","v":5.7857142857142862E-5},{"$f":"'B02'!$E$5","v":0.2},null,null,"Fish: Subsist"]

{"sheet":"F01a","index":53,"n_rows":42,"n_cols":5,"rows_kept":42,"cut":false,"hidden":false,"merged":[[30,3,32,3],[0,0,0,4],[1,1,1,3],[2,1,2,3],[3,1,3,3],[8,0,10,0],[11,0,12,0],[34,0,37,0],[38,0,41,0],[14,0,15,0],[16,0,19,0],[21,0,24,0],[25,0,28,0],[29,0,32,0]]}
["Direct spray of Mammal, small assuming first-order absorption kinetics with spray of 0.5 of the body surface"]
["Short Title","Direct spray, first-order absorption",null,null,"DrmFOA_Allo"]
["Receptor","Mammal, small"]
["Duration","Acute"]
["Parameter/Assumption","Code / Range","Equation/   Value","Units","Reference/Designation"]
["Application rate, lb/acre","ApRt",{"$f":"'A01'!ApRt_C","v":1},"lb/acre","Worksheet A01"]
["Duration of Exposure","T",24,"hours","Scenario parameter"]
["Body weight","BW",{"$f":"A02b!$C$71","v":0.02},"kg","Default"]
["Allometric coefficients for surface area"]
[null,"alpha",{"$f":"A02b!$C$77","v":0.11},null,"U.S. EPA/ORD 1993"]
[null,"beta",{"$f":"A02b!$C$78","v":0.65},null,"U.S. EPA/ORD 1993"]
["Surface Area",null,{"$f":"C10 * C8^C11","v":8.6509177386020729E-3},"meters"]
[null,"SA",{"$f":"C12*10000","v":86.509177386020724},"cm2","10,000 cm2/m2"]
["Conversion Factor for lbs/acre to mg/cm2","CnvF",1.1209999999999999E-2,"mg/cm2/lb/acre"]
["Application rate, mg/cm2","ApRmgcm","ApRlb/a × CnvF"]
[null,null,{"$f":"C6*C$14","v":1.1209999999999999E-2},"lb/acre","Eq"]
["First-order dermal absorption rates ","ka"]
[null,"Central",{"$f":"'B01'!$C$11","v":5.0000000000000002E-5},"hour-1","Section 3.2.2.2"]
[null,"Lower",{"$f":"'B01'!$C$12","v":3.0000000000000001E-5},null,"Section 3.2.2.2"]
[null,"Upper",{"$f":"'B01'!$C$13","v":7.1000000000000005E-5},null,"Section 3.2.2.2"]
["Proportion of body surface sprayed","PrpSA",0.5,"unitless","Scenario parameter"]
["Toxic Equivalency Factor for formulation:  (See risk assessment if this has a value other than 1.)","TEF"]
[null,"Central ",{"$f":"'A01'!C$35","v":1},"Unitless","Worksheet A01"]
[null,"Lower ",{"$f":"'A01'!C$36","v":1},null,"Worksheet A01"]
[null,"Upper ",{"$f":"'A01'!C$37","v":1},null,"Worksheet A01"]
["Amount Deposited on Skin","Amnt","ApRmgcm × SA × PrpSAx TEF"]
[null,"Central",{"$f":"C$13*C$16*C$21*C23","v":0.48488393924864615},"mg","Eq"]
[null,"Lower",{"$f":"C$13*C$16*C$21*C24","v":0.48488393924864615},null,"Eq"]
[null,"Upper",{"$f":"C$13*C$16*C$21*C25","v":0.48488393924864615},null,"Eq"]
["Skin Loading","Loading"]
[null,"Central",{"$f":"C27/C$13","v":5.6049999999999997E-3},"mg/cm2","Eq"]
[null,"Lower",{"$f":"C28/C$13","v":5.6049999999999997E-3},null,"Eq"]
[null,"Upper",{"$f":"C29/C$13","v":5.6049999999999997E-3},null,"Eq"]
[]
["Proportion absorbed over period T","Prop","1-exp(-ka T)"]
[null,"Central",{"$f":"1-EXP(-C18 *C$7)","v":1.1992802879136066E-3},"hour-1","Eq"]
[null,"Lower",{"$f":"1-EXP(-C19 *C$7)","v":7.1974086219683819E-4},null,"Eq"]
[null,"Upper",{"$f":"1-EXP(-C20 *C$7)","v":1.7025490162757562E-3},null,"Eq"]
["Absorbed Dose","Dose","Amnt × Prop ÷ BW"]
[null,"Central",{"$f":"C27*C36/C$8","v":2.9075587513340006E-2},"mg/kg bw","Eq"]
[null,"Lower",{"$f":"C28*C37/C$8","v":1.7449539225010992E-2},null,"Eq"]
[null,"Upper",{"$f":"C29*C38/C$8","v":4.1276933688784802E-2},null,"Eq"]

{"sheet":"F01b","index":54,"n_rows":28,"n_cols":5,"rows_kept":28,"cut":false,"hidden":false,"merged":[[16,0,19,0],[20,0,23,0],[24,0,27,0],[0,0,0,4],[1,1,1,3],[2,1,2,3],[3,1,3,3],[10,0,12,0],[13,0,14,0]]}
["Direct spray of Mammal, small assuming 100% absorption with spray of 0.5 of the body surface"]
["Short Title","Direct spray, 100% absorption",null,null,"Drm100_Allo"]
["Receptor","Mammal, small"]
["Duration","Acute"]
["Parameter/Assumption","Code / Range","Equation/   Value","Units","Reference/Designation"]
["Application rate, lb/acre","ApRlb/ac",{"$f":"'A01'!ApRt_C","v":1},"lb/acre","Worksheet A01"]
["Conversion Factor for lbs/acre to mg/cm2","CnvF",1.1209999999999999E-2,"mg/cm2/lb/acre"]
["Application rate, mg/cm2","ApRmgcm","ApRlb/a × CnvF"]
[null,null,{"$f":"C6*C7","v":1.1209999999999999E-2},"lb/acre","Eq"]
["Body weight","BW",{"$f":"A02b!$C$71","v":0.02},"kg","Default"]
["Allometric coefficients for surface area"]
[null,"alpha",{"$f":"A02b!$C$77","v":0.11},null,"U.S. EPA/ORD 1993"]
[null,"beta",{"$f":"A02b!$C$78","v":0.65},null,"U.S. EPA/ORD 1993"]
["Surface Area",null,{"$f":"C12 * C10^C13","v":8.6509177386020729E-3},"meters"]
[null,"SA",{"$f":"C14*10000","v":86.509177386020724},"cm2[10000 cm2/m2]","Eq"]
["Proportion of body surface sprayed","PrpSA",0.5,"unitless","Scenario parameter"]
["Toxic Equivalency Factor for formulation:  (See risk assessment if this has a value other than 1.)","TEF"]
[null,"Central ",{"$f":"'A01'!C$35","v":1},"Unitless","Worksheet A01"]
[null,"Lower ",{"$f":"'A01'!C$36","v":1},null,"Worksheet A01"]
[null,"Upper ",{"$f":"'A01'!C$37","v":1},null,"Worksheet A01"]
["Amount Deposited on Skin","Amnt","ApRmgcm× SA × PrpSA× TEF"]
[null,"Central",{"$f":"C$9*C$15*C$16*C18","v":0.48488393924864615},"mg","Eq"]
[null,"Lower",{"$f":"C$9*C$15*C$16*C19","v":0.48488393924864615},null,"Eq"]
[null,"Upper",{"$f":"C$9*C$15*C$16*C20","v":0.48488393924864615},null,"Eq"]
["Absorbed Dose","Dose","Amnt  ÷ BW"]
[null,"Central",{"$f":"C22/C$10","v":24.244196962432305},"mg/kg bw","Eq"]
[null,"Lower",{"$f":"C23/C$10","v":24.244196962432305},null,"Eq"]
[null,"Upper",{"$f":"C24/C$10","v":24.244196962432305},null,"Eq"]

{"sheet":"F02a","index":55,"n_rows":20,"n_cols":5,"rows_kept":20,"cut":false,"hidden":false,"merged":[[16,0,19,0],[0,0,0,4],[1,1,1,3],[2,1,2,3],[5,0,8,0],[11,0,13,0],[14,0,15,0]]}
["Consumption of contaminated water by Mammal, small, Accidental Spill "]
["Short Title","Accidental Spill",null,null,"WatAlloV6"]
["Receptor","Mammal, small"]
["Duration","Acute",null,null,"Scenario parameter"]
["Parameter/Assumption","Code / Range","Equation/   Value","Units","Reference/Designation"]
["Concentration in water","ConcWat"]
[null,"Central ",{"$f":"B04b!Acute_C","v":1.514},"mg/L","='B04b'!Acute_C"]
[null,"Lower ",{"$f":"B04b!Acute_L","v":9.0840000000000004E-2},null,"='B04b'!Acute_L"]
[null,"Upper ",{"$f":"B04b!Acute_U","v":18.167999999999999},null,"='B04b'!Acute_U"]
["Receptor"]
["Body weight","BW",{"$f":"A02b!$C$71","v":0.02},"kg","Default"]
["Allometric coefficients forwater consumption per day in liters and BW in kilograms"]
[null,"alpha",{"$f":"A02b!$C$79","v":9.9000000000000005E-2},null,"U.S. EPA/ORD 1993"]
[null,"beta",{"$f":"A02b!$C$80","v":0.9},null,"U.S. EPA/ORD 1993"]
["Amount of water consumed per day",null,"Amnt = alpha BW beta"]
[null,"Amnt",{"$f":"C13*(C11^C14)","v":2.9279401205240612E-3},"liters","Eq"]
["Absorbed Dose","Dose","ConcWat  × Amnt ÷ BW"]
[null,"Central ",{"$f":"C7*C$16/C$11","v":0.22164506712367141},"mg/kg","Eq"]
[null,"Lower ",{"$f":"C8*C$16/C$11","v":1.3298704027420285E-2},"mg/kg","Eq"]
[null,"Upper ",{"$f":"C9*C$16/C$11","v":2.659740805484057},"mg/kg","Eq"]

{"sheet":"F02b","index":56,"n_rows":20,"n_cols":5,"rows_kept":20,"cut":false,"hidden":false,"merged":[[16,0,19,0],[0,0,0,4],[1,1,1,3],[2,1,2,3],[5,0,8,0],[11,0,13,0],[14,0,15,0]]}
["Consumption of contaminated water by Mammal, 400 g, Accidental Spill "]
["Short Title","Accidental Spill",null,null,"WatAlloV6"]
["Receptor","Mammal, 400 g"]
["Duration","Acute",null,null,"Scenario parameter"]
["Parameter/Assumption","Code / Range","Equation/   Value","Units","Reference/Designation"]
["Concentration in water","ConcWat"]
[null,"Central ",{"$f":"B04b!Acute_C","v":1.514},"mg/L","='B04b'!Acute_C"]
[null,"Lower ",{"$f":"B04b!Acute_L","v":9.0840000000000004E-2},null,"='B04b'!Acute_L"]
[null,"Upper ",{"$f":"B04b!Acute_U","v":18.167999999999999},null,"='B04b'!Acute_U"]
["Receptor"]
["Body weight","BW",{"$f":"A02b!$C$40","v":0.4},"kg","Default"]
["Allometric coefficients forwater consumption per day in liters and BW in kilograms"]
[null,"alpha",{"$f":"A02b!$C$45","v":9.9000000000000005E-2},null,"U.S. EPA/ORD 1993"]
[null,"beta",{"$f":"A02b!$C$46","v":0.9},null,"U.S. EPA/ORD 1993"]
["Amount of water consumed per day",null,"Amnt = alpha BW beta"]
[null,"Amnt",{"$f":"C13*(C11^C14)","v":4.3399945764854612E-2},"liters","Eq"]
["Absorbed Dose","Dose","ConcWat  × Amnt ÷ BW"]
[null,"Central ",{"$f":"C7*C$16/C$11","v":0.16426879471997469},"mg/kg","Eq"]
[null,"Lower ",{"$f":"C8*C$16/C$11","v":9.8561276831984831E-3},"mg/kg","Eq"]
[null,"Upper ",{"$f":"C9*C$16/C$11","v":1.9712255366396962},"mg/kg","Eq"]

{"sheet":"F02c","index":57,"n_rows":20,"n_cols":5,"rows_kept":20,"cut":false,"hidden":false,"merged":[[16,0,19,0],[0,0,0,4],[1,1,1,3],[2,1,2,3],[5,0,8,0],[11,0,13,0],[14,0,15,0]]}
["Consumption of contaminated water by Mammal, carnivorous, Accidental Spill "]
["Short Title","Accidental Spill",null,null,"WatAlloV6"]
["Receptor","Mammal, carnivorous"]
["Duration","Acute",null,null,"Scenario parameter"]
["Parameter/Assumption","Code / Range","Equation/   Value","Units","Reference/Designation"]
["Concentration in water","ConcWat"]
[null,"Central ",{"$f":"B04b!Acute_C","v":1.514},"mg/L","='B04b'!Acute_C"]
[null,"Lower ",{"$f":"B04b!Acute_L","v":9.0840000000000004E-2},null,"='B04b'!Acute_L"]
[null,"Upper ",{"$f":"B04b!Acute_U","v":18.167999999999999},null,"='B04b'!Acute_U"]
["Receptor"]
["Body weight","BW",{"$f":"A02b!$C$47","v":5},"kg","U.S. EPA/ORD 1993"]
["Allometric coefficients forwater consumption per day in liters and BW in kilograms"]
[null,"alpha",{"$f":"A02b!$C$50","v":9.9000000000000005E-2},null,"U.S. EPA/ORD 1993"]
[null,"beta",{"$f":"A02b!$C$51","v":0.9},null,"U.S. EPA/ORD 1993"]
["Amount of water consumed per day",null,"Amnt = alpha BW beta"]
[null,"Amnt",{"$f":"C13*(C11^C14)","v":0.42141326164778842},"liters","Eq"]
["Absorbed Dose","Dose","ConcWat  × Amnt ÷ BW"]
[null,"Central ",{"$f":"C7*C$16/C$11","v":0.12760393562695033},"mg/kg","Eq"]
[null,"Lower ",{"$f":"C8*C$16/C$11","v":7.6562361376170205E-3},"mg/kg","Eq"]
[null,"Upper ",{"$f":"C9*C$16/C$11","v":1.5312472275234039},"mg/kg","Eq"]

{"sheet":"F02d","index":58,"n_rows":20,"n_cols":5,"rows_kept":20,"cut":false,"hidden":false,"merged":[[16,0,19,0],[0,0,0,4],[1,1,1,3],[2,1,2,3],[5,0,8,0],[11,0,13,0],[14,0,15,0]]}
["Consumption of contaminated water by Mammal, large, Accidental Spill "]
["Short Title","Accidental Spill",null,null,"WatAlloV6"]
["Receptor","Mammal, large"]
["Duration","Acute",null,null,"Scenario parameter"]
["Parameter/Assumption","Code / Range","Equation/   Value","Units","Reference/Designation"]
["Concentration in water","ConcWat"]
[null,"Central ",{"$f":"B04b!Acute_C","v":1.514},"mg/L","='B04b'!Acute_C"]
[null,"Lower ",{"$f":"B04b!Acute_L","v":9.0840000000000004E-2},null,"='B04b'!Acute_L"]
[null,"Upper ",{"$f":"B04b!Acute_U","v":18.167999999999999},null,"='B04b'!Acute_U"]
["Receptor"]
["Body weight","BW",{"$f":"A02b!$C$61","v":70},"kg","Default"]
["Allometric coefficients forwater consumption per day in liters and BW in kilograms"]
[null,"alpha",{"$f":"A02b!$C$64","v":9.9000000000000005E-2},null,"U.S. EPA/ORD 1993"]
[null,"beta",{"$f":"A02b!$C$65","v":0.9},null,"U.S. EPA/ORD 1993"]
["Amount of water consumed per day",null,"Amnt = alpha BW beta"]
[null,"Amnt",{"$f":"C13*(C11^C14)","v":4.5313064115862725},"liters","Eq"]
["Absorbed Dose","Dose","ConcWat  × Amnt ÷ BW"]
[null,"Central ",{"$f":"C7*C$16/C$11","v":9.800568438773738E-2},"mg/kg","Eq"]
[null,"Lower ",{"$f":"C8*C$16/C$11","v":5.8803410632642427E-3},"mg/kg","Eq"]
[null,"Upper ",{"$f":"C9*C$16/C$11","v":1.1760682126528486},"mg/kg","Eq"]

{"sheet":"F02e","index":59,"n_rows":20,"n_cols":5,"rows_kept":20,"cut":false,"hidden":false,"merged":[[16,0,19,0],[0,0,0,4],[1,1,1,3],[2,1,2,3],[5,0,8,0],[11,0,13,0],[14,0,15,0]]}
["Consumption of contaminated water by Bird, small, Accidental Spill "]
["Short Title","Accidental Spill",null,null,"WatAlloV6"]
["Receptor","Bird, small"]
["Duration","Acute",null,null,"Scenario parameter"]
["Parameter/Assumption","Code / Range","Equation/   Value","Units","Reference/Designation"]
["Concentration in water","ConcWat"]
[null,"Central ",{"$f":"B04b!Acute_C","v":1.514},"mg/L","='B04b'!Acute_C"]
[null,"Lower ",{"$f":"B04b!Acute_L","v":9.0840000000000004E-2},null,"='B04b'!Acute_L"]
[null,"Upper ",{"$f":"B04b!Acute_U","v":18.167999999999999},null,"='B04b'!Acute_U"]
["Receptor"]
["Body weight","BW",{"$f":"A02b!$C$31","v":0.01},"kg","Default"]
["Allometric coefficients forwater consumption per day in liters and BW in kilograms"]
[null,"alpha",{"$f":"A02b!$C$34","v":5.8999999999999997E-2},null,"U.S. EPA/ORD 1993"]
[null,"beta",{"$f":"A02b!$C$35","v":0.67},null,"U.S. EPA/ORD 1993"]
["Amount of water consumed per day",null,"Amnt = alpha BW beta"]
[null,"Amnt",{"$f":"C13*(C11^C14)","v":2.6968203187277624E-3},"liters","Eq"]
["Absorbed Dose","Dose","ConcWat  × Amnt ÷ BW"]
[null,"Central ",{"$f":"C7*C$16/C$11","v":0.40829859625538323},"mg/kg","Eq"]
[null,"Lower ",{"$f":"C8*C$16/C$11","v":2.4497915775322995E-2},"mg/kg","Eq"]
[null,"Upper ",{"$f":"C9*C$16/C$11","v":4.8995831550645983},"mg/kg","Eq"]

{"sheet":"F02f","index":60,"n_rows":20,"n_cols":5,"rows_kept":20,"cut":false,"hidden":false,"merged":[[16,0,19,0],[0,0,0,4],[1,1,1,3],[2,1,2,3],[5,0,8,0],[11,0,13,0],[14,0,15,0]]}
["Consumption of contaminated water by Bird, large, Accidental Spill "]
["Short Title","Accidental Spill",null,null,"WatAlloV6"]
["Receptor","Bird, large"]
["Duration","Acute",null,null,"Scenario parameter"]
["Parameter/Assumption","Code / Range","Equation/   Value","Units","Reference/Designation"]
["Concentration in water","ConcWat"]
[null,"Central ",{"$f":"B04b!Acute_C","v":1.514},"mg/L","='B04b'!Acute_C"]
[null,"Lower ",{"$f":"B04b!Acute_L","v":9.0840000000000004E-2},null,"='B04b'!Acute_L"]
[null,"Upper ",{"$f":"B04b!Acute_U","v":18.167999999999999},null,"='B04b'!Acute_U"]
["Receptor"]
["Body weight","BW",{"$f":"A02b!$C$15","v":4},"kg","Default"]
["Allometric coefficients forwater consumption per day in liters and BW in kilograms"]
[null,"alpha",{"$f":"A02b!$C$18","v":5.8999999999999997E-2},null,"U.S. EPA/ORD 1993"]
[null,"beta",{"$f":"A02b!$C$19","v":0.67},null,"U.S. EPA/ORD 1993"]
["Amount of water consumed per day",null,"Amnt = alpha BW beta"]
[null,"Amnt",{"$f":"C13*(C11^C14)","v":0.14935927808849303},"liters","Eq"]
["Absorbed Dose","Dose","ConcWat  × Amnt ÷ BW"]
[null,"Central ",{"$f":"C7*C$16/C$11","v":5.653248675649461E-2},"mg/kg","Eq"]
[null,"Lower ",{"$f":"C8*C$16/C$11","v":3.3919492053896771E-3},"mg/kg","Eq"]
[null,"Upper ",{"$f":"C9*C$16/C$11","v":0.67838984107793532},"mg/kg","Eq"]

{"sheet":"F03a","index":61,"n_rows":50,"n_cols":5,"rows_kept":50,"cut":false,"hidden":false,"merged":[[7,0,10,0],[0,0,0,4],[1,1,1,3],[2,1,2,3],[3,1,3,3],[4,1,4,3],[36,0,39,0],[41,0,44,0],[45,0,48,0],[12,0,15,0],[16,0,19,0],[22,0,24,0],[27,0,28,0],[30,0,31,0],[32,0,33,0]]}
["Acute scenario for the consumption of Contaminated Fish ( Accidental Spill) by Mammal, large carnivorous "]
["Short Title","Fish consumption, accidental spill",null,null,"FishKcalV6"]
["Predator","Mammal, large carnivorous"]
["Food Item (Prey)","Fish"]
["Duration","Acute",null,null,"Scenario parameter"]
["Parameter/Assumption","Code / Range","Equation/   Value","Units","Reference/Designation"]
["Water"]
["Concentration in water","ConcWat"]
[null,"Central ",{"$f":"B04b!Acute_C","v":1.514},"mg/L","='B04b'!Acute_C"]
[null,"Lower ",{"$f":"B04b!Acute_L","v":9.0840000000000004E-2},null,"='B04b'!Acute_L"]
[null,"Upper ",{"$f":"B04b!Acute_U","v":18.167999999999999},null,"='B04b'!Acute_U"]
["Fish"]
["Bioconcentration factor","BCF"]
[null,"Central ",{"$f":"'B01'!$C$6","v":1},"L/kg","Section 3.2.3.5."]
[null,"Lower ",{"$f":"'B01'!$C$6","v":1},null,"Section 3.2.3.5."]
[null,"Upper ",{"$f":"'B01'!$C$6","v":1},null,"Section 3.2.3.5."]
["Concentration in fish","ConcFish","ConcWat × BCF"]
[null,"Central ",{"$f":"C9*C14","v":1.514},"mg/kg","Eq"]
[null,"Lower ",{"$f":"C10*C15","v":9.0840000000000004E-2},null,"Eq"]
[null,"Upper ",{"$f":"C11*C16","v":18.167999999999999},null,"Eq"]
["Receptor"]
["Body weight","BW",{"$f":"A02b!$C$52","v":70},"kg","Reid 2006"]
["Allometric coefficients for caloric requirement per day in kilocalories and BW in grams"]
[null,"alpha",{"$f":"A02b!$C$53","v":0.61670000000000003},null,"U.S. EPA/ORD 1993"]
[null,"beta",{"$f":"A02b!$C$54","v":0.86199999999999999},null,"U.S. EPA/ORD 1993"]
["Caloric requirement per day","KR",{"$f":"C24*(C22*1000)^C25","v":9258.6668828796119},"kcal/day","Eq"]
["Caloric content of commodity (dry weight)","KCD",4.47,"kcal/gdw [Note 1]","WkMk Documentation"]
["Food consumed per day (dry weight)","AmntDry"," = KR ÷ KCD"]
[null,null,{"$f":"C26/C27","v":2071.2901303981234},"gdry/day","Eq"]
["Water content of vegetation as a proportion","PropWater",0.7,"gwater/gfood","WkMk Documentation"]
["Dry weight content of vegetation as a proportion","PropDry"," = 1-PropWater"]
[null,null,{"$f":"1-C30","v":0.30000000000000004},"gdry/gfood","Eq"]
["Amount of fish consumed per day,  wet weight","AmntFish"," = (AmntDry ÷ PropDry) ÷ (1000g/kg)"]
[null,"Central ",{"$f":"(C29/C32)/1000","v":6.90430043466041},"kgfood/day","Eq"]
[null,"Lower ",{"$f":"C34*0.3","v":2.0712901303981228},"Note 1","Eq"]
[null,"Upper ",{"$f":"C34*1.7","v":11.737310738922696},"Note 1","Eq"]
["Proportion of diet that is contaminated","Prop"]
[null,"Central ",0.3,"Unitless","Scenario parameter"]
[null,"Lower ",0.1,null,"Scenario parameter"]
[null,"Upper ",1,null,"Scenario parameter"]
["Dose"]
["Toxic Equivalency Factor for formulation:  (See risk assessment if this has a value other than 1.)","TEF"]
[null,"Central ",{"$f":"'A01'!C$35","v":1},"Unitless","Worksheet A01"]
[null,"Lower ",{"$f":"'A01'!C$36","v":1},"Note 2","Worksheet A01"]
[null,"Upper ",{"$f":"'A01'!C$37","v":1},"Note 2","Worksheet A01"]
["Dose","Dose","= ConcFish × AmntFish × Prop ÷ BW"]
[null,"Central ",{"$f":"C18*C34*C38/C$22","v":4.479904653461083E-2},"mg/kg","Eq"]
[null,"Lower ",{"$f":"C19*C35*C39/C$22","v":2.6879427920766501E-4},"mg/kg","Eq"]
[null,"Upper ",3.0463351643535361,"mg/kg","Eq"]
[null,null,null,null,"FishKcalV6"]

{"sheet":"F03b","index":62,"n_rows":50,"n_cols":5,"rows_kept":50,"cut":false,"hidden":false,"merged":[[7,0,10,0],[0,0,0,4],[1,1,1,3],[2,1,2,3],[3,1,3,3],[4,1,4,3],[36,0,39,0],[41,0,44,0],[45,0,48,0],[12,0,15,0],[16,0,19,0],[22,0,24,0],[27,0,28,0],[30,0,31,0],[32,0,33,0]]}
["Acute scenario for the consumption of Contaminated Fish ( Accidental Spill) by Mammal, carnivorous "]
["Short Title","Fish consumption, accidental spill",null,null,"FishKcalV6"]
["Predator","Mammal, carnivorous"]
["Food Item (Prey)","Fish"]
["Duration","Acute",null,null,"Scenario parameter"]
["Parameter/Assumption","Code / Range","Equation/   Value","Units","Reference/Designation"]
["Water"]
["Concentration in water","ConcWat"]
[null,"Central ",{"$f":"B04b!Acute_C","v":1.514},"mg/L","='B04b'!Acute_C"]
[null,"Lower ",{"$f":"B04b!Acute_L","v":9.0840000000000004E-2},null,"='B04b'!Acute_L"]
[null,"Upper ",{"$f":"B04b!Acute_U","v":18.167999999999999},null,"='B04b'!Acute_U"]
["Fish"]
["Bioconcentration factor","BCF"]
[null,"Central ",{"$f":"'B01'!$C$6","v":1},"L/kg","Section 3.2.3.5."]
[null,"Lower ",{"$f":"'B01'!$C$6","v":1},null,"Section 3.2.3.5."]
[null,"Upper ",{"$f":"'B01'!$C$6","v":1},null,"Section 3.2.3.5."]
["Concentration in fish","ConcFish","ConcWat × BCF"]
[null,"Central ",{"$f":"C9*C14","v":1.514},"mg/kg","Eq"]
[null,"Lower ",{"$f":"C10*C15","v":9.0840000000000004E-2},null,"Eq"]
[null,"Upper ",{"$f":"C11*C16","v":18.167999999999999},null,"Eq"]
["Receptor"]
["Body weight","BW",{"$f":"A02b!$C$47","v":5},"kg","U.S. EPA/ORD 1993"]
["Allometric coefficients for caloric requirement per day in kilocalories and BW in grams"]
[null,"alpha",{"$f":"A02b!$C$48","v":0.61670000000000003},null,"U.S. EPA/ORD 1993"]
[null,"beta",{"$f":"A02b!$C$49","v":0.86199999999999999},null,"U.S. EPA/ORD 1993"]
["Caloric requirement per day","KR",{"$f":"C24*(C22*1000)^C25","v":951.88852658889334},"kcal/day","Eq"]
["Caloric content of commodity (dry weight)","KCD",4.47,"kcal/gdw [Note 1]","WkMk Documentation"]
["Food consumed per day (dry weight)","AmntDry"," = KR ÷ KCD"]
[null,null,{"$f":"C26/C27","v":212.95045337559137},"gdry/day","Eq"]
["Water content of vegetation as a proportion","PropWater",0.7,"gwater/gfood","WkMk Documentation"]
["Dry weight content of vegetation as a proportion","PropDry"," = 1-PropWater"]
[null,null,{"$f":"1-C30","v":0.30000000000000004},"gdry/gfood","Eq"]
["Amount of fish consumed per day,  wet weight","AmntFish"," = (AmntDry ÷ PropDry) ÷ (1000g/kg)"]
[null,"Central ",{"$f":"(C29/C32)/1000","v":0.70983484458530455},"kgfood/day","Eq"]
[null,"Lower ",{"$f":"C34*0.3","v":0.21295045337559135},"Note 1","Eq"]
[null,"Upper ",{"$f":"C34*1.7","v":1.2067192357950176},"Note 1","Eq"]
["Proportion of diet that is contaminated","Prop"]
[null,"Central ",0.3,"Unitless","Scenario parameter"]
[null,"Lower ",0.1,null,"Scenario parameter"]
[null,"Upper ",1,null,"Scenario parameter"]
["Dose"]
["Toxic Equivalency Factor for formulation:  (See risk assessment if this has a value other than 1.)","TEF"]
[null,"Central ",{"$f":"'A01'!C$35","v":1},"Unitless","Worksheet A01"]
[null,"Lower ",{"$f":"'A01'!C$36","v":1},"Note 2","Worksheet A01"]
[null,"Upper ",{"$f":"'A01'!C$37","v":1},"Note 2","Worksheet A01"]
["Dose","Dose","= ConcFish × AmntFish × Prop ÷ BW"]
[null,"Central ",{"$f":"C18*C34*C38/C$22","v":6.4481397282129066E-2},"mg/kg","Eq"]
[null,"Lower ",{"$f":"C19*C35*C39/C$22","v":3.8688838369277444E-4},"mg/kg","Eq"]
[null,"Upper ",4.3847350151847753,"mg/kg","Eq"]
[null,null,null,null,"FishKcalV6"]

{"sheet":"F03c","index":63,"n_rows":50,"n_cols":5,"rows_kept":50,"cut":false,"hidden":false,"merged":[[7,0,10,0],[0,0,0,4],[1,1,1,3],[2,1,2,3],[3,1,3,3],[4,1,4,3],[36,0,39,0],[41,0,44,0],[45,0,48,0],[12,0,15,0],[16,0,19,0],[22,0,24,0],[27,0,28,0],[30,0,31,0],[32,0,33,0]]}
["Acute scenario for the consumption of Contaminated Fish ( Accidental Spill) by Bird, piscivorous "]
["Short Title","Fish consumption, accidental spill",null,null,"FishKcalV6"]
["Predator","Bird, piscivorous"]
["Food Item (Prey)","Fish"]
["Duration","Acute",null,null,"Scenario parameter"]
["Parameter/Assumption","Code / Range","Equation/   Value","Units","Reference/Designation"]
["Water"]
["Concentration in water","ConcWat"]
[null,"Central ",{"$f":"B04b!Acute_C","v":1.514},"mg/L","='B04b'!Acute_C"]
[null,"Lower ",{"$f":"B04b!Acute_L","v":9.0840000000000004E-2},null,"='B04b'!Acute_L"]
[null,"Upper ",{"$f":"B04b!Acute_U","v":18.167999999999999},null,"='B04b'!Acute_U"]
["Fish"]
["Bioconcentration factor","BCF"]
[null,"Central ",{"$f":"'B01'!$C$6","v":1},"L/kg","Section 3.2.3.5."]
[null,"Lower ",{"$f":"'B01'!$C$6","v":1},null,"Section 3.2.3.5."]
[null,"Upper ",{"$f":"'B01'!$C$6","v":1},null,"Section 3.2.3.5."]
["Concentration in fish","ConcFish","ConcWat × BCF"]
[null,"Central ",{"$f":"C9*C14","v":1.514},"mg/kg","Eq"]
[null,"Lower ",{"$f":"C10*C15","v":9.0840000000000004E-2},null,"Eq"]
[null,"Upper ",{"$f":"C11*C16","v":18.167999999999999},null,"Eq"]
["Receptor"]
["Body weight","BW",{"$f":"A02b!$C$24","v":2.4},"kg","Sibley 2000"]
["Allometric coefficients for caloric requirement per day in kilocalories and BW in grams"]
[null,"alpha",{"$f":"A02b!$C$27","v":1.9159999999999999},null,"U.S. EPA/ORD 1993"]
[null,"beta",{"$f":"A02b!$C$28","v":0.70399999999999996},null,"U.S. EPA/ORD 1993"]
["Caloric requirement per day","KR",{"$f":"C24*(C22*1000)^C25","v":459.26591923752829},"kcal/day","Eq"]
["Caloric content of commodity (dry weight)","KCD",3.87,"kcal/gdw [Note 1]","WkMk Documentation"]
["Food consumed per day (dry weight)","AmntDry"," = KR ÷ KCD"]
[null,null,{"$f":"C26/C27","v":118.67336414406415},"gdry/day","Eq"]
["Water content of vegetation as a proportion","PropWater",0.7,"gwater/gfood","WkMk Documentation"]
["Dry weight content of vegetation as a proportion","PropDry"," = 1-PropWater"]
[null,null,{"$f":"1-C30","v":0.30000000000000004},"gdry/gfood","Eq"]
["Amount of fish consumed per day,  wet weight","AmntFish"," = (AmntDry ÷ PropDry) ÷ (1000g/kg)"]
[null,"Central ",{"$f":"(C29/C32)/1000","v":0.39557788048021375},"kgfood/day","Eq"]
[null,"Lower ",{"$f":"C34*0.3","v":0.11867336414406413},"Note 1","Eq"]
[null,"Upper ",{"$f":"C34*1.7","v":0.67248239681636335},"Note 1","Eq"]
["Proportion of diet that is contaminated","Prop"]
[null,"Central ",0.3,"Unitless","Scenario parameter"]
[null,"Lower ",0.1,null,"Scenario parameter"]
[null,"Upper ",1,null,"Scenario parameter"]
["Dose"]
["Toxic Equivalency Factor for formulation:  (See risk assessment if this has a value other than 1.)","TEF"]
[null,"Central ",{"$f":"'A01'!C$35","v":1},"Unitless","Worksheet A01"]
[null,"Lower ",{"$f":"'A01'!C$36","v":1},"Note 2","Worksheet A01"]
[null,"Upper ",{"$f":"'A01'!C$37","v":1},"Note 2","Worksheet A01"]
["Dose","Dose","= ConcFish × AmntFish × Prop ÷ BW"]
[null,"Central ",{"$f":"C18*C34*C38/C$22","v":7.4863113880880447E-2},"mg/kg","Eq"]
[null,"Lower ",{"$f":"C19*C35*C39/C$22","v":4.4917868328528279E-4},"mg/kg","Eq"]
[null,"Upper ",5.0906917438998702,"mg/kg","Eq"]
[null,null,null,null,"FishKcalV6"]

{"sheet":"F04a","index":64,"n_rows":37,"n_cols":5,"rows_kept":37,"cut":false,"hidden":false,"merged":[[16,0,17,0],[0,0,0,4],[2,1,2,3],[7,0,10,0],[8,3,10,3],[13,0,15,0],[19,0,20,0],[22,0,23,0],[24,0,27,0],[28,0,31,0],[33,0,36,0]]}
["Consumption of Fruit by a Mammal, small after Acute exposure."]
["Short Title","Fruit",null,null,"FdKcalV6"]
["Receptor","Mammal, small"]
["Duration","Acute",null,null,"Scenario parameter"]
["Material consumed","Fruit"]
["Parameter/Assumption","Code / Range","Equation/   Value","Units","Reference/Designation"]
["Commodity"]
["Concentration on consumed commodity","Conc"]
[null,"Central ",{"$f":"B05a!Acute_C","v":7},"mg/kg food wet weight","='B05a'!Acute_C"]
[null,"Lower ",{"$f":"B05a!Acute_L","v":3.2000000000000006},null,"='B05a'!Acute_L"]
[null,"Upper ",{"$f":"B05a!Acute_U","v":15},null,"='B05a'!Acute_U"]
["Receptor"]
["Body weight","BW",{"$f":"A02b!$C$71","v":0.02},"kg","Default"]
["Allometric coefficients for caloric requirement per day in kilocalories and BW in grams"]
[null,"alpha",{"$f":"A02b!$C$75","v":2.5139999999999998},null,"U.S. EPA/ORD 1993"]
[null,"beta",{"$f":"A02b!$C$76","v":0.50700000000000001},null,"U.S. EPA/ORD 1993"]
["Caloric requirement per day","KR","= alpha x (BW x 1kg/1000g)beta"]
[null,null,{"$f":"C15*((C13*1000)^C16)","v":11.481205256262459},"kcal/day","Eq"]
["Caloric content of commodity (dry weight)","KCD",1.1000000000000001,"kcal/gdw [Note 1]","WkMk Documentation"]
["Food consumed per day (dry weight)","AmntDry"," = KR ÷ KCD"]
[null,null,{"$f":"C18/C19","v":10.437459323874963},"gdry/day","Eq"]
["Water content of vegetation as a proportion","PropWater",0.77,"gwater/gfood","WkMk Documentation"]
["Dry weight content of vegetation as a proportion","PropDry"," = 1-PropWater"]
[null,null,{"$f":"1-C22","v":0.22999999999999998},"gdry/gfood","Eq"]
["Variability in caloric requirements not accounted for by allometric equation","Error"]
[null,"Central ",1,"Note 2"]
[null,"Lower ",0.3]
[null,"Upper ",1.7]
["Amount of food consumed per day,  wet weight","AmntFood"," = (AmntDry ÷ PropDry) ÷ (1000g/kg)"]
[null,"Central ",{"$f":"C26*(C$21/C$24)/1000","v":4.5380257929891143E-2},"kgfood/day","Eq"]
[null,"Lower ",{"$f":"C27*(C$21/C$24)/1000","v":1.3614077378967342E-2},null,"Eq"]
[null,"Upper ",7.7146438480814941E-2,null,"Eq"]
["Estimate"]
["Dose","Dose"," = AmntFood   ×  Conc / BW"]
[null,"Central",{"$f":"$C30 * C9/C$13","v":15.8830902754619},"mg/kg bw/day","Eq"]
[null,"Lower",{"$f":"$C31 * C10/C$13","v":2.1782523806347749},null,"Eq"]
[null,"Upper",{"$f":"$C32 * C11/C$13","v":57.859828860611202},null,"Eq"]

{"sheet":"F04b","index":65,"n_rows":37,"n_cols":5,"rows_kept":37,"cut":false,"hidden":false,"merged":[[16,0,17,0],[0,0,0,4],[2,1,2,3],[7,0,10,0],[8,3,10,3],[13,0,15,0],[19,0,20,0],[22,0,23,0],[24,0,27,0],[28,0,31,0],[33,0,36,0]]}
["Consumption of Fruit by a Mammal, 400 g after Acute exposure."]
["Short Title","Fruit",null,null,"FdKcalV6"]
["Receptor","Mammal, 400 g"]
["Duration","Acute",null,null,"Scenario parameter"]
["Material consumed","Fruit"]
["Parameter/Assumption","Code / Range","Equation/   Value","Units","Reference/Designation"]
["Commodity"]
["Concentration on consumed commodity","Conc"]
[null,"Central ",{"$f":"B05a!Acute_C","v":7},"mg/kg food wet weight","='B05a'!Acute_C"]
[null,"Lower ",{"$f":"B05a!Acute_L","v":3.2000000000000006},null,"='B05a'!Acute_L"]
[null,"Upper ",{"$f":"B05a!Acute_U","v":15},null,"='B05a'!Acute_U"]
["Receptor"]
["Body weight","BW",{"$f":"A02b!$C$40","v":0.4},"kg","Default"]
["Allometric coefficients for caloric requirement per day in kilocalories and BW in grams"]
[null,"alpha",{"$f":"A02b!$C$43","v":2.5139999999999998},null,"U.S. EPA/ORD 1993"]
[null,"beta",{"$f":"A02b!$C$44","v":0.50700000000000001},null,"U.S. EPA/ORD 1993"]
["Caloric requirement per day","KR","= alpha x (BW x 1kg/1000g)beta"]
[null,null,{"$f":"C15*((C13*1000)^C16)","v":52.433601486248513},"kcal/day","Eq"]
["Caloric content of commodity (dry weight)","KCD",1.1000000000000001,"kcal/gdw [Note 1]","WkMk Documentation"]
["Food consumed per day (dry weight)","AmntDry"," = KR ÷ KCD"]
[null,null,{"$f":"C18/C19","v":47.666910442044099},"gdry/day","Eq"]
["Water content of vegetation as a proportion","PropWater",0.77,"gwater/gfood","WkMk Documentation"]
["Dry weight content of vegetation as a proportion","PropDry"," = 1-PropWater"]
[null,null,{"$f":"1-C22","v":0.22999999999999998},"gdry/gfood","Eq"]
["Variability in caloric requirements not accounted for by allometric equation","Error"]
[null,"Central ",1,"Note 2"]
[null,"Lower ",0.3]
[null,"Upper ",1.7]
["Amount of food consumed per day,  wet weight","AmntFood"," = (AmntDry ÷ PropDry) ÷ (1000g/kg)"]
[null,"Central ",{"$f":"C26*(C$21/C$24)/1000","v":0.20724743670453957},"kgfood/day","Eq"]
[null,"Lower ",{"$f":"C27*(C$21/C$24)/1000","v":6.2174231011361866E-2},null,"Eq"]
[null,"Upper ",0.35232064239771727,null,"Eq"]
["Estimate"]
["Dose","Dose"," = AmntFood   ×  Conc / BW"]
[null,"Central",{"$f":"$C30 * C9/C$13","v":3.6268301423294425},"mg/kg bw/day","Eq"]
[null,"Lower",{"$f":"$C31 * C10/C$13","v":0.49739384809089499},null,"Eq"]
[null,"Upper",{"$f":"$C32 * C11/C$13","v":13.212024089914397},null,"Eq"]

{"sheet":"F04c","index":66,"n_rows":37,"n_cols":5,"rows_kept":37,"cut":false,"hidden":false,"merged":[[16,0,17,0],[0,0,0,4],[2,1,2,3],[7,0,10,0],[8,3,10,3],[13,0,15,0],[19,0,20,0],[22,0,23,0],[24,0,27,0],[28,0,31,0],[33,0,36,0]]}
["Consumption of Fruit by a Mammal, large after Acute exposure."]
["Short Title","Fruit",null,null,"FdKcalV6"]
["Receptor","Mammal, large"]
["Duration","Acute",null,null,"Scenario parameter"]
["Material consumed","Fruit"]
["Parameter/Assumption","Code / Range","Equation/   Value","Units","Reference/Designation"]
["Commodity"]
["Concentration on consumed commodity","Conc"]
[null,"Central ",{"$f":"B05a!Acute_C","v":7},"mg/kg food wet weight","='B05a'!Acute_C"]
[null,"Lower ",{"$f":"B05a!Acute_L","v":3.2000000000000006},null,"='B05a'!Acute_L"]
[null,"Upper ",{"$f":"B05a!Acute_U","v":15},null,"='B05a'!Acute_U"]
["Receptor"]
["Body weight","BW",{"$f":"A02b!$C$61","v":70},"kg","Default"]
["Allometric coefficients for caloric requirement per day in kilocalories and BW in grams"]
[null,"alpha",{"$f":"A02b!$C$62","v":1.518},null,"U.S. EPA/ORD 1993"]
[null,"beta",{"$f":"A02b!$C$63","v":0.73},null,"U.S. EPA/ORD 1993"]
["Caloric requirement per day","KR","= alpha x (BW x 1kg/1000g)beta"]
[null,null,{"$f":"C15*((C13*1000)^C16)","v":5226.288029759985},"kcal/day","Eq"]
["Caloric content of commodity (dry weight)","KCD",1.1000000000000001,"kcal/gdw [Note 1]","WkMk Documentation"]
["Food consumed per day (dry weight)","AmntDry"," = KR ÷ KCD"]
[null,null,{"$f":"C18/C19","v":4751.1709361454405},"gdry/day","Eq"]
["Water content of vegetation as a proportion","PropWater",0.77,"gwater/gfood","WkMk Documentation"]
["Dry weight content of vegetation as a proportion","PropDry"," = 1-PropWater"]
[null,null,{"$f":"1-C22","v":0.22999999999999998},"gdry/gfood","Eq"]
["Variability in caloric requirements not accounted for by allometric equation","Error"]
[null,"Central ",1,"Note 2"]
[null,"Lower ",0.3]
[null,"Upper ",1.7]
["Amount of food consumed per day,  wet weight","AmntFood"," = (AmntDry ÷ PropDry) ÷ (1000g/kg)"]
[null,"Central ",{"$f":"C26*(C$21/C$24)/1000","v":20.657264939762786},"kgfood/day","Eq"]
[null,"Lower ",{"$f":"C27*(C$21/C$24)/1000","v":6.1971794819288357},null,"Eq"]
[null,"Upper ",35.117350397596738,null,"Eq"]
["Estimate"]
["Dose","Dose"," = AmntFood   ×  Conc / BW"]
[null,"Central",{"$f":"$C30 * C9/C$13","v":2.0657264939762783},"mg/kg bw/day","Eq"]
[null,"Lower",{"$f":"$C31 * C10/C$13","v":0.28329963345960402},null,"Eq"]
[null,"Upper",{"$f":"$C32 * C11/C$13","v":7.5251465137707294},null,"Eq"]

{"sheet":"F04d","index":67,"n_rows":37,"n_cols":5,"rows_kept":37,"cut":false,"hidden":false,"merged":[[16,0,17,0],[0,0,0,4],[2,1,2,3],[7,0,10,0],[8,3,10,3],[13,0,15,0],[19,0,20,0],[22,0,23,0],[24,0,27,0],[28,0,31,0],[33,0,36,0]]}
["Consumption of Fruit by a Bird, small after Acute exposure."]
["Short Title","Fruit",null,null,"FdKcalV6"]
["Receptor","Bird, small"]
["Duration","Acute",null,null,"Scenario parameter"]
["Material consumed","Fruit"]
["Parameter/Assumption","Code / Range","Equation/   Value","Units","Reference/Designation"]
["Commodity"]
["Concentration on consumed commodity","Conc"]
[null,"Central ",{"$f":"B05a!Acute_C","v":7},"mg/kg food wet weight","='B05a'!Acute_C"]
[null,"Lower ",{"$f":"B05a!Acute_L","v":3.2000000000000006},null,"='B05a'!Acute_L"]
[null,"Upper ",{"$f":"B05a!Acute_U","v":15},null,"='B05a'!Acute_U"]
["Receptor"]
["Body weight","BW",{"$f":"A02b!$C$31","v":0.01},"kg","Default"]
["Allometric coefficients for caloric requirement per day in kilocalories and BW in grams"]
[null,"alpha",{"$f":"A02b!$C$32","v":3.12},null,"U.S. EPA/ORD 1993"]
[null,"beta",{"$f":"A02b!$C$33","v":0.60499999999999998},null,"U.S. EPA/ORD 1993"]
["Caloric requirement per day","KR","= alpha x (BW x 1kg/1000g)beta"]
[null,null,{"$f":"C15*((C13*1000)^C16)","v":12.564771470954325},"kcal/day","Eq"]
["Caloric content of commodity (dry weight)","KCD",1.1000000000000001,"kcal/gdw [Note 1]","WkMk Documentation"]
["Food consumed per day (dry weight)","AmntDry"," = KR ÷ KCD"]
[null,null,{"$f":"C18/C19","v":11.422519519049386},"gdry/day","Eq"]
["Water content of vegetation as a proportion","PropWater",0.77,"gwater/gfood","WkMk Documentation"]
["Dry weight content of vegetation as a proportion","PropDry"," = 1-PropWater"]
[null,null,{"$f":"1-C22","v":0.22999999999999998},"gdry/gfood","Eq"]
["Variability in caloric requirements not accounted for by allometric equation","Error"]
[null,"Central ",1,"Note 2"]
[null,"Lower ",0.3]
[null,"Upper ",1.7]
["Amount of food consumed per day,  wet weight","AmntFood"," = (AmntDry ÷ PropDry) ÷ (1000g/kg)"]
[null,"Central ",{"$f":"C26*(C$21/C$24)/1000","v":4.9663128343692992E-2},"kgfood/day","Eq"]
[null,"Lower ",{"$f":"C27*(C$21/C$24)/1000","v":1.4898938503107896E-2},null,"Eq"]
[null,"Upper ",8.442731818427808E-2,null,"Eq"]
["Estimate"]
["Dose","Dose"," = AmntFood   ×  Conc / BW"]
[null,"Central",{"$f":"$C30 * C9/C$13","v":34.76418984058509},"mg/kg bw/day","Eq"]
[null,"Lower",{"$f":"$C31 * C10/C$13","v":4.7676603209945272},null,"Eq"]
[null,"Upper",{"$f":"$C32 * C11/C$13","v":126.64097727641712},null,"Eq"]

{"sheet":"F04e","index":68,"n_rows":37,"n_cols":5,"rows_kept":37,"cut":false,"hidden":false,"merged":[[16,0,17,0],[0,0,0,4],[2,1,2,3],[7,0,10,0],[8,3,10,3],[13,0,15,0],[19,0,20,0],[22,0,23,0],[24,0,27,0],[28,0,31,0],[33,0,36,0]]}
["Consumption of Fruit by a Bird, large after Acute exposure."]
["Short Title","Fruit",null,null,"FdKcalV6"]
["Receptor","Bird, large"]
["Duration","Acute",null,null,"Scenario parameter"]
["Material consumed","Fruit"]
["Parameter/Assumption","Code / Range","Equation/   Value","Units","Reference/Designation"]
["Commodity"]
["Concentration on consumed commodity","Conc"]
[null,"Central ",{"$f":"B05a!Acute_C","v":7},"mg/kg food wet weight","='B05a'!Acute_C"]
[null,"Lower ",{"$f":"B05a!Acute_L","v":3.2000000000000006},null,"='B05a'!Acute_L"]
[null,"Upper ",{"$f":"B05a!Acute_U","v":15},null,"='B05a'!Acute_U"]
["Receptor"]
["Body weight","BW",{"$f":"A02b!$C$15","v":4},"kg","Default"]
["Allometric coefficients for caloric requirement per day in kilocalories and BW in grams"]
[null,"alpha",{"$f":"A02b!$C$16","v":1.1459999999999999},null,"U.S. EPA/ORD 1993"]
[null,"beta",{"$f":"A02b!$C$17","v":0.749},null,"U.S. EPA/ORD 1993"]
["Caloric requirement per day","KR","= alpha x (BW x 1kg/1000g)beta"]
[null,null,{"$f":"C15*((C13*1000)^C16)","v":571.64650307958129},"kcal/day","Eq"]
["Caloric content of commodity (dry weight)","KCD",1.1000000000000001,"kcal/gdw [Note 1]","WkMk Documentation"]
["Food consumed per day (dry weight)","AmntDry"," = KR ÷ KCD"]
[null,null,{"$f":"C18/C19","v":519.67863916325564},"gdry/day","Eq"]
["Water content of vegetation as a proportion","PropWater",0.77,"gwater/gfood","WkMk Documentation"]
["Dry weight content of vegetation as a proportion","PropDry"," = 1-PropWater"]
[null,null,{"$f":"1-C22","v":0.22999999999999998},"gdry/gfood","Eq"]
["Variability in caloric requirements not accounted for by allometric equation","Error"]
[null,"Central ",1,"Note 2"]
[null,"Lower ",0.3]
[null,"Upper ",1.7]
["Amount of food consumed per day,  wet weight","AmntFood"," = (AmntDry ÷ PropDry) ÷ (1000g/kg)"]
[null,"Central ",{"$f":"C26*(C$21/C$24)/1000","v":2.2594723441880684},"kgfood/day","Eq"]
[null,"Lower ",{"$f":"C27*(C$21/C$24)/1000","v":0.67784170325642046},null,"Eq"]
[null,"Upper ",3.8411029851197158,null,"Eq"]
["Estimate"]
["Dose","Dose"," = AmntFood   ×  Conc / BW"]
[null,"Central",{"$f":"$C30 * C9/C$13","v":3.9540766023291196},"mg/kg bw/day","Eq"]
[null,"Lower",{"$f":"$C31 * C10/C$13","v":0.54227336260513648},null,"Eq"]
[null,"Upper",{"$f":"$C32 * C11/C$13","v":14.404136194198934},null,"Eq"]

{"sheet":"F05a","index":69,"n_rows":37,"n_cols":5,"rows_kept":37,"cut":false,"hidden":false,"merged":[[16,0,17,0],[0,0,0,4],[2,1,2,3],[7,0,10,0],[8,3,10,3],[13,0,15,0],[19,0,20,0],[22,0,23,0],[24,0,27,0],[28,0,31,0],[33,0,36,0]]}
["Consumption of Short grass by a Mammal, small after Acute exposure."]
["Short Title","Short grass",null,null,"FdKcalV6"]
["Receptor","Mammal, small"]
["Duration","Acute",null,null,"Scenario parameter"]
["Material consumed","Short grass"]
["Parameter/Assumption","Code / Range","Equation/   Value","Units","Reference/Designation"]
["Commodity"]
["Concentration on consumed commodity","Conc"]
[null,"Central ",{"$f":"B05c!Acute_C","v":85},"mg/kg food wet weight","='B05c'!Acute_C"]
[null,"Lower ",{"$f":"B05c!Acute_L","v":29.999999999999996},null,"='B05c'!Acute_L"]
[null,"Upper ",{"$f":"B05c!Acute_U","v":240},null,"='B05c'!Acute_U"]
["Receptor"]
["Body weight","BW",{"$f":"A02b!$C$71","v":0.02},"kg","Default"]
["Allometric coefficients for caloric requirement per day in kilocalories and BW in grams"]
[null,"alpha",{"$f":"A02b!$C$75","v":2.5139999999999998},null,"U.S. EPA/ORD 1993"]
[null,"beta",{"$f":"A02b!$C$76","v":0.50700000000000001},null,"U.S. EPA/ORD 1993"]
["Caloric requirement per day","KR","= alpha x (BW x 1kg/1000g)beta"]
[null,null,{"$f":"C15*((C13*1000)^C16)","v":11.481205256262459},"kcal/day","Eq"]
["Caloric content of commodity (dry weight)","KCD",2.2599999999999998,"kcal/gdw [Note 1]","WkMk Documentation"]
["Food consumed per day (dry weight)","AmntDry"," = KR ÷ KCD"]
[null,null,{"$f":"C18/C19","v":5.080179316930292},"gdry/day","Eq"]
["Water content of vegetation as a proportion","PropWater",0.85,"gwater/gfood","WkMk Documentation"]
["Dry weight content of vegetation as a proportion","PropDry"," = 1-PropWater"]
[null,null,{"$f":"1-C22","v":0.15000000000000002},"gdry/gfood","Eq"]
["Variability in caloric requirements not accounted for by allometric equation","Error"]
[null,"Central ",1,"Note 2"]
[null,"Lower ",0.3]
[null,"Upper ",1.7]
["Amount of food consumed per day,  wet weight","AmntFood"," = (AmntDry ÷ PropDry) ÷ (1000g/kg)"]
[null,"Central ",{"$f":"C26*(C$21/C$24)/1000","v":3.3867862112868609E-2},"kgfood/day","Eq"]
[null,"Lower ",{"$f":"C27*(C$21/C$24)/1000","v":1.0160358633860582E-2},null,"Eq"]
[null,"Upper ",5.7575365591876634E-2,null,"Eq"]
["Estimate"]
["Dose","Dose"," = AmntFood   ×  Conc / BW"]
[null,"Central",{"$f":"$C30 * C9/C$13","v":143.93841397969157},"mg/kg bw/day","Eq"]
[null,"Lower",{"$f":"$C31 * C10/C$13","v":15.24053795079087},null,"Eq"]
[null,"Upper",{"$f":"$C32 * C11/C$13","v":690.90438710251965},null,"Eq"]

{"sheet":"F05b","index":70,"n_rows":37,"n_cols":5,"rows_kept":37,"cut":false,"hidden":false,"merged":[[16,0,17,0],[0,0,0,4],[2,1,2,3],[7,0,10,0],[8,3,10,3],[13,0,15,0],[19,0,20,0],[22,0,23,0],[24,0,27,0],[28,0,31,0],[33,0,36,0]]}
["Consumption of Short grass by a Mammal, 400 g after Acute exposure."]
["Short Title","Short grass",null,null,"FdKcalV6"]
["Receptor","Mammal, 400 g"]
["Duration","Acute",null,null,"Scenario parameter"]
["Material consumed","Short grass"]
["Parameter/Assumption","Code / Range","Equation/   Value","Units","Reference/Designation"]
["Commodity"]
["Concentration on consumed commodity","Conc"]
[null,"Central ",{"$f":"B05c!Acute_C","v":85},"mg/kg food wet weight","='B05c'!Acute_C"]
[null,"Lower ",{"$f":"B05c!Acute_L","v":29.999999999999996},null,"='B05c'!Acute_L"]
[null,"Upper ",{"$f":"B05c!Acute_U","v":240},null,"='B05c'!Acute_U"]
["Receptor"]
["Body weight","BW",{"$f":"A02b!$C$40","v":0.4},"kg","Default"]
["Allometric coefficients for caloric requirement per day in kilocalories and BW in grams"]
[null,"alpha",{"$f":"A02b!$C$43","v":2.5139999999999998},null,"U.S. EPA/ORD 1993"]
[null,"beta",{"$f":"A02b!$C$44","v":0.50700000000000001},null,"U.S. EPA/ORD 1993"]
["Caloric requirement per day","KR","= alpha x (BW x 1kg/1000g)beta"]
[null,null,{"$f":"C15*((C13*1000)^C16)","v":52.433601486248513},"kcal/day","Eq"]
["Caloric content of commodity (dry weight)","KCD",2.2599999999999998,"kcal/gdw [Note 1]","WkMk Documentation"]
["Food consumed per day (dry weight)","AmntDry"," = KR ÷ KCD"]
[null,null,{"$f":"C18/C19","v":23.200708622233858},"gdry/day","Eq"]
["Water content of vegetation as a proportion","PropWater",0.85,"gwater/gfood","WkMk Documentation"]
["Dry weight content of vegetation as a proportion","PropDry"," = 1-PropWater"]
[null,null,{"$f":"1-C22","v":0.15000000000000002},"gdry/gfood","Eq"]
["Variability in caloric requirements not accounted for by allometric equation","Error"]
[null,"Central ",1,"Note 2"]
[null,"Lower ",0.3]
[null,"Upper ",1.7]
["Amount of food consumed per day,  wet weight","AmntFood"," = (AmntDry ÷ PropDry) ÷ (1000g/kg)"]
[null,"Central ",{"$f":"C26*(C$21/C$24)/1000","v":0.15467139081489237},"kgfood/day","Eq"]
[null,"Lower ",{"$f":"C27*(C$21/C$24)/1000","v":4.640141724446771E-2},null,"Eq"]
[null,"Upper ",0.26294136438531701,null,"Eq"]
["Estimate"]
["Dose","Dose"," = AmntFood   ×  Conc / BW"]
[null,"Central",{"$f":"$C30 * C9/C$13","v":32.867670548164625},"mg/kg bw/day","Eq"]
[null,"Lower",{"$f":"$C31 * C10/C$13","v":3.4801062933350777},null,"Eq"]
[null,"Upper",{"$f":"$C32 * C11/C$13","v":157.7648186311902},null,"Eq"]

{"sheet":"F05c","index":71,"n_rows":37,"n_cols":5,"rows_kept":37,"cut":false,"hidden":false,"merged":[[16,0,17,0],[0,0,0,4],[2,1,2,3],[7,0,10,0],[8,3,10,3],[13,0,15,0],[19,0,20,0],[22,0,23,0],[24,0,27,0],[28,0,31,0],[33,0,36,0]]}
["Consumption of Short grass by a Mammal, large after Acute exposure."]
["Short Title","Short grass",null,null,"FdKcalV6"]
["Receptor","Mammal, large"]
["Duration","Acute",null,null,"Scenario parameter"]
["Material consumed","Short grass"]
["Parameter/Assumption","Code / Range","Equation/   Value","Units","Reference/Designation"]
["Commodity"]
["Concentration on consumed commodity","Conc"]
[null,"Central ",{"$f":"B05c!Acute_C","v":85},"mg/kg food wet weight","='B05c'!Acute_C"]
[null,"Lower ",{"$f":"B05c!Acute_L","v":29.999999999999996},null,"='B05c'!Acute_L"]
[null,"Upper ",{"$f":"B05c!Acute_U","v":240},null,"='B05c'!Acute_U"]
["Receptor"]
["Body weight","BW",{"$f":"A02b!$C$61","v":70},"kg","Default"]
["Allometric coefficients for caloric requirement per day in kilocalories and BW in grams"]
[null,"alpha",{"$f":"A02b!$C$62","v":1.518},null,"U.S. EPA/ORD 1993"]
[null,"beta",{"$f":"A02b!$C$63","v":0.73},null,"U.S. EPA/ORD 1993"]
["Caloric requirement per day","KR","= alpha x (BW x 1kg/1000g)beta"]
[null,null,{"$f":"C15*((C13*1000)^C16)","v":5226.288029759985},"kcal/day","Eq"]
["Caloric content of commodity (dry weight)","KCD",2.2599999999999998,"kcal/gdw [Note 1]","WkMk Documentation"]
["Food consumed per day (dry weight)","AmntDry"," = KR ÷ KCD"]
[null,null,{"$f":"C18/C19","v":2312.5168273274271},"gdry/day","Eq"]
["Water content of vegetation as a proportion","PropWater",0.85,"gwater/gfood","WkMk Documentation"]
["Dry weight content of vegetation as a proportion","PropDry"," = 1-PropWater"]
[null,null,{"$f":"1-C22","v":0.15000000000000002},"gdry/gfood","Eq"]
["Variability in caloric requirements not accounted for by allometric equation","Error"]
[null,"Central ",1,"Note 2"]
[null,"Lower ",0.3]
[null,"Upper ",1.7]
["Amount of food consumed per day,  wet weight","AmntFood"," = (AmntDry ÷ PropDry) ÷ (1000g/kg)"]
[null,"Central ",{"$f":"C26*(C$21/C$24)/1000","v":15.416778848849512},"kgfood/day","Eq"]
[null,"Lower ",{"$f":"C27*(C$21/C$24)/1000","v":4.6250336546548532},null,"Eq"]
[null,"Upper ",26.208524043044171,null,"Eq"]
["Estimate"]
["Dose","Dose"," = AmntFood   ×  Conc / BW"]
[null,"Central",{"$f":"$C30 * C9/C$13","v":18.720374316460124},"mg/kg bw/day","Eq"]
[null,"Lower",{"$f":"$C31 * C10/C$13","v":1.9821572805663656},null,"Eq"]
[null,"Upper",{"$f":"$C32 * C11/C$13","v":89.85779671900859},null,"Eq"]

{"sheet":"F05d","index":72,"n_rows":37,"n_cols":5,"rows_kept":37,"cut":false,"hidden":false,"merged":[[16,0,17,0],[0,0,0,4],[2,1,2,3],[7,0,10,0],[8,3,10,3],[13,0,15,0],[19,0,20,0],[22,0,23,0],[24,0,27,0],[28,0,31,0],[33,0,36,0]]}
["Consumption of Short grass by a Bird, small after Acute exposure."]
["Short Title","Short grass",null,null,"FdKcalV6"]
["Receptor","Bird, small"]
["Duration","Acute",null,null,"Scenario parameter"]
["Material consumed","Short grass"]
["Parameter/Assumption","Code / Range","Equation/   Value","Units","Reference/Designation"]
["Commodity"]
["Concentration on consumed commodity","Conc"]
[null,"Central ",{"$f":"B05c!Acute_C","v":85},"mg/kg food wet weight","='B05c'!Acute_C"]
[null,"Lower ",{"$f":"B05c!Acute_L","v":29.999999999999996},null,"='B05c'!Acute_L"]
[null,"Upper ",{"$f":"B05c!Acute_U","v":240},null,"='B05c'!Acute_U"]
["Receptor"]
["Body weight","BW",{"$f":"A02b!$C$31","v":0.01},"kg","Default"]
["Allometric coefficients for caloric requirement per day in kilocalories and BW in grams"]
[null,"alpha",{"$f":"A02b!$C$32","v":3.12},null,"U.S. EPA/ORD 1993"]
[null,"beta",{"$f":"A02b!$C$33","v":0.60499999999999998},null,"U.S. EPA/ORD 1993"]
["Caloric requirement per day","KR","= alpha x (BW x 1kg/1000g)beta"]
[null,null,{"$f":"C15*((C13*1000)^C16)","v":12.564771470954325},"kcal/day","Eq"]
["Caloric content of commodity (dry weight)","KCD",2,"kcal/gdw [Note 1]","WkMk Documentation"]
["Food consumed per day (dry weight)","AmntDry"," = KR ÷ KCD"]
[null,null,{"$f":"C18/C19","v":6.2823857354771624},"gdry/day","Eq"]
["Water content of vegetation as a proportion","PropWater",0.85,"gwater/gfood","WkMk Documentation"]
["Dry weight content of vegetation as a proportion","PropDry"," = 1-PropWater"]
[null,null,{"$f":"1-C22","v":0.15000000000000002},"gdry/gfood","Eq"]
["Variability in caloric requirements not accounted for by allometric equation","Error"]
[null,"Central ",1,"Note 2"]
[null,"Lower ",0.3]
[null,"Upper ",1.7]
["Amount of food consumed per day,  wet weight","AmntFood"," = (AmntDry ÷ PropDry) ÷ (1000g/kg)"]
[null,"Central ",{"$f":"C26*(C$21/C$24)/1000","v":4.1882571569847739E-2},"kgfood/day","Eq"]
[null,"Lower ",{"$f":"C27*(C$21/C$24)/1000","v":1.2564771470954321E-2},null,"Eq"]
[null,"Upper ",7.1200371668741158E-2,null,"Eq"]
["Estimate"]
["Dose","Dose"," = AmntFood   ×  Conc / BW"]
[null,"Central",{"$f":"$C30 * C9/C$13","v":356.00185834370575},"mg/kg bw/day","Eq"]
[null,"Lower",{"$f":"$C31 * C10/C$13","v":37.694314412862958},null,"Eq"]
[null,"Upper",{"$f":"$C32 * C11/C$13","v":1708.8089200497875},null,"Eq"]

{"sheet":"F05e","index":73,"n_rows":37,"n_cols":5,"rows_kept":37,"cut":false,"hidden":false,"merged":[[16,0,17,0],[0,0,0,4],[2,1,2,3],[7,0,10,0],[8,3,10,3],[13,0,15,0],[19,0,20,0],[22,0,23,0],[24,0,27,0],[28,0,31,0],[33,0,36,0]]}
["Consumption of Short grass by a Bird, large after Acute exposure."]
["Short Title","Short grass",null,null,"FdKcalV6"]
["Receptor","Bird, large"]
["Duration","Acute",null,null,"Scenario parameter"]
["Material consumed","Short grass"]
["Parameter/Assumption","Code / Range","Equation/   Value","Units","Reference/Designation"]
["Commodity"]
["Concentration on consumed commodity","Conc"]
[null,"Central ",{"$f":"B05c!Acute_C","v":85},"mg/kg food wet weight","='B05c'!Acute_C"]
[null,"Lower ",{"$f":"B05c!Acute_L","v":29.999999999999996},null,"='B05c'!Acute_L"]
[null,"Upper ",{"$f":"B05c!Acute_U","v":240},null,"='B05c'!Acute_U"]
["Receptor"]
["Body weight","BW",{"$f":"A02b!$C$15","v":4},"kg","Default"]
["Allometric coefficients for caloric requirement per day in kilocalories and BW in grams"]
[null,"alpha",{"$f":"A02b!$C$16","v":1.1459999999999999},null,"U.S. EPA/ORD 1993"]
[null,"beta",{"$f":"A02b!$C$17","v":0.749},null,"U.S. EPA/ORD 1993"]
["Caloric requirement per day","KR","= alpha x (BW x 1kg/1000g)beta"]
[null,null,{"$f":"C15*((C13*1000)^C16)","v":571.64650307958129},"kcal/day","Eq"]
["Caloric content of commodity (dry weight)","KCD",2,"kcal/gdw [Note 1]","WkMk Documentation"]
["Food consumed per day (dry weight)","AmntDry"," = KR ÷ KCD"]
[null,null,{"$f":"C18/C19","v":285.82325153979065},"gdry/day","Eq"]
["Water content of vegetation as a proportion","PropWater",0.85,"gwater/gfood","WkMk Documentation"]
["Dry weight content of vegetation as a proportion","PropDry"," = 1-PropWater"]
[null,null,{"$f":"1-C22","v":0.15000000000000002},"gdry/gfood","Eq"]
["Variability in caloric requirements not accounted for by allometric equation","Error"]
[null,"Central ",1,"Note 2"]
[null,"Lower ",0.3]
[null,"Upper ",1.7]
["Amount of food consumed per day,  wet weight","AmntFood"," = (AmntDry ÷ PropDry) ÷ (1000g/kg)"]
[null,"Central ",{"$f":"C26*(C$21/C$24)/1000","v":1.9054883435986039},"kgfood/day","Eq"]
[null,"Lower ",{"$f":"C27*(C$21/C$24)/1000","v":0.5716465030795812},null,"Eq"]
[null,"Upper ",3.2393301841176267,null,"Eq"]
["Estimate"]
["Dose","Dose"," = AmntFood   ×  Conc / BW"]
[null,"Central",{"$f":"$C30 * C9/C$13","v":40.491627301470331},"mg/kg bw/day","Eq"]
[null,"Lower",{"$f":"$C31 * C10/C$13","v":4.2873487730968582},null,"Eq"]
[null,"Upper",{"$f":"$C32 * C11/C$13","v":194.3598110470576},null,"Eq"]

{"sheet":"F06a","index":74,"n_rows":20,"n_cols":5,"rows_kept":20,"cut":false,"hidden":false,"merged":[[16,0,19,0],[0,0,0,4],[1,1,1,3],[2,1,2,3],[5,0,8,0],[11,0,13,0],[14,0,15,0]]}
["Consumption of contaminated water by Mammal, small, Peak Concentrations "]
["Short Title","Peak Concentrations",null,null,"WatAlloV6"]
["Receptor","Mammal, small"]
["Duration","Acute",null,null,"Scenario parameter"]
["Parameter/Assumption","Code / Range","Equation/   Value","Units","Reference/Designation"]
["Concentration in water","ConcWat"]
[null,"Central ",{"$f":"B04a!Acute_C","v":1.0999999999999999E-2},"mg/L","='B04a'!Acute_C"]
[null,"Lower ",{"$f":"B04a!Acute_L","v":1E-3},null,"='B04a'!Acute_L"]
[null,"Upper ",{"$f":"B04a!Acute_U","v":0.18},null,"='B04a'!Acute_U"]
["Receptor"]
["Body weight","BW",{"$f":"A02b!$C$71","v":0.02},"kg","Default"]
["Allometric coefficients forwater consumption per day in liters and BW in kilograms"]
[null,"alpha",{"$f":"A02b!$C$79","v":9.9000000000000005E-2},null,"U.S. EPA/ORD 1993"]
[null,"beta",{"$f":"A02b!$C$80","v":0.9},null,"U.S. EPA/ORD 1993"]
["Amount of water consumed per day",null,"Amnt = alpha BW beta"]
[null,"Amnt",{"$f":"C13*(C11^C14)","v":2.9279401205240612E-3},"liters","Eq"]
["Absorbed Dose","Dose","ConcWat  × Amnt ÷ BW"]
[null,"Central ",{"$f":"C7*C$16/C$11","v":1.6103670662882333E-3},"mg/kg","Eq"]
[null,"Lower ",{"$f":"C8*C$16/C$11","v":1.4639700602620307E-4},"mg/kg","Eq"]
[null,"Upper ",{"$f":"C9*C$16/C$11","v":2.6351461084716549E-2},"mg/kg","Eq"]

{"sheet":"F06b","index":75,"n_rows":20,"n_cols":5,"rows_kept":20,"cut":false,"hidden":false,"merged":[[16,0,19,0],[0,0,0,4],[1,1,1,3],[2,1,2,3],[5,0,8,0],[11,0,13,0],[14,0,15,0]]}
["Consumption of contaminated water by Mammal, 400 g, Peak Concentrations "]
["Short Title","Peak Concentrations",null,null,"WatAlloV6"]
["Receptor","Mammal, 400 g"]
["Duration","Acute",null,null,"Scenario parameter"]
["Parameter/Assumption","Code / Range","Equation/   Value","Units","Reference/Designation"]
["Concentration in water","ConcWat"]
[null,"Central ",{"$f":"B04a!Acute_C","v":1.0999999999999999E-2},"mg/L","='B04a'!Acute_C"]
[null,"Lower ",{"$f":"B04a!Acute_L","v":1E-3},null,"='B04a'!Acute_L"]
[null,"Upper ",{"$f":"B04a!Acute_U","v":0.18},null,"='B04a'!Acute_U"]
["Receptor"]
["Body weight","BW",{"$f":"A02b!$C$40","v":0.4},"kg","Default"]
["Allometric coefficients forwater consumption per day in liters and BW in kilograms"]
[null,"alpha",{"$f":"A02b!$C$45","v":9.9000000000000005E-2},null,"U.S. EPA/ORD 1993"]
[null,"beta",{"$f":"A02b!$C$46","v":0.9},null,"U.S. EPA/ORD 1993"]
["Amount of water consumed per day",null,"Amnt = alpha BW beta"]
[null,"Amnt",{"$f":"C13*(C11^C14)","v":4.3399945764854612E-2},"liters","Eq"]
["Absorbed Dose","Dose","ConcWat  × Amnt ÷ BW"]
[null,"Central ",{"$f":"C7*C$16/C$11","v":1.1934985085335016E-3},"mg/kg","Eq"]
[null,"Lower ",{"$f":"C8*C$16/C$11","v":1.0849986441213652E-4},"mg/kg","Eq"]
[null,"Upper ",{"$f":"C9*C$16/C$11","v":1.9529975594184575E-2},"mg/kg","Eq"]

{"sheet":"F06c","index":76,"n_rows":20,"n_cols":5,"rows_kept":20,"cut":false,"hidden":false,"merged":[[16,0,19,0],[0,0,0,4],[1,1,1,3],[2,1,2,3],[5,0,8,0],[11,0,13,0],[14,0,15,0]]}
["Consumption of contaminated water by Mammal, carnivorous, Peak Concentrations "]
["Short Title","Peak Concentrations",null,null,"WatAlloV6"]
["Receptor","Mammal, carnivorous"]
["Duration","Acute",null,null,"Scenario parameter"]
["Parameter/Assumption","Code / Range","Equation/   Value","Units","Reference/Designation"]
["Concentration in water","ConcWat"]
[null,"Central ",{"$f":"B04a!Acute_C","v":1.0999999999999999E-2},"mg/L","='B04a'!Acute_C"]
[null,"Lower ",{"$f":"B04a!Acute_L","v":1E-3},null,"='B04a'!Acute_L"]
[null,"Upper ",{"$f":"B04a!Acute_U","v":0.18},null,"='B04a'!Acute_U"]
["Receptor"]
["Body weight","BW",{"$f":"A02b!$C$47","v":5},"kg","U.S. EPA/ORD 1993"]
["Allometric coefficients forwater consumption per day in liters and BW in kilograms"]
[null,"alpha",{"$f":"A02b!$C$50","v":9.9000000000000005E-2},null,"U.S. EPA/ORD 1993"]
[null,"beta",{"$f":"A02b!$C$51","v":0.9},null,"U.S. EPA/ORD 1993"]
["Amount of water consumed per day",null,"Amnt = alpha BW beta"]
[null,"Amnt",{"$f":"C13*(C11^C14)","v":0.42141326164778842},"liters","Eq"]
["Absorbed Dose","Dose","ConcWat  × Amnt ÷ BW"]
[null,"Central ",{"$f":"C7*C$16/C$11","v":9.2710917562513452E-4},"mg/kg","Eq"]
[null,"Lower ",{"$f":"C8*C$16/C$11","v":8.4282652329557684E-5},"mg/kg","Eq"]
[null,"Upper ",{"$f":"C9*C$16/C$11","v":1.5170877419320383E-2},"mg/kg","Eq"]

{"sheet":"F06d","index":77,"n_rows":20,"n_cols":5,"rows_kept":20,"cut":false,"hidden":false,"merged":[[16,0,19,0],[0,0,0,4],[1,1,1,3],[2,1,2,3],[5,0,8,0],[11,0,13,0],[14,0,15,0]]}
["Consumption of contaminated water by Mammal, large, Peak Concentrations "]
["Short Title","Peak Concentrations",null,null,"WatAlloV6"]
["Receptor","Mammal, large"]
["Duration","Acute",null,null,"Scenario parameter"]
["Parameter/Assumption","Code / Range","Equation/   Value","Units","Reference/Designation"]
["Concentration in water","ConcWat"]
[null,"Central ",{"$f":"B04a!Acute_C","v":1.0999999999999999E-2},"mg/L","='B04a'!Acute_C"]
[null,"Lower ",{"$f":"B04a!Acute_L","v":1E-3},null,"='B04a'!Acute_L"]
[null,"Upper ",{"$f":"B04a!Acute_U","v":0.18},null,"='B04a'!Acute_U"]
["Receptor"]
["Body weight","BW",{"$f":"A02b!$C$61","v":70},"kg","Default"]
["Allometric coefficients forwater consumption per day in liters and BW in kilograms"]
[null,"alpha",{"$f":"A02b!$C$64","v":9.9000000000000005E-2},null,"U.S. EPA/ORD 1993"]
[null,"beta",{"$f":"A02b!$C$65","v":0.9},null,"U.S. EPA/ORD 1993"]
["Amount of water consumed per day",null,"Amnt = alpha BW beta"]
[null,"Amnt",{"$f":"C13*(C11^C14)","v":4.5313064115862725},"liters","Eq"]
["Absorbed Dose","Dose","ConcWat  × Amnt ÷ BW"]
[null,"Central ",{"$f":"C7*C$16/C$11","v":7.1206243610641418E-4},"mg/kg","Eq"]
[null,"Lower ",{"$f":"C8*C$16/C$11","v":6.4732948736946755E-5},"mg/kg","Eq"]
[null,"Upper ",{"$f":"C9*C$16/C$11","v":1.1651930772650414E-2},"mg/kg","Eq"]

{"sheet":"F06e","index":78,"n_rows":20,"n_cols":5,"rows_kept":20,"cut":false,"hidden":false,"merged":[[16,0,19,0],[0,0,0,4],[1,1,1,3],[2,1,2,3],[5,0,8,0],[11,0,13,0],[14,0,15,0]]}
["Consumption of contaminated water by Bird, small, Peak Concentrations "]
["Short Title","Peak Concentrations",null,null,"WatAlloV6"]
["Receptor","Bird, small"]
["Duration","Acute",null,null,"Scenario parameter"]
["Parameter/Assumption","Code / Range","Equation/   Value","Units","Reference/Designation"]
["Concentration in water","ConcWat"]
[null,"Central ",{"$f":"B04a!Acute_C","v":1.0999999999999999E-2},"mg/L","='B04a'!Acute_C"]
[null,"Lower ",{"$f":"B04a!Acute_L","v":1E-3},null,"='B04a'!Acute_L"]
[null,"Upper ",{"$f":"B04a!Acute_U","v":0.18},null,"='B04a'!Acute_U"]
["Receptor"]
["Body weight","BW",{"$f":"A02b!$C$31","v":0.01},"kg","Default"]
["Allometric coefficients forwater consumption per day in liters and BW in kilograms"]
[null,"alpha",{"$f":"A02b!$C$34","v":5.8999999999999997E-2},null,"U.S. EPA/ORD 1993"]
[null,"beta",{"$f":"A02b!$C$35","v":0.67},null,"U.S. EPA/ORD 1993"]
["Amount of water consumed per day",null,"Amnt = alpha BW beta"]
[null,"Amnt",{"$f":"C13*(C11^C14)","v":2.6968203187277624E-3},"liters","Eq"]
["Absorbed Dose","Dose","ConcWat  × Amnt ÷ BW"]
[null,"Central ",{"$f":"C7*C$16/C$11","v":2.9665023506005384E-3},"mg/kg","Eq"]
[null,"Lower ",{"$f":"C8*C$16/C$11","v":2.6968203187277627E-4},"mg/kg","Eq"]
[null,"Upper ",{"$f":"C9*C$16/C$11","v":4.8542765737099723E-2},"mg/kg","Eq"]

{"sheet":"F06f","index":79,"n_rows":20,"n_cols":5,"rows_kept":20,"cut":false,"hidden":false,"merged":[[16,0,19,0],[0,0,0,4],[1,1,1,3],[2,1,2,3],[5,0,8,0],[11,0,13,0],[14,0,15,0]]}
["Consumption of contaminated water by Bird, large, Peak Concentrations "]
["Short Title","Peak Concentrations",null,null,"WatAlloV6"]
["Receptor","Bird, large"]
["Duration","Acute",null,null,"Scenario parameter"]
["Parameter/Assumption","Code / Range","Equation/   Value","Units","Reference/Designation"]
["Concentration in water","ConcWat"]
[null,"Central ",{"$f":"B04a!Acute_C","v":1.0999999999999999E-2},"mg/L","='B04a'!Acute_C"]
[null,"Lower ",{"$f":"B04a!Acute_L","v":1E-3},null,"='B04a'!Acute_L"]
[null,"Upper ",{"$f":"B04a!Acute_U","v":0.18},null,"='B04a'!Acute_U"]
["Receptor"]
["Body weight","BW",{"$f":"A02b!$C$15","v":4},"kg","Default"]
["Allometric coefficients forwater consumption per day in liters and BW in kilograms"]
[null,"alpha",{"$f":"A02b!$C$18","v":5.8999999999999997E-2},null,"U.S. EPA/ORD 1993"]
[null,"beta",{"$f":"A02b!$C$19","v":0.67},null,"U.S. EPA/ORD 1993"]
["Amount of water consumed per day",null,"Amnt = alpha BW beta"]
[null,"Amnt",{"$f":"C13*(C11^C14)","v":0.14935927808849303},"liters","Eq"]
["Absorbed Dose","Dose","ConcWat  × Amnt ÷ BW"]
[null,"Central ",{"$f":"C7*C$16/C$11","v":4.107380147433558E-4},"mg/kg","Eq"]
[null,"Lower ",{"$f":"C8*C$16/C$11","v":3.7339819522123262E-5},"mg/kg","Eq"]
[null,"Upper ",{"$f":"C9*C$16/C$11","v":6.7211675139821859E-3},"mg/kg","Eq"]

{"sheet":"F07a","index":80,"n_rows":37,"n_cols":5,"rows_kept":37,"cut":false,"hidden":false,"merged":[[16,0,17,0],[0,0,0,4],[2,1,2,3],[7,0,10,0],[8,3,10,3],[13,0,15,0],[19,0,20,0],[22,0,23,0],[24,0,27,0],[28,0,31,0],[33,0,36,0]]}
["Consumption of Small Insects by a Mammal, small after Acute exposure."]
["Short Title","Small Insects",null,null,"FdKcalV6"]
["Receptor","Mammal, small"]
["Duration","Acute",null,null,"Scenario parameter"]
["Material consumed","Small Insects"]
["Parameter/Assumption","Code / Range","Equation/   Value","Units","Reference/Designation"]
["Commodity"]
["Concentration on consumed commodity","Conc"]
[null,"Central ",{"$f":"B05b!Acute_C","v":45},"mg/kg food wet weight","='B05b'!Acute_C"]
[null,"Lower ",{"$f":"B05b!Acute_L","v":14.999999999999998},null,"='B05b'!Acute_L"]
[null,"Upper ",{"$f":"B05b!Acute_U","v":135},null,"='B05b'!Acute_U"]
["Receptor"]
["Body weight","BW",{"$f":"A02b!$C$71","v":0.02},"kg","Default"]
["Allometric coefficients for caloric requirement per day in kilocalories and BW in grams"]
[null,"alpha",{"$f":"A02b!$C$75","v":2.5139999999999998},null,"U.S. EPA/ORD 1993"]
[null,"beta",{"$f":"A02b!$C$76","v":0.50700000000000001},null,"U.S. EPA/ORD 1993"]
["Caloric requirement per day","KR","= alpha x (BW x 1kg/1000g)beta"]
[null,null,{"$f":"C15*((C13*1000)^C16)","v":11.481205256262459},"kcal/day","Eq"]
["Caloric content of commodity (dry weight)","KCD",4.47,"kcal/gdw [Note 1]","WkMk Documentation"]
["Food consumed per day (dry weight)","AmntDry"," = KR ÷ KCD"]
[null,null,{"$f":"C18/C19","v":2.5685022944658749},"gdry/day","Eq"]
["Water content of vegetation as a proportion","PropWater",0.7,"gwater/gfood","WkMk Documentation"]
["Dry weight content of vegetation as a proportion","PropDry"," = 1-PropWater"]
[null,null,{"$f":"1-C22","v":0.30000000000000004},"gdry/gfood","Eq"]
["Variability in caloric requirements not accounted for by allometric equation","Error"]
[null,"Central ",1,"Note 2"]
[null,"Lower ",0.3]
[null,"Upper ",1.7]
["Amount of food consumed per day,  wet weight","AmntFood"," = (AmntDry ÷ PropDry) ÷ (1000g/kg)"]
[null,"Central ",{"$f":"C26*(C$21/C$24)/1000","v":8.561674314886249E-3},"kgfood/day","Eq"]
[null,"Lower ",{"$f":"C27*(C$21/C$24)/1000","v":2.5685022944658743E-3},null,"Eq"]
[null,"Upper ",1.4554846335306623E-2,null,"Eq"]
["Estimate"]
["Dose","Dose"," = AmntFood   ×  Conc / BW"]
[null,"Central",{"$f":"$C30 * C9/C$13","v":19.263767208494059},"mg/kg bw/day","Eq"]
[null,"Lower",{"$f":"$C31 * C10/C$13","v":1.9263767208494056},null,"Eq"]
[null,"Upper",{"$f":"$C32 * C11/C$13","v":98.245212763319699},null,"Eq"]

{"sheet":"F07b","index":81,"n_rows":37,"n_cols":5,"rows_kept":37,"cut":false,"hidden":false,"merged":[[16,0,17,0],[0,0,0,4],[2,1,2,3],[7,0,10,0],[8,3,10,3],[13,0,15,0],[19,0,20,0],[22,0,23,0],[24,0,27,0],[28,0,31,0],[33,0,36,0]]}
["Consumption of Small Insects by a Mammal, 400 g after Acute exposure."]
["Short Title","Small Insects",null,null,"FdKcalV6"]
["Receptor","Mammal, 400 g"]
["Duration","Acute",null,null,"Scenario parameter"]
["Material consumed","Small Insects"]
["Parameter/Assumption","Code / Range","Equation/   Value","Units","Reference/Designation"]
["Commodity"]
["Concentration on consumed commodity","Conc"]
[null,"Central ",{"$f":"B05b!Acute_C","v":45},"mg/kg food wet weight","='B05b'!Acute_C"]
[null,"Lower ",{"$f":"B05b!Acute_L","v":14.999999999999998},null,"='B05b'!Acute_L"]
[null,"Upper ",{"$f":"B05b!Acute_U","v":135},null,"='B05b'!Acute_U"]
["Receptor"]
["Body weight","BW",{"$f":"A02b!$C$40","v":0.4},"kg","Default"]
["Allometric coefficients for caloric requirement per day in kilocalories and BW in grams"]
[null,"alpha",{"$f":"A02b!$C$43","v":2.5139999999999998},null,"U.S. EPA/ORD 1993"]
[null,"beta",{"$f":"A02b!$C$44","v":0.50700000000000001},null,"U.S. EPA/ORD 1993"]
["Caloric requirement per day","KR","= alpha x (BW x 1kg/1000g)beta"]
[null,null,{"$f":"C15*((C13*1000)^C16)","v":52.433601486248513},"kcal/day","Eq"]
["Caloric content of commodity (dry weight)","KCD",4.47,"kcal/gdw [Note 1]","WkMk Documentation"]
["Food consumed per day (dry weight)","AmntDry"," = KR ÷ KCD"]
[null,null,{"$f":"C18/C19","v":11.730112189317341},"gdry/day","Eq"]
["Water content of vegetation as a proportion","PropWater",0.7,"gwater/gfood","WkMk Documentation"]
["Dry weight content of vegetation as a proportion","PropDry"," = 1-PropWater"]
[null,null,{"$f":"1-C22","v":0.30000000000000004},"gdry/gfood","Eq"]
["Variability in caloric requirements not accounted for by allometric equation","Error"]
[null,"Central ",1,"Note 2"]
[null,"Lower ",0.3]
[null,"Upper ",1.7]
["Amount of food consumed per day,  wet weight","AmntFood"," = (AmntDry ÷ PropDry) ÷ (1000g/kg)"]
[null,"Central ",{"$f":"C26*(C$21/C$24)/1000","v":3.910037396439113E-2},"kgfood/day","Eq"]
[null,"Lower ",{"$f":"C27*(C$21/C$24)/1000","v":1.1730112189317339E-2},null,"Eq"]
[null,"Upper ",6.647063573946492E-2,null,"Eq"]
["Estimate"]
["Dose","Dose"," = AmntFood   ×  Conc / BW"]
[null,"Central",{"$f":"$C30 * C9/C$13","v":4.398792070994002},"mg/kg bw/day","Eq"]
[null,"Lower",{"$f":"$C31 * C10/C$13","v":0.43987920709940015},null,"Eq"]
[null,"Upper",{"$f":"$C32 * C11/C$13","v":22.433839562069409},null,"Eq"]

{"sheet":"F07c","index":82,"n_rows":37,"n_cols":5,"rows_kept":37,"cut":false,"hidden":false,"merged":[[16,0,17,0],[0,0,0,4],[2,1,2,3],[7,0,10,0],[8,3,10,3],[13,0,15,0],[19,0,20,0],[22,0,23,0],[24,0,27,0],[28,0,31,0],[33,0,36,0]]}
["Consumption of Small Insects by a Bird, small after Acute exposure."]
["Short Title","Small Insects",null,null,"FdKcalV6"]
["Receptor","Bird, small"]
["Duration","Acute",null,null,"Scenario parameter"]
["Material consumed","Small Insects"]
["Parameter/Assumption","Code / Range","Equation/   Value","Units","Reference/Designation"]
["Commodity"]
["Concentration on consumed commodity","Conc"]
[null,"Central ",{"$f":"B05b!Acute_C","v":45},"mg/kg food wet weight","='B05b'!Acute_C"]
[null,"Lower ",{"$f":"B05b!Acute_L","v":14.999999999999998},null,"='B05b'!Acute_L"]
[null,"Upper ",{"$f":"B05b!Acute_U","v":135},null,"='B05b'!Acute_U"]
["Receptor"]
["Body weight","BW",{"$f":"A02b!$C$31","v":0.01},"kg","Default"]
["Allometric coefficients for caloric requirement per day in kilocalories and BW in grams"]
[null,"alpha",{"$f":"A02b!$C$32","v":3.12},null,"U.S. EPA/ORD 1993"]
[null,"beta",{"$f":"A02b!$C$33","v":0.60499999999999998},null,"U.S. EPA/ORD 1993"]
["Caloric requirement per day","KR","= alpha x (BW x 1kg/1000g)beta"]
[null,null,{"$f":"C15*((C13*1000)^C16)","v":12.564771470954325},"kcal/day","Eq"]
["Caloric content of commodity (dry weight)","KCD",4.3,"kcal/gdw [Note 1]","WkMk Documentation"]
["Food consumed per day (dry weight)","AmntDry"," = KR ÷ KCD"]
[null,null,{"$f":"C18/C19","v":2.9220398769661222},"gdry/day","Eq"]
["Water content of vegetation as a proportion","PropWater",0.7,"gwater/gfood","WkMk Documentation"]
["Dry weight content of vegetation as a proportion","PropDry"," = 1-PropWater"]
[null,null,{"$f":"1-C22","v":0.30000000000000004},"gdry/gfood","Eq"]
["Variability in caloric requirements not accounted for by allometric equation","Error"]
[null,"Central ",1,"Note 2"]
[null,"Lower ",0.3]
[null,"Upper ",1.7]
["Amount of food consumed per day,  wet weight","AmntFood"," = (AmntDry ÷ PropDry) ÷ (1000g/kg)"]
[null,"Central ",{"$f":"C26*(C$21/C$24)/1000","v":9.7401329232204067E-3},"kgfood/day","Eq"]
[null,"Lower ",{"$f":"C27*(C$21/C$24)/1000","v":2.9220398769661217E-3},null,"Eq"]
[null,"Upper ",1.6558225969474691E-2,null,"Eq"]
["Estimate"]
["Dose","Dose"," = AmntFood   ×  Conc / BW"]
[null,"Central",{"$f":"$C30 * C9/C$13","v":43.830598154491831},"mg/kg bw/day","Eq"]
[null,"Lower",{"$f":"$C31 * C10/C$13","v":4.3830598154491822},null,"Eq"]
[null,"Upper",{"$f":"$C32 * C11/C$13","v":223.53605058790831},null,"Eq"]

{"sheet":"F08a","index":83,"n_rows":43,"n_cols":5,"rows_kept":43,"cut":false,"hidden":false,"merged":[[12,0,14,0],[0,0,0,4],[1,1,1,3],[2,1,2,3],[3,1,3,3],[4,1,4,3],[37,1,38,1],[39,0,42,0],[15,0,16,0],[17,0,18,0],[22,0,25,0],[26,0,29,0],[32,0,34,0],[37,0,38,0]]}
["Consumption of Small Mammal by Mammal, carnivorous, acute exposure scenario"]
["Short Title","Consumption of Abrev(Prey)",null,null,"SmMKcalInd_Ac"]
["Predator","Mammal, carnivorous"]
["Duration","Acute"]
["Prey","Mammal, small"]
["Parameter/Assumption","Code / Range","Equation/   Value","Units","Reference/Designation"]
["Application rate, lb/acre","ApRlb/ac",{"$f":"'A01'!ApRt_C","v":1},"lb/acre","Worksheet A01"]
["Conversion Factor for lbs/acre to mg/cm2","CnvF",1.1209999999999999E-2,"mg/cm2/lb/acre"]
["Application rate, mg/cm2","ApRmgcm","ApRlb/a × CnvF"]
[null,null,{"$f":"C7*C$8","v":1.1209999999999999E-2},"lb/acre","Eq"]
["Prey"]
["Body weight","BWPrey",{"$f":"A02b!$C$71","v":0.02},"kg","Default"]
["Allometric coefficients for surface area"]
[null,"alpha",{"$f":"A02b!$C$77","v":0.11},null,"U.S. EPA/ORD 1993"]
[null,"beta",{"$f":"A02b!$C$78","v":0.65},null,"U.S. EPA/ORD 1993"]
["Surface Area of Prey Species (m2)","SAPreyM","alpha x Bwbeta"]
[null,null,{"$f":"C14 * C12^C15","v":8.6509177386020729E-3},"meters"]
["Surface Area of Prey Species (cm2)","SAPrey","SAPreyM x 10,000 cm/m2"]
[null,null,{"$f":"C17*10000","v":86.509177386020724},"cm2","Eq"]
["Proportion of body surface sprayed","PrpSA",0.5,"unitless","Scenario parameter"]
["Amount Deposited on Skin","AmntPrey","ApRmgcm × SA × PrpSA"]
[null,"Central",{"$f":"C$10*C$19*C$20","v":0.48488393924864615},"mg","Eq"]
["Toxic Equivalency Factor for formulation:  (See risk assessment if this has a value other than 1.)","TEF"]
[null,"Central ",{"$f":"'A01'!C$35","v":1},"unitless","Worksheet A01"]
[null,"Lower ",{"$f":"'A01'!C$36","v":1},null,"Worksheet A01"]
[null,"Upper ",{"$f":"'A01'!C$37","v":1},null,"Worksheet A01"]
["Concentration on prey item after direct spray","DosePrey","Amnt x TEF  ÷ BW"]
[null,"Central",{"$f":"C$22*C24/C$12","v":24.244196962432305},"mg/kg bw","Eq"]
[null,"Lower",{"$f":"C$22*C25/C$12","v":24.244196962432305},null,"Eq"]
[null,"Upper",{"$f":"C$22*C26/C$12","v":24.244196962432305},null,"Eq"]
["Predator"]
["Body weight","BW",{"$f":"A02b!$C$47","v":5},"kg","U.S. EPA/ORD 1993"]
["Allometric coefficients for caloric requirement per day in kilocalories and BW in grams"]
[null,"alpha",{"$f":"A02b!$C$48","v":0.61670000000000003},null,"U.S. EPA/ORD 1993"]
[null,"beta",{"$f":"A02b!$C$49","v":0.86199999999999999},null,"U.S. EPA/ORD 1993"]
["Caloric requirement per day","KR",{"$f":"C34*((C32*1000)^C35)","v":951.88852658889334},"kcal/day","Eq"]
["Caloric content of prey (wet  weight)","KCW",{"$f":"A02b!$C$72","v":1.7},"kcal/g","U.S. EPA/ORD 1993"]
["Amount of food consumed per day,  wet weight","Amnt","(KR ÷ KCW)/1000 g/kg"]
[null,null,{"$f":"(C36/C37)/1000","v":0.55993442740523147},"kg","Eq"]
["Dose","Dose","Amnt   ×  DosePrey / BW"]
[null,"Central",{"$f":"C$39 * C28/C$32","v":2.7150321088118372},"mg/kg bw","Eq"]
[null,"Lower",{"$f":"C$39 * C29/C$32","v":2.7150321088118372},null,"Eq"]
[null,"Upper",{"$f":"C$39 * C30/C$32","v":2.7150321088118372},null,"Eq"]

{"sheet":"F08b","index":84,"n_rows":43,"n_cols":5,"rows_kept":43,"cut":false,"hidden":false,"merged":[[12,0,14,0],[0,0,0,4],[1,1,1,3],[2,1,2,3],[3,1,3,3],[4,1,4,3],[37,1,38,1],[39,0,42,0],[15,0,16,0],[17,0,18,0],[22,0,25,0],[26,0,29,0],[32,0,34,0],[37,0,38,0]]}
["Consumption of Small Mammal by Bird, carnivorous, acute exposure scenario"]
["Short Title","Consumption of Abrev(Prey)",null,null,"SmMKcalInd_Ac"]
["Predator","Bird, carnivorous"]
["Duration","Acute"]
["Prey","Mammal, small"]
["Parameter/Assumption","Code / Range","Equation/   Value","Units","Reference/Designation"]
["Application rate, lb/acre","ApRlb/ac",{"$f":"'A01'!ApRt_C","v":1},"lb/acre","Worksheet A01"]
["Conversion Factor for lbs/acre to mg/cm2","CnvF",1.1209999999999999E-2,"mg/cm2/lb/acre"]
["Application rate, mg/cm2","ApRmgcm","ApRlb/a × CnvF"]
[null,null,{"$f":"C7*C$8","v":1.1209999999999999E-2},"lb/acre","Eq"]
["Prey"]
["Body weight","BWPrey",{"$f":"A02b!$C$71","v":0.02},"kg","Default"]
["Allometric coefficients for surface area"]
[null,"alpha",{"$f":"A02b!$C$77","v":0.11},null,"U.S. EPA/ORD 1993"]
[null,"beta",{"$f":"A02b!$C$78","v":0.65},null,"U.S. EPA/ORD 1993"]
["Surface Area of Prey Species (m2)","SAPreyM","alpha x Bwbeta"]
[null,null,{"$f":"C14 * C12^C15","v":8.6509177386020729E-3},"meters"]
["Surface Area of Prey Species (cm2)","SAPrey","SAPreyM x 10,000 cm/m2"]
[null,null,{"$f":"C17*10000","v":86.509177386020724},"cm2","Eq"]
["Proportion of body surface sprayed","PrpSA",0.5,"unitless","Scenario parameter"]
["Amount Deposited on Skin","AmntPrey","ApRmgcm × SA × PrpSA"]
[null,"Central",{"$f":"C$10*C$19*C$20","v":0.48488393924864615},"mg","Eq"]
["Toxic Equivalency Factor for formulation:  (See risk assessment if this has a value other than 1.)","TEF"]
[null,"Central ",{"$f":"'A01'!C$35","v":1},"unitless","Worksheet A01"]
[null,"Lower ",{"$f":"'A01'!C$36","v":1},null,"Worksheet A01"]
[null,"Upper ",{"$f":"'A01'!C$37","v":1},null,"Worksheet A01"]
["Concentration on prey item after direct spray","DosePrey","Amnt x TEF  ÷ BW"]
[null,"Central",{"$f":"C$22*C24/C$12","v":24.244196962432305},"mg/kg bw","Eq"]
[null,"Lower",{"$f":"C$22*C25/C$12","v":24.244196962432305},null,"Eq"]
[null,"Upper",{"$f":"C$22*C26/C$12","v":24.244196962432305},null,"Eq"]
["Predator"]
["Body weight","BW",{"$f":"A02b!$C$10","v":0.64},"kg","Dunning 1993"]
["Allometric coefficients for caloric requirement per day in kilocalories and BW in grams"]
[null,"alpha",{"$f":"A02b!$C$11","v":1.1459999999999999},null,"U.S. EPA/ORD 1993"]
[null,"beta",{"$f":"A02b!$C$12","v":0.749},null,"U.S. EPA/ORD 1993"]
["Caloric requirement per day","KR",{"$f":"C34*((C32*1000)^C35)","v":144.88166161018853},"kcal/day","Eq"]
["Caloric content of prey (wet  weight)","KCW",{"$f":"A02b!$C$72","v":1.7},"kcal/g","U.S. EPA/ORD 1993"]
["Amount of food consumed per day,  wet weight","Amnt","(KR ÷ KCW)/1000 g/kg"]
[null,null,{"$f":"(C36/C37)/1000","v":8.5224506829522664E-2},"kg","Eq"]
["Dose","Dose","Amnt   ×  DosePrey / BW"]
[null,"Central",{"$f":"C$39 * C28/C$32","v":3.2284370775017259},"mg/kg bw","Eq"]
[null,"Lower",{"$f":"C$39 * C29/C$32","v":3.2284370775017259},null,"Eq"]
[null,"Upper",{"$f":"C$39 * C30/C$32","v":3.2284370775017259},null,"Eq"]

{"sheet":"F09a","index":85,"n_rows":50,"n_cols":5,"rows_kept":50,"cut":false,"hidden":false,"merged":[[7,0,10,0],[0,0,0,4],[1,1,1,3],[2,1,2,3],[3,1,3,3],[4,1,4,3],[36,0,39,0],[41,0,44,0],[45,0,48,0],[12,0,15,0],[16,0,19,0],[22,0,24,0],[27,0,28,0],[30,0,31,0],[32,0,33,0]]}
["Acute scenario for the consumption of Contaminated Fish (Peak) by Mammal, large carnivorous "]
["Short Title","Fish consumption, accidental spill",null,null,"FishKcalV6"]
["Predator","Mammal, large carnivorous"]
["Food Item (Prey)","Fish"]
["Duration","Acute",null,null,"Scenario parameter"]
["Parameter/Assumption","Code / Range","Equation/   Value","Units","Reference/Designation"]
["Water"]
["Concentration in water","ConcWat"]
[null,"Central ",{"$f":"B04a!Acute_C","v":1.0999999999999999E-2},"mg/L","='B04a'!Acute_C"]
[null,"Lower ",{"$f":"B04a!Acute_L","v":1E-3},null,"='B04a'!Acute_L"]
[null,"Upper ",{"$f":"B04a!Acute_U","v":0.18},null,"='B04a'!Acute_U"]
["Fish"]
["Bioconcentration factor","BCF"]
[null,"Central ",{"$f":"'B01'!$C$6","v":1},"L/kg","Section 3.2.3.5."]
[null,"Lower ",{"$f":"'B01'!$C$6","v":1},null,"Section 3.2.3.5."]
[null,"Upper ",{"$f":"'B01'!$C$6","v":1},null,"Section 3.2.3.5."]
["Concentration in fish","ConcFish","ConcWat × BCF"]
[null,"Central ",{"$f":"C9*C14","v":1.0999999999999999E-2},"mg/kg","Eq"]
[null,"Lower ",{"$f":"C10*C15","v":1E-3},null,"Eq"]
[null,"Upper ",{"$f":"C11*C16","v":0.18},null,"Eq"]
["Receptor"]
["Body weight","BW",{"$f":"A02b!$C$52","v":70},"kg","Reid 2006"]
["Allometric coefficients for caloric requirement per day in kilocalories and BW in grams"]
[null,"alpha",{"$f":"A02b!$C$53","v":0.61670000000000003},null,"U.S. EPA/ORD 1993"]
[null,"beta",{"$f":"A02b!$C$54","v":0.86199999999999999},null,"U.S. EPA/ORD 1993"]
["Caloric requirement per day","KR",{"$f":"C24*(C22*1000)^C25","v":9258.6668828796119},"kcal/day","Eq"]
["Caloric content of commodity (dry weight)","KCD",4.47,"kcal/gdw [Note 1]","WkMk Documentation"]
["Food consumed per day (dry weight)","AmntDry"," = KR ÷ KCD"]
[null,null,{"$f":"C26/C27","v":2071.2901303981234},"gdry/day","Eq"]
["Water content of vegetation as a proportion","PropWater",0.7,"gwater/gfood","WkMk Documentation"]
["Dry weight content of vegetation as a proportion","PropDry"," = 1-PropWater"]
[null,null,{"$f":"1-C30","v":0.30000000000000004},"gdry/gfood","Eq"]
["Amount of fish consumed per day,  wet weight","AmntFish"," = (AmntDry ÷ PropDry) ÷ (1000g/kg)"]
[null,"Central ",{"$f":"(C29/C32)/1000","v":6.90430043466041},"kgfood/day","Eq"]
[null,"Lower ",{"$f":"C34*0.3","v":2.0712901303981228},"Note 1","Eq"]
[null,"Upper ",{"$f":"C34*1.7","v":11.737310738922696},"Note 1","Eq"]
["Proportion of diet that is contaminated","Prop"]
[null,"Central ",0.3,"Unitless","Scenario parameter"]
[null,"Lower ",0.1,null,"Scenario parameter"]
[null,"Upper ",1,null,"Scenario parameter"]
["Dose"]
["Toxic Equivalency Factor for formulation:  (See risk assessment if this has a value other than 1.)","TEF"]
[null,"Central ",{"$f":"'A01'!C$35","v":1},"Unitless","Worksheet A01"]
[null,"Lower ",{"$f":"'A01'!C$36","v":1},"Note 2","Worksheet A01"]
[null,"Upper ",{"$f":"'A01'!C$37","v":1},"Note 2","Worksheet A01"]
["Dose","Dose","= ConcFish × AmntFish × Prop ÷ BW"]
[null,"Central ",{"$f":"C18*C34*C38/C$22","v":3.2548844906256217E-4},"mg/kg","Eq"]
[null,"Lower ",{"$f":"C19*C35*C39/C$22","v":2.9589859005687471E-6},"mg/kg","Eq"]
[null,"Upper ",3.0181656185801219E-2,"mg/kg","Eq"]
[null,null,null,null,"FishKcalV6"]

{"sheet":"F09b","index":86,"n_rows":50,"n_cols":5,"rows_kept":50,"cut":false,"hidden":false,"merged":[[7,0,10,0],[0,0,0,4],[1,1,1,3],[2,1,2,3],[3,1,3,3],[4,1,4,3],[36,0,39,0],[41,0,44,0],[45,0,48,0],[12,0,15,0],[16,0,19,0],[22,0,24,0],[27,0,28,0],[30,0,31,0],[32,0,33,0]]}
["Acute scenario for the consumption of Contaminated Fish (Peak) by Mammal, carnivorous "]
["Short Title","Fish consumption, accidental spill",null,null,"FishKcalV6"]
["Predator","Mammal, carnivorous"]
["Food Item (Prey)","Fish"]
["Duration","Acute",null,null,"Scenario parameter"]
["Parameter/Assumption","Code / Range","Equation/   Value","Units","Reference/Designation"]
["Water"]
["Concentration in water","ConcWat"]
[null,"Central ",{"$f":"B04a!Acute_C","v":1.0999999999999999E-2},"mg/L","='B04a'!Acute_C"]
[null,"Lower ",{"$f":"B04a!Acute_L","v":1E-3},null,"='B04a'!Acute_L"]
[null,"Upper ",{"$f":"B04a!Acute_U","v":0.18},null,"='B04a'!Acute_U"]
["Fish"]
["Bioconcentration factor","BCF"]
[null,"Central ",{"$f":"'B01'!$C$6","v":1},"L/kg","Section 3.2.3.5."]
[null,"Lower ",{"$f":"'B01'!$C$6","v":1},null,"Section 3.2.3.5."]
[null,"Upper ",{"$f":"'B01'!$C$6","v":1},null,"Section 3.2.3.5."]
["Concentration in fish","ConcFish","ConcWat × BCF"]
[null,"Central ",{"$f":"C9*C14","v":1.0999999999999999E-2},"mg/kg","Eq"]
[null,"Lower ",{"$f":"C10*C15","v":1E-3},null,"Eq"]
[null,"Upper ",{"$f":"C11*C16","v":0.18},null,"Eq"]
["Receptor"]
["Body weight","BW",{"$f":"A02b!$C$47","v":5},"kg","U.S. EPA/ORD 1993"]
["Allometric coefficients for caloric requirement per day in kilocalories and BW in grams"]
[null,"alpha",{"$f":"A02b!$C$48","v":0.61670000000000003},null,"U.S. EPA/ORD 1993"]
[null,"beta",{"$f":"A02b!$C$49","v":0.86199999999999999},null,"U.S. EPA/ORD 1993"]
["Caloric requirement per day","KR",{"$f":"C24*(C22*1000)^C25","v":951.88852658889334},"kcal/day","Eq"]
["Caloric content of commodity (dry weight)","KCD",4.47,"kcal/gdw [Note 1]","WkMk Documentation"]
["Food consumed per day (dry weight)","AmntDry"," = KR ÷ KCD"]
[null,null,{"$f":"C26/C27","v":212.95045337559137},"gdry/day","Eq"]
["Water content of vegetation as a proportion","PropWater",0.7,"gwater/gfood","WkMk Documentation"]
["Dry weight content of vegetation as a proportion","PropDry"," = 1-PropWater"]
[null,null,{"$f":"1-C30","v":0.30000000000000004},"gdry/gfood","Eq"]
["Amount of fish consumed per day,  wet weight","AmntFish"," = (AmntDry ÷ PropDry) ÷ (1000g/kg)"]
[null,"Central ",{"$f":"(C29/C32)/1000","v":0.70983484458530455},"kgfood/day","Eq"]
[null,"Lower ",{"$f":"C34*0.3","v":0.21295045337559135},"Note 1","Eq"]
[null,"Upper ",{"$f":"C34*1.7","v":1.2067192357950176},"Note 1","Eq"]
["Proportion of diet that is contaminated","Prop"]
[null,"Central ",0.3,"Unitless","Scenario parameter"]
[null,"Lower ",0.1,null,"Scenario parameter"]
[null,"Upper ",1,null,"Scenario parameter"]
["Dose"]
["Toxic Equivalency Factor for formulation:  (See risk assessment if this has a value other than 1.)","TEF"]
[null,"Central ",{"$f":"'A01'!C$35","v":1},"Unitless","Worksheet A01"]
[null,"Lower ",{"$f":"'A01'!C$36","v":1},"Note 2","Worksheet A01"]
[null,"Upper ",{"$f":"'A01'!C$37","v":1},"Note 2","Worksheet A01"]
["Dose","Dose","= ConcFish × AmntFish × Prop ÷ BW"]
[null,"Central ",{"$f":"C18*C34*C38/C$22","v":4.6849099742630096E-4},"mg/kg","Eq"]
[null,"Lower ",{"$f":"C19*C35*C39/C$22","v":4.2590090675118275E-6},"mg/kg","Eq"]
[null,"Upper ",4.3441892488620633E-2,"mg/kg","Eq"]
[null,null,null,null,"FishKcalV6"]

{"sheet":"F09c","index":87,"n_rows":50,"n_cols":5,"rows_kept":50,"cut":false,"hidden":false,"merged":[[7,0,10,0],[0,0,0,4],[1,1,1,3],[2,1,2,3],[3,1,3,3],[4,1,4,3],[36,0,39,0],[41,0,44,0],[45,0,48,0],[12,0,15,0],[16,0,19,0],[22,0,24,0],[27,0,28,0],[30,0,31,0],[32,0,33,0]]}
["Acute scenario for the consumption of Contaminated Fish (Peak) by Bird, piscivorous "]
["Short Title","Fish consumption, accidental spill",null,null,"FishKcalV6"]
["Predator","Bird, piscivorous"]
["Food Item (Prey)","Fish"]
["Duration","Acute",null,null,"Scenario parameter"]
["Parameter/Assumption","Code / Range","Equation/   Value","Units","Reference/Designation"]
["Water"]
["Concentration in water","ConcWat"]
[null,"Central ",{"$f":"B04a!Acute_C","v":1.0999999999999999E-2},"mg/L","='B04a'!Acute_C"]
[null,"Lower ",{"$f":"B04a!Acute_L","v":1E-3},null,"='B04a'!Acute_L"]
[null,"Upper ",{"$f":"B04a!Acute_U","v":0.18},null,"='B04a'!Acute_U"]
["Fish"]
["Bioconcentration factor","BCF"]
[null,"Central ",{"$f":"'B01'!$C$6","v":1},"L/kg","Section 3.2.3.5."]
[null,"Lower ",{"$f":"'B01'!$C$6","v":1},null,"Section 3.2.3.5."]
[null,"Upper ",{"$f":"'B01'!$C$6","v":1},null,"Section 3.2.3.5."]
["Concentration in fish","ConcFish","ConcWat × BCF"]
[null,"Central ",{"$f":"C9*C14","v":1.0999999999999999E-2},"mg/kg","Eq"]
[null,"Lower ",{"$f":"C10*C15","v":1E-3},null,"Eq"]
[null,"Upper ",{"$f":"C11*C16","v":0.18},null,"Eq"]
["Receptor"]
["Body weight","BW",{"$f":"A02b!$C$24","v":2.4},"kg","Sibley 2000"]
["Allometric coefficients for caloric requirement per day in kilocalories and BW in grams"]
[null,"alpha",{"$f":"A02b!$C$27","v":1.9159999999999999},null,"U.S. EPA/ORD 1993"]
[null,"beta",{"$f":"A02b!$C$28","v":0.70399999999999996},null,"U.S. EPA/ORD 1993"]
["Caloric requirement per day","KR",{"$f":"C24*(C22*1000)^C25","v":459.26591923752829},"kcal/day","Eq"]
["Caloric content of commodity (dry weight)","KCD",3.87,"kcal/gdw [Note 1]","WkMk Documentation"]
["Food consumed per day (dry weight)","AmntDry"," = KR ÷ KCD"]
[null,null,{"$f":"C26/C27","v":118.67336414406415},"gdry/day","Eq"]
["Water content of vegetation as a proportion","PropWater",0.7,"gwater/gfood","WkMk Documentation"]
["Dry weight content of vegetation as a proportion","PropDry"," = 1-PropWater"]
[null,null,{"$f":"1-C30","v":0.30000000000000004},"gdry/gfood","Eq"]
["Amount of fish consumed per day,  wet weight","AmntFish"," = (AmntDry ÷ PropDry) ÷ (1000g/kg)"]
[null,"Central ",{"$f":"(C29/C32)/1000","v":0.39557788048021375},"kgfood/day","Eq"]
[null,"Lower ",{"$f":"C34*0.3","v":0.11867336414406413},"Note 1","Eq"]
[null,"Upper ",{"$f":"C34*1.7","v":0.67248239681636335},"Note 1","Eq"]
["Proportion of diet that is contaminated","Prop"]
[null,"Central ",0.3,"Unitless","Scenario parameter"]
[null,"Lower ",0.1,null,"Scenario parameter"]
[null,"Upper ",1,null,"Scenario parameter"]
["Dose"]
["Toxic Equivalency Factor for formulation:  (See risk assessment if this has a value other than 1.)","TEF"]
[null,"Central ",{"$f":"'A01'!C$35","v":1},"Unitless","Worksheet A01"]
[null,"Lower ",{"$f":"'A01'!C$36","v":1},"Note 2","Worksheet A01"]
[null,"Upper ",{"$f":"'A01'!C$37","v":1},"Note 2","Worksheet A01"]
["Dose","Dose","= ConcFish × AmntFish × Prop ÷ BW"]
[null,"Central ",{"$f":"C18*C34*C38/C$22","v":5.4391958566029383E-4},"mg/kg","Eq"]
[null,"Lower ",{"$f":"C19*C35*C39/C$22","v":4.9447235060026722E-6},"mg/kg","Eq"]
[null,"Upper ",5.0436179761227252E-2,"mg/kg","Eq"]
[null,null,null,null,"FishKcalV6"]

{"sheet":"F10a","index":88,"n_rows":37,"n_cols":5,"rows_kept":37,"cut":false,"hidden":false,"merged":[[16,0,17,0],[0,0,0,4],[2,1,2,3],[7,0,10,0],[8,3,10,3],[13,0,15,0],[19,0,20,0],[22,0,23,0],[24,0,27,0],[28,0,31,0],[33,0,36,0]]}
["Consumption of Fruit by a Mammal, small after Chronic exposure."]
["Short Title","Fruit Chronic",null,null,"FdKcalV6"]
["Receptor","Mammal, small"]
["Duration","Chronic",null,null,"Scenario parameter"]
["Material consumed","Fruit"]
["Parameter/Assumption","Code / Range","Equation/   Value","Units","Reference/Designation"]
["Commodity"]
["Concentration on consumed commodity","Conc"]
[null,"Central ",{"$f":"B05a!Chronic_C","v":0.8973083336183536},"mg/kg food wet weight","='B05a'!Chronic_C"]
[null,"Lower ",{"$f":"B05a!Chronic_L","v":0.30776554951047314},null,"='B05a'!Chronic_L"]
[null,"Upper ",{"$f":"B05a!Chronic_U","v":5.1632113124741137},null,"='B05a'!Chronic_U"]
["Receptor"]
["Body weight","BW",{"$f":"A02b!$C$71","v":0.02},"kg","Default"]
["Allometric coefficients for caloric requirement per day in kilocalories and BW in grams"]
[null,"alpha",{"$f":"A02b!$C$75","v":2.5139999999999998},null,"U.S. EPA/ORD 1993"]
[null,"beta",{"$f":"A02b!$C$76","v":0.50700000000000001},null,"U.S. EPA/ORD 1993"]
["Caloric requirement per day","KR","= alpha x (BW x 1kg/1000g)beta"]
[null,null,{"$f":"C15*((C13*1000)^C16)","v":11.481205256262459},"kcal/day","Eq"]
["Caloric content of commodity (dry weight)","KCD",1.1000000000000001,"kcal/gdw [Note 1]","WkMk Documentation"]
["Food consumed per day (dry weight)","AmntDry"," = KR ÷ KCD"]
[null,null,{"$f":"C18/C19","v":10.437459323874963},"gdry/day","Eq"]
["Water content of vegetation as a proportion","PropWater",0.77,"gwater/gfood","WkMk Documentation"]
["Dry weight content of vegetation as a proportion","PropDry"," = 1-PropWater"]
[null,null,{"$f":"1-C22","v":0.22999999999999998},"gdry/gfood","Eq"]
["Variability in caloric requirements not accounted for by allometric equation","Error"]
[null,"Central ",1,"Note 2"]
[null,"Lower ",0.3]
[null,"Upper ",1.7]
["Amount of food consumed per day,  wet weight","AmntFood"," = (AmntDry ÷ PropDry) ÷ (1000g/kg)"]
[null,"Central ",{"$f":"C26*(C$21/C$24)/1000","v":4.5380257929891143E-2},"kgfood/day","Eq"]
[null,"Lower ",{"$f":"C27*(C$21/C$24)/1000","v":1.3614077378967342E-2},null,"Eq"]
[null,"Upper ",7.7146438480814941E-2,null,"Eq"]
["Estimate"]
["Dose","Dose"," = AmntFood   ×  Conc / BW"]
[null,"Central",{"$f":"$C30 * C9/C$13","v":2.036004181112085},"mg/kg bw/day","Eq"]
[null,"Lower",{"$f":"$C31 * C10/C$13","v":0.2094972002807993},null,"Eq"]
[null,"Upper",{"$f":"$C32 * C11/C$13","v":19.916168194061598},null,"Eq"]

{"sheet":"F10b","index":89,"n_rows":37,"n_cols":5,"rows_kept":37,"cut":false,"hidden":false,"merged":[[16,0,17,0],[0,0,0,4],[2,1,2,3],[7,0,10,0],[8,3,10,3],[13,0,15,0],[19,0,20,0],[22,0,23,0],[24,0,27,0],[28,0,31,0],[33,0,36,0]]}
["Consumption of Fruit by a Mammal, 400 g after Chronic exposure."]
["Short Title","Fruit Chronic",null,null,"FdKcalV6"]
["Receptor","Mammal, 400 g"]
["Duration","Chronic",null,null,"Scenario parameter"]
["Material consumed","Fruit"]
["Parameter/Assumption","Code / Range","Equation/   Value","Units","Reference/Designation"]
["Commodity"]
["Concentration on consumed commodity","Conc"]
[null,"Central ",{"$f":"B05a!Chronic_C","v":0.8973083336183536},"mg/kg food wet weight","='B05a'!Chronic_C"]
[null,"Lower ",{"$f":"B05a!Chronic_L","v":0.30776554951047314},null,"='B05a'!Chronic_L"]
[null,"Upper ",{"$f":"B05a!Chronic_U","v":5.1632113124741137},null,"='B05a'!Chronic_U"]
["Receptor"]
["Body weight","BW",{"$f":"A02b!$C$40","v":0.4},"kg","Default"]
["Allometric coefficients for caloric requirement per day in kilocalories and BW in grams"]
[null,"alpha",{"$f":"A02b!$C$43","v":2.5139999999999998},null,"U.S. EPA/ORD 1993"]
[null,"beta",{"$f":"A02b!$C$44","v":0.50700000000000001},null,"U.S. EPA/ORD 1993"]
["Caloric requirement per day","KR","= alpha x (BW x 1kg/1000g)beta"]
[null,null,{"$f":"C15*((C13*1000)^C16)","v":52.433601486248513},"kcal/day","Eq"]
["Caloric content of commodity (dry weight)","KCD",1.1000000000000001,"kcal/gdw [Note 1]","WkMk Documentation"]
["Food consumed per day (dry weight)","AmntDry"," = KR ÷ KCD"]
[null,null,{"$f":"C18/C19","v":47.666910442044099},"gdry/day","Eq"]
["Water content of vegetation as a proportion","PropWater",0.77,"gwater/gfood","WkMk Documentation"]
["Dry weight content of vegetation as a proportion","PropDry"," = 1-PropWater"]
[null,null,{"$f":"1-C22","v":0.22999999999999998},"gdry/gfood","Eq"]
["Variability in caloric requirements not accounted for by allometric equation","Error"]
[null,"Central ",1,"Note 2"]
[null,"Lower ",0.3]
[null,"Upper ",1.7]
["Amount of food consumed per day,  wet weight","AmntFood"," = (AmntDry ÷ PropDry) ÷ (1000g/kg)"]
[null,"Central ",{"$f":"C26*(C$21/C$24)/1000","v":0.20724743670453957},"kgfood/day","Eq"]
[null,"Lower ",{"$f":"C27*(C$21/C$24)/1000","v":6.2174231011361866E-2},null,"Eq"]
[null,"Upper ",0.35232064239771727,null,"Eq"]
["Estimate"]
["Dose","Dose"," = AmntFood   ×  Conc / BW"]
[null,"Central",{"$f":"$C30 * C9/C$13","v":0.464912130190064},"mg/kg bw/day","Eq"]
[null,"Lower",{"$f":"$C31 * C10/C$13","v":4.7837715931507208E-2},null,"Eq"]
[null,"Upper",{"$f":"$C32 * C11/C$13","v":4.5477648161151007},null,"Eq"]

{"sheet":"F10c","index":90,"n_rows":37,"n_cols":5,"rows_kept":37,"cut":false,"hidden":false,"merged":[[16,0,17,0],[0,0,0,4],[2,1,2,3],[7,0,10,0],[8,3,10,3],[13,0,15,0],[19,0,20,0],[22,0,23,0],[24,0,27,0],[28,0,31,0],[33,0,36,0]]}
["Consumption of Fruit by a Mammal, large after Chronic exposure."]
["Short Title","Fruit Chronic",null,null,"FdKcalV6"]
["Receptor","Mammal, large"]
["Duration","Chronic",null,null,"Scenario parameter"]
["Material consumed","Fruit"]
["Parameter/Assumption","Code / Range","Equation/   Value","Units","Reference/Designation"]
["Commodity"]
["Concentration on consumed commodity","Conc"]
[null,"Central ",{"$f":"B05a!Chronic_C","v":0.8973083336183536},"mg/kg food wet weight","='B05a'!Chronic_C"]
[null,"Lower ",{"$f":"B05a!Chronic_L","v":0.30776554951047314},null,"='B05a'!Chronic_L"]
[null,"Upper ",{"$f":"B05a!Chronic_U","v":5.1632113124741137},null,"='B05a'!Chronic_U"]
["Receptor"]
["Body weight","BW",{"$f":"A02b!$C$61","v":70},"kg","Default"]
["Allometric coefficients for caloric requirement per day in kilocalories and BW in grams"]
[null,"alpha",{"$f":"A02b!$C$62","v":1.518},null,"U.S. EPA/ORD 1993"]
[null,"beta",{"$f":"A02b!$C$63","v":0.73},null,"U.S. EPA/ORD 1993"]
["Caloric requirement per day","KR","= alpha x (BW x 1kg/1000g)beta"]
[null,null,{"$f":"C15*((C13*1000)^C16)","v":5226.288029759985},"kcal/day","Eq"]
["Caloric content of commodity (dry weight)","KCD",1.1000000000000001,"kcal/gdw [Note 1]","WkMk Documentation"]
["Food consumed per day (dry weight)","AmntDry"," = KR ÷ KCD"]
[null,null,{"$f":"C18/C19","v":4751.1709361454405},"gdry/day","Eq"]
["Water content of vegetation as a proportion","PropWater",0.77,"gwater/gfood","WkMk Documentation"]
["Dry weight content of vegetation as a proportion","PropDry"," = 1-PropWater"]
[null,null,{"$f":"1-C22","v":0.22999999999999998},"gdry/gfood","Eq"]
["Variability in caloric requirements not accounted for by allometric equation","Error"]
[null,"Central ",1,"Note 2"]
[null,"Lower ",0.3]
[null,"Upper ",1.7]
["Amount of food consumed per day,  wet weight","AmntFood"," = (AmntDry ÷ PropDry) ÷ (1000g/kg)"]
[null,"Central ",{"$f":"C26*(C$21/C$24)/1000","v":20.657264939762786},"kgfood/day","Eq"]
[null,"Lower ",{"$f":"C27*(C$21/C$24)/1000","v":6.1971794819288357},null,"Eq"]
[null,"Upper ",35.117350397596738,null,"Eq"]
["Estimate"]
["Dose","Dose"," = AmntFood   ×  Conc / BW"]
[null,"Central",{"$f":"$C30 * C9/C$13","v":0.2647990854315912},"mg/kg bw/day","Eq"]
[null,"Lower",{"$f":"$C31 * C10/C$13","v":2.724683355244082E-2},null,"Eq"]
[null,"Upper",{"$f":"$C32 * C11/C$13","v":2.590261440528411},null,"Eq"]

{"sheet":"F10d","index":91,"n_rows":37,"n_cols":5,"rows_kept":37,"cut":false,"hidden":false,"merged":[[16,0,17,0],[0,0,0,4],[2,1,2,3],[7,0,10,0],[8,3,10,3],[13,0,15,0],[19,0,20,0],[22,0,23,0],[24,0,27,0],[28,0,31,0],[33,0,36,0]]}
["Consumption of Fruit by a Bird, small after Chronic exposure."]
["Short Title","Fruit Chronic",null,null,"FdKcalV6"]
["Receptor","Bird, small"]
["Duration","Chronic",null,null,"Scenario parameter"]
["Material consumed","Fruit"]
["Parameter/Assumption","Code / Range","Equation/   Value","Units","Reference/Designation"]
["Commodity"]
["Concentration on consumed commodity","Conc"]
[null,"Central ",{"$f":"B05a!Chronic_C","v":0.8973083336183536},"mg/kg food wet weight","='B05a'!Chronic_C"]
[null,"Lower ",{"$f":"B05a!Chronic_L","v":0.30776554951047314},null,"='B05a'!Chronic_L"]
[null,"Upper ",{"$f":"B05a!Chronic_U","v":5.1632113124741137},null,"='B05a'!Chronic_U"]
["Receptor"]
["Body weight","BW",{"$f":"A02b!$C$31","v":0.01},"kg","Default"]
["Allometric coefficients for caloric requirement per day in kilocalories and BW in grams"]
[null,"alpha",{"$f":"A02b!$C$32","v":3.12},null,"U.S. EPA/ORD 1993"]
[null,"beta",{"$f":"A02b!$C$33","v":0.60499999999999998},null,"U.S. EPA/ORD 1993"]
["Caloric requirement per day","KR","= alpha x (BW x 1kg/1000g)beta"]
[null,null,{"$f":"C15*((C13*1000)^C16)","v":12.564771470954325},"kcal/day","Eq"]
["Caloric content of commodity (dry weight)","KCD",1.1000000000000001,"kcal/gdw [Note 1]","WkMk Documentation"]
["Food consumed per day (dry weight)","AmntDry"," = KR ÷ KCD"]
[null,null,{"$f":"C18/C19","v":11.422519519049386},"gdry/day","Eq"]
["Water content of vegetation as a proportion","PropWater",0.77,"gwater/gfood","WkMk Documentation"]
["Dry weight content of vegetation as a proportion","PropDry"," = 1-PropWater"]
[null,null,{"$f":"1-C22","v":0.22999999999999998},"gdry/gfood","Eq"]
["Variability in caloric requirements not accounted for by allometric equation","Error"]
[null,"Central ",1,"Note 2"]
[null,"Lower ",0.3]
[null,"Upper ",1.7]
["Amount of food consumed per day,  wet weight","AmntFood"," = (AmntDry ÷ PropDry) ÷ (1000g/kg)"]
[null,"Central ",{"$f":"C26*(C$21/C$24)/1000","v":4.9663128343692992E-2},"kgfood/day","Eq"]
[null,"Lower ",{"$f":"C27*(C$21/C$24)/1000","v":1.4898938503107896E-2},null,"Eq"]
[null,"Upper ",8.442731818427808E-2,null,"Eq"]
["Estimate"]
["Dose","Dose"," = AmntFood   ×  Conc / BW"]
[null,"Central",{"$f":"$C30 * C9/C$13","v":4.4563138936353583},"mg/kg bw/day","Eq"]
[null,"Lower",{"$f":"$C31 * C10/C$13","v":0.45853799955317476},null,"Eq"]
[null,"Upper",{"$f":"$C32 * C11/C$13","v":43.591608433091608},null,"Eq"]

{"sheet":"F10e","index":92,"n_rows":37,"n_cols":5,"rows_kept":37,"cut":false,"hidden":false,"merged":[[16,0,17,0],[0,0,0,4],[2,1,2,3],[7,0,10,0],[8,3,10,3],[13,0,15,0],[19,0,20,0],[22,0,23,0],[24,0,27,0],[28,0,31,0],[33,0,36,0]]}
["Consumption of Fruit by a Bird, large after Chronic exposure."]
["Short Title","Fruit Chronic",null,null,"FdKcalV6"]
["Receptor","Bird, large"]
["Duration","Chronic",null,null,"Scenario parameter"]
["Material consumed","Fruit"]
["Parameter/Assumption","Code / Range","Equation/   Value","Units","Reference/Designation"]
["Commodity"]
["Concentration on consumed commodity","Conc"]
[null,"Central ",{"$f":"B05a!Chronic_C","v":0.8973083336183536},"mg/kg food wet weight","='B05a'!Chronic_C"]
[null,"Lower ",{"$f":"B05a!Chronic_L","v":0.30776554951047314},null,"='B05a'!Chronic_L"]
[null,"Upper ",{"$f":"B05a!Chronic_U","v":5.1632113124741137},null,"='B05a'!Chronic_U"]
["Receptor"]
["Body weight","BW",{"$f":"A02b!$C$15","v":4},"kg","Default"]
["Allometric coefficients for caloric requirement per day in kilocalories and BW in grams"]
[null,"alpha",{"$f":"A02b!$C$16","v":1.1459999999999999},null,"U.S. EPA/ORD 1993"]
[null,"beta",{"$f":"A02b!$C$17","v":0.749},null,"U.S. EPA/ORD 1993"]
["Caloric requirement per day","KR","= alpha x (BW x 1kg/1000g)beta"]
[null,null,{"$f":"C15*((C13*1000)^C16)","v":571.64650307958129},"kcal/day","Eq"]
["Caloric content of commodity (dry weight)","KCD",1.1000000000000001,"kcal/gdw [Note 1]","WkMk Documentation"]
["Food consumed per day (dry weight)","AmntDry"," = KR ÷ KCD"]
[null,null,{"$f":"C18/C19","v":519.67863916325564},"gdry/day","Eq"]
["Water content of vegetation as a proportion","PropWater",0.77,"gwater/gfood","WkMk Documentation"]
["Dry weight content of vegetation as a proportion","PropDry"," = 1-PropWater"]
[null,null,{"$f":"1-C22","v":0.22999999999999998},"gdry/gfood","Eq"]
["Variability in caloric requirements not accounted for by allometric equation","Error"]
[null,"Central ",1,"Note 2"]
[null,"Lower ",0.3]
[null,"Upper ",1.7]
["Amount of food consumed per day,  wet weight","AmntFood"," = (AmntDry ÷ PropDry) ÷ (1000g/kg)"]
[null,"Central ",{"$f":"C26*(C$21/C$24)/1000","v":2.2594723441880684},"kgfood/day","Eq"]
[null,"Lower ",{"$f":"C27*(C$21/C$24)/1000","v":0.67784170325642046},null,"Eq"]
[null,"Upper ",3.8411029851197158,null,"Eq"]
["Estimate"]
["Dose","Dose"," = AmntFood   ×  Conc / BW"]
[null,"Central",{"$f":"$C30 * C9/C$13","v":0.5068608410050377},"mg/kg bw/day","Eq"]
[null,"Lower",{"$f":"$C31 * C10/C$13","v":5.2154081070956829E-2},null,"Eq"]
[null,"Upper",{"$f":"$C32 * C11/C$13","v":4.9581065962870507},null,"Eq"]

{"sheet":"F11a","index":93,"n_rows":37,"n_cols":5,"rows_kept":37,"cut":false,"hidden":false,"merged":[[16,0,17,0],[0,0,0,4],[2,1,2,3],[7,0,10,0],[8,3,10,3],[13,0,15,0],[19,0,20,0],[22,0,23,0],[24,0,27,0],[28,0,31,0],[33,0,36,0]]}
["Consumption of Short grass by a Mammal, small after Chronic exposure."]
["Short Title","Grass Chronic",null,null,"FdKcalV6"]
["Receptor","Mammal, small"]
["Duration","Chronic",null,null,"Scenario parameter"]
["Material consumed","Short grass"]
["Parameter/Assumption","Code / Range","Equation/   Value","Units","Reference/Designation"]
["Commodity"]
["Concentration on consumed commodity","Conc"]
[null,"Central ",{"$f":"B05c!Chronic_C","v":10.895886908222865},"mg/kg food wet weight","='B05c'!Chronic_C"]
[null,"Lower ",{"$f":"B05c!Chronic_L","v":2.885302026660685},null,"='B05c'!Chronic_L"]
[null,"Upper ",{"$f":"B05c!Chronic_U","v":82.611380999585819},null,"='B05c'!Chronic_U"]
["Receptor"]
["Body weight","BW",{"$f":"A02b!$C$71","v":0.02},"kg","Default"]
["Allometric coefficients for caloric requirement per day in kilocalories and BW in grams"]
[null,"alpha",{"$f":"A02b!$C$75","v":2.5139999999999998},null,"U.S. EPA/ORD 1993"]
[null,"beta",{"$f":"A02b!$C$76","v":0.50700000000000001},null,"U.S. EPA/ORD 1993"]
["Caloric requirement per day","KR","= alpha x (BW x 1kg/1000g)beta"]
[null,null,{"$f":"C15*((C13*1000)^C16)","v":11.481205256262459},"kcal/day","Eq"]
["Caloric content of commodity (dry weight)","KCD",2.2599999999999998,"kcal/gdw [Note 1]","WkMk Documentation"]
["Food consumed per day (dry weight)","AmntDry"," = KR ÷ KCD"]
[null,null,{"$f":"C18/C19","v":5.080179316930292},"gdry/day","Eq"]
["Water content of vegetation as a proportion","PropWater",0.85,"gwater/gfood","WkMk Documentation"]
["Dry weight content of vegetation as a proportion","PropDry"," = 1-PropWater"]
[null,null,{"$f":"1-C22","v":0.15000000000000002},"gdry/gfood","Eq"]
["Variability in caloric requirements not accounted for by allometric equation","Error"]
[null,"Central ",1,"Note 2"]
[null,"Lower ",0.3]
[null,"Upper ",1.7]
["Amount of food consumed per day,  wet weight","AmntFood"," = (AmntDry ÷ PropDry) ÷ (1000g/kg)"]
[null,"Central ",{"$f":"C26*(C$21/C$24)/1000","v":3.3867862112868609E-2},"kgfood/day","Eq"]
[null,"Lower ",{"$f":"C27*(C$21/C$24)/1000","v":1.0160358633860582E-2},null,"Eq"]
[null,"Upper ",5.7575365591876634E-2,null,"Eq"]
["Estimate"]
["Dose","Dose"," = AmntFood   ×  Conc / BW"]
[null,"Central",{"$f":"$C30 * C9/C$13","v":18.451019770255112},"mg/kg bw/day","Eq"]
[null,"Lower",{"$f":"$C31 * C10/C$13","v":1.465785167893866},null,"Eq"]
[null,"Upper",{"$f":"$C32 * C11/C$13","v":237.81902315504823},null,"Eq"]

{"sheet":"F11b","index":94,"n_rows":37,"n_cols":5,"rows_kept":37,"cut":false,"hidden":false,"merged":[[16,0,17,0],[0,0,0,4],[2,1,2,3],[7,0,10,0],[8,3,10,3],[13,0,15,0],[19,0,20,0],[22,0,23,0],[24,0,27,0],[28,0,31,0],[33,0,36,0]]}
["Consumption of Short grass by a Mammal, 400 g after Chronic exposure."]
["Short Title","Grass Chronic",null,null,"FdKcalV6"]
["Receptor","Mammal, 400 g"]
["Duration","Chronic",null,null,"Scenario parameter"]
["Material consumed","Short grass"]
["Parameter/Assumption","Code / Range","Equation/   Value","Units","Reference/Designation"]
["Commodity"]
["Concentration on consumed commodity","Conc"]
[null,"Central ",{"$f":"B05c!Chronic_C","v":10.895886908222865},"mg/kg food wet weight","='B05c'!Chronic_C"]
[null,"Lower ",{"$f":"B05c!Chronic_L","v":2.885302026660685},null,"='B05c'!Chronic_L"]
[null,"Upper ",{"$f":"B05c!Chronic_U","v":82.611380999585819},null,"='B05c'!Chronic_U"]
["Receptor"]
["Body weight","BW",{"$f":"A02b!$C$40","v":0.4},"kg","Default"]
["Allometric coefficients for caloric requirement per day in kilocalories and BW in grams"]
[null,"alpha",{"$f":"A02b!$C$43","v":2.5139999999999998},null,"U.S. EPA/ORD 1993"]
[null,"beta",{"$f":"A02b!$C$44","v":0.50700000000000001},null,"U.S. EPA/ORD 1993"]
["Caloric requirement per day","KR","= alpha x (BW x 1kg/1000g)beta"]
[null,null,{"$f":"C15*((C13*1000)^C16)","v":52.433601486248513},"kcal/day","Eq"]
["Caloric content of commodity (dry weight)","KCD",2.2599999999999998,"kcal/gdw [Note 1]","WkMk Documentation"]
["Food consumed per day (dry weight)","AmntDry"," = KR ÷ KCD"]
[null,null,{"$f":"C18/C19","v":23.200708622233858},"gdry/day","Eq"]
["Water content of vegetation as a proportion","PropWater",0.85,"gwater/gfood","WkMk Documentation"]
["Dry weight content of vegetation as a proportion","PropDry"," = 1-PropWater"]
[null,null,{"$f":"1-C22","v":0.15000000000000002},"gdry/gfood","Eq"]
["Variability in caloric requirements not accounted for by allometric equation","Error"]
[null,"Central ",1,"Note 2"]
[null,"Lower ",0.3]
[null,"Upper ",1.7]
["Amount of food consumed per day,  wet weight","AmntFood"," = (AmntDry ÷ PropDry) ÷ (1000g/kg)"]
[null,"Central ",{"$f":"C26*(C$21/C$24)/1000","v":0.15467139081489237},"kgfood/day","Eq"]
[null,"Lower ",{"$f":"C27*(C$21/C$24)/1000","v":4.640141724446771E-2},null,"Eq"]
[null,"Upper ",0.26294136438531701,null,"Eq"]
["Estimate"]
["Dose","Dose"," = AmntFood   ×  Conc / BW"]
[null,"Central",{"$f":"$C30 * C9/C$13","v":4.2132049556415199},"mg/kg bw/day","Eq"]
[null,"Lower",{"$f":"$C31 * C10/C$13","v":0.33470525803847684},null,"Eq"]
[null,"Upper",{"$f":"$C32 * C11/C$13","v":54.304873084465875},null,"Eq"]

{"sheet":"F11c","index":95,"n_rows":37,"n_cols":5,"rows_kept":37,"cut":false,"hidden":false,"merged":[[16,0,17,0],[0,0,0,4],[2,1,2,3],[7,0,10,0],[8,3,10,3],[13,0,15,0],[19,0,20,0],[22,0,23,0],[24,0,27,0],[28,0,31,0],[33,0,36,0]]}
["Consumption of Short grass by a Mammal, large after Chronic exposure."]
["Short Title","Grass Chronic",null,null,"FdKcalV6"]
["Receptor","Mammal, large"]
["Duration","Chronic",null,null,"Scenario parameter"]
["Material consumed","Short grass"]
["Parameter/Assumption","Code / Range","Equation/   Value","Units","Reference/Designation"]
["Commodity"]
["Concentration on consumed commodity","Conc"]
[null,"Central ",{"$f":"B05c!Chronic_C","v":10.895886908222865},"mg/kg food wet weight","='B05c'!Chronic_C"]
[null,"Lower ",{"$f":"B05c!Chronic_L","v":2.885302026660685},null,"='B05c'!Chronic_L"]
[null,"Upper ",{"$f":"B05c!Chronic_U","v":82.611380999585819},null,"='B05c'!Chronic_U"]
["Receptor"]
["Body weight","BW",{"$f":"A02b!$C$61","v":70},"kg","Default"]
["Allometric coefficients for caloric requirement per day in kilocalories and BW in grams"]
[null,"alpha",{"$f":"A02b!$C$62","v":1.518},null,"U.S. EPA/ORD 1993"]
[null,"beta",{"$f":"A02b!$C$63","v":0.73},null,"U.S. EPA/ORD 1993"]
["Caloric requirement per day","KR","= alpha x (BW x 1kg/1000g)beta"]
[null,null,{"$f":"C15*((C13*1000)^C16)","v":5226.288029759985},"kcal/day","Eq"]
["Caloric content of commodity (dry weight)","KCD",2.2599999999999998,"kcal/gdw [Note 1]","WkMk Documentation"]
["Food consumed per day (dry weight)","AmntDry"," = KR ÷ KCD"]
[null,null,{"$f":"C18/C19","v":2312.5168273274271},"gdry/day","Eq"]
["Water content of vegetation as a proportion","PropWater",0.85,"gwater/gfood","WkMk Documentation"]
["Dry weight content of vegetation as a proportion","PropDry"," = 1-PropWater"]
[null,null,{"$f":"1-C22","v":0.15000000000000002},"gdry/gfood","Eq"]
["Variability in caloric requirements not accounted for by allometric equation","Error"]
[null,"Central ",1,"Note 2"]
[null,"Lower ",0.3]
[null,"Upper ",1.7]
["Amount of food consumed per day,  wet weight","AmntFood"," = (AmntDry ÷ PropDry) ÷ (1000g/kg)"]
[null,"Central ",{"$f":"C26*(C$21/C$24)/1000","v":15.416778848849512},"kgfood/day","Eq"]
[null,"Lower ",{"$f":"C27*(C$21/C$24)/1000","v":4.6250336546548532},null,"Eq"]
[null,"Upper ",26.208524043044171,null,"Eq"]
["Estimate"]
["Dose","Dose"," = AmntFood   ×  Conc / BW"]
[null,"Central",{"$f":"$C30 * C9/C$13","v":2.3997068403735224},"mg/kg bw/day","Eq"]
[null,"Lower",{"$f":"$C31 * C10/C$13","v":0.19063741395927888},null,"Eq"]
[null,"Upper",{"$f":"$C32 * C11/C$13","v":30.930319502238962},null,"Eq"]

{"sheet":"F11d","index":96,"n_rows":37,"n_cols":5,"rows_kept":37,"cut":false,"hidden":false,"merged":[[16,0,17,0],[0,0,0,4],[2,1,2,3],[7,0,10,0],[8,3,10,3],[13,0,15,0],[19,0,20,0],[22,0,23,0],[24,0,27,0],[28,0,31,0],[33,0,36,0]]}
["Consumption of Short grass by a Bird, small after Chronic exposure."]
["Short Title","Grass Chronic",null,null,"FdKcalV6"]
["Receptor","Bird, small"]
["Duration","Chronic",null,null,"Scenario parameter"]
["Material consumed","Short grass"]
["Parameter/Assumption","Code / Range","Equation/   Value","Units","Reference/Designation"]
["Commodity"]
["Concentration on consumed commodity","Conc"]
[null,"Central ",{"$f":"B05c!Chronic_C","v":10.895886908222865},"mg/kg food wet weight","='B05c'!Chronic_C"]
[null,"Lower ",{"$f":"B05c!Chronic_L","v":2.885302026660685},null,"='B05c'!Chronic_L"]
[null,"Upper ",{"$f":"B05c!Chronic_U","v":82.611380999585819},null,"='B05c'!Chronic_U"]
["Receptor"]
["Body weight","BW",{"$f":"A02b!$C$31","v":0.01},"kg","Default"]
["Allometric coefficients for caloric requirement per day in kilocalories and BW in grams"]
[null,"alpha",{"$f":"A02b!$C$32","v":3.12},null,"U.S. EPA/ORD 1993"]
[null,"beta",{"$f":"A02b!$C$33","v":0.60499999999999998},null,"U.S. EPA/ORD 1993"]
["Caloric requirement per day","KR","= alpha x (BW x 1kg/1000g)beta"]
[null,null,{"$f":"C15*((C13*1000)^C16)","v":12.564771470954325},"kcal/day","Eq"]
["Caloric content of commodity (dry weight)","KCD",2,"kcal/gdw [Note 1]","WkMk Documentation"]
["Food consumed per day (dry weight)","AmntDry"," = KR ÷ KCD"]
[null,null,{"$f":"C18/C19","v":6.2823857354771624},"gdry/day","Eq"]
["Water content of vegetation as a proportion","PropWater",0.85,"gwater/gfood","WkMk Documentation"]
["Dry weight content of vegetation as a proportion","PropDry"," = 1-PropWater"]
[null,null,{"$f":"1-C22","v":0.15000000000000002},"gdry/gfood","Eq"]
["Variability in caloric requirements not accounted for by allometric equation","Error"]
[null,"Central ",1,"Note 2"]
[null,"Lower ",0.3]
[null,"Upper ",1.7]
["Amount of food consumed per day,  wet weight","AmntFood"," = (AmntDry ÷ PropDry) ÷ (1000g/kg)"]
[null,"Central ",{"$f":"C26*(C$21/C$24)/1000","v":4.1882571569847739E-2},"kgfood/day","Eq"]
[null,"Lower ",{"$f":"C27*(C$21/C$24)/1000","v":1.2564771470954321E-2},null,"Eq"]
[null,"Upper ",7.1200371668741158E-2,null,"Eq"]
["Estimate"]
["Dose","Dose"," = AmntFood   ×  Conc / BW"]
[null,"Central",{"$f":"$C30 * C9/C$13","v":45.634776325061118},"mg/kg bw/day","Eq"]
[null,"Lower",{"$f":"$C31 * C10/C$13","v":3.6253160589672859},null,"Eq"]
[null,"Upper",{"$f":"$C32 * C11/C$13","v":588.19610312384907},null,"Eq"]

{"sheet":"F11e","index":97,"n_rows":37,"n_cols":5,"rows_kept":37,"cut":false,"hidden":false,"merged":[[16,0,17,0],[0,0,0,4],[2,1,2,3],[7,0,10,0],[8,3,10,3],[13,0,15,0],[19,0,20,0],[22,0,23,0],[24,0,27,0],[28,0,31,0],[33,0,36,0]]}
["Consumption of Short grass by a Bird, large after Chronic exposure."]
["Short Title","Grass Chronic",null,null,"FdKcalV6"]
["Receptor","Bird, large"]
["Duration","Chronic",null,null,"Scenario parameter"]
["Material consumed","Short grass"]
["Parameter/Assumption","Code / Range","Equation/   Value","Units","Reference/Designation"]
["Commodity"]
["Concentration on consumed commodity","Conc"]
[null,"Central ",{"$f":"B05c!Chronic_C","v":10.895886908222865},"mg/kg food wet weight","='B05c'!Chronic_C"]
[null,"Lower ",{"$f":"B05c!Chronic_L","v":2.885302026660685},null,"='B05c'!Chronic_L"]
[null,"Upper ",{"$f":"B05c!Chronic_U","v":82.611380999585819},null,"='B05c'!Chronic_U"]
["Receptor"]
["Body weight","BW",{"$f":"A02b!$C$15","v":4},"kg","Default"]
["Allometric coefficients for caloric requirement per day in kilocalories and BW in grams"]
[null,"alpha",{"$f":"A02b!$C$16","v":1.1459999999999999},null,"U.S. EPA/ORD 1993"]
[null,"beta",{"$f":"A02b!$C$17","v":0.749},null,"U.S. EPA/ORD 1993"]
["Caloric requirement per day","KR","= alpha x (BW x 1kg/1000g)beta"]
[null,null,{"$f":"C15*((C13*1000)^C16)","v":571.64650307958129},"kcal/day","Eq"]
["Caloric content of commodity (dry weight)","KCD",2,"kcal/gdw [Note 1]","WkMk Documentation"]
["Food consumed per day (dry weight)","AmntDry"," = KR ÷ KCD"]
[null,null,{"$f":"C18/C19","v":285.82325153979065},"gdry/day","Eq"]
["Water content of vegetation as a proportion","PropWater",0.85,"gwater/gfood","WkMk Documentation"]
["Dry weight content of vegetation as a proportion","PropDry"," = 1-PropWater"]
[null,null,{"$f":"1-C22","v":0.15000000000000002},"gdry/gfood","Eq"]
["Variability in caloric requirements not accounted for by allometric equation","Error"]
[null,"Central ",1,"Note 2"]
[null,"Lower ",0.3]
[null,"Upper ",1.7]
["Amount of food consumed per day,  wet weight","AmntFood"," = (AmntDry ÷ PropDry) ÷ (1000g/kg)"]
[null,"Central ",{"$f":"C26*(C$21/C$24)/1000","v":1.9054883435986039},"kgfood/day","Eq"]
[null,"Lower ",{"$f":"C27*(C$21/C$24)/1000","v":0.5716465030795812},null,"Eq"]
[null,"Upper ",3.2393301841176267,null,"Eq"]
["Estimate"]
["Dose","Dose"," = AmntFood   ×  Conc / BW"]
[null,"Central",{"$f":"$C30 * C9/C$13","v":5.1904963741968251},"mg/kg bw/day","Eq"]
[null,"Lower",{"$f":"$C31 * C10/C$13","v":0.41234320346725228},null,"Eq"]
[null,"Upper",{"$f":"$C32 * C11/C$13","v":66.90138500589994},null,"Eq"]

{"sheet":"F12a","index":98,"n_rows":20,"n_cols":5,"rows_kept":20,"cut":false,"hidden":false,"merged":[[16,0,19,0],[0,0,0,4],[1,1,1,3],[2,1,2,3],[5,0,8,0],[11,0,13,0],[14,0,15,0]]}
["Consumption of contaminated water by Mammal, small, Longer-term Concentrations "]
["Short Title","Longer-term Concentrations",null,null,"WatAlloV6"]
["Receptor","Mammal, small"]
["Duration","Chronic",null,null,"Scenario parameter"]
["Parameter/Assumption","Code / Range","Equation/   Value","Units","Reference/Designation"]
["Concentration in water","ConcWat"]
[null,"Central ",{"$f":"B04a!Chronic_C","v":8.4999999999999995E-4},"mg/L","='B04a'!Chronic_C"]
[null,"Lower ",{"$f":"B04a!Chronic_L","v":9.0000000000000006E-5},null,"='B04a'!Chronic_L"]
[null,"Upper ",{"$f":"B04a!Chronic_U","v":0.01},null,"='B04a'!Chronic_U"]
["Receptor"]
["Body weight","BW",{"$f":"A02b!$C$71","v":0.02},"kg","Default"]
["Allometric coefficients forwater consumption per day in liters and BW in kilograms"]
[null,"alpha",{"$f":"A02b!$C$79","v":9.9000000000000005E-2},null,"U.S. EPA/ORD 1993"]
[null,"beta",{"$f":"A02b!$C$80","v":0.9},null,"U.S. EPA/ORD 1993"]
["Amount of water consumed per day",null,"Amnt = alpha BW beta"]
[null,"Amnt",{"$f":"C13*(C11^C14)","v":2.9279401205240612E-3},"liters","Eq"]
["Absorbed Dose","Dose","ConcWat  × Amnt ÷ BW"]
[null,"Central ",{"$f":"C7*C$16/C$11","v":1.2443745512227258E-4},"mg/kg","Eq"]
[null,"Lower ",{"$f":"C8*C$16/C$11","v":1.3175730542358275E-5},"mg/kg","Eq"]
[null,"Upper ",{"$f":"C9*C$16/C$11","v":1.4639700602620306E-3},"mg/kg","Eq"]

{"sheet":"F12b","index":99,"n_rows":20,"n_cols":5,"rows_kept":20,"cut":false,"hidden":false,"merged":[[16,0,19,0],[0,0,0,4],[1,1,1,3],[2,1,2,3],[5,0,8,0],[11,0,13,0],[14,0,15,0]]}
["Consumption of contaminated water by Mammal, 400 g, Longer-term Concentrations "]
["Short Title","Longer-term Concentrations",null,null,"WatAlloV6"]
["Receptor","Mammal, 400 g"]
["Duration","Chronic",null,null,"Scenario parameter"]
["Parameter/Assumption","Code / Range","Equation/   Value","Units","Reference/Designation"]
["Concentration in water","ConcWat"]
[null,"Central ",{"$f":"B04a!Chronic_C","v":8.4999999999999995E-4},"mg/L","='B04a'!Chronic_C"]
[null,"Lower ",{"$f":"B04a!Chronic_L","v":9.0000000000000006E-5},null,"='B04a'!Chronic_L"]
[null,"Upper ",{"$f":"B04a!Chronic_U","v":0.01},null,"='B04a'!Chronic_U"]
["Receptor"]
["Body weight","BW",{"$f":"A02b!$C$40","v":0.4},"kg","Default"]
["Allometric coefficients forwater consumption per day in liters and BW in kilograms"]
[null,"alpha",{"$f":"A02b!$C$45","v":9.9000000000000005E-2},null,"U.S. EPA/ORD 1993"]
[null,"beta",{"$f":"A02b!$C$46","v":0.9},null,"U.S. EPA/ORD 1993"]
["Amount of water consumed per day",null,"Amnt = alpha BW beta"]
[null,"Amnt",{"$f":"C13*(C11^C14)","v":4.3399945764854612E-2},"liters","Eq"]
["Absorbed Dose","Dose","ConcWat  × Amnt ÷ BW"]
[null,"Central ",{"$f":"C7*C$16/C$11","v":9.222488475031605E-5},"mg/kg","Eq"]
[null,"Lower ",{"$f":"C8*C$16/C$11","v":9.7649877970922861E-6},"mg/kg","Eq"]
[null,"Upper ",{"$f":"C9*C$16/C$11","v":1.0849986441213652E-3},"mg/kg","Eq"]

{"sheet":"F12c","index":100,"n_rows":20,"n_cols":5,"rows_kept":20,"cut":false,"hidden":false,"merged":[[16,0,19,0],[0,0,0,4],[1,1,1,3],[2,1,2,3],[5,0,8,0],[11,0,13,0],[14,0,15,0]]}
["Consumption of contaminated water by Mammal, carnivorous, Longer-term Concentrations "]
["Short Title","Longer-term Concentrations",null,null,"WatAlloV6"]
["Receptor","Mammal, carnivorous"]
["Duration","Chronic",null,null,"Scenario parameter"]
["Parameter/Assumption","Code / Range","Equation/   Value","Units","Reference/Designation"]
["Concentration in water","ConcWat"]
[null,"Central ",{"$f":"B04a!Chronic_C","v":8.4999999999999995E-4},"mg/L","='B04a'!Chronic_C"]
[null,"Lower ",{"$f":"B04a!Chronic_L","v":9.0000000000000006E-5},null,"='B04a'!Chronic_L"]
[null,"Upper ",{"$f":"B04a!Chronic_U","v":0.01},null,"='B04a'!Chronic_U"]
["Receptor"]
["Body weight","BW",{"$f":"A02b!$C$47","v":5},"kg","U.S. EPA/ORD 1993"]
["Allometric coefficients forwater consumption per day in liters and BW in kilograms"]
[null,"alpha",{"$f":"A02b!$C$50","v":9.9000000000000005E-2},null,"U.S. EPA/ORD 1993"]
[null,"beta",{"$f":"A02b!$C$51","v":0.9},null,"U.S. EPA/ORD 1993"]
["Amount of water consumed per day",null,"Amnt = alpha BW beta"]
[null,"Amnt",{"$f":"C13*(C11^C14)","v":0.42141326164778842},"liters","Eq"]
["Absorbed Dose","Dose","ConcWat  × Amnt ÷ BW"]
[null,"Central ",{"$f":"C7*C$16/C$11","v":7.1640254480124024E-5},"mg/kg","Eq"]
[null,"Lower ",{"$f":"C8*C$16/C$11","v":7.5854387096601918E-6},"mg/kg","Eq"]
[null,"Upper ",{"$f":"C9*C$16/C$11","v":8.4282652329557687E-4},"mg/kg","Eq"]

{"sheet":"F12d","index":101,"n_rows":20,"n_cols":5,"rows_kept":20,"cut":false,"hidden":false,"merged":[[16,0,19,0],[0,0,0,4],[1,1,1,3],[2,1,2,3],[5,0,8,0],[11,0,13,0],[14,0,15,0]]}
["Consumption of contaminated water by Mammal, large, Longer-term Concentrations "]
["Short Title","Longer-term Concentrations",null,null,"WatAlloV6"]
["Receptor","Mammal, large"]
["Duration","Chronic",null,null,"Scenario parameter"]
["Parameter/Assumption","Code / Range","Equation/   Value","Units","Reference/Designation"]
["Concentration in water","ConcWat"]
[null,"Central ",{"$f":"B04a!Chronic_C","v":8.4999999999999995E-4},"mg/L","='B04a'!Chronic_C"]
[null,"Lower ",{"$f":"B04a!Chronic_L","v":9.0000000000000006E-5},null,"='B04a'!Chronic_L"]
[null,"Upper ",{"$f":"B04a!Chronic_U","v":0.01},null,"='B04a'!Chronic_U"]
["Receptor"]
["Body weight","BW",{"$f":"A02b!$C$61","v":70},"kg","Default"]
["Allometric coefficients forwater consumption per day in liters and BW in kilograms"]
[null,"alpha",{"$f":"A02b!$C$64","v":9.9000000000000005E-2},null,"U.S. EPA/ORD 1993"]
[null,"beta",{"$f":"A02b!$C$65","v":0.9},null,"U.S. EPA/ORD 1993"]
["Amount of water consumed per day",null,"Amnt = alpha BW beta"]
[null,"Amnt",{"$f":"C13*(C11^C14)","v":4.5313064115862725},"liters","Eq"]
["Absorbed Dose","Dose","ConcWat  × Amnt ÷ BW"]
[null,"Central ",{"$f":"C7*C$16/C$11","v":5.5023006426404735E-5},"mg/kg","Eq"]
[null,"Lower ",{"$f":"C8*C$16/C$11","v":5.8259653863252075E-6},"mg/kg","Eq"]
[null,"Upper ",{"$f":"C9*C$16/C$11","v":6.4732948736946746E-4},"mg/kg","Eq"]

{"sheet":"F12e","index":102,"n_rows":20,"n_cols":5,"rows_kept":20,"cut":false,"hidden":false,"merged":[[16,0,19,0],[0,0,0,4],[1,1,1,3],[2,1,2,3],[5,0,8,0],[11,0,13,0],[14,0,15,0]]}
["Consumption of contaminated water by Bird, small, Longer-term Concentrations "]
["Short Title","Longer-term Concentrations",null,null,"WatAlloV6"]
["Receptor","Bird, small"]
["Duration","Chronic",null,null,"Scenario parameter"]
["Parameter/Assumption","Code / Range","Equation/   Value","Units","Reference/Designation"]
["Concentration in water","ConcWat"]
[null,"Central ",{"$f":"B04a!Chronic_C","v":8.4999999999999995E-4},"mg/L","='B04a'!Chronic_C"]
[null,"Lower ",{"$f":"B04a!Chronic_L","v":9.0000000000000006E-5},null,"='B04a'!Chronic_L"]
[null,"Upper ",{"$f":"B04a!Chronic_U","v":0.01},null,"='B04a'!Chronic_U"]
["Receptor"]
["Body weight","BW",{"$f":"A02b!$C$31","v":0.01},"kg","Default"]
["Allometric coefficients forwater consumption per day in liters and BW in kilograms"]
[null,"alpha",{"$f":"A02b!$C$34","v":5.8999999999999997E-2},null,"U.S. EPA/ORD 1993"]
[null,"beta",{"$f":"A02b!$C$35","v":0.67},null,"U.S. EPA/ORD 1993"]
["Amount of water consumed per day",null,"Amnt = alpha BW beta"]
[null,"Amnt",{"$f":"C13*(C11^C14)","v":2.6968203187277624E-3},"liters","Eq"]
["Absorbed Dose","Dose","ConcWat  × Amnt ÷ BW"]
[null,"Central ",{"$f":"C7*C$16/C$11","v":2.2922972709185979E-4},"mg/kg","Eq"]
[null,"Lower ",{"$f":"C8*C$16/C$11","v":2.4271382868549861E-5},"mg/kg","Eq"]
[null,"Upper ",{"$f":"C9*C$16/C$11","v":2.6968203187277624E-3},"mg/kg","Eq"]

{"sheet":"F12f","index":103,"n_rows":20,"n_cols":5,"rows_kept":20,"cut":false,"hidden":false,"merged":[[16,0,19,0],[0,0,0,4],[1,1,1,3],[2,1,2,3],[5,0,8,0],[11,0,13,0],[14,0,15,0]]}
["Consumption of contaminated water by Bird, large, Longer-term Concentrations "]
["Short Title","Longer-term Concentrations",null,null,"WatAlloV6"]
["Receptor","Bird, large"]
["Duration","Chronic",null,null,"Scenario parameter"]
["Parameter/Assumption","Code / Range","Equation/   Value","Units","Reference/Designation"]
["Concentration in water","ConcWat"]
[null,"Central ",{"$f":"B04a!Chronic_C","v":8.4999999999999995E-4},"mg/L","='B04a'!Chronic_C"]
[null,"Lower ",{"$f":"B04a!Chronic_L","v":9.0000000000000006E-5},null,"='B04a'!Chronic_L"]
[null,"Upper ",{"$f":"B04a!Chronic_U","v":0.01},null,"='B04a'!Chronic_U"]
["Receptor"]
["Body weight","BW",{"$f":"A02b!$C$15","v":4},"kg","Default"]
["Allometric coefficients forwater consumption per day in liters and BW in kilograms"]
[null,"alpha",{"$f":"A02b!$C$18","v":5.8999999999999997E-2},null,"U.S. EPA/ORD 1993"]
[null,"beta",{"$f":"A02b!$C$19","v":0.67},null,"U.S. EPA/ORD 1993"]
["Amount of water consumed per day",null,"Amnt = alpha BW beta"]
[null,"Amnt",{"$f":"C13*(C11^C14)","v":0.14935927808849303},"liters","Eq"]
["Absorbed Dose","Dose","ConcWat  × Amnt ÷ BW"]
[null,"Central ",{"$f":"C7*C$16/C$11","v":3.1738846593804764E-5},"mg/kg","Eq"]
[null,"Lower ",{"$f":"C8*C$16/C$11","v":3.3605837569910934E-6},"mg/kg","Eq"]
[null,"Upper ",{"$f":"C9*C$16/C$11","v":3.7339819522123256E-4},"mg/kg","Eq"]

{"sheet":"F13a","index":104,"n_rows":50,"n_cols":5,"rows_kept":50,"cut":false,"hidden":false,"merged":[[7,0,10,0],[0,0,0,4],[1,1,1,3],[2,1,2,3],[3,1,3,3],[4,1,4,3],[36,0,39,0],[41,0,44,0],[45,0,48,0],[12,0,15,0],[16,0,19,0],[22,0,24,0],[27,0,28,0],[30,0,31,0],[32,0,33,0]]}
["Chronic scenario for the consumption of Contaminated Fish (Longer-term) by Mammal, large carnivorous "]
["Short Title","Fish consumption, accidental spill",null,null,"FishKcalV6"]
["Predator","Mammal, large carnivorous"]
["Food Item (Prey)","Fish"]
["Duration","Chronic",null,null,"Scenario parameter"]
["Parameter/Assumption","Code / Range","Equation/   Value","Units","Reference/Designation"]
["Water"]
["Concentration in water","ConcWat"]
[null,"Central ",{"$f":"B04a!Chronic_C","v":8.4999999999999995E-4},"mg/L","='B04a'!Chronic_C"]
[null,"Lower ",{"$f":"B04a!Chronic_L","v":9.0000000000000006E-5},null,"='B04a'!Chronic_L"]
[null,"Upper ",{"$f":"B04a!Chronic_U","v":0.01},null,"='B04a'!Chronic_U"]
["Fish"]
["Bioconcentration factor","BCF"]
[null,"Central ",{"$f":"'B01'!$C$6","v":1},"L/kg","Section 3.2.3.5."]
[null,"Lower ",{"$f":"'B01'!$C$6","v":1},null,"Section 3.2.3.5."]
[null,"Upper ",{"$f":"'B01'!$C$6","v":1},null,"Section 3.2.3.5."]
["Concentration in fish","ConcFish","ConcWat × BCF"]
[null,"Central ",{"$f":"C9*C14","v":8.4999999999999995E-4},"mg/kg","Eq"]
[null,"Lower ",{"$f":"C10*C15","v":9.0000000000000006E-5},null,"Eq"]
[null,"Upper ",{"$f":"C11*C16","v":0.01},null,"Eq"]
["Receptor"]
["Body weight","BW",{"$f":"A02b!$C$52","v":70},"kg","Reid 2006"]
["Allometric coefficients for caloric requirement per day in kilocalories and BW in grams"]
[null,"alpha",{"$f":"A02b!$C$53","v":0.61670000000000003},null,"U.S. EPA/ORD 1993"]
[null,"beta",{"$f":"A02b!$C$54","v":0.86199999999999999},null,"U.S. EPA/ORD 1993"]
["Caloric requirement per day","KR",{"$f":"C24*(C22*1000)^C25","v":9258.6668828796119},"kcal/day","Eq"]
["Caloric content of commodity (dry weight)","KCD",4.47,"kcal/gdw [Note 1]","WkMk Documentation"]
["Food consumed per day (dry weight)","AmntDry"," = KR ÷ KCD"]
[null,null,{"$f":"C26/C27","v":2071.2901303981234},"gdry/day","Eq"]
["Water content of vegetation as a proportion","PropWater",0.7,"gwater/gfood","WkMk Documentation"]
["Dry weight content of vegetation as a proportion","PropDry"," = 1-PropWater"]
[null,null,{"$f":"1-C30","v":0.30000000000000004},"gdry/gfood","Eq"]
["Amount of fish consumed per day,  wet weight","AmntFish"," = (AmntDry ÷ PropDry) ÷ (1000g/kg)"]
[null,"Central ",{"$f":"(C29/C32)/1000","v":6.90430043466041},"kgfood/day","Eq"]
[null,"Lower ",{"$f":"C34*0.3","v":2.0712901303981228},"Note 1","Eq"]
[null,"Upper ",{"$f":"C34*1.7","v":11.737310738922696},"Note 1","Eq"]
["Proportion of diet that is contaminated","Prop"]
[null,"Central ",0.3,"Unitless","Scenario parameter"]
[null,"Lower ",0.1,null,"Scenario parameter"]
[null,"Upper ",1,null,"Scenario parameter"]
["Dose"]
["Toxic Equivalency Factor for formulation:  (See risk assessment if this has a value other than 1.)","TEF"]
[null,"Central ",{"$f":"'A01'!C$35","v":1},"Unitless","Worksheet A01"]
[null,"Lower ",{"$f":"'A01'!C$36","v":1},"Note 2","Worksheet A01"]
[null,"Upper ",{"$f":"'A01'!C$37","v":1},"Note 2","Worksheet A01"]
["Dose","Dose","= ConcFish × AmntFish × Prop ÷ BW"]
[null,"Central ",{"$f":"C18*C34*C38/C$22","v":2.5151380154834346E-5},"mg/kg","Eq"]
[null,"Lower ",{"$f":"C19*C35*C39/C$22","v":2.6630873105118727E-7},"mg/kg","Eq"]
[null,"Upper ",1.6767586769889566E-3,"mg/kg","Eq"]
[null,null,null,null,"FishKcalV6"]

{"sheet":"F13b","index":105,"n_rows":50,"n_cols":5,"rows_kept":50,"cut":false,"hidden":false,"merged":[[7,0,10,0],[0,0,0,4],[1,1,1,3],[2,1,2,3],[3,1,3,3],[4,1,4,3],[36,0,39,0],[41,0,44,0],[45,0,48,0],[12,0,15,0],[16,0,19,0],[22,0,24,0],[27,0,28,0],[30,0,31,0],[32,0,33,0]]}
["Chronic scenario for the consumption of Contaminated Fish (Longer-term) by Mammal, carnivorous "]
["Short Title","Fish consumption, accidental spill",null,null,"FishKcalV6"]
["Predator","Mammal, carnivorous"]
["Food Item (Prey)","Fish"]
["Duration","Chronic",null,null,"Scenario parameter"]
["Parameter/Assumption","Code / Range","Equation/   Value","Units","Reference/Designation"]
["Water"]
["Concentration in water","ConcWat"]
[null,"Central ",{"$f":"B04a!Chronic_C","v":8.4999999999999995E-4},"mg/L","='B04a'!Chronic_C"]
[null,"Lower ",{"$f":"B04a!Chronic_L","v":9.0000000000000006E-5},null,"='B04a'!Chronic_L"]
[null,"Upper ",{"$f":"B04a!Chronic_U","v":0.01},null,"='B04a'!Chronic_U"]
["Fish"]
["Bioconcentration factor","BCF"]
[null,"Central ",{"$f":"'B01'!$C$6","v":1},"L/kg","Section 3.2.3.5."]
[null,"Lower ",{"$f":"'B01'!$C$6","v":1},null,"Section 3.2.3.5."]
[null,"Upper ",{"$f":"'B01'!$C$6","v":1},null,"Section 3.2.3.5."]
["Concentration in fish","ConcFish","ConcWat × BCF"]
[null,"Central ",{"$f":"C9*C14","v":8.4999999999999995E-4},"mg/kg","Eq"]
[null,"Lower ",{"$f":"C10*C15","v":9.0000000000000006E-5},null,"Eq"]
[null,"Upper ",{"$f":"C11*C16","v":0.01},null,"Eq"]
["Receptor"]
["Body weight","BW",{"$f":"A02b!$C$47","v":5},"kg","U.S. EPA/ORD 1993"]
["Allometric coefficients for caloric requirement per day in kilocalories and BW in grams"]
[null,"alpha",{"$f":"A02b!$C$48","v":0.61670000000000003},null,"U.S. EPA/ORD 1993"]
[null,"beta",{"$f":"A02b!$C$49","v":0.86199999999999999},null,"U.S. EPA/ORD 1993"]
["Caloric requirement per day","KR",{"$f":"C24*(C22*1000)^C25","v":951.88852658889334},"kcal/day","Eq"]
["Caloric content of commodity (dry weight)","KCD",4.47,"kcal/gdw [Note 1]","WkMk Documentation"]
["Food consumed per day (dry weight)","AmntDry"," = KR ÷ KCD"]
[null,null,{"$f":"C26/C27","v":212.95045337559137},"gdry/day","Eq"]
["Water content of vegetation as a proportion","PropWater",0.7,"gwater/gfood","WkMk Documentation"]
["Dry weight content of vegetation as a proportion","PropDry"," = 1-PropWater"]
[null,null,{"$f":"1-C30","v":0.30000000000000004},"gdry/gfood","Eq"]
["Amount of fish consumed per day,  wet weight","AmntFish"," = (AmntDry ÷ PropDry) ÷ (1000g/kg)"]
[null,"Central ",{"$f":"(C29/C32)/1000","v":0.70983484458530455},"kgfood/day","Eq"]
[null,"Lower ",{"$f":"C34*0.3","v":0.21295045337559135},"Note 1","Eq"]
[null,"Upper ",{"$f":"C34*1.7","v":1.2067192357950176},"Note 1","Eq"]
["Proportion of diet that is contaminated","Prop"]
[null,"Central ",0.3,"Unitless","Scenario parameter"]
[null,"Lower ",0.1,null,"Scenario parameter"]
[null,"Upper ",1,null,"Scenario parameter"]
["Dose"]
["Toxic Equivalency Factor for formulation:  (See risk assessment if this has a value other than 1.)","TEF"]
[null,"Central ",{"$f":"'A01'!C$35","v":1},"Unitless","Worksheet A01"]
[null,"Lower ",{"$f":"'A01'!C$36","v":1},"Note 2","Worksheet A01"]
[null,"Upper ",{"$f":"'A01'!C$37","v":1},"Note 2","Worksheet A01"]
["Dose","Dose","= ConcFish × AmntFish × Prop ÷ BW"]
[null,"Central ",{"$f":"C18*C34*C38/C$22","v":3.6201577073850525E-5},"mg/kg","Eq"]
[null,"Lower ",{"$f":"C19*C35*C39/C$22","v":3.8331081607606446E-7},"mg/kg","Eq"]
[null,"Upper ",2.4134384715900352E-3,"mg/kg","Eq"]
[null,null,null,null,"FishKcalV6"]

{"sheet":"F13c","index":106,"n_rows":50,"n_cols":5,"rows_kept":50,"cut":false,"hidden":false,"merged":[[7,0,10,0],[0,0,0,4],[1,1,1,3],[2,1,2,3],[3,1,3,3],[4,1,4,3],[36,0,39,0],[41,0,44,0],[45,0,48,0],[12,0,15,0],[16,0,19,0],[22,0,24,0],[27,0,28,0],[30,0,31,0],[32,0,33,0]]}
["Chronic scenario for the consumption of Contaminated Fish (Longer-term) by Bird, piscivorous "]
["Short Title","Fish consumption, accidental spill",null,null,"FishKcalV6"]
["Predator","Bird, piscivorous"]
["Food Item (Prey)","Fish"]
["Duration","Chronic",null,null,"Scenario parameter"]
["Parameter/Assumption","Code / Range","Equation/   Value","Units","Reference/Designation"]
["Water"]
["Concentration in water","ConcWat"]
[null,"Central ",{"$f":"B04a!Chronic_C","v":8.4999999999999995E-4},"mg/L","='B04a'!Chronic_C"]
[null,"Lower ",{"$f":"B04a!Chronic_L","v":9.0000000000000006E-5},null,"='B04a'!Chronic_L"]
[null,"Upper ",{"$f":"B04a!Chronic_U","v":0.01},null,"='B04a'!Chronic_U"]
["Fish"]
["Bioconcentration factor","BCF"]
[null,"Central ",{"$f":"'B01'!$C$6","v":1},"L/kg","Section 3.2.3.5."]
[null,"Lower ",{"$f":"'B01'!$C$6","v":1},null,"Section 3.2.3.5."]
[null,"Upper ",{"$f":"'B01'!$C$6","v":1},null,"Section 3.2.3.5."]
["Concentration in fish","ConcFish","ConcWat × BCF"]
[null,"Central ",{"$f":"C9*C14","v":8.4999999999999995E-4},"mg/kg","Eq"]
[null,"Lower ",{"$f":"C10*C15","v":9.0000000000000006E-5},null,"Eq"]
[null,"Upper ",{"$f":"C11*C16","v":0.01},null,"Eq"]
["Receptor"]
["Body weight","BW",{"$f":"A02b!$C$24","v":2.4},"kg","Sibley 2000"]
["Allometric coefficients for caloric requirement per day in kilocalories and BW in grams"]
[null,"alpha",{"$f":"A02b!$C$27","v":1.9159999999999999},null,"U.S. EPA/ORD 1993"]
[null,"beta",{"$f":"A02b!$C$28","v":0.70399999999999996},null,"U.S. EPA/ORD 1993"]
["Caloric requirement per day","KR",{"$f":"C24*(C22*1000)^C25","v":459.26591923752829},"kcal/day","Eq"]
["Caloric content of commodity (dry weight)","KCD",3.87,"kcal/gdw [Note 1]","WkMk Documentation"]
["Food consumed per day (dry weight)","AmntDry"," = KR ÷ KCD"]
[null,null,{"$f":"C26/C27","v":118.67336414406415},"gdry/day","Eq"]
["Water content of vegetation as a proportion","PropWater",0.7,"gwater/gfood","WkMk Documentation"]
["Dry weight content of vegetation as a proportion","PropDry"," = 1-PropWater"]
[null,null,{"$f":"1-C30","v":0.30000000000000004},"gdry/gfood","Eq"]
["Amount of fish consumed per day,  wet weight","AmntFish"," = (AmntDry ÷ PropDry) ÷ (1000g/kg)"]
[null,"Central ",{"$f":"(C29/C32)/1000","v":0.39557788048021375},"kgfood/day","Eq"]
[null,"Lower ",{"$f":"C34*0.3","v":0.11867336414406413},"Note 1","Eq"]
[null,"Upper ",{"$f":"C34*1.7","v":0.67248239681636335},"Note 1","Eq"]
["Proportion of diet that is contaminated","Prop"]
[null,"Central ",0.3,"Unitless","Scenario parameter"]
[null,"Lower ",0.1,null,"Scenario parameter"]
[null,"Upper ",1,null,"Scenario parameter"]
["Dose"]
["Toxic Equivalency Factor for formulation:  (See risk assessment if this has a value other than 1.)","TEF"]
[null,"Central ",{"$f":"'A01'!C$35","v":1},"Unitless","Worksheet A01"]
[null,"Lower ",{"$f":"'A01'!C$36","v":1},"Note 2","Worksheet A01"]
[null,"Upper ",{"$f":"'A01'!C$37","v":1},"Note 2","Worksheet A01"]
["Dose","Dose","= ConcFish × AmntFish × Prop ÷ BW"]
[null,"Central ",{"$f":"C18*C34*C38/C$22","v":4.2030149801022711E-5},"mg/kg","Eq"]
[null,"Lower ",{"$f":"C19*C35*C39/C$22","v":4.450251155402405E-7},"mg/kg","Eq"]
[null,"Upper ",2.8020099867348477E-3,"mg/kg","Eq"]
[null,null,null,null,"FishKcalV6"]

{"sheet":"G01","index":107,"n_rows":74,"n_cols":10,"rows_kept":74,"cut":false,"hidden":false,"merged":[[2,5,3,5],[0,0,0,4],[1,2,1,4],[2,0,3,0],[2,1,3,1],[2,2,2,4]]}
["Summary of Exposure Assessments for the Terrestrial Animals",null,null,null,null,"G01V6"]
["Application Rate:",{"$f":"'A01'!ApRt_C","v":1}," lb a.e./acre",null,null,"G01V6"]
["Scenario","Receptor","mg/kg/day or mg/kg/event",null,null,"Detail Worksheet"]
[null,null,"Central","Lower","Upper"]
["Accidental Acute Exposures"]
["   Direct Spray",null,null,null,null,null,null,null,null,"Spray: Partial Abs"]
["first-order absorption","Small mammal (20g)",{"$f":"F01a!Dose_C","v":2.9075587513340006E-2},{"$f":"F01a!Dose_L","v":1.7449539225010992E-2},{"$f":"F01a!Dose_U","v":4.1276933688784802E-2},"F01a",null,null,null,"Spray: 100% Abs"]
["100% absorption","Small mammal (20g)",{"$f":"F01b!Dose_C","v":24.244196962432305},{"$f":"F01b!Dose_L","v":24.244196962432305},{"$f":"F01b!Dose_U","v":24.244196962432305},"F01b"]
["   Contaminated Water",null,null,null,null,null,null,null,null,"Spill: Sm Mam"]
["Spill","Small mammal (20g)",{"$f":"F02a!Dose_C","v":0.22164506712367141},{"$f":"F02a!Dose_L","v":1.3298704027420285E-2},{"$f":"F02a!Dose_U","v":2.659740805484057},"F02a",null,null,null,"Spill: Med Mam"]
["Spill","Larger Mammal (400g)",{"$f":"F02b!Dose_C","v":0.16426879471997469},{"$f":"F02b!Dose_L","v":9.8561276831984831E-3},{"$f":"F02b!Dose_U","v":1.9712255366396962},"F02b",null,null,null,"Spill: Canid"]
["Spill","Canid (5 kg)",{"$f":"F02c!Dose_C","v":0.12760393562695033},{"$f":"F02c!Dose_L","v":7.6562361376170205E-3},{"$f":"F02c!Dose_U","v":1.5312472275234039},"F02c",null,null,null,"Spill: Lrg Mam"]
["Spill","Large Mammal (70g)",{"$f":"F02d!Dose_C","v":9.800568438773738E-2},{"$f":"F02d!Dose_L","v":5.8803410632642427E-3},{"$f":"F02d!Dose_U","v":1.1760682126528486},"F02d",null,null,null,"Spill: Sm Brd"]
["Spill","Small bird (10g)",{"$f":"F02e!Dose_C","v":0.40829859625538323},{"$f":"F02e!Dose_L","v":2.4497915775322995E-2},{"$f":"F02e!Dose_U","v":4.8995831550645983},"F02e",null,null,null,"Spill: Lrg Brd"]
["Spill","Large Bird (4 kg)",{"$f":"F02f!Dose_C","v":5.653248675649461E-2},{"$f":"F02f!Dose_L","v":3.3919492053896771E-3},{"$f":"F02f!Dose_U","v":0.67838984107793532},"F02f"]
["   Consumption of contaminated Fish",null,null,null,null,null,null,null,null,"Fish: Bear"]
["Spill","Large Mammalian Carnivore (70 kg)",{"$f":"F03a!Dose_C","v":4.479904653461083E-2},{"$f":"F03a!Dose_L","v":2.6879427920766501E-4},{"$f":"F03a!Dose_U","v":3.0463351643535361},"F03a",null,null,null,"Fish: Fox"]
["Spill","Canid (5 kg)",{"$f":"F03b!Dose_C","v":6.4481397282129066E-2},{"$f":"F03b!Dose_L","v":3.8688838369277444E-4},{"$f":"F03b!Dose_U","v":4.3847350151847753},"F03b",null,null,null,"Fish: Bird"]
["Spill","Fish-eating bird (2.4 kg)",{"$f":"F03c!Dose_C","v":7.4863113880880447E-2},{"$f":"F03c!Dose_L","v":4.4917868328528279E-4},{"$f":"F03c!Dose_U","v":5.0906917438998702},"F03c"]
["Non-Accidental Acute Exposures"]
["   Contaminated Fruit (Lowest Residue Rate)"]
[null,"Small mammal (20g)",{"$f":"F04a!Dose_C","v":15.8830902754619},{"$f":"F04a!Dose_L","v":2.1782523806347749},{"$f":"F04a!Dose_U","v":57.859828860611202},"F04a",null,null,null,"Grass: Sm Mam"]
[null,"Larger Mammal (400g)",{"$f":"F04b!Dose_C","v":3.6268301423294425},{"$f":"F04b!Dose_L","v":0.49739384809089499},{"$f":"F04b!Dose_U","v":13.212024089914397},"F04b",null,null,null,"Grass: Med Mam"]
[null,"Large Mammal (70g)",{"$f":"F04c!Dose_C","v":2.0657264939762783},{"$f":"F04c!Dose_L","v":0.28329963345960402},{"$f":"F04c!Dose_U","v":7.5251465137707294},"F04c",null,null,null,"Grass: Lrg Mam"]
[null,"Small bird (10g)",{"$f":"F04d!Dose_C","v":34.76418984058509},{"$f":"F04d!Dose_L","v":4.7676603209945272},{"$f":"F04d!Dose_U","v":126.64097727641712},"F04d",null,null,null,"Grass: Sm Brd"]
[null,"Large Bird (4 kg)",{"$f":"F04e!Dose_C","v":3.9540766023291196},{"$f":"F04e!Dose_L","v":0.54227336260513648},{"$f":"F04e!Dose_U","v":14.404136194198934},"F04e",null,null,null,"Grass: Lrg Brd"]
["   Contaminated Vegetation (Short Grass - Highest Residue Rate)"]
[null,"Small mammal (20g)",{"$f":"F05a!Dose_C","v":143.93841397969157},{"$f":"F05a!Dose_L","v":15.24053795079087},{"$f":"F05a!Dose_U","v":690.90438710251965},"F05a",null,null,null,"Veg: Sm Mam"]
[null,"Larger Mammal (400g)",{"$f":"F05b!Dose_C","v":32.867670548164625},{"$f":"F05b!Dose_L","v":3.4801062933350777},{"$f":"F05b!Dose_U","v":157.7648186311902},"F05b",null,null,null,"Veg: Med Mam"]
[null,"Large Mammal",{"$f":"F05c!Dose_C","v":18.720374316460124},{"$f":"F05c!Dose_L","v":1.9821572805663656},{"$f":"F05c!Dose_U","v":89.85779671900859},"F05c",null,null,null,"Veg: Lrg Mam"]
[null,"Small bird (10g)",{"$f":"F05d!Dose_C","v":356.00185834370575},{"$f":"F05d!Dose_L","v":37.694314412862958},{"$f":"F05d!Dose_U","v":1708.8089200497875},"F05d",null,null,null,"Veg: Sm Brd"]
[null,"Large Bird (4 kg)",{"$f":"F05e!Dose_C","v":40.491627301470331},{"$f":"F05e!Dose_L","v":4.2873487730968582},{"$f":"F05e!Dose_U","v":194.3598110470576},"F05e",null,null,null,"Veg: Lrg Brd"]
["   Contaminated Water"]
[null,"Small mammal (20g)",{"$f":"F06a!Dose_C","v":1.6103670662882333E-3},{"$f":"F06a!Dose_L","v":1.4639700602620307E-4},{"$f":"F06a!Dose_U","v":2.6351461084716549E-2},"F06a",null,null,null,"Water: Sm Mam"]
[null,"Larger Mammal (400g)",{"$f":"F06b!Dose_C","v":1.1934985085335016E-3},{"$f":"F06b!Dose_L","v":1.0849986441213652E-4},{"$f":"F06b!Dose_U","v":1.9529975594184575E-2},"F06b",null,null,null,"Water: Med Mam"]
[null,"Canid (5 kg)",{"$f":"F06c!Dose_C","v":9.2710917562513452E-4},{"$f":"F06c!Dose_L","v":8.4282652329557684E-5},{"$f":"F06c!Dose_U","v":1.5170877419320383E-2},"F06c",null,null,null,"Water: Canid"]
[null,"Large Mammal (70g)",{"$f":"F06d!Dose_C","v":7.1206243610641418E-4},{"$f":"F06d!Dose_L","v":6.4732948736946755E-5},{"$f":"F06d!Dose_U","v":1.1651930772650414E-2},"F06d",null,null,null,"Water: Lrg Mam"]
[null,"Small bird (10g)",{"$f":"F06e!Dose_C","v":2.9665023506005384E-3},{"$f":"F06e!Dose_L","v":2.6968203187277627E-4},{"$f":"F06e!Dose_U","v":4.8542765737099723E-2},"F06e",null,null,null,"Water: Sm Brd"]
[null,"Large Bird (4 kg)",{"$f":"F06f!Dose_C","v":4.107380147433558E-4},{"$f":"F06f!Dose_L","v":3.7339819522123262E-5},{"$f":"F06f!Dose_U","v":6.7211675139821859E-3},"F06f",null,null,null,"Water: Lrg Brd"]
["   Contaminated Insects"]
[null,"Small mammal (20g)",{"$f":"F07a!Dose_C","v":19.263767208494059},{"$f":"F07a!Dose_L","v":1.9263767208494056},{"$f":"F07a!Dose_U","v":98.245212763319699},"F07a",null,null,null,"Insects: Sm Mam"]
[null,"Larger Mammal (400g)",{"$f":"F07b!Dose_C","v":4.398792070994002},{"$f":"F07b!Dose_L","v":0.43987920709940015},{"$f":"F07b!Dose_U","v":22.433839562069409},"F07b",null,null,null,"Insects: Med Mam"]
[null,"Small bird (10g)",{"$f":"F07c!Dose_C","v":43.830598154491831},{"$f":"F07c!Dose_L","v":4.3830598154491822},{"$f":"F07c!Dose_U","v":223.53605058790831},"F07c",null,null,null,"Insects: Sm Brd"]
["   Consumption of small mammal (after direct spray) by predator"]
[null,"Canid (5 kg)",{"$f":"F08a!Dose_C","v":2.7150321088118372},{"$f":"F08a!Dose_L","v":2.7150321088118372},{"$f":"F08a!Dose_U","v":2.7150321088118372},"F08a",null,null,null,"Canid Eats Sm Mam"]
[null,"Carnivorous bird (640 g)",{"$f":"F08b!Dose_C","v":3.2284370775017259},{"$f":"F08b!Dose_L","v":3.2284370775017259},{"$f":"F08b!Dose_U","v":3.2284370775017259},"F08b",null,null,null,"Bird Eats Sm Mam"]
["   Consumption of contaminated Fish"]
[null,"Large Mammalian Carnivore (70 kg)",{"$f":"F09a!Dose_C","v":3.2548844906256217E-4},{"$f":"F09a!Dose_L","v":2.9589859005687471E-6},{"$f":"F09a!Dose_U","v":3.0181656185801219E-2},"F09a",null,null,null,"Fish: Lrg Mam"]
[null,"Canid (5 kg)",{"$f":"F09b!Dose_C","v":4.6849099742630096E-4},{"$f":"F09b!Dose_L","v":4.2590090675118275E-6},{"$f":"F09b!Dose_U","v":4.3441892488620633E-2},"F09b",null,null,null,"Fish: Canid"]
[null,"Fish-eating bird (2.4 kg)",{"$f":"F09c!Dose_C","v":5.4391958566029383E-4},{"$f":"F09c!Dose_L","v":4.9447235060026722E-6},{"$f":"F09c!Dose_U","v":5.0436179761227252E-2},"F09c",null,null,null,"Fish: Brd"]
["Chronic/Longer Term Exposures"]
["   Contaminated Fruit (Lowest Residue Rate)"]
[null,"Small mammal (20g)",{"$f":"F10a!Dose_C","v":2.036004181112085},{"$f":"F10a!Dose_L","v":0.2094972002807993},{"$f":"F10a!Dose_U","v":19.916168194061598},"F10a",null,null,"Grass: Sm Mam"]
[null,"Larger Mammal (400g)",{"$f":"F10b!Dose_C","v":0.464912130190064},{"$f":"F10b!Dose_L","v":4.7837715931507208E-2},{"$f":"F10b!Dose_U","v":4.5477648161151007},"F10b",null,null,"Grass: Med Mam"]
[null,"Large Mammal (70g)",{"$f":"F10c!Dose_C","v":0.2647990854315912},{"$f":"F10c!Dose_L","v":2.724683355244082E-2},{"$f":"F10c!Dose_U","v":2.590261440528411},"F10c",null,null,"Grass: Lrg Mam"]
[null,"Small bird (10g)",{"$f":"F10d!Dose_C","v":4.4563138936353583},{"$f":"F10d!Dose_L","v":0.45853799955317476},{"$f":"F10d!Dose_U","v":43.591608433091608},"F10d",null,null,"Grass: Sm Brd"]
[null,"Large Bird (4 kg)",{"$f":"F10e!Dose_C","v":0.5068608410050377},{"$f":"F10e!Dose_L","v":5.2154081070956829E-2},{"$f":"F10e!Dose_U","v":4.9581065962870507},"F10e",null,null,"Grass: Lrg Brd"]
["   Contaminated Vegetation (Short Grass - Highest Residue Rate)"]
[null,"Small mammal (20g)",{"$f":"F11a!Dose_C","v":18.451019770255112},{"$f":"F11a!Dose_L","v":1.465785167893866},{"$f":"F11a!Dose_U","v":237.81902315504823},"F11a",null,null,"Veg: Sm Mam"]
[null,"Larger Mammal (400g)",{"$f":"F11b!Dose_C","v":4.2132049556415199},{"$f":"F11b!Dose_L","v":0.33470525803847684},{"$f":"F11b!Dose_U","v":54.304873084465875},"F11b",null,null,"Veg: Med Mam"]
[null,"Large Mammal (70g)",{"$f":"F11c!Dose_C","v":2.3997068403735224},{"$f":"F11c!Dose_L","v":0.19063741395927888},{"$f":"F11c!Dose_U","v":30.930319502238962},"F11c",null,null,"Veg: Lrg Mam"]
[null,"Small bird (10g)",{"$f":"F11d!Dose_C","v":45.634776325061118},{"$f":"F11d!Dose_L","v":3.6253160589672859},{"$f":"F11d!Dose_U","v":588.19610312384907},"F11d",null,null,"Veg: Sm Brd"]
[null,"Large Bird (4 kg)",{"$f":"F11e!Dose_C","v":5.1904963741968251},{"$f":"F11e!Dose_L","v":0.41234320346725228},{"$f":"F11e!Dose_U","v":66.90138500589994},"F11e",null,null,"Veg: Lrg Brd"]
["   Contaminated Water"]
[null,"Small mammal (20g)",{"$f":"F12a!Dose_C","v":1.2443745512227258E-4},{"$f":"F12a!Dose_L","v":1.3175730542358275E-5},{"$f":"F12a!Dose_U","v":1.4639700602620306E-3},"F12a",null,null,"Water: Sm Mam"]
[null,"Larger Mammal (400g)",{"$f":"F12b!Dose_C","v":9.222488475031605E-5},{"$f":"F12b!Dose_L","v":9.7649877970922861E-6},{"$f":"F12b!Dose_U","v":1.0849986441213652E-3},"F12b",null,null,"Water: Med Mam"]
[null,"Canid (5 kg)",{"$f":"F12c!Dose_C","v":7.1640254480124024E-5},{"$f":"F12c!Dose_L","v":7.5854387096601918E-6},{"$f":"F12c!Dose_U","v":8.4282652329557687E-4},"F12c",null,null,"Water: Canid"]
[null,"Large Mammal (70g)",{"$f":"F12d!Dose_C","v":5.5023006426404735E-5},{"$f":"F12d!Dose_L","v":5.8259653863252075E-6},{"$f":"F12d!Dose_U","v":6.4732948736946746E-4},"F12d",null,null,"Water: Lrg Mam"]
[null,"Small bird (10g)",{"$f":"F12e!Dose_C","v":2.2922972709185979E-4},{"$f":"F12e!Dose_L","v":2.4271382868549861E-5},{"$f":"F12e!Dose_U","v":2.6968203187277624E-3},"F12e",null,null,"Water: Sm Brd"]
[null,"Large Bird (4 kg)",{"$f":"F12f!Dose_C","v":3.1738846593804764E-5},{"$f":"F12f!Dose_L","v":3.3605837569910934E-6},{"$f":"F12f!Dose_U","v":3.7339819522123256E-4},"F12f",null,null,"Water: Lrg Brd"]
["   Consumption of contaminated Fish"]
[null,"Large Mammalian Carnivore (70 kg)",{"$f":"F13a!Dose_C","v":2.5151380154834346E-5},{"$f":"F13a!Dose_L","v":2.6630873105118727E-7},{"$f":"F13a!Dose_U","v":1.6767586769889566E-3},"F13a",null,null,"Fish: Lrg Mam"]
[null,"Canid (5 kg)",{"$f":"F13b!Dose_C","v":3.6201577073850525E-5},{"$f":"F13b!Dose_L","v":3.8331081607606446E-7},{"$f":"F13b!Dose_U","v":2.4134384715900352E-3},"F13b",null,null,"Fish: Canid"]
[null,"Fish-eating bird (2.4 kg)",{"$f":"F13c!Dose_C","v":4.2030149801022711E-5},{"$f":"F13c!Dose_L","v":4.450251155402405E-7},{"$f":"F13c!Dose_U","v":2.8020099867348477E-3},"F13c",null,null,"Fish: Brd"]

{"sheet":"G02","index":108,"n_rows":74,"n_cols":10,"rows_kept":74,"cut":false,"hidden":false,"merged":[[2,5,3,5],[0,0,0,4],[1,2,1,4],[2,0,3,0],[2,1,3,1],[2,2,2,4]]}
["Summary of Hazard Quotients (Toxicity) for the Terrestrial Animals",null,null,null,null,"G01V6"]
["Application Rate:",{"$f":"'A01'!ApRt_C","v":1}," lb a.e./acre",null,null,"G01V6"]
["Scenario","Receptor","Hazard Quotients",null,null,"Toxicity Value"]
[null,null,"Central","Lower","Upper"]
["Accidental Acute Exposures"]
["   Direct Spray",null,null,null,null,null,null,null,null,"Spray: Partial Abs"]
["first-order absorption","Small mammal (20g)",{"$f":"F01a!$C$40/$F$7","v":1.4537793756670003E-4},{"$f":"F01a!$C$41/$F$7","v":8.7247696125054966E-5},{"$f":"F01a!$C$42/$F$7","v":2.0638466844392401E-4},{"$f":"'B02'!$E$20","v":200},"NOAEL",null,null,"Spray: 100% Abs"]
["100% absorption","Small mammal (20g)",{"$f":"F01b!$C$26/$F$8","v":0.12122098481216152},{"$f":"F01b!$C$27/$F$8","v":0.12122098481216152},{"$f":"F01b!$C$28/$F$8","v":0.12122098481216152},{"$f":"'B02'!$E$20","v":200},"NOAEL"]
["   Contaminated Water",null,null,null,null,null,null,null,null,"Spill: Sm Mam"]
["Spill","Small mammal (20g)",{"$f":"F02a!$C$18/$F$10","v":1.1082253356183571E-3},{"$f":"F02a!$C$19/$F$10","v":6.6493520137101428E-5},{"$f":"F02a!$C$20/$F$10","v":1.3298704027420285E-2},{"$f":"'B02'!$E$20","v":200},"NOAEL",null,null,"Spill: Med Mam"]
["Spill","Larger Mammal (400g)",{"$f":"F02b!$C$18/$F$11","v":8.2134397359987345E-4},{"$f":"F02b!$C$19/$F$11","v":4.9280638415992417E-5},{"$f":"F02b!$C$20/$F$11","v":9.8561276831984814E-3},{"$f":"'B02'!$E$20","v":200},"NOAEL",null,null,"Spill: Canid"]
["Spill","Canid (5 kg)",{"$f":"F02c!$C$18/$F$12","v":6.3801967813475167E-4},{"$f":"F02c!$C$19/$F$12","v":3.8281180688085101E-5},{"$f":"F02c!$C$20/$F$12","v":7.6562361376170196E-3},{"$f":"'B02'!$E$20","v":200},"NOAEL",null,null,"Spill: Lrg Mam"]
["Spill","Large Mammal (70g)",{"$f":"F02d!$C$18/$F$13","v":4.9002842193868689E-4},{"$f":"F02d!$C$19/$F$13","v":2.9401705316321212E-5},{"$f":"F02d!$C$20/$F$13","v":5.8803410632642427E-3},{"$f":"'B02'!$E$20","v":200},"NOAEL",null,null,"Spill: Sm Brd"]
["Spill","Small bird (10g)",{"$f":"F02e!$C$18/$F$14","v":2.5518662265961453E-4},{"$f":"F02e!$C$19/$F$14","v":1.5311197359576872E-5},{"$f":"F02e!$C$20/$F$14","v":3.062239471915374E-3},{"$f":"'B02'!$E$22","v":1600},"NOAEL",null,null,"Spill: Lrg Brd"]
["Spill","Large Bird (4 kg)",{"$f":"F02f!$C$18/$F$15","v":3.5332804222809129E-5},{"$f":"F02f!$C$19/$F$15","v":2.1199682533685482E-6},{"$f":"F02f!$C$20/$F$15","v":4.2399365067370958E-4},{"$f":"'B02'!$E$22","v":1600},"NOAEL"]
["   Consumption of contaminated Fish",null,null,null,null,null,null,null,null,"Fish: Bear"]
["Spill","Large Mammalian Carnivore (70 kg)",{"$f":"F03a!$C$47/$F$17","v":2.2399523267305416E-4},{"$f":"F03a!$C$48/$F$17","v":1.343971396038325E-6},{"$f":"F03a!$C$49/$F$17","v":1.523167582176768E-2},{"$f":"'B02'!$E$20","v":200},"NOAEL",null,null,"Fish: Fox"]
["Spill","Canid (5 kg)",{"$f":"F03b!$C$47/$F$18","v":3.2240698641064535E-4},{"$f":"F03b!$C$48/$F$18","v":1.9344419184638724E-6},{"$f":"F03b!$C$49/$F$18","v":2.1923675075923875E-2},{"$f":"'B02'!$E$20","v":200},"NOAEL",null,null,"Fish: Bird"]
["Spill","Fish-eating bird (2.4 kg)",{"$f":"F03c!$C$47/$F$19","v":4.6789446175550277E-5},{"$f":"F03c!$C$48/$F$19","v":2.8073667705330175E-7},{"$f":"F03c!$C$49/$F$19","v":3.1816823399374188E-3},{"$f":"'B02'!$E$22","v":1600},"NOAEL"]
["Non-Accidental Acute Exposures"]
["   Contaminated Fruit (Lowest Residue Rate)"]
[null,"Small mammal (20g)",{"$f":"F04a!$C$35/$F$22","v":7.9415451377309501E-2},{"$f":"F04a!$C$36/$F$22","v":1.0891261903173875E-2},{"$f":"F04a!$C$37/$F$22","v":0.28929914430305603},{"$f":"'B02'!$E$20","v":200},"NOAEL",null,null,"Grass: Sm Mam"]
[null,"Larger Mammal (400g)",{"$f":"F04b!$C$35/$F$23","v":1.8134150711647212E-2},{"$f":"F04b!$C$36/$F$23","v":2.4869692404544748E-3},{"$f":"F04b!$C$37/$F$23","v":6.6060120449571991E-2},{"$f":"'B02'!$E$20","v":200},"NOAEL",null,null,"Grass: Med Mam"]
[null,"Large Mammal (70g)",{"$f":"F04c!$C$35/$F$24","v":1.0328632469881392E-2},{"$f":"F04c!$C$36/$F$24","v":1.41649816729802E-3},{"$f":"F04c!$C$37/$F$24","v":3.7625732568853647E-2},{"$f":"'B02'!$E$20","v":200},"NOAEL",null,null,"Grass: Lrg Mam"]
[null,"Small bird (10g)",{"$f":"F04d!$C$35/$F$25","v":2.1727618650365682E-2},{"$f":"F04d!$C$36/$F$25","v":2.9797877006215796E-3},{"$f":"F04d!$C$37/$F$25","v":7.9150610797760701E-2},{"$f":"'B02'!$E$22","v":1600},"NOAEL",null,null,"Grass: Sm Brd"]
[null,"Large Bird (4 kg)",{"$f":"F04e!$C$35/$F$26","v":2.4712978764556996E-3},{"$f":"F04e!$C$36/$F$26","v":3.3892085162821032E-4},{"$f":"F04e!$C$37/$F$26","v":9.0025851213743329E-3},{"$f":"'B02'!$E$22","v":1600},"NOAEL",null,null,"Grass: Lrg Brd"]
["   Contaminated Vegetation (Short Grass - Highest Residue Rate)"]
[null,"Small mammal (20g)",{"$f":"F05a!$C$35/$F$28","v":0.71969206989845791},{"$f":"F05a!$C$36/$F$28","v":7.6202689753954347E-2},{"$f":"F05a!$C$37/$F$28","v":3.4545219355125982},{"$f":"'B02'!$E$20","v":200},"NOAEL",null,null,"Veg: Sm Mam"]
[null,"Larger Mammal (400g)",{"$f":"F05b!$C$35/$F$29","v":0.16433835274082312},{"$f":"F05b!$C$36/$F$29","v":1.740053146667539E-2},{"$f":"F05b!$C$37/$F$29","v":0.78882409315595092},{"$f":"'B02'!$E$20","v":200},"NOAEL",null,null,"Veg: Med Mam"]
[null,"Large Mammal",{"$f":"F05c!$C$35/$F$30","v":9.3601871582300614E-2},{"$f":"F05c!$C$36/$F$30","v":9.9107864028318282E-3},{"$f":"F05c!$C$37/$F$30","v":0.44928898359504293},{"$f":"'B02'!$E$20","v":200},"NOAEL",null,null,"Veg: Lrg Mam"]
[null,"Small bird (10g)",{"$f":"F05d!$C$35/$F$31","v":0.22250116146481611},{"$f":"F05d!$C$36/$F$31","v":2.3558946508039347E-2},{"$f":"F05d!$C$37/$F$31","v":1.0680055750311173},{"$f":"'B02'!$E$22","v":1600},"NOAEL",null,null,"Veg: Sm Brd"]
[null,"Large Bird (4 kg)",{"$f":"F05e!$C$35/$F$32","v":2.5307267063418955E-2},{"$f":"F05e!$C$36/$F$32","v":2.6795929831855362E-3},{"$f":"F05e!$C$37/$F$32","v":0.121474881904411},{"$f":"'B02'!$E$22","v":1600},"NOAEL",null,null,"Veg: Lrg Brd"]
["   Contaminated Water"]
[null,"Small mammal (20g)",{"$f":"F06a!$C$18/$F$34","v":8.051835331441167E-6},{"$f":"F06a!$C$19/$F$34","v":7.319850301310153E-7},{"$f":"F06a!$C$20/$F$34","v":1.3175730542358275E-4},{"$f":"'B02'!$E$20","v":200},"NOAEL",null,null,"Water: Sm Mam"]
[null,"Larger Mammal (400g)",{"$f":"F06b!$C$18/$F$35","v":5.967492542667508E-6},{"$f":"F06b!$C$19/$F$35","v":5.4249932206068257E-7},{"$f":"F06b!$C$20/$F$35","v":9.7649877970922878E-5},{"$f":"'B02'!$E$20","v":200},"NOAEL",null,null,"Water: Med Mam"]
[null,"Canid (5 kg)",{"$f":"F06c!$C$18/$F$36","v":4.6355458781256723E-6},{"$f":"F06c!$C$19/$F$36","v":4.2141326164778844E-7},{"$f":"F06c!$C$20/$F$36","v":7.585438709660192E-5},{"$f":"'B02'!$E$20","v":200},"NOAEL",null,null,"Water: Canid"]
[null,"Large Mammal (70g)",{"$f":"F06d!$C$18/$F$37","v":3.5603121805320707E-6},{"$f":"F06d!$C$19/$F$37","v":3.2366474368473379E-7},{"$f":"F06d!$C$20/$F$37","v":5.8259653863252068E-5},{"$f":"'B02'!$E$20","v":200},"NOAEL",null,null,"Water: Lrg Mam"]
[null,"Small bird (10g)",{"$f":"F06e!$C$18/$F$38","v":1.8540639691253365E-6},{"$f":"F06e!$C$19/$F$38","v":1.6855126992048516E-7},{"$f":"F06e!$C$20/$F$38","v":3.0339228585687327E-5},{"$f":"'B02'!$E$22","v":1600},"NOAEL",null,null,"Water: Sm Brd"]
[null,"Large Bird (4 kg)",{"$f":"F06f!$C$18/$F$39","v":2.5671125921459737E-7},{"$f":"F06f!$C$19/$F$39","v":2.3337387201327039E-8},{"$f":"F06f!$C$20/$F$39","v":4.2007296962388663E-6},{"$f":"'B02'!$E$22","v":1600},"NOAEL",null,null,"Water: Lrg Brd"]
["   Contaminated Insects"]
[null,"Small mammal (20g)",{"$f":"F07a!$C$35/$F$41","v":9.6318836042470296E-2},{"$f":"F07a!$C$36/$F$41","v":9.6318836042470282E-3},{"$f":"F07a!$C$37/$F$41","v":0.4912260638165985},{"$f":"'B02'!$E$20","v":200},"NOAEL",null,null,"Insects: Sm Mam"]
[null,"Larger Mammal (400g)",{"$f":"F07b!$C$35/$F$42","v":2.1993960354970012E-2},{"$f":"F07b!$C$36/$F$42","v":2.1993960354970009E-3},{"$f":"F07b!$C$37/$F$42","v":0.11216919781034704},{"$f":"'B02'!$E$20","v":200},"NOAEL",null,null,"Insects: Med Mam"]
[null,"Small bird (10g)",{"$f":"F07c!$C$35/$F$43","v":2.7394123846557393E-2},{"$f":"F07c!$C$36/$F$43","v":2.7394123846557388E-3},{"$f":"F07c!$C$37/$F$43","v":0.13971003161744269},{"$f":"'B02'!$E$22","v":1600},"NOAEL",null,null,"Insects: Sm Brd"]
["   Consumption of small mammal (after direct spray) by predator"]
[null,"Canid (5 kg)",{"$f":"F08a!$C$41/$F$45","v":1.3575160544059186E-2},{"$f":"F08a!$C$42/$F$45","v":1.3575160544059186E-2},{"$f":"F08a!$C$43/$F$45","v":1.3575160544059186E-2},{"$f":"'B02'!$E$20","v":200},"NOAEL",null,null,"Canid Eats Sm Mam"]
[null,"Carnivorous bird (640 g)",{"$f":"F08b!$C$41/$F$46","v":2.0177731734385787E-3},{"$f":"F08b!$C$42/$F$46","v":2.0177731734385787E-3},{"$f":"F08b!$C$43/$F$46","v":2.0177731734385787E-3},{"$f":"'B02'!$E$22","v":1600},"NOAEL",null,null,"Bird Eats Sm Mam"]
["   Consumption of contaminated Fish"]
[null,"Large Mammalian Carnivore (70 kg)",{"$f":"F09a!$C$47/$F$48","v":1.6274422453128109E-6},{"$f":"F09a!$C$48/$F$48","v":1.4794929502843736E-8},{"$f":"F09a!$C$49/$F$48","v":1.509082809290061E-4},{"$f":"'B02'!$E$20","v":200},"NOAEL",null,null,"Fish: Lrg Mam"]
[null,"Canid (5 kg)",{"$f":"F09b!$C$47/$F$49","v":2.3424549871315047E-6},{"$f":"F09b!$C$48/$F$49","v":2.1295045337559138E-8},{"$f":"F09b!$C$49/$F$49","v":2.1720946244310315E-4},{"$f":"'B02'!$E$20","v":200},"NOAEL",null,null,"Fish: Canid"]
[null,"Fish-eating bird (2.4 kg)",{"$f":"F09c!$C$47/$F$50","v":3.3994974103768363E-7},{"$f":"F09c!$C$48/$F$50","v":3.0904521912516701E-9},{"$f":"F09c!$C$49/$F$50","v":3.1522612350767031E-5},{"$f":"'B02'!$E$22","v":1600},"NOAEL",null,null,"Fish: Brd"]
["Chronic/Longer Term Exposures"]
["   Contaminated Fruit (Lowest Residue Rate)"]
[null,"Small mammal (20g)",{"$f":"F10a!$C$35/$F$53","v":0.10180020905560425},{"$f":"F10a!$C$36/$F$53","v":1.0474860014039964E-2},{"$f":"F10a!$C$37/$F$53","v":0.99580840970307993},{"$f":"'B02'!$E$21","v":20},"NOAEL",null,"Grass: Sm Mam"]
[null,"Larger Mammal (400g)",{"$f":"F10b!$C$35/$F$54","v":2.3245606509503199E-2},{"$f":"F10b!$C$36/$F$54","v":2.3918857965753602E-3},{"$f":"F10b!$C$37/$F$54","v":0.22738824080575504},{"$f":"'B02'!$E$21","v":20},"NOAEL",null,"Grass: Med Mam"]
[null,"Large Mammal (70g)",{"$f":"F10c!$C$35/$F$55","v":1.3239954271579559E-2},{"$f":"F10c!$C$36/$F$55","v":1.3623416776220409E-3},{"$f":"F10c!$C$37/$F$55","v":0.12951307202642054},{"$f":"'B02'!$E$21","v":20},"NOAEL",null,"Grass: Lrg Mam"]
[null,"Small bird (10g)",{"$f":"F10d!$C$35/$F$56","v":6.8558675286697818E-2},{"$f":"F10d!$C$36/$F$56","v":7.0544307623565351E-3},{"$f":"F10d!$C$37/$F$56","v":0.67064012973987086},{"$f":"'B02'!$E$23","v":65},"NOAEL",null,"Grass: Sm Brd"]
[null,"Large Bird (4 kg)",{"$f":"F10e!$C$35/$F$57","v":7.7978590923851957E-3},{"$f":"F10e!$C$36/$F$57","v":8.0237047801472042E-4},{"$f":"F10e!$C$37/$F$57","v":7.627856301980078E-2},{"$f":"'B02'!$E$23","v":65},"NOAEL",null,"Grass: Lrg Brd"]
["   Contaminated Vegetation (Short Grass - Highest Residue Rate)"]
[null,"Small mammal (20g)",{"$f":"F11a!$C$35/$F$59","v":0.92255098851275563},{"$f":"F11a!$C$36/$F$59","v":7.3289258394693302E-2},{"$f":"F11a!$C$37/$F$59","v":11.890951157752411},{"$f":"'B02'!$E$21","v":20},"NOAEL",null,"Veg: Sm Mam"]
[null,"Larger Mammal (400g)",{"$f":"F11b!$C$35/$F$60","v":0.21066024778207598},{"$f":"F11b!$C$36/$F$60","v":1.6735262901923842E-2},{"$f":"F11b!$C$37/$F$60","v":2.7152436542232938},{"$f":"'B02'!$E$21","v":20},"NOAEL",null,"Veg: Med Mam"]
[null,"Large Mammal (70g)",{"$f":"F11c!$C$35/$F$61","v":0.11998534201867612},{"$f":"F11c!$C$36/$F$61","v":9.5318706979639449E-3},{"$f":"F11c!$C$37/$F$61","v":1.5465159751119482},{"$f":"'B02'!$E$21","v":20},"NOAEL",null,"Veg: Lrg Mam"]
[null,"Small bird (10g)",{"$f":"F11d!$C$35/$F$62","v":0.7020734819240172},{"$f":"F11d!$C$36/$F$62","v":5.5774093214881325E-2},{"$f":"F11d!$C$37/$F$62","v":9.0491708172899852},{"$f":"'B02'!$E$23","v":65},"NOAEL",null,"Veg: Sm Brd"]
[null,"Large Bird (4 kg)",{"$f":"F11e!$C$35/$F$63","v":7.9853790372258843E-2},{"$f":"F11e!$C$36/$F$63","v":6.343741591803881E-3},{"$f":"F11e!$C$37/$F$63","v":1.0292520770138451},{"$f":"'B02'!$E$23","v":65},"NOAEL",null,"Veg: Lrg Brd"]
["   Contaminated Water"]
[null,"Small mammal (20g)",{"$f":"F12a!$C$18/$F$65","v":6.221872756113629E-6},{"$f":"F12a!$C$19/$F$65","v":6.5878652711791375E-7},{"$f":"F12a!$C$20/$F$65","v":7.3198503013101535E-5},{"$f":"'B02'!$E$21","v":20},"NOAEL",null,"Water: Sm Mam"]
[null,"Larger Mammal (400g)",{"$f":"F12b!$C$18/$F$66","v":4.6112442375158027E-6},{"$f":"F12b!$C$19/$F$66","v":4.8824938985461426E-7},{"$f":"F12b!$C$20/$F$66","v":5.424993220606826E-5},{"$f":"'B02'!$E$21","v":20},"NOAEL",null,"Water: Med Mam"]
[null,"Canid (5 kg)",{"$f":"F12c!$C$18/$F$67","v":3.5820127240062013E-6},{"$f":"F12c!$C$19/$F$67","v":3.7927193548300959E-7},{"$f":"F12c!$C$20/$F$67","v":4.2141326164778842E-5},{"$f":"'B02'!$E$21","v":20},"NOAEL",null,"Water: Canid"]
[null,"Large Mammal (70g)",{"$f":"F12d!$C$18/$F$68","v":2.7511503213202366E-6},{"$f":"F12d!$C$19/$F$68","v":2.9129826931626039E-7},{"$f":"F12d!$C$20/$F$68","v":3.2366474368473371E-5},{"$f":"'B02'!$E$21","v":20},"NOAEL",null,"Water: Lrg Mam"]
[null,"Small bird (10g)",{"$f":"F12e!$C$18/$F$69","v":3.5266111860286123E-6},{"$f":"F12e!$C$19/$F$69","v":3.7340589028538247E-7},{"$f":"F12e!$C$20/$F$69","v":4.1489543365042497E-5},{"$f":"'B02'!$E$23","v":65},"NOAEL",null,"Water: Sm Brd"]
[null,"Large Bird (4 kg)",{"$f":"F12f!$C$18/$F$70","v":4.8828994759699635E-7},{"$f":"F12f!$C$19/$F$70","v":5.1701288569093743E-8},{"$f":"F12f!$C$20/$F$70","v":5.7445876187881936E-6},{"$f":"'B02'!$E$23","v":65},"NOAEL",null,"Water: Lrg Brd"]
["   Consumption of contaminated Fish"]
[null,"Large Mammalian Carnivore (70 kg)",{"$f":"F13a!$C$47/$F$72","v":1.2575690077417173E-6},{"$f":"F13a!$C$48/$F$72","v":1.3315436552559363E-8},{"$f":"F13a!$C$49/$F$72","v":8.3837933849447834E-5},{"$f":"'B02'!$E$21","v":20},"NOAEL",null,"Fish: Lrg Mam"]
[null,"Canid (5 kg)",{"$f":"F13b!$C$47/$F$73","v":1.8100788536925262E-6},{"$f":"F13b!$C$48/$F$73","v":1.9165540803803224E-8},{"$f":"F13b!$C$49/$F$73","v":1.2067192357950176E-4},{"$f":"'B02'!$E$21","v":20},"NOAEL",null,"Fish: Canid"]
[null,"Fish-eating bird (2.4 kg)",{"$f":"F13c!$C$47/$F$74","v":6.4661768924650319E-7},{"$f":"F13c!$C$48/$F$74","v":6.8465402390806227E-9},{"$f":"F13c!$C$49/$F$74","v":4.3107845949766887E-5},{"$f":"'B02'!$E$23","v":65},"NOAEL",null,"Fish: Brd"]

{"sheet":"G03","index":109,"n_rows":42,"n_cols":10,"rows_kept":42,"cut":false,"hidden":false,"merged":[[7,6,8,6],[0,0,0,5],[2,2,2,4],[7,0,8,0],[7,1,8,1],[7,2,7,4],[7,5,8,5]]}
["Worksheet G03: Summary of Hazard Quotients for Aquatic Species"]
["Application Rate:",1," lb a.e./acre",null,null,"AqToxSumV6"]
["Exposures",null,"Concentrations (mg/L)"]
[null,"Scenario","Central","Lower","Upper","Worksheet"]
[null,"Accidental Spill",{"$f":"B04b!Acute_C","v":1.514},{"$f":"B04b!Acute_L","v":9.0840000000000004E-2},{"$f":"B04b!Acute_U","v":18.167999999999999},"B04b"]
[null,"Peak EEC",{"$f":"B04a!Acute_C","v":1.0999999999999999E-2},{"$f":"B04a!Acute_L","v":1E-3},{"$f":"B04a!Acute_U","v":0.18},"B04a"]
[null,"Chronic",{"$f":"B04a!Chronic_C","v":8.4999999999999995E-4},{"$f":"B04a!Chronic_L","v":9.0000000000000006E-5},{"$f":"B04a!Chronic_U","v":0.01},"B04a"]
["Receptor","Type","Hazard Quotients",null,null,"Toxicity Value","Toxicity Endpoint"]
[null,null,"Central","Lower","Upper"]
["Accidental Acute Exposures"]
["Fish","Sensitive",{"$f":"C$5/$F11","v":7.9684210526315793},0.47810526315789476,95.621052631578948,{"$f":"'B02'!$E$6","v":0.19},"NOEAC*",null,null,"Fish Sn"]
[null,"Tolerant",0.21027777777777779,1.2616666666666667E-2,2.523333333333333,{"$f":"'B02'!$E$7","v":7.2},"NOAEC",null,null,"Fish Tl"]
["Amphibian","Sensitive","No toxicity data.",null,null,"N/A",null,null,null,"Amph Sn"]
[null,"Tolerant","No toxicity data.",null,null,"N/A",null,null,null,"Amph To"]
["Invertebrate","Sensitive",0.70418604651162797,4.2251162790697676E-2,8.4502325581395343,{"$f":"'B02'!$E$10","v":2.15},"NOAEC",null,null,"Invt Sn"]
[null,"Tolerant",7.0747663551401869E-3,4.2448598130841121E-4,8.489719626168224E-2,{"$f":"'B02'!$E$11","v":214},"NOAEC",null,null,"Invt Tl"]
["Macrophyte","Sensitive","No toxicity data.",null,null,"N/A",null,null,null,"Plant Sn"]
[null,"Tolerant",0.12409836065573772,7.4459016393442629E-3,1.4891803278688525,{"$f":"'B02'!$E$15","v":12.2},"NOAEC",null,null,"Plant Tl"]
["Algae","Sensitive",65.826086956521735,3.9495652173913047,789.91304347826087,{"$f":"'B02'!$E$13","v":2.3E-2},"NOAEC*",null,null,"Algae Sn"]
[null,"Tolerant",1.6106382978723403E-2,9.663829787234043E-4,0.19327659574468084,{"$f":"'B02'!$E$14","v":94},"NOAEC",null,null,"Algae Tl"]
["Non-Accidental Acute Exposures"]
["Fish","Sensitive",{"$f":"C$6/$F22","v":5.7894736842105256E-2},5.263157894736842E-3,0.94736842105263153,{"$f":"'B02'!$E$6","v":0.19},"NOEAC*"]
[null,"Tolerant",1.5277777777777776E-3,1.3888888888888889E-4,2.4999999999999998E-2,{"$f":"'B02'!$E$7","v":7.2},"NOAEC"]
["Amphibian","Sensitive","No toxicity data.",null,null,"N/A"]
[null,"Tolerant","No toxicity data.",null,null,"N/A"]
["Invertebrate","Sensitive",5.1162790697674414E-3,4.6511627906976747E-4,8.3720930232558138E-2,{"$f":"'B02'!$E$10","v":2.15},"NOAEC"]
[null,"Tolerant",5.14018691588785E-5,4.6728971962616825E-6,8.4112149532710281E-4,{"$f":"'B02'!$E$11","v":214},"NOAEC"]
["Macrophyte","Sensitive","No toxicity data.",null,null,"N/A"]
[null,"Tolerant",9.0163934426229508E-4,8.1967213114754098E-5,1.4754098360655738E-2,{"$f":"'B02'!$E$15","v":12.2},"NOAEC"]
["Algae","Sensitive",0.47826086956521735,4.3478260869565216E-2,7.8260869565217392,{"$f":"'B02'!$E$13","v":2.3E-2},"NOAEC*"]
[null,"Tolerant",1.1702127659574467E-4,1.0638297872340426E-5,1.9148936170212765E-3,{"$f":"'B02'!$E$14","v":94},"NOAEC"]
["Chronic/Longer Term Exposures"]
["Fish","Sensitive",{"$f":"C$7/$F33","v":0.24285714285714283},2.5714285714285714E-2,2.8571428571428572,{"$f":"'B02'!$E$8","v":3.5000000000000001E-3},"NOAEC*"]
[null,"Tolerant",1.1805555555555555E-4,1.2500000000000001E-5,1.3888888888888889E-3,{"$f":"'B02'!$E$9","v":7.2},"NOAEC"]
["Amphibian","Sensitive","No toxicity data.",null,null,"N/A"]
[null,"Tolerant","No toxicity data.",null,null,"N/A"]
["Invertebrate","Sensitive","No toxicity data.",null,null,"N/A"]
[null,"Tolerant",1.25E-4,1.3235294117647059E-5,1.4705882352941176E-3,{"$f":"'B02'!$E$12","v":6.8},"NOAEC"]
["Macrophyte","Sensitive","No toxicity data.",null,null,"N/A"]
[null,"Tolerant",6.9672131147540981E-5,7.3770491803278695E-6,8.1967213114754109E-4,{"$f":"'B02'!$E$15","v":12.2},"NOAEC"]
["Algae","Sensitive",3.6956521739130437E-2,3.9130434782608699E-3,0.43478260869565222,{"$f":"'B02'!$E$13","v":2.3E-2},"NOAEC*"]
[null,"Tolerant",9.042553191489362E-6,9.5744680851063837E-7,1.0638297872340425E-4,{"$f":"'B02'!$E$14","v":94},"NOAEC"]

{"sheet":"G04","index":110,"n_rows":31,"n_cols":5,"rows_kept":31,"cut":false,"hidden":false,"merged":[[15,0,18,0],[19,0,22,0],[24,0,24,1],[0,0,0,4],[2,1,2,3],[3,1,3,3],[4,1,4,4],[8,1,8,3],[10,0,13,0]]}
["Summary of Exposure Assessment and Risk Characterization for Terrestrial Plants from Runoff"]
["Short Title","Runoff to terrestrial plants"]
["Receptor","Terrestrial vegetation"]
["Duration","Acute"]
["User-Specified Gleams-Driver File","None"]
["Parameter/Assumption","Code / Range","Value","Units","Reference"]
["Worksheet Application Rate","ApRtWB",{"$f":"'A01'!ApRt_C","v":1},"lb/acre","Worksheeet A01"]
["Offsite Application Rates Inputs"]
["Run ID:","Risk Assessment"]
["Application Rate Used in Run:","ApRtRun",1,"lb/acre"]
["Functional Off-site Application Rate","ApRtOffsite"]
[null,"Central",2.5999999999999999E-3,"lb/acre"]
[null,"Lower",5.0999999999999999E-7]
[null,"Upper",0.15]
["Calculated Values"]
["Normalized Off-site Functional Application Rate ","NormApRtOffsite","ApRtOffsite / ApRtRun"]
[null,"Central",{"$f":"C12/C$10","v":2.5999999999999999E-3},"Unitless","Eq"]
[null,"Lower",{"$f":"C13/C$10","v":5.0999999999999999E-7},null,"Eq"]
[null,"Upper",{"$f":"C14/C$10","v":0.15},null,"Eq"]
["Off-site Application Rate at Workbook Application Rate","ApRtWB","ApRtWB x NormApRtOffsite"]
[null,"Central",{"$f":"C17*C$7","v":2.5999999999999999E-3},"lb/acre","Eq"]
[null,"Lower",{"$f":"C18*C$7","v":5.0999999999999999E-7},null,"Eq"]
[null,"Upper",{"$f":"C19*C$7","v":0.15},null,"Eq"]
["Toxicity Values  (seedling emergence) in units of lbs/acre"]
[null,null,"Sensitive","Tolerant"]
[null,"Endpoint","NOAEL*","NOAEL"]
[null,null,{"$f":"'B02'!$E$16","v":2.1000000000000001E-4},{"$f":"'B02'!$E$17","v":0.43},"Table 28"]
["Hazard Quotients"]
[null,"Central",{"$f":"IF(ISNUMBER(C$27), $C21/C$27, \"N/A\")","v":12.38095238095238},6.0465116279069765E-3]
[null,"Lower",2.4285714285714284E-3,1.186046511627907E-6]
[null,"Upper",714.28571428571422,0.34883720930232559]

{"sheet":"G05","index":111,"n_rows":45,"n_cols":7,"rows_kept":45,"cut":false,"hidden":false,"merged":[[0,0,0,4],[2,1,2,3],[3,1,3,3]]}
["Summary of Exposure Assessment and Risk Characterization for Sensitive and Tolerant Terrestrial Plants from Drift After Aerial Broadcast Foliar Application."]
["Short Title","Drift to terrestrial plants",null,null,"PlntDrift3Apps"]
["Receptor","Terrestrial vegetation"]
["Duration","Acute"]
["Parameter/ Assumption","Code / Range","Equation/   Value","Units","Reference/ Designation"]
["Application Rate","ApRt",{"$f":"'A01'!ApRt_C","v":1},"lb/acre","Worksheet A01"]
["Toxicity Values(Post-emergence in lb/ac)"]
["Sensitive species","NOAEL",{"$f":"'B02'!$E$18","v":2.5999999999999998E-5},"lb/acre","Table 28"]
["Tolerant species","NOAEL",{"$f":"'B02'!$E$19","v":0.05},"lb/acre","Table 28"]
["Proportion of Drift at distances downwind in feet [0 feet = direct spray]","Prop"]
[null,null,"Aerial","High Boom Ground Broadcast","Low Boom Ground Broadcast","Backpack"]
[0,null,1,1,1,1,"unitless"]
[25,null,0.223,0.104,3.5000000000000003E-2,8.3199999999999993E-3]
[50,null,0.17100000000000001,0.05,1.77E-2,4.3299999999999996E-3]
[100,null,9.7900000000000001E-2,2.4799999999999999E-2,9.4800000000000006E-3,2.4099999999999998E-3]
[300,null,3.1199999999999999E-2,7.5300000000000002E-3,3.5000000000000001E-3,9.41E-4]
[500,null,1.9199999999999998E-2,3.9100000000000003E-3,2.0899999999999998E-3,5.7899999999999998E-4]
[900,null,1.24E-2,1.66E-3,1.09E-3,3.1199999999999999E-4]
["Estimates of functional offsite application rate","OffsiteApRt","=ApRt x Prop"]
[null,null,"Aerial","High Boom Ground Broadcast","Low Boom Ground Broadcast","Backpack"]
[{"$f":"A12","v":0},null,{"$f":"$C$6*C12","v":1},1,1,1,"Eq"]
[25,null,0.223,0.104,3.5000000000000003E-2,8.3199999999999993E-3,"Eq"]
[50,null,0.17100000000000001,0.05,1.77E-2,4.3299999999999996E-3,"Eq"]
[100,null,9.7900000000000001E-2,2.4799999999999999E-2,9.4800000000000006E-3,2.4099999999999998E-3,"Eq"]
[300,null,3.1199999999999999E-2,7.5300000000000002E-3,3.5000000000000001E-3,9.41E-4,"Eq"]
[500,null,1.9199999999999998E-2,3.9100000000000003E-3,2.0899999999999998E-3,5.7899999999999998E-4,"Eq"]
[900,null,1.24E-2,1.66E-3,1.09E-3,3.1199999999999999E-4,"Eq"]
[]
["Hazard Quotients (Sensitive Species)","HQSens","= OffsiteApRt / ToxValSens"]
[null,null,"Aerial","High Boom Ground Broadcast","Low Boom Ground Broadcast","Backpack"]
[{"$f":"A12","v":0},null,{"$f":"  IF( ISNUMBER($C$8), C21/$C$8, \"N/A\")","v":38461.538461538461},{"$f":"  IF( ISNUMBER($C$8), D21/$C$8, \"N/A\")","v":38461.538461538461},{"$f":"  IF( ISNUMBER($C$8), E21/$C$8, \"N/A\")","v":38461.538461538461},{"$f":"  IF( ISNUMBER($C$8), F21/$C$8, \"N/A\")","v":38461.538461538461}]
[25,null,{"$f":"  IF(  ISNUMBER($C$8),   C22/$C$8, \"N/A\")","v":8576.923076923078},4000,1346.1538461538464,320]
[50,null,6576.923076923078,1923.0769230769233,680.76923076923083,166.53846153846155]
[100,null,3765.3846153846157,953.84615384615392,364.61538461538464,92.692307692307693]
[300,null,1200,289.61538461538464,134.61538461538461,36.192307692307693]
[500,null,738.46153846153845,150.38461538461542,80.384615384615387,22.26923076923077]
[900,null,476.92307692307696,63.846153846153854,41.923076923076927,12]
["Hazard Quotients (Tolerant Species)","HQTol","= OffsiteApRt / ToxValTol"]
[{"$f":"A12","v":0},null,{"$f":" IF(ISNUMBER($C$9),C21/$C$9,\"N/A\")","v":20},{"$f":" IF(ISNUMBER($C$9),D21/$C$9,\"N/A\")","v":20},{"$f":" IF(ISNUMBER($C$9),E21/$C$9,\"N/A\")","v":20},{"$f":" IF(ISNUMBER($C$9),F21/$C$9,\"N/A\")","v":20}]
[25,null,{"$f":" IF(ISNUMBER($C$9),C22/$C$9,\"N/A\")","v":4.46},2.0799999999999996,0.70000000000000007,0.16639999999999996]
[50,null,3.42,1,0.35399999999999998,8.6599999999999983E-2]
[100,null,1.958,0.49599999999999994,0.18959999999999999,4.8199999999999993E-2]
[300,null,0.62399999999999989,0.15059999999999998,6.9999999999999993E-2,1.882E-2]
[500,null,0.38399999999999995,7.8200000000000006E-2,4.1799999999999997E-2,1.1579999999999998E-2]
[900,null,0.24799999999999997,3.32E-2,2.18E-2,6.2399999999999999E-3]

{"sheet":"G06a","index":112,"n_rows":50,"n_cols":5,"rows_kept":50,"cut":false,"hidden":false,"merged":[[27,1,28,1],[29,0,32,0],[0,0,0,4],[1,1,1,3],[2,1,2,3],[3,1,3,3],[9,0,12,0],[10,3,12,3],[33,0,36,0],[38,0,41,0],[13,0,16,0],[17,0,20,0],[21,0,24,0],[27,0,28,0]]}
["Potential exposure of non-target plants through the use of contaminated irrigation water based on estimates concentrations in ambient water."]
["Short Title","Irrigation Water",null,null,"PlntWatIrrg"]
["Receptor","Non-target plants"]
["Duration","Peak"]
["Parameter/Assumption","Code / Range","Equation/   Value","Units","Reference/Designation"]
["Application Rate","ApRt",{"$f":"'A01'!ApRt_C","v":1},"lb/acre","Worksheet A01"]
["Toxicity Values (Post-emergence in lb/ac)"]
["Sensitive species","NOAEL",{"$f":"'B02'!$E$18","v":2.5999999999999998E-5},"lb/acre","Table 28"]
["Tolerant species","NOAEL",{"$f":"'B02'!$E$19","v":0.05},"lb/acre","Table 28"]
["Water contamination rate","WCR"]
[null,"Central ",{"$f":"B04Rt!$C$4","v":1.0999999999999999E-2},"mg/L per lb/acre","Table 14"]
[null,"Lower ",{"$f":"B04Rt!$C$5","v":1E-3},null,"Table 14"]
[null,"Upper ",{"$f":"B04Rt!$C$6","v":0.18},null,"Table 14"]
["Toxic Equivalency Factor for formulation:  (See risk assessment if this has a value other than 1.)","TEF"]
[null,"Central ",{"$f":"'A01'!C$35","v":1},"unitless","Worksheet A01"]
[null,"Lower ",{"$f":"'A01'!C$36","v":1},null,"Worksheet A01"]
[null,"Upper ",{"$f":"'A01'!C$37","v":1},null,"Worksheet A01"]
["Concentration in irrigation water","ConcWat","ApRt × WCR × TEF"]
[null,"Central ",{"$f":"C$6*C11*C15","v":1.0999999999999999E-2},"mg/L","Eq"]
[null,"Lower ",{"$f":"C$6*C12*C16","v":1E-3},null,"Eq"]
[null,"Upper ",{"$f":"C$6*C13*C17","v":0.18},null,"Eq"]
["Amount of irrigation water applied","IrrigAmnt"]
[null,"Central ",1,"inches","Scenario parameter"]
[null,"Lower ",0.25,null,"Scenario parameter"]
[null,"Upper ",2,null,"Scenario parameter"]
["Gallons per Acre-Foot","GalPerAc-Ft",{"$f":"A02d!$C$4","v":325900},"gal/acre-foot","Budavari  1989"]
["Liters per Gallon","LtPerGal",{"$f":"A02d!$C$5","v":3.7850000000000001},"liters/gal","Budavari  1989"]
["Liters of water applied per acre per inch of irrigation water (rounded to nearest liter)","LpApI","GalPerAc-Ft × LtPerGal ∕ 12"]
[null,null,{"$f":"ROUND(C26*C27/12, 0)","v":102794},"Lit/acre-inch","Eq"]
["Liters of water applied per acre","LPA","IrrigAmnt × LpApl"]
[null,"Central ",{"$f":"C23*C$29","v":102794},"liters","Eq"]
[null,"Lower ",{"$f":"C24*C$29","v":25698.5},null,"Eq"]
[null,"Upper ",{"$f":"C25*C$29","v":205588},null,"Eq"]
["Application Rate (mg/acre)","ApRmg/a","ConcWat × LPA"]
[null,"Central ",{"$f":"C19*C31","v":1130.7339999999999},"mg/acre","Eq"]
[null,"Lower ",{"$f":"C20*C32","v":25.698499999999999},null,"Eq"]
[null,"Upper ",{"$f":"C21*C33","v":37005.839999999997},null,"Eq"]
["Conversion factor for mg to lb ","Conv",{"$f":"A02d!$C$9","v":2.204E-6},null,"Budavari  1989"]
["Functional application rate (lb/acre)","FncApR","ApRmg/a × Conv"]
[null,"Central ",{"$f":"C35*C$38","v":2.4921377359999998E-3},"lb/acre","Eq"]
[null,"Lower ",{"$f":"C36*C$38","v":5.6639493999999996E-5},null,"Eq"]
[null,"Upper ",{"$f":"C37*C$38","v":8.1560871359999995E-2},null,"Eq"]
["Hazard Quotients (Sensitive Species)","HISens","= FncApRt / ToxValSens"]
[null,"Central",{"$f":"IF(ISNUMBER($C$8), C40/$C$8, \"N/A\")","v":95.851451384615387}]
[null,"Lower",{"$f":"IF(ISNUMBER($C$8), C41/$C$8, \"N/A\")","v":2.1784420769230768}]
[null,"Upper",3136.9565907692308]
["Hazard Quotients (Tolerant Species)","HITol","= FncApRt / ToxValTol"]
[null,"Central",{"$f":" IF( ISNUMBER($C$9),  C40/$C$9, \"N/A\")","v":4.9842754719999993E-2}]
[null,"Lower",{"$f":" IF( ISNUMBER($C$9),  C41/$C$9, \"N/A\")","v":1.1327898799999999E-3}]
[null,"Upper",1.6312174271999997]

{"sheet":"G06b","index":113,"n_rows":40,"n_cols":5,"rows_kept":40,"cut":false,"hidden":false,"merged":[[24,0,27,0],[25,3,27,3],[29,3,31,3],[0,0,0,4],[2,1,2,3],[3,1,3,3],[10,3,12,3],[15,3,17,3],[19,0,22,0],[20,3,22,3]]}
["Summary of Exposure Assessment and Risk Characterization for Sensitive and Tolerant Terrestrial Plants from Wind Erosion at the Specified Application Rate."]
["Short Title","Wind erosion, terrestrial plants",null,null,"PlntWind2"]
["Receptor","Terrestrial vegetation"]
["Duration","Acute"]
["Parameter/Assumption","Code / Range","Equation/   Value","Units","Reference/ Designation"]
["Application Rate","ApRt",{"$f":"'A01'!ApRt_C","v":1},"lb/acre","Worksheet A01"]
["Toxicity Values (Post-emergence in lb/ac)"]
["Sensitive species","NOAEL",{"$f":"'B02'!$E$18","v":2.5999999999999998E-5},"lb/acre","Table 28"]
["Tolerant species","NOAEL",{"$f":"'B02'!$E$19","v":0.05},"lb/acre","Table 28"]
["Soil losses due to wind ersion","Loss_TonHa"]
[null,"Central",5,"Tons per hectare per year","Scenario parameter"]
[null,"Lower",1,null,"Scenario parameter"]
[null,"Upper",10,null,"Scenario parameter"]
["Conversion for tons/ha to grams per cm2","Conv1",0.01]
["Soil losses  in grams/square centimeter","Loss_GrCm"]
[null,"Central",{"$f":"Trigger*C$14","v":0.05},"g/cm2  per year","Eq"]
[null,"Lower",{"$f":"C12*C$14","v":0.01},null,"Eq"]
[null,"Upper",{"$f":"C13*C$14","v":0.1},null,"Eq"]
["Soil Density","Dens",2,"g/cm2"]
["Soil losses  in cm/day","Loss_CmDay","= Loss_GrCm /(Dens * 365)"]
[null,"Central",{"$f":"C16/(C$19* 365)","v":6.8493150684931516E-5},"cm  per day","Eq"]
[null,"Lower",{"$f":"C17/(C$19* 365)","v":1.3698630136986302E-5},null,"Eq"]
[null,"Upper",{"$f":"C18/(C$19* 365)","v":1.3698630136986303E-4},null,"Eq"]
["Depth of incorporation","Depth",1,"cm","Scenario parameter"]
["Proportion of contaminated soil lost per day","PropLost"]
[null,"Central",{"$f":"C21/C$24","v":6.8493150684931516E-5},"unitless"]
[null,"Lower",{"$f":"C22/C$24","v":1.3698630136986302E-5}]
[null,"Upper",{"$f":"C23/C$24","v":1.3698630136986303E-4}]
["Estimates of functional offsite application rate","OfsiteApRt","=ApRt x PropLost"]
[null,"Central",{"$f":"C$6*C26","v":6.8493150684931516E-5},"lb/acre","Eq"]
[null,"Lower",{"$f":"C$6*C27","v":1.3698630136986302E-5},null,"Eq"]
[null,"Upper",{"$f":"C$6*C28","v":1.3698630136986303E-4},null,"Eq"]
["Hazard Quotients (Sensitive Species)","HISens","= OffsiteApRt / ToxValSens"]
[null,"Central",{"$f":"IF(ISNUMBER($C$8), C30/$C$8, \"N/A\")","v":2.6343519494204433}]
[null,"Lower",{"$f":"IF(ISNUMBER($C$8), C31/$C$8, \"N/A\")","v":0.52687038988408852}]
[null,"Upper",{"$f":"IF(ISNUMBER($C$8), C32/$C$8, \"N/A\")","v":5.2687038988408865}]
["Hazard Quotients (Tolerant Species)","HITol","= OffsiteApRt / ToxValTol"]
[null,"Central",{"$f":" IF( ISNUMBER($C$9),  C30/$C$9, \"N/A\")","v":1.3698630136986301E-3}]
[null,"Lower",{"$f":" IF( ISNUMBER($C$9),  C31/$C$9, \"N/A\")","v":2.7397260273972601E-4}]
[null,"Upper",{"$f":" IF( ISNUMBER($C$9),  C32/$C$9, \"N/A\")","v":2.7397260273972603E-3}]

{"sheet":"G07a","index":114,"n_rows":21,"n_cols":5,"rows_kept":21,"cut":false,"hidden":false,"merged":[[17,0,20,0],[0,0,0,4],[2,1,2,3],[7,0,10,0],[8,3,10,3],[12,0,15,0],[13,3,15,3]]}
["Consumption of Fruit by a Herbivorous Insect, Acute exposure."]
["Short Title","Fruit",null,null,"FdPropBWV6"]
["Receptor","Herbivorous Insect"]
["Duration","Acute",null,null,"Scenario parameter"]
["Material consumed","Fruit"]
["Parameter/Assumption","Code / Range","Equation/   Value","Units","Reference/Designation"]
["Commodity"]
["Concentration on vegetation","Conc"]
[null,"Central ",{"$f":"B05a!Acute_C","v":7},"mg/kg food","='B05a'!Acute_C"]
[null,"Lower ",{"$f":"B05a!Acute_L","v":3.2000000000000006},null,"='B05a'!Acute_L"]
[null,"Upper ",{"$f":"B05a!Acute_U","v":15},null,"='B05a'!Acute_U"]
["Receptor"]
["Amount consumed per day  per unit body weight","Amnt"]
[null,"Central ",{"$f":"'A03'!$E$42","v":1.3},"kg food/kg BW per day","Waldbauer 1968"]
[null,"Lower ",{"$f":"'A03'!$E$43","v":0.6},null,"Reichle et al. 1973"]
[null,"Upper ",{"$f":"'A03'!$E$44","v":2.2000000000000002},null,"Waldbauer 1968"]
["Estimate"]
["Dose","Dose","Conc × Amnt"]
[null,"Central",{"$f":"C14*C9","v":9.1},"mg/kg bw","Eq"]
[null,"Lower",{"$f":"C15*C10","v":1.9200000000000004},null,"Eq"]
[null,"Upper",{"$f":"C16*C11","v":33},null,"Eq"]

{"sheet":"G07b","index":115,"n_rows":21,"n_cols":5,"rows_kept":21,"cut":false,"hidden":false,"merged":[[17,0,20,0],[0,0,0,4],[2,1,2,3],[7,0,10,0],[8,3,10,3],[12,0,15,0],[13,3,15,3]]}
["Consumption of Broadleaf/Small Insects by a Herbivorous Insect, Acute exposure."]
["Short Title","Broadleaf Vegetation",null,null,"FdPropBWV6"]
["Receptor","Herbivorous Insect"]
["Duration","Acute",null,null,"Scenario parameter"]
["Material consumed","Broadleaf/Small Insects"]
["Parameter/Assumption","Code / Range","Equation/   Value","Units","Reference/Designation"]
["Commodity"]
["Concentration on vegetation","Conc"]
[null,"Central ",{"$f":"B05b!Acute_C","v":45},"mg/kg food","='B05b'!Acute_C"]
[null,"Lower ",{"$f":"B05b!Acute_L","v":14.999999999999998},null,"='B05b'!Acute_L"]
[null,"Upper ",{"$f":"B05b!Acute_U","v":135},null,"='B05b'!Acute_U"]
["Receptor"]
["Amount consumed per day  per unit body weight","Amnt"]
[null,"Central ",{"$f":"'A03'!$E$39","v":1.3},"kg food/kg BW per day","Waldbauer 1968"]
[null,"Lower ",{"$f":"'A03'!$E$40","v":0.6},null,"Reichle et al. 1973"]
[null,"Upper ",{"$f":"'A03'!$E$41","v":2.2000000000000002},null,"Waldbauer 1968"]
["Estimate"]
["Dose","Dose","Conc × Amnt"]
[null,"Central",{"$f":"C14*C9","v":58.5},"mg/kg bw","Eq"]
[null,"Lower",{"$f":"C15*C10","v":8.9999999999999982},null,"Eq"]
[null,"Upper",{"$f":"C16*C11","v":297},null,"Eq"]

{"sheet":"G07c","index":116,"n_rows":21,"n_cols":5,"rows_kept":21,"cut":false,"hidden":false,"merged":[[17,0,20,0],[0,0,0,4],[2,1,2,3],[7,0,10,0],[8,3,10,3],[12,0,15,0],[13,3,15,3]]}
["Consumption of Short grass by a Herbivorous Insect, Acute exposure."]
["Short Title","Short Grass",null,null,"FdPropBWV6"]
["Receptor","Herbivorous Insect"]
["Duration","Acute",null,null,"Scenario parameter"]
["Material consumed","Short grass"]
["Parameter/Assumption","Code / Range","Equation/   Value","Units","Reference/Designation"]
["Commodity"]
["Concentration on vegetation","Conc"]
[null,"Central ",{"$f":"B05c!Acute_C","v":85},"mg/kg food","='B05c'!Acute_C"]
[null,"Lower ",{"$f":"B05c!Acute_L","v":29.999999999999996},null,"='B05c'!Acute_L"]
[null,"Upper ",{"$f":"B05c!Acute_U","v":240},null,"='B05c'!Acute_U"]
["Receptor"]
["Amount consumed per day  per unit body weight","Amnt"]
[null,"Central ",{"$f":"'A03'!$E$45","v":1.3},"kg food/kg BW per day","Waldbauer 1968"]
[null,"Lower ",{"$f":"'A03'!$E$46","v":0.6},null,"Reichle et al. 1973"]
[null,"Upper ",{"$f":"'A03'!$E$47","v":2.2000000000000002},null,"Waldbauer 1968"]
["Estimate"]
["Dose","Dose","Conc × Amnt"]
[null,"Central",{"$f":"C14*C9","v":110.5},"mg/kg bw","Eq"]
[null,"Lower",{"$f":"C15*C10","v":17.999999999999996},null,"Eq"]
[null,"Upper",{"$f":"C16*C11","v":528},null,"Eq"]

{"sheet":"G07d","index":117,"n_rows":21,"n_cols":5,"rows_kept":21,"cut":false,"hidden":false,"merged":[[17,0,20,0],[0,0,0,4],[2,1,2,3],[7,0,10,0],[8,3,10,3],[12,0,15,0],[13,3,15,3]]}
["Consumption of Tall Grass by a Herbivorous Insect, Acute exposure."]
["Short Title","Tall Grass",null,null,"FdPropBWV6"]
["Receptor","Herbivorous Insect"]
["Duration","Acute",null,null,"Scenario parameter"]
["Material consumed","Tall Grass"]
["Parameter/Assumption","Code / Range","Equation/   Value","Units","Reference/Designation"]
["Commodity"]
["Concentration on vegetation","Conc"]
[null,"Central ",{"$f":"B05d!Acute_C","v":36},"mg/kg food","='B05d'!Acute_C"]
[null,"Lower ",{"$f":"B05d!Acute_L","v":12},null,"='B05d'!Acute_L"]
[null,"Upper ",{"$f":"B05d!Acute_U","v":110},null,"='B05d'!Acute_U"]
["Receptor"]
["Amount consumed per day  per unit body weight","Amnt"]
[null,"Central ",{"$f":"'A03'!$E$48","v":1.3},"kg food/kg BW per day","Waldbauer 1968"]
[null,"Lower ",{"$f":"'A03'!$E$49","v":0.6},null,"Reichle et al. 1973"]
[null,"Upper ",{"$f":"'A03'!$E$50","v":2.2000000000000002},null,"Waldbauer 1968"]
["Estimate"]
["Dose","Dose","Conc × Amnt"]
[null,"Central",{"$f":"C14*C9","v":46.800000000000004},"mg/kg bw","Eq"]
[null,"Lower",{"$f":"C15*C10","v":7.1999999999999993},null,"Eq"]
[null,"Upper",{"$f":"C16*C11","v":242.00000000000003},null,"Eq"]

{"sheet":"G08a","index":118,"n_rows":9,"n_cols":6,"rows_kept":9,"cut":false,"hidden":false,"merged":[[0,0,0,5],[2,0,3,0],[2,1,3,1],[2,2,2,4],[2,5,3,5]]}
["Summary of Exposure Assessments for the Herbivorous or Predatory Insects"]
["Application Rate:",{"$f":"'A01'!ApRt_C","v":1}," lb a.e./acre",null,null,"InstHerbSum"]
["Food Item","Receptor","mg/kg/day or mg/kg/event",null,null,"Detail Worksheet"]
[null,null,"Central","Lower","Upper"]
["Acute Exposures"]
["Fruit/Large Insects","Insect",{"$f":"G07a!Dose_C","v":9.1},{"$f":"G07a!Dose_L","v":1.9200000000000004},{"$f":"G07a!Dose_U","v":33},"G07a"]
["Broadleaf/Small Insects","Insect",{"$f":"G07b!Dose_C","v":58.5},{"$f":"G07b!Dose_L","v":8.9999999999999982},{"$f":"G07b!Dose_U","v":297},"G07b"]
["Short Grass","Insect",{"$f":"G07c!Dose_C","v":110.5},{"$f":"G07c!Dose_L","v":17.999999999999996},{"$f":"G07c!Dose_U","v":528},"G07c"]
["Long Grass","Insect",{"$f":"G07d!Dose_C","v":46.800000000000004},{"$f":"G07d!Dose_L","v":7.1999999999999993},{"$f":"G07d!Dose_U","v":242.00000000000003},"G07d"]

{"sheet":"G08b","index":119,"n_rows":9,"n_cols":7,"rows_kept":9,"cut":false,"hidden":false,"merged":[[0,0,0,5],[2,0,3,0],[2,1,3,1],[2,2,2,4],[2,5,3,5]]}
["Summary of Hazard Quotients (Toxicity) for the Herbivorous or Predatory Insects"]
["Application Rate:",{"$f":"'A01'!ApRt_C","v":1}," lb a.e./acre",null,null,"InstHerbSum"]
["Food Item","Receptor","Hazard Quotients",null,null,"Toxicity Value"]
[null,null,"Central","Lower","Upper"]
["Acute Exposures"]
["Fruit/Large Insects","Insect",{"$f":"G07a!$C$19/$F$6","v":1.058139534883721E-2},{"$f":"G07a!$C$20/$F$6","v":2.232558139534884E-3},{"$f":"G07a!$C$21/$F$6","v":3.8372093023255817E-2},{"$f":"'B02'!$E$25","v":860},"NOAEL*"]
["Broadleaf/Small Insects","Insect",{"$f":"G07b!$C$19/$F$7","v":6.8023255813953493E-2},{"$f":"G07b!$C$20/$F$7","v":1.0465116279069766E-2},{"$f":"G07b!$C$21/$F$7","v":0.34534883720930232},{"$f":"'B02'!$E$25","v":860},"NOAEL*"]
["Short Grass","Insect",{"$f":"G07c!$C$19/$F$8","v":0.12848837209302325},{"$f":"G07c!$C$20/$F$8","v":2.0930232558139531E-2},{"$f":"G07c!$C$21/$F$8","v":0.61395348837209307},{"$f":"'B02'!$E$25","v":860},"NOAEL*"]
["Long Grass","Insect",{"$f":"G07d!$C$19/$F$9","v":5.4418604651162793E-2},{"$f":"G07d!$C$20/$F$9","v":8.3720930232558128E-3},{"$f":"G07d!$C$21/$F$9","v":0.28139534883720935},{"$f":"'B02'!$E$25","v":860},"NOAEL*"]

{"sheet":"G09","index":120,"n_rows":63,"n_cols":7,"rows_kept":63,"cut":false,"hidden":false,"merged":[[0,0,0,4],[1,1,1,3],[2,1,2,3],[3,1,3,3],[26,0,26,3],[26,4,26,6],[54,1,54,3],[54,4,54,6],[27,1,27,3],[27,4,27,6],[36,1,36,3],[36,4,36,6],[45,1,45,3],[45,4,45,6]]}
["Exposures and HQs for a Terrestrial Insect (Honeybee) Associated with Direct Spray or Drift Following Terrestrial Applications"]
["Short Title","Direct Spray or Drift",null,null,"BeeSprayHQs3Apps"]
["Receptor","Honeybee"]
["Duration","Acute"]
["Parameter/Assumption","Code / Range","Equation/   Value","Units","Reference/Designation"]
["Toxicity Value (Spray)","ToxVal",{"$f":"'B02'!$E$24","v":270},"mg/kg bw","NOAEL"]
["Application rate","ApRtlb/ac",{"$f":"'A01'!ApRt_C","v":1},"lb/acre","Worksheet A01"]
["Conversion Factor for lbs/acre to mg/cm2","CnvF",1.1209999999999999E-2,"mg/cm2/lb/acre"]
["Application rate, mg/cm2","ApRmgcm","ApRlb/a × CnvF"]
[null,null,{"$f":"C7*C8","v":1.1209999999999999E-2},"lb/acre","Eq"]
["Body weight","BW",{"$f":"A02b!$C$36","v":1.16E-4},"kg","Winston 1987"]
[null,"SA",{"$f":"A02b!$C$37","v":1.42},"cm2","Humphery and Dykes 2008"]
["Proportion of body surface sprayed","PrpSA",0.5,"unitless","Scenario parameter"]
["Amount Deposited on Skin (Direct Spray)","Amnt","ApRmgcm× SA × PrpSA"]
[null,null,{"$f":"C$10*C$12*C$13","v":7.9590999999999985E-3},"mg","Eq"]
["Foliar Interception","FolInt","Lower","Central","Upper"]
[null,null,0,0.5,0.9]
[]
["Proportion of Drift at distances downwind in feet [0 feet = direct spray]","Prop","Aerial","High Boom Ground Broadcast","Low Boom Ground Broadcast","Backpack"]
[0,"feet",1,1,1,1]
[25,"feet",0.223,0.104,3.5000000000000003E-2,8.3199999999999993E-3]
[50,"feet",0.17100000000000001,0.05,1.77E-2,4.3299999999999996E-3]
[100,"feet",9.7900000000000001E-2,2.4799999999999999E-2,9.4800000000000006E-3,2.4099999999999998E-3]
[300,"feet",3.1199999999999999E-2,7.5300000000000002E-3,3.5000000000000001E-3,9.41E-4]
[500,"feet",1.9199999999999998E-2,3.9100000000000003E-3,2.0899999999999998E-3,5.7899999999999998E-4]
[900,"feet",1.24E-2,1.66E-3,1.09E-3,3.1199999999999999E-4]
["Doses (mg/kg bw) = Prop x FolInt x Amnt  ÷ BW)",null,null,null,"HQ = Absorbed Doses/ToxVal"]
["Aerial","Foliar Interception",null,null,"Foliar Interception"]
["Distance Downwind","None",0.5,0.9,"None",0.5,0.9]
[{"$f":"A20","v":0},{"$f":"$C20*(1-C$17)*$C$15/$C$11","v":68.612931034482742},34.306465517241371,6.8612931034482738,{"$f":"B30/$C$6","v":0.25412196679438054},0.12706098339719027,2.5412196679438052E-2]
[25,15.300683620689652,7.650341810344826,1.530068362068965,5.6669198595146859E-2,2.833459929757343E-2,5.6669198595146854E-3]
[50,11.732811206896551,5.8664056034482757,1.1732811206896547,4.3454856321839076E-2,2.1727428160919538E-2,4.3454856321839064E-3]
[100,6.7172059482758613,3.3586029741379306,0.67172059482758595,2.4878540549169856E-2,1.2439270274584928E-2,2.4878540549169849E-3]
[300,2.1407234482758617,1.0703617241379308,0.21407234482758611,7.9286053639846723E-3,3.9643026819923361E-3,7.9286053639846703E-4]
[500,1.3173682758620684,0.6586841379310342,0.13173682758620683,4.879141762452105E-3,2.4395708812260525E-3,4.8791417624521047E-4]
[900,0.85080034482758593,0.42540017241379297,8.5080034482758596E-2,3.1511123882503184E-3,1.5755561941251592E-3,3.1511123882503183E-4]
["Highboom Ground","Foliar Interception",null,null,"Foliar Interception"]
["Distance Downwind","None",0.5,0.9,"None",0.5,0.9]
[{"$f":"A29","v":"Distance Downwind"},{"$f":"$D20*(1-C$17)*$C$15/$C$11","v":68.612931034482742},{"$f":"$D20*(1-D$17)*$C$15/$C$11","v":34.306465517241371},{"$f":"$D20*(1-E$17)*$C$15/$C$11","v":6.8612931034482738},{"$f":"B39/$C$6","v":0.25412196679438054},0.12706098339719027,2.5412196679438052E-2]
[0,{"$f":"$D21*(1-C$17)*$C$15/$C$11","v":7.1357448275862048},3.5678724137931024,0.71357448275862045,2.6428684546615573E-2,1.3214342273307787E-2,2.6428684546615571E-3]
[25,3.4306465517241378,1.7153232758620689,0.34306465517241369,1.270609833971903E-2,6.3530491698595148E-3,1.2706098339719026E-3]
[50,1.7016006896551719,0.85080034482758593,0.17016006896551719,6.3022247765006367E-3,3.1511123882503184E-3,6.3022247765006365E-4]
[100,0.51665537068965506,0.25832768534482753,5.1665537068965504E-2,1.9135384099616855E-3,9.5676920498084274E-4,1.9135384099616855E-4]
[300,0.26827656034482755,0.13413828017241378,2.6827656034482748E-2,9.9361689016602803E-4,4.9680844508301401E-4,9.9361689016602765E-5]
[500,0.11389746551724136,5.6948732758620682E-2,1.1389746551724133E-2,4.2184246487867171E-4,2.1092123243933585E-4,4.218424648786716E-5]
["Lowboom Ground","Foliar Interception",null,null,"Foliar Interception"]
["Distance Downwind","None",0.5,0.9,"None",0.5,0.9]
[{"$f":"A38","v":"Distance Downwind"},{"$f":"$E20*(1-C$17)*$C$15/$C$11","v":68.612931034482742},{"$f":"$E20*(1-D$17)*$C$15/$C$11","v":34.306465517241371},{"$f":"$E20*(1-E$17)*$C$15/$C$11","v":6.8612931034482738},{"$f":"B48/$C$6","v":0.25412196679438054},0.12706098339719027,2.5412196679438052E-2]
["Distance Downwind",{"$f":"$E21*(1-C$17)*$C$15/$C$11","v":2.4014525862068963},1.2007262931034481,0.24014525862068958,8.8942688378033201E-3,4.44713441890166E-3,8.8942688378033181E-4]
[0,1.2144488793103445,0.60722443965517225,0.12144488793103443,4.4979588122605356E-3,2.2489794061302678E-3,4.4979588122605346E-4]
[25,0.65045058620689655,0.32522529310344828,6.5045058620689628E-2,2.409076245210728E-3,1.204538122605364E-3,2.4090762452107269E-4]
[50,0.24014525862068961,0.12007262931034481,2.4014525862068956E-2,8.8942688378033192E-4,4.4471344189016596E-4,8.8942688378033168E-5]
[100,0.14340102586206893,7.1700512931034466E-2,1.4340102586206889E-2,5.3111491060025531E-4,2.6555745530012766E-4,5.3111491060025515E-5]
[300,7.4788094827586193E-2,3.7394047413793097E-2,7.4788094827586181E-3,2.7699294380587481E-4,1.384964719029374E-4,2.7699294380587476E-5]
["Backpack","Foliar Interception",null,null,"Foliar Interception"]
["Distance Downwind","None",0.5,0.9,"None",0.5,0.9]
[{"$f":"A47","v":"Distance Downwind"},{"$f":"$F20*(1-C$17)*$C$15/$C$11","v":68.612931034482742},{"$f":"$F20*(1-D$17)*$C$15/$C$11","v":34.306465517241371},{"$f":"$F20*(1-E$17)*$C$15/$C$11","v":6.8612931034482738},{"$f":"B57/$C$6","v":0.25412196679438054},0.12706098339719027,2.5412196679438052E-2]
["Distance Downwind",{"$f":"$F21*(1-C$17)*$C$15/$C$11","v":0.57085958620689636},0.28542979310344818,5.7085958620689624E-2,2.1142947637292457E-3,1.0571473818646229E-3,2.1142947637292454E-4]
["Distance Downwind",0.29709399137931031,0.14854699568965515,2.9709399137931018E-2,1.1003481162196679E-3,5.5017405810983396E-4,1.1003481162196673E-4]
[0,0.16535716379310339,8.2678581896551695E-2,1.6535716379310336E-2,6.12433939974457E-4,3.062169699872285E-4,6.1243393997445681E-5]
[25,6.4564768103448272E-2,3.2282384051724136E-2,6.4564768103448252E-3,2.3912877075351211E-4,1.1956438537675606E-4,2.3912877075351204E-5]
[50,3.9726887068965509E-2,1.9863443534482755E-2,3.9726887068965502E-3,1.4713661877394633E-4,7.3568309386973165E-5,1.4713661877394631E-5]
[100,2.1407234482758618E-2,1.0703617241379309E-2,2.1407234482758615E-3,7.9286053639846741E-5,3.9643026819923371E-5,7.9286053639846714E-6]

{"sheet":"References","index":121,"n_rows":41,"n_cols":2,"rows_kept":41,"cut":false,"hidden":false,"merged":[[0,0,0,1]]}
["References cited in workbook"]
["Citation","Full Reference"]
["Boxenbaum and D’Souza 1990","Boxenbaum J; D'Souza R.  1990.  Interspecies pharmacokinetic scaling, biological design and neoteny.  Adv. Drug Res.  19: 139-195."]
["Budavari  1989","Budavari S. (Ed).  1989.  The Merck Index: An Encyclopedia of Chemicals, Drugs,and Biologicals, 11th ed.  Merck & Co., Inc., Rahway, New Jersey."]
["Burnmaster 1998","Burnmaster DE.  1998.  Lognormal distribution for total water intake and tap water intake by pregnant and lactating women in the United States.  Risk Analysis.  18(5): 215-219"]
["Default","These are plausible default values that are typically used in SERA risk assessments."]
["Dunning 1993","Dunning JB.  1993.  CRC Handbook of Avian Body Masses.  CRC Press, Boca Raton FL, 371 pp."]
["Durkin et al. 1995","Durkin PR; Rubin L; Withey J; Meylan W.  1995.  Methods of assessing dermal absorption with emphasis on uptake from contaminated vegetation.  Toxicol. Indust. Health.  11(1): 63-79."]
["Fletcher et al. 1994","Fletcher JS; Nellessen JE; Pfleeger TG. 1994. Literature review and evaluation of the EPA food-chain (Kenega) nomogram, an instrument for estimating pesticide residues on plants. Environ.  Toxicol. Chem. 13(9):1383-1391."]
["Harris and Solomon 1992","Harris SA; Solomon KR.  1992.  Human exposure to 2,4-D following controlled activities on recently sprayed turf.  J. Environ. Sci. Health.  B27(1): 9-22."]
["Hoerger and Kenaga 1972","Hoerger F; Kenaga EE.  1972.  Pesticide residues on plants: Correlation of representative data as a basis for estimation of their magnitude in the environment.  In: Environmental Quality and Safety, Volume I:  Global Aspects of Toxicology and Technology as Applied to the Environment.  F. Coulston and F. Kerte (eds.).  Academic Press, New York, NY.  pp. 9-28."]
["Humphery and Dykes 2008","Humphrey JAC; Dykes ES.  2008.  Thermal energy conduction in a honey bee comb due to cell-heating bees.  J Theoretical Biology.  250 (1): 194-208."]
["ICRP 1975","ICRP (International Commission on Radiologic Protection).  1975. Report of the Task Group on Reference Man.  Recommendations of the International Commission on Radiological Protection (ICRP) Publ. No. 23.   Pergamon Press, New York, NY."]
["Knisel et al. 1992","Knisel WG; Davis FM; Leonard RA.  1992.  GLEAMS Version 2.0 User Manual. U.S. Department of Agriculture, Agricultural Research Service, Southeast Watershed Research Laboratory, Tifton, GA.  202pp"]
["Manugistics 1995","Manugistics.  1995.  Statgraphics Plus for Windows. Version 3.  Available from Manugistics, Inc.  Rockville, Maryland."]
["Mason and Johnson 1987","Mason RW; Johnson BL.  1987.  Ergonomic factors in chemical hazard control.  In: Handbook of Human Factors.  Salveny, G; ed.  John Wiley and Sons, New York, NY.  pp. 772-741."]
["Mendenhall and Scheaffer 1973","Mendenhall W; Scheaffer RF.  1973.  Mathematical Statistics with Applications.  Duxbury Press, North Scituate, Massachusetts. 461 pp. plus appendices."]
["N/A","Not applicable"]
["Nagy 2005","Nagy KA.  2005.  Field metabolic rate and body size.  Journal of Experimental Biology.  208: 1621-1625."]
["Ratnapalan et al. 2003","Ratnapalan S; Potylitsina Y; Tan LH; Roifman M; Koren G.  2003.  Measuring a toddler's mouthful: toxicologic considerations.  J Pediatr.  142(6):729-30."]
["Reichle et al. 1973","Reichle DE, Goldstein RA; Van Hook RI; Dodson DJ.  1973.  Analysis of Insect Consumption in a Forest Canopy.  Ecology.  54: 1076-1084."]
["Reid 2006"," Reid FA. 2006.  A Field Guide to Mammals of North America North of Mexico.  Fourth Edition.  The Peterson Field Guide Series.  Houghton Mifflin Company, Boston MA.  570 pp."]
["Ruffle et al. 1994","Ruffle B; Burmaster DE; Anderson PD; Gordon HD.  1994.  Lognormal distributions for fish consumption by the general U.S. population.  Risk Analy.  14(4): 395-404."]
["SERA 1997","SERA (Syracuse Environmental Research Associates, Inc.).  1997. Reevaluation of Methods for Assessing Worker Exposure to Pesticides, SERA TR 96-21-08-01, draft dated December 31, 1997.  Prepared under USDA/FS Contract 53-3187-5-12.  Syracuse Environmental Research Associates, Inc., Fayetteville, NY."]
["SERA 2005","SERA (Syracuse Environmental Research Associates, Inc.).  2005. Hexazinone - Human Health and Ecological Risk Assessment– Final Report, SERA SERA TR 05-43-20-03d, Final Report dated October 25, 2005.  Available at: http://www.fs.fed.us/foresthealth/pesticide/risk.shtml."]
["SERA 2007","SERA (Syracuse Environmental Research Associates, Inc.).  2007. Preparation of Environmental Documentation and Risk Assessments, SERA MD 2007-01a, draft dated July 2001.  Syracuse Environmental Research Associates, Inc., Fayetteville, NY.  Available at www.sera-inc.com."]
["SERA 2010","SERA (Syracuse Environmental Research Associates, Inc.).  2010. Strychnine Human Health and Ecological Risk Assessment, SERA TR-052-17-02a, draft dated February 22, 2010.  Syracuse Environmental Research Associates, Inc., Manlius, NY.  Available at www.sera-inc.com."]
["Sibley 2000","Sibley DA.  2000.  The Sibley Guide to Birds.  National Audubon Society, Chanticleer Press Edition.  Alfred A. Knopf Inc., New York.  545 pp."]
["Teske et al. 2001","Teske ME; Bird SL; Esterly DM; Ray SL; Perry SG.  2001.  A User’s Guide for AgDRIFT 2.0: A Tiered Approach for the Assesment of Spray Drift.  Continuum Dynamics, Inc. Public Use Version.  C.D.I. Report No. 01-01.  Available, with executable model at: http://www.agdrift.com"]
["U.S. EPA/OPP 1999","U.S. EPA/OPP ((U.S. Environmental Protection Agency/Office of Pesticide Programs).  1999.  ECOFRAM:  Terrestrial ECOFRAM Terrestrial Draft Report.  Ecological Committee on FIFRA Risk Assessment Methods(ECOFRAM).  Report dated May 10, 1999.  Available at:  http://www.epa.gov/oppefed1/ ecorisk/terrreport.pdf."]
["U.S. EPA/ORD 1985","U.S. EPA/ORD (U.S. Environmental Protection Agency/Office of Research and Development).  1985. Development of Statistical Distributions or Ranges of Standard Factors Used in Exposure Assessments,  Report prepared by GCA Corp., Chapel Hill.  Available from NTIS: PB85-242667."]
["U.S. EPA/ORD 1992","U.S. EPA/ORD (U.S. Environmental Protection Agency/Office of Research and Development).  1992.  Dermal Exposure Assessment: Principles and Applications.  EPA/600/8-91/011B.  Interim Report.  Exposure Assessment Group, Office of Health and Environmental Assessment, Washington, DC."]
["U.S. EPA/ORD 1993","U.S. EPA/ORD (U.S. Environmental Protection Agency/Office of Research and Development).  1993.  Wildlife Exposure Factors Handbook.  Volumes 1 and 2.  EPA/600/R-93/187a,b.  Pagination not continuous.  Available NTIS: PB94-174778 and PB94-174779."]
["U.S. EPA/ORD 1996","U.S. EPA (U.S. Environmental Protection Agency/Office of Research and Development).  1996.  Exposure Factors Handbook. National Center for Environmental Assessment, U.S. EPA, Washington, DC.  EPA/600/P-95/002Ba-c.  Avail. NTIS: PB97-117683, 97-117691, PB97-117709."]
["U.S. EPA/ORD 1997","U.S. EPA (U.S. Environmental Protection Agency/Office of Research and Development).  1996.  Exposure Factors Handbook. National Center for Environmental Assessment, U.S. EPA, Washington, DC.  EPA/600/P-95/002Fa.  Available at: http://rais.ornl.gov/homepage/EFH_Final_1997_EPA600P95002Fa.pdf"]
["USDA 1989a","USDA (U.S. Department of Agriculture/Forest Service).  1989a.  Final Environmental Impact Statement: Vegetation Management in the Coastal Plain/Piedmont, Management Bulletin R8-MB-23, dated January, 1989.  1213 pp."]
["USDA 1989b","USDA (U.S. Department of Agriculture/Forest Service).  1989b.  Draft Environmental Impact Statement: Vegetation Management in the Ozark/Ouachita Mountains, Management Bulletin R8-MB-23, dated June, 1989.  499 pp."]
["USDA 1989c","USDA (U.S. Department of Agriculture/Forest Service).  1989c.  Final Environmental Impact Statement: Vegetation Management in the Appalachian Mountains, Management Bulletin R8-MB-38, dated July, 1989. 1104 pp."]
["Waldbauer 1968","Waldbauer GP.  1968.  The consumption and utilization of food by insects.  Advan Insect Physiol.  5: 229-288"]
["Winston 1987","Winston ML.  1987.  The Biology of the Honey Bee.  Harvard University Press, Cambridge, MA.  ISBN 0-674-07409-2  280 pp."]
["Wolfram Research 1997","Wolfram Research.  1997. Mathematica Version 3.0.1.  Available from Wolfram Research, Inc.  Champaign, IL."]